{"text_format":"1","workbook":"xlsx","n_sheets":15,"sheets":["SolCotizacion","ResumenCotizacion","Distribución","Version","divipola","ProveedorCSV","csv","csvTemp","TablaDinamicaMinimos","CatalogoTemp","Catalogo","Hoja1","tempListas","Listas","Cuadro Totales"],"not_rendered":{"charts":0,"images":0,"macros":1,"external_links":5,"defined_names":9,"comments":0,"pivot_tables":0},"unopened":[],"bounds":{"document_bytes":16777216,"sheet_cells":100000,"rows_first":2000,"rows_last":500,"rows_between":2000,"halvings":0,"cell_chars":16384,"cell_head_chars":4096},"cells_cut":0,"cells_raw":0,"read":"whole","date_system":"1900"}

{"sheet":"SolCotizacion","index":0,"n_rows":37,"n_cols":11,"rows_kept":37,"cut":false,"hidden":false,"merged":[[17,1,17,10],[34,5,34,6],[27,1,27,10],[28,1,28,10],[29,1,29,7],[30,2,30,6],[31,2,31,6],[21,1,21,5],[21,6,21,9],[32,2,32,6],[33,2,33,6],[5,1,5,2],[5,3,5,5],[0,1,1,10],[3,1,3,10],[5,8,5,10],[15,1,15,10],[7,8,7,10],[9,8,9,10],[11,3,11,5],[9,3,9,5],[7,3,7,5],[11,1,11,2],[7,1,7,2],[9,1,9,2]]}
[null,"IAD COVID-19\n(Por favor verifique que la versión del simulador utilizada sea la misma a la publicada en el Minisitio del IAD COVID19)"]
[]
[null,"Versión 14","2021-07-26"]
[null,"Información de la Entidad Compradora"]
[]
[null,"Nombre de la Entidad",null,"Universidad Distrital Francisco Jose de Caldas",null,null,null,"NIT","899.999.230-7"]
[]
[null,"Dirección de la Entidad",null,"Carrera 7 No. 40 B 53",null,null,null,"Correo de contacto","vicerrecadmin@udistrital.edu.co"]
[]
[null,"Ciudad",null,"Bogota D.C.",null,null,null,"Teléfono de contacto","323 93 00 Ext: 1804-1816"]
[]
[null,"Nombre funcionario comprador",null,"Eduard Arnulfo Pinilla Rivera"]
[]
[]
[]
[null,"Solicitud"]
[]
[]
[null,"Cantidad de filas:"]
[null,1]
[]
[null,"Artículo",null,null,null,null,"Entrega",null,null,null,"Cantidad"]
[null,"Item","Código","Categoría","Producto","Especificación Técnica","Distribución","Departamento","Municipio","Direccón de Entrega","cantidad"]
[null,1,"EPP-38",{"$f":"VLOOKUP($C24,Catalogo!$D:$I,3,0)","v":"ELEMENTOS DE PROTECCION PERSONAL"},{"$f":"VLOOKUP($C24,Catalogo!$D:$I,2,0)","v":"EPP-38 - CARETA CON VISOR INTERCAMBIABLE"},{"$f":"VLOOKUP($C24,Catalogo!$D:$I,4,0)","v":"Debe cumpir con la Norma ANSI Z87.1\nCabezal: Fabricado en polímero suave. Sostiene la careta en la cabeza. Graduable de acuerdo a la circunferencia de la cabeza del usuario. Con banda frontal absorbente. \nVisera o rodachispa: Elaborada en polímero de alta densidad, resistente al impacto y a la salpicadura de sustancias químicas. Sostiene el visor y oscila en el cabezal para bajar o levantar la careta.\nSistema de ajuste tiene como función sujetar la visera con el cabezal. \nVisor fabricado en acetato de celulosa de mínimo 20 x 30 cm, ópticamente rectificado, sistema que facilite el cambio del visor.\n\nDebe proteger el rostro de salpicaduras de agua, saliva, sangre de la boca del paciente y cuerpos extraños, bajo peso, neutralidad óptica y resistencia al impacto a bajas velocidades."},"Si","BOGOTÁ, D.C.","BOGOTÁ, D.C.","CALLE 13 No. 31-74",750]
[null,"1. Si requiere agregue o elimine filas"]
[]
[]
[null,"Gravámenes adicionales*"]
[null,"Si los hay, indique los gravámenes adicionales a los que está sujeta la Orden de Compra. Son gravámenes adicionales por ejemplo; estampillas y demás impuestos territoriales. \nLos impuestos como ICA y retención en la fuente NO son gravámenes adicionales.\n"]
[null,"Gravámenes adicionales (estampillas)"]
[null,"No","Descripción",null,null,null,null,"Porcentaje"]
[null,1,"Estampilla Universidad Distrital Francisco Jose de Caldas 50 años",null,null,null,null,1.0999999999999999E-2,null,"",""]
[null,2,"Estampilla Pro-cultura",null,null,null,null,5.0000000000000001E-3]
[null,3,"Estampilla Adulto Mayor",null,null,null,null,0.02]
[null,null,null,null,null,"Total porcentaje:",null,{"$f":"SUM(H32:H34)","v":3.6000000000000004E-2}]
[null,null,null,"Filas a agregar o eliminar Gravámenes:"]
[null,null,null,1]

{"sheet":"ResumenCotizacion","index":1,"n_rows":36,"n_cols":19,"rows_kept":36,"cut":false,"hidden":false,"merged":[[21,11,21,17],[31,2,31,6],[32,2,32,6],[33,2,33,6],[34,2,34,6],[35,5,35,6],[21,1,21,5],[21,6,21,9],[28,1,28,10],[29,1,29,10],[30,1,30,7],[15,1,15,10],[17,1,17,10],[11,3,11,5],[0,1,1,10],[3,1,3,10],[5,8,5,10],[7,8,7,10],[9,8,9,10],[7,1,7,2],[7,3,7,5],[9,1,9,2],[9,3,9,5],[5,1,5,2],[5,3,5,5],[11,1,11,2]]}
[null,"IAD COVID-19\n"]
[]
[]
[null,"Información de la Entidad Compradora"]
[]
[null,"Nombre de la Entidad",null,"Universidad Distrital Francisco Jose de Caldas",null,null,null,"NIT","899.999.230-7"]
[]
[null,"Dirección de la Entidad",null,"Carrera 7 No. 40 B 53",null,null,null,"Correo de contacto","vicerrecadmin@udistrital.edu.co"]
[]
[null,"Ciudad",null,"Bogota D.C.",null,null,null,"Teléfono de contacto","323 93 00 Ext: 1804-1816"]
[]
[null,"Nombre funcionario comprador",null,"Eduard Arnulfo Pinilla Rivera"]
[]
[]
[]
[null,"Solicitud"]
[]
[]
[null,"Cantidad de filas:"]
[null,1]
[]
[null,"Artículo",null,null,null,null,"Entrega",null,null,null,"Cantidad","Valores",null,null,null,null,null,null,"Proveedor Ganador"]
[null,"Item","Código","Categoría","Producto","Especificación Técnica","Distribución","Departamento","Municipio","Direccón de Entrega","cantidad","Cantidad Asumida","Valor","Valor Máximo Permitido","Subtotal","% IVA","Valor Iva","Precio Total","Proveedor"]
[null,1,"EPP-38",{"$f":"VLOOKUP($C24,Catalogo!$D:$I,3,0)","v":"ELEMENTOS DE PROTECCION PERSONAL"},{"$f":"VLOOKUP($C24,Catalogo!$D:$I,2,0)","v":"EPP-38 - CARETA CON VISOR INTERCAMBIABLE"},{"$f":"VLOOKUP($C24,Catalogo!$D:$I,4,0)","v":"Debe cumpir con la Norma ANSI Z87.1\nCabezal: Fabricado en polímero suave. Sostiene la careta en la cabeza. Graduable de acuerdo a la circunferencia de la cabeza del usuario. Con banda frontal absorbente. \nVisera o rodachispa: Elaborada en polímero de alta densidad, resistente al impacto y a la salpicadura de sustancias químicas. Sostiene el visor y oscila en el cabezal para bajar o levantar la careta.\nSistema de ajuste tiene como función sujetar la visera con el cabezal. \nVisor fabricado en acetato de celulosa de mínimo 20 x 30 cm, ópticamente rectificado, sistema que facilite el cambio del visor.\n\nDebe proteger el rostro de salpicaduras de agua, saliva, sangre de la boca del paciente y cuerpos extraños, bajo peso, neutralidad óptica y resistencia al impacto a bajas velocidades."},"Si","BOGOTÁ, D.C.","BOGOTÁ, D.C.","CALLE 13 No. 31-74",750,750,{"$f":"VLOOKUP($C24&$S24,Catalogo!$A:$S,14,0)","v":24000},{"$f":"ROUND(M24/(1-VLOOKUP(\"Total porcentaje:\",$F:$H,3,0)),2)","v":24896.27},{"$f":"ROUND($N24*$L24,2)","v":18672202.5},{"$f":"VLOOKUP($C24&$S24,Catalogo!$A:$S,19,0)","v":0},{"$f":"ROUND($O24*$P24,2)","v":0},{"$f":"$Q24+$O24","v":18672202.5},"DELTA PLUS COLOMBIA SAS"]
[null,2,"DIS-1","DISTRIBUCION","DIS-1 - DISTRIBUCION",null,null,null,null,null,1,1,{"$f":"SUM(Distribución!$H:$H)/2","v":0},{"$f":"ROUND(M25/(1-VLOOKUP(\"Total porcentaje:\",$F:$H,3,0)),2)","v":0},{"$f":"ROUND($N25*$L25,2)","v":0},0,{"$f":"ROUND($O25*$P25,2)","v":0},{"$f":"$Q25+$O25","v":0},"Distribución Total"]
[null,"1. Si requiere agregue o elimine filas",null,null,null,null,null,null,null,null,null,null,null,null,null,"Total",{"$f":"SUM(Q$24:Q$25)","v":0},{"$f":"SUM(R$24:R$25)","v":18672202.5}]
[]
[]
[null,"Gravámenes adicionales*"]
[null,"Si los hay, indique los gravámenes adicionales a los que está sujeta la Orden de Compra. Son gravámenes adicionales por ejemplo; estampillas y demás impuestos territoriales. \nLos impuestos como ICA y retención en la fuente NO son gravámenes adicionales.\n"]
[null,"Gravámenes adicionales (estampillas)"]
[null,"No","Descripción",null,null,null,null,"Porcentaje"]
[null,1,"Estampilla Universidad Distrital Francisco Jose de Caldas 50 años",null,null,null,null,1.0999999999999999E-2,null,"",""]
[null,2,"Estampilla Pro-cultura",null,null,null,null,5.0000000000000001E-3]
[null,3,"Estampilla Adulto Mayor",null,null,null,null,0.02]
[null,null,null,null,null,"Total porcentaje:",null,{"$f":"SUM(H33:H35)","v":3.6000000000000004E-2}]

{"sheet":"Distribución","index":2,"n_rows":8,"n_cols":8,"rows_kept":8,"cut":false,"hidden":false,"merged":[[1,1,1,7],[4,1,4,2],[4,3,4,6]]}
[]
[null,"VALORES DE DISTRIBUCIÓN"]
[]
[]
[null,"Proveedor",null,"DELTA PLUS COLOMBIA SAS",null,null,null,{"$f":"H8","v":0}]
[]
[null,"Item","Producto","Departamento","Municipio","Direccón de Entrega","Cantidad Asumida","Valor total de distribución"]
[null,1,"EPP-38 - CARETA CON VISOR INTERCAMBIABLE","BOGOTÁ, D.C.","BOGOTÁ, D.C.","CALLE 13 No. 31-74",750,0]

{"sheet":"Version","index":3,"n_rows":2,"n_cols":4,"rows_kept":2,"cut":false,"hidden":true,"merged":[]}
["NombreAMP","codigoAMP","fechaAMP","version"]
["covid19 elementos de proteccion personal","cov19-epp","2021-07-26T09:00:00",10]

{"sheet":"divipola","index":4,"n_rows":1129,"n_cols":2,"rows_kept":1129,"cut":false,"hidden":true,"merged":[]}
["Departemento","Municipio"]
["AMAZONAS","LETICIA"]
["AMAZONAS","PUERTO SANTANDER"]
["AMAZONAS","EL ENCANTO"]
["AMAZONAS","PUERTO ALEGRÍA"]
["AMAZONAS","LA CHORRERA"]
["AMAZONAS","LA PEDRERA"]
["AMAZONAS","LA VICTORIA"]
["AMAZONAS","MIRITÍ - PARANÁ"]
["AMAZONAS","PUERTO ARICA"]
["AMAZONAS","PUERTO NARIÑO"]
["AMAZONAS","TARAPACÁ"]
["ANTIOQUIA","SAN LUIS"]
["ANTIOQUIA","BRICEÑO"]
["ANTIOQUIA","CIUDAD BOLÍVAR"]
["ANTIOQUIA","BURITICÁ"]
["ANTIOQUIA","CAUCASIA"]
["ANTIOQUIA","COCORNÁ"]
["ANTIOQUIA","CAICEDO"]
["ANTIOQUIA","CALDAS"]
["ANTIOQUIA","CAÑASGORDAS"]
["ANTIOQUIA","CAREPA"]
["ANTIOQUIA","CARAMANTA"]
["ANTIOQUIA","CARMEN DE VIBORAL"]
["ANTIOQUIA","CHIGORODÓ"]
["ANTIOQUIA","CISNEROS"]
["ANTIOQUIA","CARACOLÍ"]
["ANTIOQUIA","CAROLINA"]
["ANTIOQUIA","CONCEPCIÓN"]
["ANTIOQUIA","CONCORDIA"]
["ANTIOQUIA","MUTATÁ"]
["ANTIOQUIA","DABEIBA"]
["ANTIOQUIA","COPACABANA"]
["ANTIOQUIA","MEDELLÍN"]
["ANTIOQUIA","ZARAGOZA"]
["ANTIOQUIA","YOLOMBÓ"]
["ANTIOQUIA","YARUMAL"]
["ANTIOQUIA","YONDÓ (CASABE)"]
["ANTIOQUIA","YALÍ"]
["ANTIOQUIA","SAN PEDRO"]
["ANTIOQUIA","SAN PEDRO DE URABÁ"]
["ANTIOQUIA","TÁMESIS"]
["ANTIOQUIA","TARAZÁ"]
["ANTIOQUIA","SONSÓN"]
["ANTIOQUIA","SABANALARGA"]
["ANTIOQUIA","SAN ANDRÉS"]
["ANTIOQUIA","SAN CARLOS"]
["ANTIOQUIA","RETIRO"]
["ANTIOQUIA","RIONEGRO"]
["ANTIOQUIA","SABANETA"]
["ANTIOQUIA","SALGAR"]
["ANTIOQUIA","SAN RAFAEL"]
["ANTIOQUIA","JERICÓ"]
["ANTIOQUIA","SAN JERÓNIMO"]
["ANTIOQUIA","SAN FRANCISCO"]
["ANTIOQUIA","TOLEDO"]
["ANTIOQUIA","SAN VICENTE"]
["ANTIOQUIA","SANTA ROSA DE OSOS"]
["ANTIOQUIA","SAN ROQUE"]
["ANTIOQUIA","SOPETRÁN"]
["ANTIOQUIA","SEGOVIA"]
["ANTIOQUIA","SANTA BÁRBARA"]
["ANTIOQUIA","TITIRIBÍ"]
["ANTIOQUIA","TURBO"]
["ANTIOQUIA","SANTO DOMINGO"]
["ANTIOQUIA","SAN JUAN DE URABÁ"]
["ANTIOQUIA","NARIÑO"]
["ANTIOQUIA","LA CEJA"]
["ANTIOQUIA","MURINDÓ"]
["ANTIOQUIA","SAN JOSÉ DE LA MONTAÑA"]
["ANTIOQUIA","NECOCLÍ"]
["ANTIOQUIA","VALDIVIA"]
["ANTIOQUIA","VEGACHÍ"]
["ANTIOQUIA","FRONTINO"]
["ANTIOQUIA","VIGIA DEL FUERTE"]
["ANTIOQUIA","URAMITA"]
["ANTIOQUIA","VENECIA"]
["ANTIOQUIA","URRAO"]
["ANTIOQUIA","GÓMEZ PLATA"]
["ANTIOQUIA","GIRARDOTA"]
["ANTIOQUIA","SANTUARIO"]
["ANTIOQUIA","TARSO"]
["ANTIOQUIA","ITUANGO"]
["ANTIOQUIA","MONTEBELLO"]
["ANTIOQUIA","GRANADA"]
["ANTIOQUIA","HELICONIA"]
["ANTIOQUIA","JARDÍN"]
["ANTIOQUIA","GUADALUPE"]
["ANTIOQUIA","GUARNE"]
["ANTIOQUIA","HISPANIA"]
["ANTIOQUIA","LA ESTRELLA"]
["ANTIOQUIA","GUATAPÉ"]
["ANTIOQUIA","ENTRERRIOS"]
["ANTIOQUIA","GIRALDO"]
["ANTIOQUIA","MACEO"]
["ANTIOQUIA","DON MATÍAS"]
["ANTIOQUIA","VALPARAISO"]
["ANTIOQUIA","ITAGÜÍ"]
["ANTIOQUIA","PEÑOL"]
["ANTIOQUIA","EL BAGRE"]
["ANTIOQUIA","PEQUE"]
["ANTIOQUIA","PUERTO BERRÍO"]
["ANTIOQUIA","PUEBLORRICO"]
["ANTIOQUIA","FREDONIA"]
["ANTIOQUIA","PUERTO NARE"]
["ANTIOQUIA","PUERTO TRIUNFO"]
["ANTIOQUIA","OLAYA"]
["ANTIOQUIA","ENVIGADO"]
["ANTIOQUIA","REMEDIOS"]
["ANTIOQUIA","NECHÍ"]
["ANTIOQUIA","LIBORINA"]
["ANTIOQUIA","LA PINTADA"]
["ANTIOQUIA","LA UNIÓN"]
["ANTIOQUIA","MARINILLA"]
["ANTIOQUIA","EBÉJICO"]
["ANTIOQUIA","ALEJANDRÍA"]
["ANTIOQUIA","AMAGÁ"]
["ANTIOQUIA","AMALFI"]
["ANTIOQUIA","ANDES"]
["ANTIOQUIA","ABEJORRAL"]
["ANTIOQUIA","ANORÍ"]
["ANTIOQUIA","APARTADÓ"]
["ANTIOQUIA","ARBOLETES"]
["ANTIOQUIA","BETULIA"]
["ANTIOQUIA","ANGELÓPOLIS"]
["ANTIOQUIA","ANGOSTURA"]
["ANTIOQUIA","ANZÁ"]
["ANTIOQUIA","BETANIA"]
["ANTIOQUIA","SANTA FE DE ANTIOQUIA"]
["ANTIOQUIA","ARGELIA"]
["ANTIOQUIA","ABRIAQUÍ"]
["ANTIOQUIA","BELLO"]
["ANTIOQUIA","BARBOSA"]
["ANTIOQUIA","ARMENIA"]
["ANTIOQUIA","BELMIRA"]
["ANTIOQUIA","CAMPAMENTO"]
["ANTIOQUIA","CÁCERES"]
["ARAUCA","TAME"]
["ARAUCA","SARAVENA"]
["ARAUCA","FORTUL"]
["ARAUCA","CRAVO NORTE"]
["ARAUCA","ARAUQUITA"]
["ARAUCA","PUERTO RONDÓN"]
["ARAUCA","ARAUCA"]
["ATLÁNTICO","SANTO TOMÁS"]
["ATLÁNTICO","PIOJO"]
["ATLÁNTICO","JUAN DE ACOSTA"]
["ATLÁNTICO","SABANALARGA"]
["ATLÁNTICO","PUERTO COLOMBIA"]
["ATLÁNTICO","BARRANQUILLA"]
["ATLÁNTICO","MALAMBO"]
["ATLÁNTICO","SABANAGRANDE"]
["ATLÁNTICO","GALAPA"]
["ATLÁNTICO","POLONUEVO"]
["ATLÁNTICO","BARANOA"]
["ATLÁNTICO","PALMAR DE VARELA"]
["ATLÁNTICO","PONEDERA"]
["ATLÁNTICO","CANDELARIA"]
["ATLÁNTICO","SOLEDAD"]
["ATLÁNTICO","USIACURI"]
["ATLÁNTICO","LURUACO"]
["ATLÁNTICO","REPELON"]
["ATLÁNTICO","CAMPO DE LA CRUZ"]
["ATLÁNTICO","SUAN"]
["ATLÁNTICO","SANTA LUCIA"]
["ATLÁNTICO","MANATI"]
["ATLÁNTICO","TUBARÁ"]
["BOGOTÁ, D.C.","BOGOTÁ, D.C."]
["BOLÍVAR","TURBACO"]
["BOLÍVAR","VILLANUEVA"]
["BOLÍVAR","ARENAL"]
["BOLÍVAR","MOMPÓS"]
["BOLÍVAR","BOLÍVAR"]
["BOLÍVAR","MAHATES"]
["BOLÍVAR","SAN MARTIN DE LOBA"]
["BOLÍVAR","SIMITÍ"]
["BOLÍVAR","TALAIGUA NUEVO"]
["BOLÍVAR","MORALES"]
["BOLÍVAR","RIOVIEJO"]
["BOLÍVAR","CARTAGENA DE INDIAS"]
["BOLÍVAR","EL CARMEN DE BOLÍVAR"]
["BOLÍVAR","SAN JACINTO"]
["BOLÍVAR","SANTA ROSA DEL SUR"]
["BOLÍVAR","SAN PABLO"]
["BOLÍVAR","TIQUISIO"]
["BOLÍVAR","SAN JACINTO DEL CAUCA"]
["BOLÍVAR","ZAMBRANO"]
["BOLÍVAR","SAN JUAN NEPOMUCENO"]
["BOLÍVAR","SAN FERNANDO"]
["BOLÍVAR","MARIA LA BAJA"]
["BOLÍVAR","TURBANA"]
["BOLÍVAR","MARGARITA"]
["BOLÍVAR","MONTECRISTO"]
["BOLÍVAR","MAGANGUE"]
["BOLÍVAR","SAN ESTANISLAO"]
["BOLÍVAR","SAN CRISTOBAL"]
["BOLÍVAR","RIO VIEJO"]
["BOLÍVAR","REGIDOR"]
["BOLÍVAR","PINILLOS"]
["BOLÍVAR","SOPLAVIENTO"]
["BOLÍVAR","SANTA ROSA"]
["BOLÍVAR","SANTA CATALINA"]
["BOLÍVAR","HATILLO DE LOBA"]
["BOLÍVAR","CALAMAR"]
["BOLÍVAR","CORDOBA"]
["BOLÍVAR","CANTAGALLO"]
["BOLÍVAR","EL GUAMO"]
["BOLÍVAR","EL PENON"]
["BOLÍVAR","CLEMENCIA"]
["BOLÍVAR","CICUCO"]
["BOLÍVAR","ACHI"]
["BOLÍVAR","ARJONA"]
["BOLÍVAR","ALTOS DEL ROSARIO"]
["BOLÍVAR","ARROYOHONDO"]
["BOLÍVAR","BARRANCO DE LOBA"]
["BOYACÁ","UMBITA"]
["BOYACÁ","RÁQUIRA"]
["BOYACÁ","SANTANA"]
["BOYACÁ","SANTA MARÍA"]
["BOYACÁ","SAN LUIS DE GACENO"]
["BOYACÁ","SAN PABLO DE BORBUR"]
["BOYACÁ","SOTAQUIRÁ"]
["BOYACÁ","SOMONDOCO"]
["BOYACÁ","SORA"]
["BOYACÁ","SUTATENZA"]
["BOYACÁ","TIBANÁ"]
["BOYACÁ","TOGÜÍ"]
["BOYACÁ","TIBASOSA"]
["BOYACÁ","TINJACÁ"]
["BOYACÁ","TURMEQUÉ"]
["BOYACÁ","TUTA"]
["BOYACÁ","RAMIRIQUÍ"]
["BOYACÁ","TOTA"]
["BOYACÁ","SORACÁ"]
["BOYACÁ","TUNUNGUÁ"]
["BOYACÁ","RONDÓN"]
["BOYACÁ","SAN JOSÉ DE PARE"]
["BOYACÁ","SANTA SOFÍA"]
["BOYACÁ","ZETAQUIRA"]
["BOYACÁ","TOCA"]
["BOYACÁ","SAMACÁ"]
["BOYACÁ","SAN EDUARDO"]
["BOYACÁ","SAN MIGUEL DE SEMA"]
["BOYACÁ","SÁCHICA"]
["BOYACÁ","SIACHOQUE"]
["BOYACÁ","QUÍPAMA"]
["BOYACÁ","SANTA ROSA DE VITERBO"]
["BOYACÁ","PUERTO BOYACÁ"]
["BOYACÁ","VENTAQUEMADA"]
["BOYACÁ","VIRACACHÁ"]
["BOYACÁ","BOYACÁ"]
["BOYACÁ","BRICEÑO"]
["BOYACÁ","BUENAVISTA"]
["BOYACÁ","PAIPA"]
["BOYACÁ","PESCA"]
["BOYACÁ","GACHANTIVÁ"]
["BOYACÁ","MIRAFLORES"]
["BOYACÁ","CUÍTIVA"]
["BOYACÁ","CHÍQUIZA"]
["BOYACÁ","GUATEQUE"]
["BOYACÁ","NUEVO COLÓN"]
["BOYACÁ","LA CAPILLA"]
["BOYACÁ","LA VICTORIA"]
["BOYACÁ","OTANCHE"]
["BOYACÁ","CALDAS"]
["BOYACÁ","CÓMBITA"]
["BOYACÁ","MONIQUIRÁ"]
["BOYACÁ","PÁEZ"]
["BOYACÁ","CUCAITA"]
["BOYACÁ","IZA"]
["BOYACÁ","CHINAVITA"]
["BOYACÁ","GUAYATÁ"]
["BOYACÁ","CAMPOHERMOSO"]
["BOYACÁ","PACHAVITA"]
["BOYACÁ","NOBSA"]
["BOYACÁ","CIÉNEGA"]
["BOYACÁ","MARIPÍ"]
["BOYACÁ","OICATÁ"]
["BOYACÁ","CERINZA"]
["BOYACÁ","MOTAVITA"]
["BOYACÁ","CHIQUINQUIRÁ"]
["BOYACÁ","DUITAMA"]
["BOYACÁ","MUZO"]
["BOYACÁ","CHITARAQUE"]
["BOYACÁ","FIRAVITOBA"]
["BOYACÁ","VILLA DE LEYVA"]
["BOYACÁ","BERBEO"]
["BOYACÁ","TUNJA"]
["BOYACÁ","AQUITANIA"]
["BOYACÁ","ARCABUCO"]
["BOYACÁ","CHIVOR"]
["BOYACÁ","ALMEIDA"]
["BOYACÁ","MACANAL"]
["BOYACÁ","GARAGOA"]
["BOYACÁ","TENZA"]
["BOYACÁ","COPER"]
["BOYACÁ","JENESANO"]
["BOYACÁ","SUTAMARCHÁN"]
["BOYACÁ","CHIVATÁ"]
["BOYACÁ","SOGAMOSO"]
["BOYACÁ","PAUNA"]
["BOYACÁ","SABOYÁ"]
["BOYACÁ","FLORESTA"]
["BOYACÁ","SUSACÓN"]
["BOYACÁ","SOATÁ"]
["BOYACÁ","SOCOTÁ"]
["BOYACÁ","SOCHA"]
["BOYACÁ","SAN MATEO"]
["BOYACÁ","SATIVASUR"]
["BOYACÁ","BOAVITA"]
["BOYACÁ","BUSBANZÁ"]
["BOYACÁ","CHISCAS"]
["BOYACÁ","PISBA"]
["BOYACÁ","TIPACOQUE"]
["BOYACÁ","TUTAZÁ"]
["BOYACÁ","CUBARÁ"]
["BOYACÁ","EL ESPINO"]
["BOYACÁ","GAMEZA"]
["BOYACÁ","CORRALES"]
["BOYACÁ","GÜICÁN"]
["BOYACÁ","COVARACHÍA"]
["BOYACÁ","EL COCUY"]
["BOYACÁ","MONGUA"]
["BOYACÁ","PAJARITO"]
["BOYACÁ","PANQUEBA"]
["BOYACÁ","PAZ DE RÍO"]
["BOYACÁ","BELÉN"]
["BOYACÁ","GUACAMAYAS"]
["BOYACÁ","PAYA"]
["BOYACÁ","MONGUI"]
["BOYACÁ","TOPAGA"]
["BOYACÁ","CHITA"]
["BOYACÁ","LA UVITA"]
["BOYACÁ","BETEITIVA"]
["BOYACÁ","JERICÓ"]
["BOYACÁ","SATIVANORTE"]
["BOYACÁ","LABRANZAGRANDE"]
["BOYACÁ","TASCO"]
["CALDAS","ANSERMA"]
["CALDAS","AGUADAS"]
["CALDAS","ARANZAZU"]
["CALDAS","BELALCAZAR"]
["CALDAS","MARQUETALIA"]
["CALDAS","CHINCHINÁ"]
["CALDAS","FILADELFIA"]
["CALDAS","LA DORADA"]
["CALDAS","MANIZALES"]
["CALDAS","RISARALDA"]
["CALDAS","MANZANARES"]
["CALDAS","NORCASIA"]
["CALDAS","SAN JOSÉ"]
["CALDAS","VICTORIA"]
["CALDAS","NEIRA"]
["CALDAS","VILLAMARIA"]
["CALDAS","PENSILVANIA"]
["CALDAS","PÁCORA"]
["CALDAS","MARULANDA"]
["CALDAS","PALESTINA"]
["CALDAS","SALAMINA"]
["CALDAS","SUPIA"]
["CALDAS","VITERBO"]
["CALDAS","RIOSUCIO"]
["CALDAS","MARMATO"]
["CALDAS","LA MERCED"]
["CALDAS","SAMANA"]
["CAQUETÁ","CURILLO"]
["CAQUETÁ","LA MONTAÑITA"]
["CAQUETÁ","BELÉN DE LOS ANDAQUÍES"]
["CAQUETÁ","EL DONCELLO"]
["CAQUETÁ","MORELIA"]
["CAQUETÁ","SAN JOSÉ DEL FRAGUA"]
["CAQUETÁ","VALPARAÍSO"]
["CAQUETÁ","SAN VICENTE DEL CAGUÁN"]
["CAQUETÁ","CARTAGENA DEL CHAIRÁ"]
["CAQUETÁ","PUERTO RICO"]
["CAQUETÁ","MILAN"]
["CAQUETÁ","FLORENCIA"]
["CAQUETÁ","SOLANO"]
["CAQUETÁ","EL PAUJIL"]
["CAQUETÁ","SOLITA"]
["CAQUETÁ","ALBANIA"]
["CAQUETÁ","VALPARAISO"]
["CAQUETÁ","PRIMAVERA"]
["CASANARE","SABANALARGA"]
["CASANARE","VILLANUEVA"]
["CASANARE","TRINIDAD"]
["CASANARE","SÁCAMA"]
["CASANARE","YOPAL"]
["CASANARE","NUNCHÍA"]
["CASANARE","MANÍ"]
["CASANARE","AGUAZUL"]
["CASANARE","HATO COROZAL"]
["CASANARE","PAZ DE ARIPORO"]
["CASANARE","PORE"]
["CASANARE","TAURAMENA"]
["CASANARE","OROCUÉ"]
["CASANARE","LA SALINA"]
["CASANARE","MONTERREY"]
["CASANARE","SAN LUIS DE PALENQUE"]
["CASANARE","CHÁMEZA"]
["CASANARE","RECETOR"]
["CASANARE","TAMARA"]
["CAUCA","CALDONO"]
["CAUCA","MIRANDA"]
["CAUCA","LA VEGA"]
["CAUCA","MERCADERES"]
["CAUCA","PÁEZ (BELALCÁZAR)"]
["CAUCA","MORALES"]
["CAUCA","PIAMONTE"]
["CAUCA","POPAYÁN"]
["CAUCA","SANTANDER DE QUILICHAO"]
["CAUCA","PATÍA (EL BORDO)"]
["CAUCA","SILVIA"]
["CAUCA","SUÁREZ"]
["CAUCA","ARGELIA"]
["CAUCA","ALMAGUER"]
["CAUCA","TOTORÓ"]
["CAUCA","BOLÍVAR"]
["CAUCA","CALOTO"]
["CAUCA","BUENOS AIRES"]
["CAUCA","CAJIBÍO"]
["CAUCA","INZÁ"]
["CAUCA","CORINTO"]
["CAUCA","BALBOA"]
["CAUCA","PUERTO TEJADA"]
["CAUCA","SANTA ROSA"]
["CAUCA","TIMBIQUÍ"]
["CAUCA","TORIBÍO"]
["CAUCA","AREA EN LITIGIO"]
["CAUCA","SAN SEBASTIÁN"]
["CAUCA","PADILLA"]
["CAUCA","FLORENCIA"]
["CAUCA","JAMBALÓ"]
["CAUCA","EL TAMBO"]
["CAUCA","GUACHENE"]
["CAUCA","VILLA RICA"]
["CAUCA","ROSAS"]
["CAUCA","SOTARA"]
["CAUCA","PIENDAMÓ"]
["CAUCA","SUCRE"]
["CAUCA","GUAPI"]
["CAUCA","LA SIERRA"]
["CAUCA","TIMBÍO"]
["CAUCA","LÓPEZ DE MICAY"]
["CESAR","PAILITAS"]
["CESAR","PELAYA"]
["CESAR","PUEBLO BELLO"]
["CESAR","RIO DE ORO"]
["CESAR","AGUACHICA"]
["CESAR","SAN ALBERTO"]
["CESAR","LA JAGUA DE IBIRICO"]
["CESAR","CURUMANÍ"]
["CESAR","EL COPEY"]
["CESAR","SAN DIEGO"]
["CESAR","GONZÁLEZ"]
["CESAR","SAN MARTÍN"]
["CESAR","TAMALAMEQUE"]
["CESAR","BECERRILL"]
["CESAR","MANAURE BALCÓN DEL CESAR"]
["CESAR","AGUSTIN CODAZZI"]
["CESAR","LA PAZ"]
["CESAR","VALLEDUPAR"]
["CESAR","CHIRIGUANA"]
["CESAR","BOSCONIA"]
["CESAR","GAMARRA"]
["CESAR","CHIMICHAGUA"]
["CESAR","EL PASO"]
["CESAR","ASTREA"]
["CESAR","LA GLORIA"]
["CESAR","BECERRIL"]
["CHOCÓ","TADÓ"]
["CHOCÓ","UNGUÍA"]
["CHOCÓ","UNIÓN PANAMERICANA ( ANIMAS)"]
["CHOCÓ","ATRATO (YUTO)"]
["CHOCÓ","RIO IRÓ (SANTA RITA)"]
["CHOCÓ","EL CANTÓN DEL SAN PABLO"]
["CHOCÓ","CÉRTEGUI"]
["CHOCÓ","MEDIO BAUDO"]
["CHOCÓ","MEDIO ATRATO"]
["CHOCÓ","RIOSUCIO"]
["CHOCÓ","QUIBDO"]
["CHOCÓ","NUQUI"]
["CHOCÓ","RIO QUITO"]
["CHOCÓ","BAJO BAUDO"]
["CHOCÓ","BOJAYA"]
["CHOCÓ","JURADO"]
["CHOCÓ","LLORO"]
["CHOCÓ","ISTMINA"]
["CHOCÓ","EL CARMEN DE ATRATO"]
["CHOCÓ","MEDIO SAN JUAN"]
["CHOCÓ","ALTO BAUDO"]
["CHOCÓ","ACANDI"]
["CHOCÓ","BAHIA SOLANO"]
["CHOCÓ","BAGADO"]
["CHOCÓ","CARMEN DEL DARIEN"]
["CHOCÓ","SIPÍ"]
["CHOCÓ","EL LITORAL DEL SAN JUAN"]
["CHOCÓ","CONDOTO"]
["CHOCÓ","NÓVITA"]
["CHOCÓ","SAN JOSÉ DEL PALMAR"]
["CÓRDOBA","CHIMA"]
["CÓRDOBA","CERETÉ"]
["CÓRDOBA","AYAPEL"]
["CÓRDOBA","PUERTO ESCONDIDO"]
["CÓRDOBA","SAHAGÚN"]
["CÓRDOBA","MONTERÍA"]
["CÓRDOBA","CHINÚ"]
["CÓRDOBA","SAN ANTERO"]
["CÓRDOBA","MONTELÍBANO"]
["CÓRDOBA","SAN JOSE DE URE"]
["CÓRDOBA","VALENCIA"]
["CÓRDOBA","TIERRALTA"]
["CÓRDOBA","PUERTO LIBERTADOR"]
["CÓRDOBA","BUENAVISTA"]
["CÓRDOBA","PLANETA RICA"]
["CÓRDOBA","LOS CORDOBAS"]
["CÓRDOBA","LORICA"]
["CÓRDOBA","MOÑITOS"]
["CÓRDOBA","SAN PELAYO"]
["CÓRDOBA","LA APARTADA"]
["CÓRDOBA","SAN BERNARDO DEL VIENTO"]
["CÓRDOBA","SAN ANDRES DE SOTAVENTO"]
["CÓRDOBA","TUCHÍN"]
["CÓRDOBA","MOMIL"]
["CÓRDOBA","PURISIMA"]
["CÓRDOBA","COTORRA"]
["CÓRDOBA","SAN CARLOS"]
["CÓRDOBA","CIÉNAGA DE ORO"]
["CÓRDOBA","PUEBLO NUEVO"]
["CÓRDOBA","CANALETE"]
["CUNDINAMARCA","QUETAME"]
["CUNDINAMARCA","SAN BERNARDO"]
["CUNDINAMARCA","VENECIA"]
["CUNDINAMARCA","RICAURTE"]
["CUNDINAMARCA","UNE"]
["CUNDINAMARCA","PANDI"]
["CUNDINAMARCA","PASCA"]
["CUNDINAMARCA","NILO"]
["CUNDINAMARCA","CABRERA"]
["CUNDINAMARCA","GUAYABETAL"]
["CUNDINAMARCA","GUTIÉRREZ"]
["CUNDINAMARCA","ARBELÁEZ"]
["CUNDINAMARCA","FUSAGASUGÁ"]
["CUNDINAMARCA","YACOPÍ"]
["CUNDINAMARCA","VIANÍ"]
["CUNDINAMARCA","VILLAGÓMEZ"]
["CUNDINAMARCA","MEDINA"]
["CUNDINAMARCA","MADRID"]
["CUNDINAMARCA","MANTA"]
["CUNDINAMARCA","PACHO"]
["CUNDINAMARCA","NEMOCÓN"]
["CUNDINAMARCA","PAIME"]
["CUNDINAMARCA","LA PEÑA"]
["CUNDINAMARCA","LA PALMA"]
["CUNDINAMARCA","LENGUAZAQUE"]
["CUNDINAMARCA","MACHETA"]
["CUNDINAMARCA","LA VEGA"]
["CUNDINAMARCA","VILLETA"]
["CUNDINAMARCA","TIBIRITA"]
["CUNDINAMARCA","LA MESA"]
["CUNDINAMARCA","NARIÑO"]
["CUNDINAMARCA","VIOTÁ"]
["CUNDINAMARCA","VILLAPINZÓN"]
["CUNDINAMARCA","ZIPAQUIRÁ"]
["CUNDINAMARCA","ZIPACÓN"]
["CUNDINAMARCA","SAN CAYETANO"]
["CUNDINAMARCA","SASAIMA"]
["CUNDINAMARCA","SIBATÉ"]
["CUNDINAMARCA","SAN JUAN DE RÍO SECO"]
["CUNDINAMARCA","SESQUILÉ"]
["CUNDINAMARCA","SOACHA"]
["CUNDINAMARCA","SUBACHOQUE"]
["CUNDINAMARCA","SILVANIA"]
["CUNDINAMARCA","SUESCA"]
["CUNDINAMARCA","SIMIJACA"]
["CUNDINAMARCA","SOPÓ"]
["CUNDINAMARCA","SUPATÁ"]
["CUNDINAMARCA","NIMAIMA"]
["CUNDINAMARCA","SAN FRANCISCO"]
["CUNDINAMARCA","NOCAIMA"]
["CUNDINAMARCA","PUERTO SALGAR"]
["CUNDINAMARCA","QUIPILE"]
["CUNDINAMARCA","SUSA"]
["CUNDINAMARCA","PARATEBUENO"]
["CUNDINAMARCA","QUEBRADANEGRA"]
["CUNDINAMARCA","SAN ANTONIO DEL TEQUENDAMA"]
["CUNDINAMARCA","SUTATAUSA"]
["CUNDINAMARCA","PULÍ"]
["CUNDINAMARCA","APULO"]
["CUNDINAMARCA","VERGARA"]
["CUNDINAMARCA","ÚTICA"]
["CUNDINAMARCA","TIBACUY"]
["CUNDINAMARCA","MOSQUERA"]
["CUNDINAMARCA","TOCAIMA"]
["CUNDINAMARCA","UBALÁ"]
["CUNDINAMARCA","TOCANCIPÁ"]
["CUNDINAMARCA","UBAQUE"]
["CUNDINAMARCA","TOPAIPÍ"]
["CUNDINAMARCA","VILLA DE SAN DIEGO DE UBATE"]
["CUNDINAMARCA","TENJO"]
["CUNDINAMARCA","TAUSA"]
["CUNDINAMARCA","TENA"]
["CUNDINAMARCA","TABIO"]
["CUNDINAMARCA","CHOCONTÁ"]
["CUNDINAMARCA","AGUA DE DIOS"]
["CUNDINAMARCA","BELTRÁN"]
["CUNDINAMARCA","BOJACÁ"]
["CUNDINAMARCA","BITUIMA"]
["CUNDINAMARCA","COGUA"]
["CUNDINAMARCA","CACHIPAY"]
["CUNDINAMARCA","ANOLAIMA"]
["CUNDINAMARCA","CAPARRAPÍ"]
["CUNDINAMARCA","FACATATIVÁ"]
["CUNDINAMARCA","CHIPAQUE"]
["CUNDINAMARCA","CAQUEZA"]
["CUNDINAMARCA","CHAGUANÍ"]
["CUNDINAMARCA","CHOACHÍ"]
["CUNDINAMARCA","FOMEQUE"]
["CUNDINAMARCA","GIRARDOT"]
["CUNDINAMARCA","CARMEN DE CARUPA"]
["CUNDINAMARCA","GUACHETÁ"]
["CUNDINAMARCA","EL PEÑÓN"]
["CUNDINAMARCA","GAMA"]
["CUNDINAMARCA","CUCUNUBÁ"]
["CUNDINAMARCA","ANAPOIMA"]
["CUNDINAMARCA","CHÍA"]
["CUNDINAMARCA","ALBÁN"]
["CUNDINAMARCA","CAJICÁ"]
["CUNDINAMARCA","GUAYABAL DE SÍQUIMA"]
["CUNDINAMARCA","GUADUAS"]
["CUNDINAMARCA","GUASCA"]
["CUNDINAMARCA","GUATAQUÍ"]
["CUNDINAMARCA","LA CALERA"]
["CUNDINAMARCA","JERUSALÉN"]
["CUNDINAMARCA","JUNÍN"]
["CUNDINAMARCA","GACHANCIPÁ"]
["CUNDINAMARCA","GACHALA"]
["CUNDINAMARCA","GACHETÁ"]
["CUNDINAMARCA","GUATAVITA"]
["CUNDINAMARCA","EL COLEGIO"]
["CUNDINAMARCA","EL ROSAL"]
["CUNDINAMARCA","FOSCA"]
["CUNDINAMARCA","COTA"]
["CUNDINAMARCA","FUNZA"]
["CUNDINAMARCA","GACHALÁ"]
["CUNDINAMARCA","FÚQUENE"]
["CUNDINAMARCA","GRANADA"]
["GUAINIA","BARRANCO MINA"]
["GUAINIA","MAPIRIPANA"]
["GUAINIA","INIRIDA"]
["GUAINIA","SAN FELIPE"]
["GUAINIA","LA GUADALUPE"]
["GUAINIA","CACAHUAL"]
["GUAINIA","PANÁ PANÁ"]
["GUAINIA","INÍRIDA"]
["GUAINIA","PUERTO COLOMBIA (COR. DEPARTAMENTAL)"]
["GUAINIA","MORICHAL"]
["GUAVIARE","EL RETORNO"]
["GUAVIARE","MIRAFLORES"]
["GUAVIARE","SAN JOSÉ DEL GUAVIARE"]
["GUAVIARE","CALAMAR"]
["HUILA","COLOMBIA"]
["HUILA","NEIVA"]
["HUILA","GIGANTE"]
["HUILA","PITAL"]
["HUILA","ISNOS"]
["HUILA","SAN AGUSTÍN"]
["HUILA","PALESTINA"]
["HUILA","ALTAMIRA"]
["HUILA","PAICOL"]
["HUILA","LA PLATA"]
["HUILA","AIPE"]
["HUILA","GUADALUPE"]
["HUILA","PITALITO"]
["HUILA","SANTA MARÍA"]
["HUILA","OPORAPA"]
["HUILA","ÍQUIRA"]
["HUILA","BARAYA"]
["HUILA","PALERMO"]
["HUILA","GARZÓN"]
["HUILA","ELÍAS"]
["HUILA","HOBO"]
["HUILA","AGRADO"]
["HUILA","CAMPOALEGRE"]
["HUILA","SALADOBLANCO"]
["HUILA","RIVERA"]
["HUILA","TIMANÁ"]
["HUILA","TELLO"]
["HUILA","ACEVEDO"]
["HUILA","LA ARGENTINA"]
["HUILA","TESALIA"]
["HUILA","ALGECIRAS"]
["HUILA","SUAZA"]
["HUILA","TERUEL"]
["HUILA","VILLAVIEJA"]
["HUILA","YAGUARÁ"]
["HUILA","NÁTAGA"]
["HUILA","TARQUI"]
["LA GUAJIRA","URUMITA"]
["LA GUAJIRA","VILLANUEVA"]
["LA GUAJIRA","RIOHACHA"]
["LA GUAJIRA","DIBULLA"]
["LA GUAJIRA","SAN JUAN DEL CESAR"]
["LA GUAJIRA","LA JAGUA DEL PILAR"]
["LA GUAJIRA","ALBANIA"]
["LA GUAJIRA","BARRANCAS"]
["LA GUAJIRA","DISTRACCIÓN"]
["LA GUAJIRA","EL MOLINO"]
["LA GUAJIRA","FONSECA"]
["LA GUAJIRA","MAICAO"]
["LA GUAJIRA","HATO NUEVO"]
["LA GUAJIRA","URIBIA"]
["LA GUAJIRA","MANAURE"]
["MAGDALENA","ZAPAYÁN"]
["MAGDALENA","SANTA BÁRBARA DE PINTO"]
["MAGDALENA","PIVIJAY"]
["MAGDALENA","CONCORDIA"]
["MAGDALENA","GUAMAL"]
["MAGDALENA","EL PIÑÓN"]
["MAGDALENA","EL RETÉN"]
["MAGDALENA","SANTA MARTA"]
["MAGDALENA","ALGARROBO"]
["MAGDALENA","REMOLINO"]
["MAGDALENA","PIJIÑO  DEL CARMEN"]
["MAGDALENA","ARACATACA"]
["MAGDALENA","CIÉNAGA"]
["MAGDALENA","SABANAS DE SAN ÁNGEL"]
["MAGDALENA","CHIVOLO"]
["MAGDALENA","TENERIFE"]
["MAGDALENA","PEDRAZA"]
["MAGDALENA","CERRO DE SAN ANTONIO"]
["MAGDALENA","SALAMINA"]
["MAGDALENA","SITIONUEVO"]
["MAGDALENA","PUEBLOVIEJO"]
["MAGDALENA","ZONA BANANERA"]
["MAGDALENA","FUNDACIÓN"]
["MAGDALENA","EL BANCO"]
["MAGDALENA","SANTA ANA"]
["MAGDALENA","ARIGUANÍ"]
["MAGDALENA","NUEVA GRANADA"]
["MAGDALENA","PLATO"]
["MAGDALENA","SAN SEBASTIÁN DE BUENAVISTA"]
["MAGDALENA","SAN ZENÓN"]
["META","SAN LUIS DE CUBARRAL"]
["META","EL DORADO"]
["META","ACACÍAS"]
["META","VISTAHERMOSA"]
["META","CUMARAL"]
["META","LEJANÍAS"]
["META","PUERTO RICO"]
["META","MESETAS"]
["META","FUENTE DE ORO"]
["META","GUAMAL"]
["META","LA MACARENA"]
["META","URIBE"]
["META","PUERTO LLERAS"]
["META","EL CASTILLO"]
["META","VILLAVICENCIO"]
["META","CASTILLA LA NUEVA"]
["META","RESTREPO"]
["META","SAN CARLOS DE GUAROA"]
["META","SAN MARTIN"]
["META","PUERTO LOPEZ"]
["META","SAN JUAN DE ARAMA"]
["META","MAPIRIPÁN"]
["META","PUERTO CONCORDIA"]
["META","CAIMITAL"]
["META","GRANADA"]
["META","PUERTO GAITÁN"]
["META","BARRANCA DE UPÍA"]
["META","SAN JUANITO"]
["META","CABUYARO"]
["META","EL CALVARIO"]
["NARIÑO","YACUANQUER"]
["NARIÑO","SAN PEDRO DE CARTAGO (CARTAGO)"]
["NARIÑO","TÚQUERRES"]
["NARIÑO","OSPINA"]
["NARIÑO","TAMINANGO"]
["NARIÑO","SAN PABLO"]
["NARIÑO","TUMACO"]
["NARIÑO","TANGUA"]
["NARIÑO","PUPIALES"]
["NARIÑO","LOS ANDES (SOTOMAYOR)"]
["NARIÑO","CUMBITARA"]
["NARIÑO","GUACHUCAL"]
["NARIÑO","LA FLORIDA"]
["NARIÑO","EL TABLÓN"]
["NARIÑO","EL PEÑOL"]
["NARIÑO","SAPUYES"]
["NARIÑO","NARIÑO"]
["NARIÑO","LEIVA"]
["NARIÑO","SAMANIEGO"]
["NARIÑO","CÓRDOBA"]
["NARIÑO","CONTADERO"]
["NARIÑO","ALBÁN (SAN JOSÉ)"]
["NARIÑO","CUASPUD (CARLOSAMA)"]
["NARIÑO","ARBOLEDA (BERRUECOS)"]
["NARIÑO","CONSACÁ"]
["NARIÑO","COLÓN (GÉNOVA)"]
["NARIÑO","BELÉN"]
["NARIÑO","PASTO"]
["NARIÑO","CUMBAL"]
["NARIÑO","ILES"]
["NARIÑO","EL TAMBO"]
["NARIÑO","IMUÉS"]
["NARIÑO","CHACHAGUÍ"]
["NARIÑO","LA LLANADA"]
["NARIÑO","POLICARPA"]
["NARIÑO","LINARES"]
["NARIÑO","EL ROSARIO"]
["NARIÑO","IPIALES"]
["NARIÑO","EL CHARCO"]
["NARIÑO","POTOSI"]
["NARIÑO","PUERRES"]
["NARIÑO","FUNES"]
["NARIÑO","SANDONÁ"]
["NARIÑO","ANCUYA"]
["NARIÑO","SANTACRUZ"]
["NARIÑO","MAGUI"]
["NARIÑO","SAN BERNARDO"]
["NARIÑO","SAN LORENZO"]
["NARIÑO","OLAYA HERRERA"]
["NARIÑO","LA TOLA"]
["NARIÑO","BARBACOAS"]
["NARIÑO","ROBERTO PAYAN"]
["NARIÑO","ALDANA"]
["NARIÑO","GUALMATAN"]
["NARIÑO","RICAURTE"]
["NARIÑO","BUESACO"]
["NARIÑO","LA CRUZ"]
["NARIÑO","LA UNION"]
["NARIÑO","MALLAMA"]
["NARIÑO","GUAITARILLA"]
["NARIÑO","PROVIDENCIA"]
["NARIÑO","MOSQUERA"]
["NARIÑO","FRANCISCO PIZARRO"]
["NORTE DE SANTANDER","TEORAMA"]
["NORTE DE SANTANDER","LA PLAYA"]
["NORTE DE SANTANDER","TIBÚ"]
["NORTE DE SANTANDER","VILLA CARO"]
["NORTE DE SANTANDER","SAN CALIXTO"]
["NORTE DE SANTANDER","SARDINATA"]
["NORTE DE SANTANDER","OCAÑA"]
["NORTE DE SANTANDER","CÁCHIRA"]
["NORTE DE SANTANDER","ÁBREGO"]
["NORTE DE SANTANDER","BUCARASICA"]
["NORTE DE SANTANDER","LA ESPERANZA"]
["NORTE DE SANTANDER","HACARÍ"]
["NORTE DE SANTANDER","EL CARMEN"]
["NORTE DE SANTANDER","CONVENCIÓN"]
["NORTE DE SANTANDER","EL TARRA"]
["NORTE DE SANTANDER","LOURDES"]
["NORTE DE SANTANDER","PAMPLONA"]
["NORTE DE SANTANDER","LOS PATIOS"]
["NORTE DE SANTANDER","TOLEDO"]
["NORTE DE SANTANDER","ARBOLEDAS"]
["NORTE DE SANTANDER","CHINÁCOTA"]
["NORTE DE SANTANDER","SILOS"]
["NORTE DE SANTANDER","PAMPLONITA"]
["NORTE DE SANTANDER","DURANIA"]
["NORTE DE SANTANDER","SALAZAR"]
["NORTE DE SANTANDER","SAN CAYETANO"]
["NORTE DE SANTANDER","BOCHALEMA"]
["NORTE DE SANTANDER","VILLA DEL ROSARIO"]
["NORTE DE SANTANDER","CÚCUTA"]
["NORTE DE SANTANDER","RAGONVALIA"]
["NORTE DE SANTANDER","PUERTO SANTANDER"]
["NORTE DE SANTANDER","SANTIAGO"]
["NORTE DE SANTANDER","CÁCOTA"]
["NORTE DE SANTANDER","CHITAGÁ"]
["NORTE DE SANTANDER","EL ZULIA"]
["NORTE DE SANTANDER","HERRÁN"]
["NORTE DE SANTANDER","CUCUTILLA"]
["NORTE DE SANTANDER","LABATECA"]
["NORTE DE SANTANDER","GRAMALOTE"]
["NORTE DE SANTANDER","MUTISCUA"]
["PUTUMAYO","MOCOA"]
["PUTUMAYO","ORITO"]
["PUTUMAYO","LEGUIZAMO"]
["PUTUMAYO","PUERTO CAICEDO"]
["PUTUMAYO","PUERTO ASIS"]
["PUTUMAYO","SAN FRANCISCO"]
["PUTUMAYO","VALLE DEL GUAMUEZ"]
["PUTUMAYO","SIBUNDOY"]
["PUTUMAYO","PUERTO GUZMAN"]
["PUTUMAYO","SAN MIGUEL"]
["PUTUMAYO","COLON"]
["PUTUMAYO","VILLAGARZON"]
["PUTUMAYO","SANTIAGO"]
["PUTUMAYO","VALLE DEL GUAMUEZ 1"]
["QUINDIO","GÉNOVA"]
["QUINDIO","CALARCÁ"]
["QUINDIO","BUENAVISTA"]
["QUINDIO","QUIMBAYA"]
["QUINDIO","LA TEBAIDA"]
["QUINDIO","FILANDIA"]
["QUINDIO","SALENTO"]
["QUINDIO","PIJAO"]
["QUINDIO","MONTENEGRO"]
["QUINDIO","CÓRDOBA"]
["QUINDIO","CIRCASIA"]
["QUINDIO","ARMENIA"]
["RISARALDA","SANTA ROSA DE CABAL"]
["RISARALDA","MARSELLA"]
["RISARALDA","APÍA"]
["RISARALDA","LA CELIA"]
["RISARALDA","MISTRATÓ"]
["RISARALDA","GUÁTICA"]
["RISARALDA","DOSQUEBRADAS"]
["RISARALDA","BELÉN DE UMBRÍA"]
["RISARALDA","BALBOA"]
["RISARALDA","PEREIRA"]
["RISARALDA","QUINCHÍA"]
["RISARALDA","PUEBLO RICO"]
["RISARALDA","SANTUARIO"]
["RISARALDA","LA VIRGINIA"]
["RISARALDA","MISTRATO"]
["SAN ANDRES Y PROVIDENCIA","SAN ANDRES"]
["SAN ANDRES Y PROVIDENCIA","PROVIDENCIA"]
["SANTANDER","TONA"]
["SANTANDER","VALLE DE SAN JOSÉ"]
["SANTANDER","VÉLEZ"]
["SANTANDER","SANTA HELENA DEL OPÓN"]
["SANTANDER","SOCORRO"]
["SANTANDER","PUENTE NACIONAL"]
["SANTANDER","PIEDECUESTA"]
["SANTANDER","RIONEGRO"]
["SANTANDER","SABANA DE TORRES"]
["SANTANDER","SUCRE"]
["SANTANDER","PINCHOTE"]
["SANTANDER","PALMAR"]
["SANTANDER","PALMAS DEL SOCORRO"]
["SANTANDER","PÁRAMO"]
["SANTANDER","SAN GIL"]
["SANTANDER","SANTA BÁRBARA"]
["SANTANDER","SUAITA"]
["SANTANDER","SURATÁ"]
["SANTANDER","PUERTO PARRA"]
["SANTANDER","EL CARMEN DE CHUCURÍ"]
["SANTANDER","CHIMA"]
["SANTANDER","OIBA"]
["SANTANDER","CHARALÁ"]
["SANTANDER","LA BELLEZA"]
["SANTANDER","MOGOTES"]
["SANTANDER","CHIPATÁ"]
["SANTANDER","CONFINES"]
["SANTANDER","CONTRATACIÓN"]
["SANTANDER","COROMORO"]
["SANTANDER","BOLÍVAR"]
["SANTANDER","CURITÍ"]
["SANTANDER","EL PEÑÓN"]
["SANTANDER","OCAMONTE"]
["SANTANDER","GAMBITA"]
["SANTANDER","LA PAZ"]
["SANTANDER","LOS SANTOS"]
["SANTANDER","CHARTA"]
["SANTANDER","MATANZA"]
["SANTANDER","BUCARAMANGA"]
["SANTANDER","CABRERA"]
["SANTANDER","FLORIDABLANCA"]
["SANTANDER","GALÁN"]
["SANTANDER","CALIFORNIA"]
["SANTANDER","EL GUACAMAYO"]
["SANTANDER","ENCINO"]
["SANTANDER","CEPITÁ"]
["SANTANDER","EL PLAYÓN"]
["SANTANDER","GUADALUPE"]
["SANTANDER","FLORIÁN"]
["SANTANDER","HATO"]
["SANTANDER","JESÚS MARÍA"]
["SANTANDER","JORDÁN"]
["SANTANDER","GUAPOTÁ"]
["SANTANDER","GÜEPSA"]
["SANTANDER","BETULIA"]
["SANTANDER","ALBANIA"]
["SANTANDER","BARRANCABERMEJA"]
["SANTANDER","AGUADA"]
["SANTANDER","BARBOSA"]
["SANTANDER","ARATOCA"]
["SANTANDER","SAN VICENTE DE CHUCURÍ"]
["SANTANDER","LANDÁZURI"]
["SANTANDER","SIMACOTA"]
["SANTANDER","GUAVATÁ"]
["SANTANDER","BARICHARA"]
["SANTANDER","ZAPATOCA"]
["SANTANDER","PUERTO WILCHES"]
["SANTANDER","CIMITARRA"]
["SANTANDER","SAN BENITO"]
["SANTANDER","VILLANUEVA"]
["SANTANDER","LEBRIJA"]
["SANTANDER","GIRON"]
["SANTANDER","ONZAGA"]
["SANTANDER","VETAS"]
["SANTANDER","SAN MIGUEL"]
["SANTANDER","SAN JOAQUÍN"]
["SANTANDER","SAN ANDRÉS"]
["SANTANDER","MACARAVITA"]
["SANTANDER","MÁLAGA"]
["SANTANDER","CAPITANEJO"]
["SANTANDER","CERRITO"]
["SANTANDER","MOLAGAVITA"]
["SANTANDER","GUACA"]
["SANTANDER","ENCISO"]
["SANTANDER","CONCEPCIÓN"]
["SANTANDER","SAN JOSÉ DE MIRANDA"]
["SANTANDER","CARCASÍ"]
["SUCRE","SINCELEJO"]
["SUCRE","COLOSÓ"]
["SUCRE","COROZAL"]
["SUCRE","PALMITO"]
["SUCRE","SAMPUÉS"]
["SUCRE","SAN PEDRO"]
["SUCRE","CAIMITO"]
["SUCRE","GUARANDA"]
["SUCRE","TOLUVIEJO"]
["SUCRE","CHALÁN"]
["SUCRE","EL ROBLE"]
["SUCRE","GALERAS"]
["SUCRE","SINCÉ"]
["SUCRE","TOLÚ"]
["SUCRE","COVEÑAS"]
["SUCRE","SAN ONOFRE"]
["SUCRE","OVEJAS"]
["SUCRE","SAN BENITO ABAD"]
["SUCRE","SAN MARCOS"]
["SUCRE","SUCRE"]
["SUCRE","SAN JUAN BETULIA"]
["SUCRE","LOS PALMITOS"]
["SUCRE","LA UNION"]
["SUCRE","MORROA"]
["SUCRE","BUENAVISTA"]
["SUCRE","MAJAGUAL"]
["TOLIMA","VILLARRICA"]
["TOLIMA","VALLE DE SAN JUAN"]
["TOLIMA","SALDAÑA"]
["TOLIMA","SAN ANTONIO"]
["TOLIMA","RIOBLANCO"]
["TOLIMA","ICONONZO"]
["TOLIMA","GUAMO"]
["TOLIMA","COYAIMA"]
["TOLIMA","CUNDAY"]
["TOLIMA","PLANADAS"]
["TOLIMA","PRADO"]
["TOLIMA","MELGAR"]
["TOLIMA","FLANDES"]
["TOLIMA","COELLO"]
["TOLIMA","CHAPARRAL"]
["TOLIMA","ORTEGA"]
["TOLIMA","RONCESVALLES"]
["TOLIMA","ALPUJARRA"]
["TOLIMA","ESPINAL"]
["TOLIMA","ROVIRA"]
["TOLIMA","DOLORES"]
["TOLIMA","NATAGAIMA"]
["TOLIMA","ATACO"]
["TOLIMA","PURIFICACIÓN"]
["TOLIMA","CARMEN APICALA"]
["TOLIMA","ALVARADO"]
["TOLIMA","IBAGUÉ"]
["TOLIMA","LÉRIDA"]
["TOLIMA","LÍBANO"]
["TOLIMA","HERVEO"]
["TOLIMA","PALOCABILDO"]
["TOLIMA","FRESNO"]
["TOLIMA","FALAN"]
["TOLIMA","MARIQUITA"]
["TOLIMA","VENADILLO"]
["TOLIMA","HONDA"]
["TOLIMA","PIEDRAS"]
["TOLIMA","CAJAMARCA"]
["TOLIMA","MURILLO"]
["TOLIMA","SANTA ISABEL"]
["TOLIMA","CASABIANCA"]
["TOLIMA","ANZOÁTEGUI"]
["TOLIMA","AMBALEMA"]
["TOLIMA","VILLAHERMOSA"]
["TOLIMA","ARMERO"]
["VALLE DEL CAUCA","YUMBO"]
["VALLE DEL CAUCA","YOTOCO"]
["VALLE DEL CAUCA","VIJES"]
["VALLE DEL CAUCA","RESTREPO"]
["VALLE DEL CAUCA","CALI"]
["VALLE DEL CAUCA","DAGUA"]
["VALLE DEL CAUCA","LA CUMBRE"]
["VALLE DEL CAUCA","EL CERRITO"]
["VALLE DEL CAUCA","GUACARÍ"]
["VALLE DEL CAUCA","GINEBRA"]
["VALLE DEL CAUCA","JAMUNDÍ"]
["VALLE DEL CAUCA","CALIMA"]
["VALLE DEL CAUCA","CAICEDONIA"]
["VALLE DEL CAUCA","CANDELARIA"]
["VALLE DEL CAUCA","BUGA"]
["VALLE DEL CAUCA","TULUÁ"]
["VALLE DEL CAUCA","PRADERA"]
["VALLE DEL CAUCA","RIOFRÍO"]
["VALLE DEL CAUCA","FLORIDA"]
["VALLE DEL CAUCA","BUENAVENTURA"]
["VALLE DEL CAUCA","SEVILLA"]
["VALLE DEL CAUCA","PALMIRA"]
["VALLE DEL CAUCA","TRUJILLO"]
["VALLE DEL CAUCA","SAN PEDRO"]
["VALLE DEL CAUCA","ANDALUCIA"]
["VALLE DEL CAUCA","BUGA LA GRANDE"]
["VALLE DEL CAUCA","ANSERMANUEVO"]
["VALLE DEL CAUCA","ULLOA"]
["VALLE DEL CAUCA","EL CAIRO"]
["VALLE DEL CAUCA","CARTAGO"]
["VALLE DEL CAUCA","TORO"]
["VALLE DEL CAUCA","ALCALÁ"]
["VALLE DEL CAUCA","ARGELIA"]
["VALLE DEL CAUCA","ROLDANILLO"]
["VALLE DEL CAUCA","ZARZAL"]
["VALLE DEL CAUCA","LA UNIÓN"]
["VALLE DEL CAUCA","LA VICTORIA"]
["VALLE DEL CAUCA","OBANDO"]
["VALLE DEL CAUCA","BOLÍVAR"]
["VALLE DEL CAUCA","EL DOVIO"]
["VALLE DEL CAUCA","VERSALLES"]
["VALLE DEL CAUCA","EL ÁGUILA"]
["VAUPES","MITU"]
["VAUPES","CARURÚ"]
["VAUPES","PACOA (COR. DEPARTAMENTAL)"]
["VAUPES","TARAIRA"]
["VAUPES","PAPUNAUA (COR. DEPARTAMENTAL)"]
["VAUPES","YABARATÉ"]
["VICHADA","CUMARIBO"]
["VICHADA","SANTA ROSALÍA"]
["VICHADA","LA PRIMAVERA"]
["VICHADA","PUERTO CARREÑO"]

{"sheet":"ProveedorCSV","index":5,"n_rows":2,"n_cols":1,"rows_kept":2,"cut":false,"hidden":true,"merged":[]}
["Proveedor"]
["DELTA PLUS COLOMBIA SAS"]

{"sheet":"csv","index":6,"n_rows":5,"n_cols":41,"rows_kept":5,"cut":false,"hidden":true,"merged":[]}
["Solicitud","Registrar identificador","¿Enviar para aprobación?","Límite de recepción de la sol.","Justificación","Nombre del departamento","Nota del comprador","Solicitado por (correo electrónico)","Solicitado por (inicio de sesión)","Nombre de tarjeta de compras","Enviar a nombre","Enviar a id.","Enviar a la atención","Enviar a calle 1","Enviar a calle 2","Enviar a ciudad","Enviar a estado","Enviar a código postal","Enviar a código de país","Enviar a nombre de país","Enviar a código de ubicación","Ocultar precio","Entidad Compradora 2","N.I.T.","Agregación","Necesidad del bien o servicio*","Modalidad de selección","Destinación del gasto*","Origen de los    recursos*","Asociado al Acuerdo de Paz","Supervisor de la Orden de Compra*","Correo electrónico del supervisor*","Teléfono del      supervisor*","Vencimiento de la Orden de Compra*","Especificaciones adicionales de entrega","Gravámenes      adicionales","Integración con SIIF","Código Unidad / Subunidad Ejecutora","Acepto términos y condiciones","codigoAMP","fechaAMP"]
["Línea de solicitudes","Registrar identificador","Número de línea","Número de artículo del catálogo","Nombre de artículo del catálogo","Sin descripción de artículo del catálogo","Número de parte del proveedor","Cantidad","Precio","Límite de recepción de la sol.","Anulación del método de transmisión","Correos electrónicos de transmisión","Nombre del proveedor","Número del proveedor","Código de sitio del proveedor","Código de unidad de medida","Nombre de mercancía","Nombre del contrato","Código de divisa","Etiquetas de activos","Nombre del Cuadro de cuentas","Nombre de la cuenta","Código de cuentas","Segmento 1 de la cuenta","Segmento 2 de la cuenta","Segmento 3 de la cuenta","Segmento 4 de la cuenta","Segmento 5 de la cuenta","Segmento 6 de la cuenta","Segmento 7 de la cuenta","Segmento 8 de la cuenta","Segmento 9 de la cuenta","Segmento 10 de la cuenta","Segmento 11 de la cuenta","Segmento 12 de la cuenta","Segmento 13 de la cuenta","Segmento 14 de la cuenta","Segmento 15 de la cuenta","Segmento 16 de la cuenta","Segmento 17 de la cuenta","Segmento 18 de la cuenta"]
["Asignación de cuentas","Registrar identificador","Número de línea","Monto","Porcentaje","Nombre de período de presupuesto","Nombre de la cuenta","Código de cuentas","Segmento 1 de la cuenta","Segmento 2 de la cuenta","Segmento 3 de la cuenta","Segmento 4 de la cuenta","Segmento 5 de la cuenta","Segmento 6 de la cuenta","Segmento 7 de la cuenta","Segmento 8 de la cuenta","Segmento 9 de la cuenta","Segmento 10 de la cuenta","Segmento 11 de la cuenta","Segmento 12 de la cuenta","Segmento 13 de la cuenta","Segmento 14 de la cuenta","Segmento 15 de la cuenta","Segmento 16 de la cuenta","Segmento 17 de la cuenta","Segmento 18 de la cuenta","Segmento 19 de la cuenta","Segmento 20 de la cuenta"]
["Solicitud",1,"no",null,null,"Digite nombre de la entidad",null,"crear.entidad@colombiacompra.gov.co","digite.usuario",null,"Direccion",4394,null,null,null,null,null,null,null,null,null,null,null,null,"Atención emergencia COVID-19","Necesidad","Selección Abreviada AMP","Funcionamiento","Recursos propios","No","Digite supervisor","Digite correo",1,"2020-01-01",null,"Gravámenes",null,null,"Sí","cov19-epp","2020-11-13T09:00:00"]
["Línea de solicitudes",1,1,null,"cov01-EPP-31 - TAPABOCAS DOBLE TELA LAVABLE ",null,null,100,32799,null,null,null,"INDUHOTEL SAS",null,null,"Und","Atención emergencia COVID-19",null,"COP"]

{"sheet":"csvTemp","index":7,"n_rows":2,"n_cols":18,"rows_kept":2,"cut":false,"hidden":true,"merged":[]}
["Item","Código","Categoría","Producto","Especificación Técnica","Distribución","Departamento","Municipio","Direccón de Entrega","cantidad","Cantidad Asumida","Valor","Valor Máximo Permitido","Subtotal","% IVA","Valor Iva","Precio Total","Proveedor"]
[1,"EPP-38","ELEMENTOS DE PROTECCION PERSONAL","EPP-38 - CARETA CON VISOR INTERCAMBIABLE","Debe cumpir con la Norma ANSI Z87.1\nCabezal: Fabricado en polímero suave. Sostiene la careta en la cabeza. Graduable de acuerdo a la circunferencia de la cabeza del usuario. Con banda frontal absorbente. \nVisera o rodachispa: Elaborada en polímero de alta densidad, resistente al impacto y a la salpicadura de sustancias químicas. Sostiene el visor y oscila en el cabezal para bajar o levantar la careta.\nSistema de ajuste tiene como función sujetar la visera con el cabezal. \nVisor fabricado en acetato de celulosa de mínimo 20 x 30 cm, ópticamente rectificado, sistema que facilite el cambio del visor.\n\nDebe proteger el rostro de salpicaduras de agua, saliva, sangre de la boca del paciente y cuerpos extraños, bajo peso, neutralidad óptica y resistencia al impacto a bajas velocidades.","Si","BOGOTÁ, D.C.","BOGOTÁ, D.C.","CALLE 13 No. 31-74",750,750,24000,24896.27,18672202.5,0,0,18672202.5,"DELTA PLUS COLOMBIA SAS"]

{"sheet":"TablaDinamicaMinimos","index":8,"n_rows":5,"n_cols":5,"rows_kept":5,"cut":false,"hidden":true,"merged":[]}
[]
[]
[null,null,"Etiquetas de fila","stock","Suma de Precio"]
[null,null,"DELTA PLUS COLOMBIA SAS",3000,24000]
[null,null,"Total general",null,24000]

{"sheet":"CatalogoTemp","index":9,"n_rows":2,"n_cols":19,"rows_kept":2,"cut":false,"hidden":true,"merged":[]}
["llave1","llave2","llave3","codigo unico","nombre","Categoría","Especificación Técnica","Unidad de medida","Código de unidad de medida","activo","Mercancía","proveedor","Número de contrato","Precio","Divisa","Empates","stock_inicial","stock","% IVA"]
["EPP-38DELTA PLUS COLOMBIA SAS",null,null,"EPP-38","EPP-38 - CARETA CON VISOR INTERCAMBIABLE","ELEMENTOS DE PROTECCION PERSONAL","Debe cumpir con la Norma ANSI Z87.1\nCabezal: Fabricado en polímero suave. Sostiene la careta en la cabeza. Graduable de acuerdo a la circunferencia de la cabeza del usuario. Con banda frontal absorbente. \nVisera o rodachispa: Elaborada en polímero de alta densidad, resistente al impacto y a la salpicadura de sustancias químicas. Sostiene el visor y oscila en el cabezal para bajar o levantar la careta.\nSistema de ajuste tiene como función sujetar la visera con el cabezal. \nVisor fabricado en acetato de celulosa de mínimo 20 x 30 cm, ópticamente rectificado, sistema que facilite el cambio del visor.\n\nDebe proteger el rostro de salpicaduras de agua, saliva, sangre de la boca del paciente y cuerpos extraños, bajo peso, neutralidad óptica y resistencia al impacto a bajas velocidades.","Und","Und","Si","Atención emergencia COVID-19","DELTA PLUS COLOMBIA SAS","AECovid19-583",24000,"COP",1,3000,3000,0]

{"sheet":"Catalogo","index":10,"n_rows":593,"n_cols":19,"rows_kept":593,"cut":false,"hidden":true,"merged":[]}
["llave1","llave2","llave3","codigo unico","nombre","Categoría","Especificación Técnica","Unidad de medida","Código de unidad de medida","activo","Mercancía","proveedor","Número de contrato","Precio","Divisa","Empates","stock_inicial","stock","% IVA"]
[{"$f":"D2&L2","v":"EPP-1G&C MEDICALS S.A.S"},null,null,"EPP-1","EPP-1 - BATA  DESECHABLE PARA PACIENTE ADULTO  - TALLA S, M , L, XL COMPUESTO POR BATA SIN MANGA CON AMARRADERA  POSTERIOR ","ELEMENTOS DE PROTECCION PERSONAL","COMPUESTO DE BATA PACIENTE MANGA CIZA, AMARRADERAS EN LA PARTE POSTERIOR 2 A NIVEL DE CUELLO Y 2 A NIVEL DE LA CINTURA EN TELA SMS 35 GRAMOS.","Und","Und","Si","Atención emergencia COVID-19","G&C MEDICALS S.A.S","AECovid19-17",9500,"COP",{"$f":"COUNTIFS(D:D,D2,N:N,N2)","v":1},1500,{"$f":"Q2-SUMIFS(ResumenCotizacion!L:L,ResumenCotizacion!S:S,L2,ResumenCotizacion!C:C,D2)","v":1500},0]
["EPP-3G&C MEDICALS S.A.S",null,null,"EPP-3","EPP-3 - BATA CIRUJANO DESECHABLE ","ELEMENTOS DE PROTECCION PERSONAL","BATA CIRUJANO DESECHABLE TALLA S, M, L, XL PRESENTACION ESTERIL","Und","Und","Si","Atención emergencia COVID-19","G&C MEDICALS S.A.S","AECovid19-17",10000,"COP",1,1500,{"$f":"Q3-SUMIFS(ResumenCotizacion!L:L,ResumenCotizacion!S:S,L3,ResumenCotizacion!C:C,D3)","v":1500},0]
["EPP-4G&C MEDICALS S.A.S",null,null,"EPP-4","EPP-4 - BATA DESECHABLE CORTAS CON MANGA RESORTADA ","ELEMENTOS DE PROTECCION PERSONAL","BATA DESECHABLE CORTAS CON MANGA RESORTADA CON CIERRE FRONTAL DE CREMALLERA","Und","Und","Si","Atención emergencia COVID-19","G&C MEDICALS S.A.S","AECovid19-17",10000,"COP",1,1500,{"$f":"Q4-SUMIFS(ResumenCotizacion!L:L,ResumenCotizacion!S:S,L4,ResumenCotizacion!C:C,D4)","v":1500},0]
["EPP-1MANUFACTURAS DELMYP S.A.S.",null,null,"EPP-1","EPP-1 - BATA  DESECHABLE PARA PACIENTE ADULTO  - TALLA S, M , L, XL COMPUESTO POR BATA SIN MANGA CON AMARRADERA  POSTERIOR ","ELEMENTOS DE PROTECCION PERSONAL","COMPUESTO DE BATA PACIENTE MANGA CIZA, AMARRADERAS EN LA PARTE POSTERIOR 2 A NIVEL DE CUELLO Y 2 A NIVEL DE LA CINTURA EN TELA SMS 35 GRAMOS.","Und","Und","Si","Atención emergencia COVID-19","MANUFACTURAS DELMYP S.A.S.","AECovid19-30",9000,"COP",2,10000,{"$f":"Q5-SUMIFS(ResumenCotizacion!L:L,ResumenCotizacion!S:S,L5,ResumenCotizacion!C:C,D5)","v":10000},0]
["EPP-3MANUFACTURAS DELMYP S.A.S.",null,null,"EPP-3","EPP-3 - BATA CIRUJANO DESECHABLE ","ELEMENTOS DE PROTECCION PERSONAL","BATA CIRUJANO DESECHABLE TALLA S, M, L, XL PRESENTACION ESTERIL","Und","Und","Si","Atención emergencia COVID-19","MANUFACTURAS DELMYP S.A.S.","AECovid19-30",9800,"COP",1,20000,{"$f":"Q6-SUMIFS(ResumenCotizacion!L:L,ResumenCotizacion!S:S,L6,ResumenCotizacion!C:C,D6)","v":20000},0]
["EPP-4MANUFACTURAS DELMYP S.A.S.",null,null,"EPP-4","EPP-4 - BATA DESECHABLE CORTAS CON MANGA RESORTADA ","ELEMENTOS DE PROTECCION PERSONAL","BATA DESECHABLE CORTAS CON MANGA RESORTADA CON CIERRE FRONTAL DE CREMALLERA","Und","Und","Si","Atención emergencia COVID-19","MANUFACTURAS DELMYP S.A.S.","AECovid19-30",10500,"COP",1,10000,{"$f":"Q7-SUMIFS(ResumenCotizacion!L:L,ResumenCotizacion!S:S,L7,ResumenCotizacion!C:C,D7)","v":10000},0]
["EPP-5MANUFACTURAS DELMYP S.A.S.",null,null,"EPP-5","EPP-5 - BATA DESECHABLE PARA PACIENTE PEDIATRICO - ROPA DESECHABLE  COMPUESTO POR BATA SIN MANGA CON AMARRADERA  POSTERIOR. ","ELEMENTOS DE PROTECCION PERSONAL","COMPUESTO DE BATA PACIENTE MANGA CIZA DE 80 CMS, AMARRADERAS EN LA PARTE POSTERIOR 2 A NIVEL DE CUELLO Y 2 A NIVEL DE LA CINTURA EN TELA SMS 35 GRAMOS.","Und","Und","Si","Atención emergencia COVID-19","MANUFACTURAS DELMYP S.A.S.","AECovid19-30",6000,"COP",1,5000,{"$f":"Q8-SUMIFS(ResumenCotizacion!L:L,ResumenCotizacion!S:S,L8,ResumenCotizacion!C:C,D8)","v":5000},0]
["EPP-6MANUFACTURAS DELMYP S.A.S.",null,null,"EPP-6","EPP-6 - BATA PUÑO RIB ","ELEMENTOS DE PROTECCION PERSONAL","Tela no tejida\nDesechable\nAislante de liquidos\nAlta transpirabilidad\nManga Larga\nPuño en algodón con resorte\nCon tiras de amarre en la cintura y cuello","Und","Und","Si","Atención emergencia COVID-19","MANUFACTURAS DELMYP S.A.S.","AECovid19-30",11000,"COP",1,10000,{"$f":"Q9-SUMIFS(ResumenCotizacion!L:L,ResumenCotizacion!S:S,L9,ResumenCotizacion!C:C,D9)","v":10000},0]
["EPP-24MANUFACTURAS DELMYP S.A.S.",null,null,"EPP-24","EPP-24 - ROPA POR CAMA DESECHABLE ","ELEMENTOS DE PROTECCION PERSONAL","KIT DE JUEGO DE CAMA QUE INCLUYE SABANA, FORRO, SABANA DE MOVIMIENTO ","Und","Und","Si","Atención emergencia COVID-19","MANUFACTURAS DELMYP S.A.S.","AECovid19-30",12000,"COP",1,20000,{"$f":"Q10-SUMIFS(ResumenCotizacion!L:L,ResumenCotizacion!S:S,L10,ResumenCotizacion!C:C,D10)","v":20000},0]
["EPP-6BALOONMARKETING",null,null,"EPP-6","EPP-6 - BATA PUÑO RIB ","ELEMENTOS DE PROTECCION PERSONAL","Tela no tejida\nDesechable\nAislante de liquidos\nAlta transpirabilidad\nManga Larga\nPuño en algodón con resorte\nCon tiras de amarre en la cintura y cuello","Und","Und","Si","Atención emergencia COVID-19","BALOONMARKETING","AECovid19-512",13000,"COP",1,10000,{"$f":"Q11-SUMIFS(ResumenCotizacion!L:L,ResumenCotizacion!S:S,L11,ResumenCotizacion!C:C,D11)","v":10000},0]
["EPP-1Tecnialambre s.a",null,null,"EPP-1","EPP-1 - BATA  DESECHABLE PARA PACIENTE ADULTO  - TALLA S, M , L, XL COMPUESTO POR BATA SIN MANGA CON AMARRADERA  POSTERIOR ","ELEMENTOS DE PROTECCION PERSONAL","COMPUESTO DE BATA PACIENTE MANGA CIZA, AMARRADERAS EN LA PARTE POSTERIOR 2 A NIVEL DE CUELLO Y 2 A NIVEL DE LA CINTURA EN TELA SMS 35 GRAMOS.","Und","Und","Si","Atención emergencia COVID-19","Tecnialambre s.a","AECovid19-11",9700,"COP",1,5000,{"$f":"Q12-SUMIFS(ResumenCotizacion!L:L,ResumenCotizacion!S:S,L12,ResumenCotizacion!C:C,D12)","v":5000},0]
["EPP-4Tecnialambre s.a",null,null,"EPP-4","EPP-4 - BATA DESECHABLE CORTAS CON MANGA RESORTADA ","ELEMENTOS DE PROTECCION PERSONAL","BATA DESECHABLE CORTAS CON MANGA RESORTADA CON CIERRE FRONTAL DE CREMALLERA","Und","Und","Si","Atención emergencia COVID-19","Tecnialambre s.a","AECovid19-11",11400,"COP",1,5000,{"$f":"Q13-SUMIFS(ResumenCotizacion!L:L,ResumenCotizacion!S:S,L13,ResumenCotizacion!C:C,D13)","v":5000},0]
["EPP-5Tecnialambre s.a",null,null,"EPP-5","EPP-5 - BATA DESECHABLE PARA PACIENTE PEDIATRICO - ROPA DESECHABLE  COMPUESTO POR BATA SIN MANGA CON AMARRADERA  POSTERIOR. ","ELEMENTOS DE PROTECCION PERSONAL","COMPUESTO DE BATA PACIENTE MANGA CIZA DE 80 CMS, AMARRADERAS EN LA PARTE POSTERIOR 2 A NIVEL DE CUELLO Y 2 A NIVEL DE LA CINTURA EN TELA SMS 35 GRAMOS.","Und","Und","Si","Atención emergencia COVID-19","Tecnialambre s.a","AECovid19-11",9900,"COP",1,5000,{"$f":"Q14-SUMIFS(ResumenCotizacion!L:L,ResumenCotizacion!S:S,L14,ResumenCotizacion!C:C,D14)","v":5000},0]
["EPP-6Tecnialambre s.a",null,null,"EPP-6","EPP-6 - BATA PUÑO RIB ","ELEMENTOS DE PROTECCION PERSONAL","Tela no tejida\nDesechable\nAislante de liquidos\nAlta transpirabilidad\nManga Larga\nPuño en algodón con resorte\nCon tiras de amarre en la cintura y cuello","Und","Und","Si","Atención emergencia COVID-19","Tecnialambre s.a","AECovid19-11",11400,"COP",1,5000,{"$f":"Q15-SUMIFS(ResumenCotizacion!L:L,ResumenCotizacion!S:S,L15,ResumenCotizacion!C:C,D15)","v":5000},0]
["EPP-1INDUSTRIAS MCLAREN SAS",null,null,"EPP-1","EPP-1 - BATA  DESECHABLE PARA PACIENTE ADULTO  - TALLA S, M , L, XL COMPUESTO POR BATA SIN MANGA CON AMARRADERA  POSTERIOR ","ELEMENTOS DE PROTECCION PERSONAL","COMPUESTO DE BATA PACIENTE MANGA CIZA, AMARRADERAS EN LA PARTE POSTERIOR 2 A NIVEL DE CUELLO Y 2 A NIVEL DE LA CINTURA EN TELA SMS 35 GRAMOS.","Und","Und","Si","Atención emergencia COVID-19","INDUSTRIAS MCLAREN SAS","AECovid19-515",4400,"COP",1,100000,{"$f":"Q16-SUMIFS(ResumenCotizacion!L:L,ResumenCotizacion!S:S,L16,ResumenCotizacion!C:C,D16)","v":100000},0]
["EPP-4INDUSTRIAS MCLAREN SAS",null,null,"EPP-4","EPP-4 - BATA DESECHABLE CORTAS CON MANGA RESORTADA ","ELEMENTOS DE PROTECCION PERSONAL","BATA DESECHABLE CORTAS CON MANGA RESORTADA CON CIERRE FRONTAL DE CREMALLERA","Und","Und","Si","Atención emergencia COVID-19","INDUSTRIAS MCLAREN SAS","AECovid19-515",10200,"COP",1,25000,{"$f":"Q17-SUMIFS(ResumenCotizacion!L:L,ResumenCotizacion!S:S,L17,ResumenCotizacion!C:C,D17)","v":25000},0]
["EPP-5INDUSTRIAS MCLAREN SAS",null,null,"EPP-5","EPP-5 - BATA DESECHABLE PARA PACIENTE PEDIATRICO - ROPA DESECHABLE  COMPUESTO POR BATA SIN MANGA CON AMARRADERA  POSTERIOR. ","ELEMENTOS DE PROTECCION PERSONAL","COMPUESTO DE BATA PACIENTE MANGA CIZA DE 80 CMS, AMARRADERAS EN LA PARTE POSTERIOR 2 A NIVEL DE CUELLO Y 2 A NIVEL DE LA CINTURA EN TELA SMS 35 GRAMOS.","Und","Und","Si","Atención emergencia COVID-19","INDUSTRIAS MCLAREN SAS","AECovid19-515",4000,"COP",1,100000,{"$f":"Q18-SUMIFS(ResumenCotizacion!L:L,ResumenCotizacion!S:S,L18,ResumenCotizacion!C:C,D18)","v":100000},0]
["EPP-6INDUSTRIAS MCLAREN SAS",null,null,"EPP-6","EPP-6 - BATA PUÑO RIB ","ELEMENTOS DE PROTECCION PERSONAL","Tela no tejida\nDesechable\nAislante de liquidos\nAlta transpirabilidad\nManga Larga\nPuño en algodón con resorte\nCon tiras de amarre en la cintura y cuello","Und","Und","Si","Atención emergencia COVID-19","INDUSTRIAS MCLAREN SAS","AECovid19-515",12300,"COP",1,30000,{"$f":"Q19-SUMIFS(ResumenCotizacion!L:L,ResumenCotizacion!S:S,L19,ResumenCotizacion!C:C,D19)","v":30000},0]
["EPP-24INDUSTRIAS MCLAREN SAS",null,null,"EPP-24","EPP-24 - ROPA POR CAMA DESECHABLE ","ELEMENTOS DE PROTECCION PERSONAL","KIT DE JUEGO DE CAMA QUE INCLUYE SABANA, FORRO, SABANA DE MOVIMIENTO ","Und","Und","Si","Atención emergencia COVID-19","INDUSTRIAS MCLAREN SAS","AECovid19-515",24000,"COP",2,16000,{"$f":"Q20-SUMIFS(ResumenCotizacion!L:L,ResumenCotizacion!S:S,L20,ResumenCotizacion!C:C,D20)","v":16000},0]
["EPP-27INDUSTRIAS MCLAREN SAS",null,null,"EPP-27","EPP-27 - SABANAS ","ELEMENTOS DE PROTECCION PERSONAL","DESECHABLE, PLANA, 2,40X2,20 M, EN TELA SMS 35 GR, REPELENTE DE FLUIDOS, RESISTENTE, SIN ESTERILIZAR","Und","Und","Si","Atención emergencia COVID-19","INDUSTRIAS MCLAREN SAS","AECovid19-515",10000,"COP",1,100000,{"$f":"Q21-SUMIFS(ResumenCotizacion!L:L,ResumenCotizacion!S:S,L21,ResumenCotizacion!C:C,D21)","v":100000},0]
["EPP-1MIGUEL FERNANDO CASTILLO ZABALA",null,null,"EPP-1","EPP-1 - BATA  DESECHABLE PARA PACIENTE ADULTO  - TALLA S, M , L, XL COMPUESTO POR BATA SIN MANGA CON AMARRADERA  POSTERIOR ","ELEMENTOS DE PROTECCION PERSONAL","COMPUESTO DE BATA PACIENTE MANGA CIZA, AMARRADERAS EN LA PARTE POSTERIOR 2 A NIVEL DE CUELLO Y 2 A NIVEL DE LA CINTURA EN TELA SMS 35 GRAMOS.","Und","Und","Si","Atención emergencia COVID-19","MIGUEL FERNANDO CASTILLO ZABALA","AECovid19-516",15460,"COP",1,10000,{"$f":"Q22-SUMIFS(ResumenCotizacion!L:L,ResumenCotizacion!S:S,L22,ResumenCotizacion!C:C,D22)","v":10000},0]
["EPP-3MIGUEL FERNANDO CASTILLO ZABALA",null,null,"EPP-3","EPP-3 - BATA CIRUJANO DESECHABLE ","ELEMENTOS DE PROTECCION PERSONAL","BATA CIRUJANO DESECHABLE TALLA S, M, L, XL PRESENTACION ESTERIL","Und","Und","Si","Atención emergencia COVID-19","MIGUEL FERNANDO CASTILLO ZABALA","AECovid19-516",13870,"COP",1,10000,{"$f":"Q23-SUMIFS(ResumenCotizacion!L:L,ResumenCotizacion!S:S,L23,ResumenCotizacion!C:C,D23)","v":10000},0]
["EPP-4MIGUEL FERNANDO CASTILLO ZABALA",null,null,"EPP-4","EPP-4 - BATA DESECHABLE CORTAS CON MANGA RESORTADA ","ELEMENTOS DE PROTECCION PERSONAL","BATA DESECHABLE CORTAS CON MANGA RESORTADA CON CIERRE FRONTAL DE CREMALLERA","Und","Und","Si","Atención emergencia COVID-19","MIGUEL FERNANDO CASTILLO ZABALA","AECovid19-516",15740,"COP",1,7000,{"$f":"Q24-SUMIFS(ResumenCotizacion!L:L,ResumenCotizacion!S:S,L24,ResumenCotizacion!C:C,D24)","v":7000},0]
["EPP-5MIGUEL FERNANDO CASTILLO ZABALA",null,null,"EPP-5","EPP-5 - BATA DESECHABLE PARA PACIENTE PEDIATRICO - ROPA DESECHABLE  COMPUESTO POR BATA SIN MANGA CON AMARRADERA  POSTERIOR. ","ELEMENTOS DE PROTECCION PERSONAL","COMPUESTO DE BATA PACIENTE MANGA CIZA DE 80 CMS, AMARRADERAS EN LA PARTE POSTERIOR 2 A NIVEL DE CUELLO Y 2 A NIVEL DE LA CINTURA EN TELA SMS 35 GRAMOS.","Und","Und","Si","Atención emergencia COVID-19","MIGUEL FERNANDO CASTILLO ZABALA","AECovid19-516",12490,"COP",1,10000,{"$f":"Q25-SUMIFS(ResumenCotizacion!L:L,ResumenCotizacion!S:S,L25,ResumenCotizacion!C:C,D25)","v":10000},0]
["EPP-6MIGUEL FERNANDO CASTILLO ZABALA",null,null,"EPP-6","EPP-6 - BATA PUÑO RIB ","ELEMENTOS DE PROTECCION PERSONAL","Tela no tejida\nDesechable\nAislante de liquidos\nAlta transpirabilidad\nManga Larga\nPuño en algodón con resorte\nCon tiras de amarre en la cintura y cuello","Und","Und","Si","Atención emergencia COVID-19","MIGUEL FERNANDO CASTILLO ZABALA","AECovid19-516",15700,"COP",1,6000,{"$f":"Q26-SUMIFS(ResumenCotizacion!L:L,ResumenCotizacion!S:S,L26,ResumenCotizacion!C:C,D26)","v":6000},0]
["EPP-11MIGUEL FERNANDO CASTILLO ZABALA",null,null,"EPP-11","EPP-11 - GORRO DESECHABLE REDONDO ELÁSTICO AZUL ","ELEMENTOS DE PROTECCION PERSONAL","GORRO REDONDO DESECHABLE TIPO BAÑO BOLAN 15 A 20 GRAMOS TAMAÑO ESTÁNDAR, ENCAUCHADO PARA AJUSTE SUAVE Y FIRME","Und","Und","Si","Atención emergencia COVID-19","MIGUEL FERNANDO CASTILLO ZABALA","AECovid19-516",29000,"COP",1,10000,{"$f":"Q27-SUMIFS(ResumenCotizacion!L:L,ResumenCotizacion!S:S,L27,ResumenCotizacion!C:C,D27)","v":10000},0]
["EPP-21MIGUEL FERNANDO CASTILLO ZABALA",null,null,"EPP-21","EPP-21 - POLAINAS ","ELEMENTOS DE PROTECCION PERSONAL","Polaina antideslizante, no estéril, no tejida. Libre de hebras, ni partículas volátiles, lisa, sin deformaciones. Sellado con ultrasonido. Con recuento controlado microbiano.En Polipropileno (PP) con elástico de látex natural. Dimensión estándar. De un solo uso.","Und","Und","Si","Atención emergencia COVID-19","MIGUEL FERNANDO CASTILLO ZABALA","AECovid19-516",62000,"COP",1,10000,{"$f":"Q28-SUMIFS(ResumenCotizacion!L:L,ResumenCotizacion!S:S,L28,ResumenCotizacion!C:C,D28)","v":10000},0]
["EPP-30MIGUEL FERNANDO CASTILLO ZABALA",null,null,"EPP-30","EPP-30 - TAPABOCAS DESECHABLES ","ELEMENTOS DE PROTECCION PERSONAL","TAPABOCAS DESECHABLE, CON RESORTE A LA OREJA , DOBLE FILTRO, ADAPTADOR NASAL AJUSTABLE, TELA NO TEJIDA","Und","Und","Si","Atención emergencia COVID-19","MIGUEL FERNANDO CASTILLO ZABALA","AECovid19-516",220000,"COP",1,10000,{"$f":"Q29-SUMIFS(ResumenCotizacion!L:L,ResumenCotizacion!S:S,L29,ResumenCotizacion!C:C,D29)","v":10000},0]
["EPP-6DIGILED TECHNOLOGY S.A.S",null,null,"EPP-6","EPP-6 - BATA PUÑO RIB ","ELEMENTOS DE PROTECCION PERSONAL","Tela no tejida\nDesechable\nAislante de liquidos\nAlta transpirabilidad\nManga Larga\nPuño en algodón con resorte\nCon tiras de amarre en la cintura y cuello","Und","Und","Si","Atención emergencia COVID-19","DIGILED TECHNOLOGY S.A.S","AECovid19-524",14500,"COP",1,1000,{"$f":"Q30-SUMIFS(ResumenCotizacion!L:L,ResumenCotizacion!S:S,L30,ResumenCotizacion!C:C,D30)","v":1000},0]
["EPP-9IDEPLAS SAS",null,null,"EPP-9","EPP-9 - CARETAS VISORES (PROTECTOR FACIAL) ","ELEMENTOS DE PROTECCION PERSONAL","CARETA VISOR DE USO MEDICO EN PASTA CON SEGURO ELASTICO","Und","Und","Si","Atención emergencia COVID-19","IDEPLAS SAS","AECovid19-540",9500,"COP",1,200000,{"$f":"Q31-SUMIFS(ResumenCotizacion!L:L,ResumenCotizacion!S:S,L31,ResumenCotizacion!C:C,D31)","v":200000},0]
[{"$f":"D32&L32","v":"EPP-9AVANT PLAST S.A."},null,null,"EPP-9","EPP-9 - CARETAS VISORES (PROTECTOR FACIAL) ","ELEMENTOS DE PROTECCION PERSONAL","CARETA VISOR DE USO MEDICO EN PASTA CON SEGURO ELASTICO","Und","Und","Si","Atención emergencia COVID-19","AVANT PLAST S.A.","AECovid19-545",8000,"COP",1,20000,{"$f":"Q32-SUMIFS(ResumenCotizacion!L:L,ResumenCotizacion!S:S,L32,ResumenCotizacion!C:C,D32)","v":20000},0]
["EPP-9LP PRINT S.A.S",null,null,"EPP-9","EPP-9 - CARETAS VISORES (PROTECTOR FACIAL) ","ELEMENTOS DE PROTECCION PERSONAL","CARETA VISOR DE USO MEDICO EN PASTA CON SEGURO ELASTICO","Und","Und","Si","Atención emergencia COVID-19","LP PRINT S.A.S","AECovid19-551",8900,"COP",1,2500,{"$f":"Q33-SUMIFS(ResumenCotizacion!L:L,ResumenCotizacion!S:S,L33,ResumenCotizacion!C:C,D33)","v":2500},0]
["EPP-29Confecciones Antidoto SAS",null,null,"EPP-29","EPP-29 - TAPABOCA TELA POLYESTER ANTI FLUIDO","ELEMENTOS DE PROTECCION PERSONAL","TAPABOCA DE TELA Y POLYESTER FABRICANDO CON TELA ANTIFLUIDO, CON RESORTE A LA OREJA, AJUSTABLE.","Und","Und","Si","Atención emergencia COVID-19","Confecciones Antidoto SAS","AECovid19-541",1550,"COP",1,10000,{"$f":"Q34-SUMIFS(ResumenCotizacion!L:L,ResumenCotizacion!S:S,L34,ResumenCotizacion!C:C,D34)","v":10000},0]
["EPP-30Confecciones Antidoto SAS",null,null,"EPP-30","EPP-30 - TAPABOCAS DESECHABLES ","ELEMENTOS DE PROTECCION PERSONAL","TAPABOCAS DESECHABLE, CON RESORTE A LA OREJA , DOBLE FILTRO, ADAPTADOR NASAL AJUSTABLE, TELA NO TEJIDA","Und","Und","Si","Atención emergencia COVID-19","Confecciones Antidoto SAS","AECovid19-541",90000,"COP",1,10000,{"$f":"Q35-SUMIFS(ResumenCotizacion!L:L,ResumenCotizacion!S:S,L35,ResumenCotizacion!C:C,D35)","v":10000},0]
[{"$f":"D36&L36","v":"EPP-30NUEVOS RECURSOS SAS"},null,null,"EPP-30","EPP-30 - TAPABOCAS DESECHABLES ","ELEMENTOS DE PROTECCION PERSONAL","TAPABOCAS DESECHABLE, CON RESORTE A LA OREJA , DOBLE FILTRO, ADAPTADOR NASAL AJUSTABLE, TELA NO TEJIDA","Und","Und","Si","Atención emergencia COVID-19","NUEVOS RECURSOS SAS","AECovid19-554",135000,"COP",2,4000,{"$f":"Q36-SUMIFS(ResumenCotizacion!L:L,ResumenCotizacion!S:S,L36,ResumenCotizacion!C:C,D36)","v":4000},0]
[{"$f":"D37&L37","v":"EPP-19INSAK SAS"},null,null,"EPP-19","EPP-19 - MASCARILLA FACIAL N95 (TAPA BOCA)- RESORTADA ","ELEMENTOS DE PROTECCION PERSONAL","DESECHABLE, CON RESORTE A LA OREJA , DOBLE FILTRO, ADAPTADOR NASAL AJUSTABLE, EN ALGODÓN","Und","Und","Si","Atención emergencia COVID-19","INSAK SAS","AECovid19-565",390000,"COP",1,10000,{"$f":"Q37-SUMIFS(ResumenCotizacion!L:L,ResumenCotizacion!S:S,L37,ResumenCotizacion!C:C,D37)","v":10000},0]
[{"$f":"D38&L38","v":"EPP-29COMPANIA DE INGENIEROS DE SISTEMAS ASOCIADOS COINSA S.A.S."},null,null,"EPP-29","EPP-29 - TAPABOCA TELA POLYESTER ANTI FLUIDO","ELEMENTOS DE PROTECCION PERSONAL","TAPABOCA DE TELA Y POLYESTER FABRICANDO CON TELA ANTIFLUIDO, CON RESORTE A LA OREJA, AJUSTABLE.","Und","Und","Si","Atención emergencia COVID-19","COMPANIA DE INGENIEROS DE SISTEMAS ASOCIADOS COINSA S.A.S.","AECovid19-544",2600,"COP",1,100000,{"$f":"Q38-SUMIFS(ResumenCotizacion!L:L,ResumenCotizacion!S:S,L38,ResumenCotizacion!C:C,D38)","v":100000},0]
["EPP-30COMPANIA DE INGENIEROS DE SISTEMAS ASOCIADOS COINSA S.A.S.",null,null,"EPP-30","EPP-30 - TAPABOCAS DESECHABLES ","ELEMENTOS DE PROTECCION PERSONAL","TAPABOCAS DESECHABLE, CON RESORTE A LA OREJA , DOBLE FILTRO, ADAPTADOR NASAL AJUSTABLE, TELA NO TEJIDA","Und","Und","Si","Atención emergencia COVID-19","COMPANIA DE INGENIEROS DE SISTEMAS ASOCIADOS COINSA S.A.S.","AECovid19-544",130000,"COP",2,100000,{"$f":"Q39-SUMIFS(ResumenCotizacion!L:L,ResumenCotizacion!S:S,L39,ResumenCotizacion!C:C,D39)","v":100000},0]
["EPP-31COMPANIA DE INGENIEROS DE SISTEMAS ASOCIADOS COINSA S.A.S.",null,null,"EPP-31","EPP-31 - TAPABOCAS DOBLE TELA LAVABLE ","ELEMENTOS DE PROTECCION PERSONAL","DOBLE TELA. REUTILIZABLE. SOPORTE NASAL. AJUSTABLE","Und","Und","Si","Atención emergencia COVID-19","COMPANIA DE INGENIEROS DE SISTEMAS ASOCIADOS COINSA S.A.S.","AECovid19-544",170000,"COP",1,100000,{"$f":"Q40-SUMIFS(ResumenCotizacion!L:L,ResumenCotizacion!S:S,L40,ResumenCotizacion!C:C,D40)","v":100000},0]
[{"$f":"D41&L41","v":"EPP-30GRUPOMLS"},null,null,"EPP-30","EPP-30 - TAPABOCAS DESECHABLES ","ELEMENTOS DE PROTECCION PERSONAL","TAPABOCAS DESECHABLE, CON RESORTE A LA OREJA , DOBLE FILTRO, ADAPTADOR NASAL AJUSTABLE, TELA NO TEJIDA","Und","Und","Si","Atención emergencia COVID-19","GRUPOMLS","AECovid19-505",65000,"COP",4,50000,{"$f":"Q41-SUMIFS(ResumenCotizacion!L:L,ResumenCotizacion!S:S,L41,ResumenCotizacion!C:C,D41)","v":50000},0]
[{"$f":"D42&L42","v":"EPP-1SUMICORD SAS"},null,null,"EPP-1","EPP-1 - BATA  DESECHABLE PARA PACIENTE ADULTO  - TALLA S, M , L, XL COMPUESTO POR BATA SIN MANGA CON AMARRADERA  POSTERIOR ","ELEMENTOS DE PROTECCION PERSONAL","COMPUESTO DE BATA PACIENTE MANGA CIZA, AMARRADERAS EN LA PARTE POSTERIOR 2 A NIVEL DE CUELLO Y 2 A NIVEL DE LA CINTURA EN TELA SMS 35 GRAMOS.","Und","Und","Si","Atención emergencia COVID-19","SUMICORD SAS","AECovid19-563",9000,"COP",2,22000,{"$f":"Q42-SUMIFS(ResumenCotizacion!L:L,ResumenCotizacion!S:S,L42,ResumenCotizacion!C:C,D42)","v":22000},0]
["EPP-19SUMICORD SAS",null,null,"EPP-19","EPP-19 - MASCARILLA FACIAL N95 (TAPA BOCA)- RESORTADA ","ELEMENTOS DE PROTECCION PERSONAL","DESECHABLE, CON RESORTE A LA OREJA , DOBLE FILTRO, ADAPTADOR NASAL AJUSTABLE, EN ALGODÓN","Und","Und","Si","Atención emergencia COVID-19","SUMICORD SAS","AECovid19-563",340000,"COP",1,30000,{"$f":"Q43-SUMIFS(ResumenCotizacion!L:L,ResumenCotizacion!S:S,L43,ResumenCotizacion!C:C,D43)","v":30000},0]
["EPP-30SUMICORD SAS",null,null,"EPP-30","EPP-30 - TAPABOCAS DESECHABLES ","ELEMENTOS DE PROTECCION PERSONAL","TAPABOCAS DESECHABLE, CON RESORTE A LA OREJA , DOBLE FILTRO, ADAPTADOR NASAL AJUSTABLE, TELA NO TEJIDA","Und","Und","Si","Atención emergencia COVID-19","SUMICORD SAS","AECovid19-563",130000,"COP",2,20000,{"$f":"Q44-SUMIFS(ResumenCotizacion!L:L,ResumenCotizacion!S:S,L44,ResumenCotizacion!C:C,D44)","v":20000},0]
["EPP-34SUMICORD SAS",null,null,"EPP-34","EPP-34 - TRAJE DESECHABLE ANTIFLUIDO ","ELEMENTOS DE PROTECCION PERSONAL","TALLAS: S,M,L,XL\nCOSTURAS SERIADAS, CON CAPUCHA.\nCIERRE DE CREMALLERA FRONTAL\nMUÑECAS Y TOBILLOS ELASTICOS\nFABRICADO EN TELA ANTIFLUIDO","Und","Und","Si","Atención emergencia COVID-19","SUMICORD SAS","AECovid19-563",40000,"COP",2,15000,{"$f":"Q45-SUMIFS(ResumenCotizacion!L:L,ResumenCotizacion!S:S,L45,ResumenCotizacion!C:C,D45)","v":15000},0]
[{"$f":"D46&L46","v":"EPP-19COMPOMEDICA SAS"},null,null,"EPP-19","EPP-19 - MASCARILLA FACIAL N95 (TAPA BOCA)- RESORTADA ","ELEMENTOS DE PROTECCION PERSONAL","DESECHABLE, CON RESORTE A LA OREJA , DOBLE FILTRO, ADAPTADOR NASAL AJUSTABLE, EN ALGODÓN","Und","Und","Si","Atención emergencia COVID-19","COMPOMEDICA SAS","AECovid19-567",410000,"COP",1,140,{"$f":"Q46-SUMIFS(ResumenCotizacion!L:L,ResumenCotizacion!S:S,L46,ResumenCotizacion!C:C,D46)","v":140},0]
["EPP-30Marketing Products Group SAS",null,null,"EPP-30","EPP-30 - TAPABOCAS DESECHABLES ","ELEMENTOS DE PROTECCION PERSONAL","TAPABOCAS DESECHABLE, CON RESORTE A LA OREJA , DOBLE FILTRO, ADAPTADOR NASAL AJUSTABLE, TELA NO TEJIDA","Und","Und","Si","Atención emergencia COVID-19","Marketing Products Group SAS","AECovid19-568",89900,"COP",1,500000,{"$f":"Q47-SUMIFS(ResumenCotizacion!L:L,ResumenCotizacion!S:S,L47,ResumenCotizacion!C:C,D47)","v":500000},0]
[{"$f":"D48&L48","v":"EPP-30I BUSINESS MASTER S.A.S"},null,null,"EPP-30","EPP-30 - TAPABOCAS DESECHABLES ","ELEMENTOS DE PROTECCION PERSONAL","TAPABOCAS DESECHABLE, CON RESORTE A LA OREJA , DOBLE FILTRO, ADAPTADOR NASAL AJUSTABLE, TELA NO TEJIDA","Und","Und","Si","Atención emergencia COVID-19","I BUSINESS MASTER S.A.S","AECovid19-547",75000,"COP",4,4100000,{"$f":"Q48-SUMIFS(ResumenCotizacion!L:L,ResumenCotizacion!S:S,L48,ResumenCotizacion!C:C,D48)","v":4100000},0]
[{"$f":"D49&L49","v":"EPP-17COMERCIALIZADORA ARTURO CALLE SAS"},null,null,"EPP-17","EPP-17 - KIT PREVENCIÓN: CONTIENE TRAJE ANTIFLUIDO, BATA QUIRURGICA, PANTALON PIJAMA, CUBRE ZAPATOS GORRO Y TAPABOCAS, CUALQUIER PIEZA SE PUEDE HACER INDEPENDIENTE, SON RESISTENTES AL CLORO ","ELEMENTOS DE PROTECCION PERSONAL","DEBE CONTENER TODOS LOS ELEMENTOS DESCRITOS, NO PUEDEN SER ENTREGAS PARCIALES","Und","Und","Si","Atención emergencia COVID-19","COMERCIALIZADORA ARTURO CALLE SAS","AECovid19-526",51900,"COP",1,1200,{"$f":"Q49-SUMIFS(ResumenCotizacion!L:L,ResumenCotizacion!S:S,L49,ResumenCotizacion!C:C,D49)","v":1200},0]
["EPP-29COMERCIALIZADORA ARTURO CALLE SAS",null,null,"EPP-29","EPP-29 - TAPABOCA TELA POLYESTER ANTI FLUIDO","ELEMENTOS DE PROTECCION PERSONAL","TAPABOCA DE TELA Y POLYESTER FABRICANDO CON TELA ANTIFLUIDO, CON RESORTE A LA OREJA, AJUSTABLE.","Und","Und","Si","Atención emergencia COVID-19","COMERCIALIZADORA ARTURO CALLE SAS","AECovid19-526",1480,"COP",1,40000,{"$f":"Q50-SUMIFS(ResumenCotizacion!L:L,ResumenCotizacion!S:S,L50,ResumenCotizacion!C:C,D50)","v":40000},0]
["EPP-36COMERCIALIZADORA ARTURO CALLE SAS",null,null,"EPP-36","EPP-36 - TRAJES DE BIO PORTECCIÓN- BLUSA ","ELEMENTOS DE PROTECCION PERSONAL","BLUSA EN TELA ANTI-FLUIDO.\nREPELENTE A LIQUIDO Y ANTI-CLORO.\nTALLAS S,M,L,XL","Und","Und","Si","Atención emergencia COVID-19","COMERCIALIZADORA ARTURO CALLE SAS","AECovid19-526",18600,"COP",1,2400,{"$f":"Q51-SUMIFS(ResumenCotizacion!L:L,ResumenCotizacion!S:S,L51,ResumenCotizacion!C:C,D51)","v":2400},0]
["EPP-37COMERCIALIZADORA ARTURO CALLE SAS",null,null,"EPP-37","EPP-37 - TRAJES DE BIO PORTECCIÓN- PANTALON ","ELEMENTOS DE PROTECCION PERSONAL","PANTALÓN/PANTALONES, TEJIDOS, EXFOLIANTES, REUTILIZABLES O DE UN SOLO USO, DE MANGA CORTA (TÚNICA/TOPS), USADOS DEBAJO DE LAS FUNDAS O BATAS.","Und","Und","Si","Atención emergencia COVID-19","COMERCIALIZADORA ARTURO CALLE SAS","AECovid19-526",15800,"COP",1,2400,{"$f":"Q52-SUMIFS(ResumenCotizacion!L:L,ResumenCotizacion!S:S,L52,ResumenCotizacion!C:C,D52)","v":2400},0]
[{"$f":"D53&L53","v":"EPP-30DUGOTEX SA EN REORGANIZACION"},null,null,"EPP-30","EPP-30 - TAPABOCAS DESECHABLES ","ELEMENTOS DE PROTECCION PERSONAL","TAPABOCAS DESECHABLE, CON RESORTE A LA OREJA , DOBLE FILTRO, ADAPTADOR NASAL AJUSTABLE, TELA NO TEJIDA","Und","Und","Si","Atención emergencia COVID-19","DUGOTEX SA EN REORGANIZACION","AECovid19-570",45000,"COP",2,40000,{"$f":"Q53-SUMIFS(ResumenCotizacion!L:L,ResumenCotizacion!S:S,L53,ResumenCotizacion!C:C,D53)","v":40000},0]
["EPP-12FERRESOL SAS",null,null,"EPP-12","EPP-12 - GORRO QUIRURJICO ","ELEMENTOS DE PROTECCION PERSONAL","Gorro con elástico para adaptarse al entorno craneal que se coloca en la cabeza sin que cubra totalmente la frente, ni los ojos. En Tela polipropileno 100% en spundbounded y el Resorte en Nylon blanco. 15 a 20 gramos.","Und","Und","Si","Atención emergencia COVID-19","FERRESOL SAS","AECovid19-564",12000,"COP",3,50,{"$f":"Q54-SUMIFS(ResumenCotizacion!L:L,ResumenCotizacion!S:S,L54,ResumenCotizacion!C:C,D54)","v":50},0]
["EPP-30FERRESOL SAS",null,null,"EPP-30","EPP-30 - TAPABOCAS DESECHABLES ","ELEMENTOS DE PROTECCION PERSONAL","TAPABOCAS DESECHABLE, CON RESORTE A LA OREJA , DOBLE FILTRO, ADAPTADOR NASAL AJUSTABLE, TELA NO TEJIDA","Und","Und","Si","Atención emergencia COVID-19","FERRESOL SAS","AECovid19-564",140000,"COP",1,1000,{"$f":"Q55-SUMIFS(ResumenCotizacion!L:L,ResumenCotizacion!S:S,L55,ResumenCotizacion!C:C,D55)","v":1000},0]
["EPP-29HB INTERNATIONAL CORP SOCIEDAD POR ACCIONES SIMPLIFICADA SAS",null,null,"EPP-29","EPP-29 - TAPABOCA TELA POLYESTER ANTI FLUIDO","ELEMENTOS DE PROTECCION PERSONAL","TAPABOCA DE TELA Y POLYESTER FABRICANDO CON TELA ANTIFLUIDO, CON RESORTE A LA OREJA, AJUSTABLE.","Und","Und","Si","Atención emergencia COVID-19","HB INTERNATIONAL CORP SOCIEDAD POR ACCIONES SIMPLIFICADA SAS","AECovid19-532",1239,"COP",1,150000,{"$f":"Q56-SUMIFS(ResumenCotizacion!L:L,ResumenCotizacion!S:S,L56,ResumenCotizacion!C:C,D56)","v":150000},0]
[{"$f":"D57&L57","v":"EPP-19CAG CONSTRUCTORES S.A.S."},null,null,"EPP-19","EPP-19 - MASCARILLA FACIAL N95 (TAPA BOCA)- RESORTADA ","ELEMENTOS DE PROTECCION PERSONAL","DESECHABLE, CON RESORTE A LA OREJA , DOBLE FILTRO, ADAPTADOR NASAL AJUSTABLE, EN ALGODÓN","Und","Und","Si","Atención emergencia COVID-19","CAG CONSTRUCTORES S.A.S.","AECovid19-580",460000,"COP",1,2000,{"$f":"Q57-SUMIFS(ResumenCotizacion!L:L,ResumenCotizacion!S:S,L57,ResumenCotizacion!C:C,D57)","v":2000},0]
[{"$f":"D58&L58","v":"EPP-30DYM GROUP SAS"},null,null,"EPP-30","EPP-30 - TAPABOCAS DESECHABLES ","ELEMENTOS DE PROTECCION PERSONAL","TAPABOCAS DESECHABLE, CON RESORTE A LA OREJA , DOBLE FILTRO, ADAPTADOR NASAL AJUSTABLE, TELA NO TEJIDA","Und","Und","Si","Atención emergencia COVID-19","DYM GROUP SAS","AECovid19-584",75000,"COP",4,500000,{"$f":"Q58-SUMIFS(ResumenCotizacion!L:L,ResumenCotizacion!S:S,L58,ResumenCotizacion!C:C,D58)","v":500000},0]
["EPP-10COMERCIALIZADORA ANICAM COLOMBIA SAS",null,null,"EPP-10","EPP-10 - GAFAS PROTECTORAS ","ELEMENTOS DE PROTECCION PERSONAL","BUEN SELLO DE ADHERENCIA CON LA PIEL DE LA CARA, MARCO DE PVC FLEXIBLE PARA ADAPTARSE FÁCILMENTE A TODOS LOS CONTORNOS DE LA CARA CON PRESIÓN UNIFORME, ENCERRAR LOS OJOS Y LAS ÁREAS CIRCUNDANTES, USUARIOS DE ALOJAMIENTO CON GAFAS GRADUADAS, LENTE DE PLÁSTICO TRANSPARENTE CON TRATAMIENTOS RESISTENTES A LA NIEBLA Y A LOS ARAÑAZOS, sistema AJUSTABLE PARA ASEGURAR FIRMEMENTE PARA NO LIBERARSE DURANTE LA ACTIVIDAD CLÍNICA, VENTILACIÓN INDIRECTA PARA EVITAR LA NIEBLA, PUEDE SER REUTILIZABLE (SIEMPRE QUE SE DISPONGA DE LAS DISPOSICIONES ADECUADAS PARA LA DESCONTAMINACIÓN) O DESECHABLE.","Und","Und","Si","Atención emergencia COVID-19","COMERCIALIZADORA ANICAM COLOMBIA SAS","AECovid19-573",72000,"COP",1,866,{"$f":"Q59-SUMIFS(ResumenCotizacion!L:L,ResumenCotizacion!S:S,L59,ResumenCotizacion!C:C,D59)","v":866},0]
["EPP-19COMERCIALIZADORA ANICAM COLOMBIA SAS",null,null,"EPP-19","EPP-19 - MASCARILLA FACIAL N95 (TAPA BOCA)- RESORTADA ","ELEMENTOS DE PROTECCION PERSONAL","DESECHABLE, CON RESORTE A LA OREJA , DOBLE FILTRO, ADAPTADOR NASAL AJUSTABLE, EN ALGODÓN","Und","Und","Si","Atención emergencia COVID-19","COMERCIALIZADORA ANICAM COLOMBIA SAS","AECovid19-573",360000,"COP",1,1000,{"$f":"Q60-SUMIFS(ResumenCotizacion!L:L,ResumenCotizacion!S:S,L60,ResumenCotizacion!C:C,D60)","v":1000},0]
["EPP-30COMERCIALIZADORA ANICAM COLOMBIA SAS",null,null,"EPP-30","EPP-30 - TAPABOCAS DESECHABLES ","ELEMENTOS DE PROTECCION PERSONAL","TAPABOCAS DESECHABLE, CON RESORTE A LA OREJA , DOBLE FILTRO, ADAPTADOR NASAL AJUSTABLE, TELA NO TEJIDA","Und","Und","Si","Atención emergencia COVID-19","COMERCIALIZADORA ANICAM COLOMBIA SAS","AECovid19-573",75000,"COP",4,14280,{"$f":"Q61-SUMIFS(ResumenCotizacion!L:L,ResumenCotizacion!S:S,L61,ResumenCotizacion!C:C,D61)","v":14280},0]
[{"$f":"D62&L62","v":"EPP-19LOGISTICS & SERVICES SAS"},null,null,"EPP-19","EPP-19 - MASCARILLA FACIAL N95 (TAPA BOCA)- RESORTADA ","ELEMENTOS DE PROTECCION PERSONAL","DESECHABLE, CON RESORTE A LA OREJA , DOBLE FILTRO, ADAPTADOR NASAL AJUSTABLE, EN ALGODÓN","Und","Und","Si","Atención emergencia COVID-19","LOGISTICS & SERVICES SAS","AECovid19-574",155000,"COP",1,100000,{"$f":"Q62-SUMIFS(ResumenCotizacion!L:L,ResumenCotizacion!S:S,L62,ResumenCotizacion!C:C,D62)","v":100000},0]
["EPP-30CUERO Y MODA NATURAL SKIN SAS",null,null,"EPP-30","EPP-30 - TAPABOCAS DESECHABLES ","ELEMENTOS DE PROTECCION PERSONAL","TAPABOCAS DESECHABLE, CON RESORTE A LA OREJA , DOBLE FILTRO, ADAPTADOR NASAL AJUSTABLE, TELA NO TEJIDA","Und","Und","Si","Atención emergencia COVID-19","CUERO Y MODA NATURAL SKIN SAS","AECovid19-586",65000,"COP",4,30000,{"$f":"Q63-SUMIFS(ResumenCotizacion!L:L,ResumenCotizacion!S:S,L63,ResumenCotizacion!C:C,D63)","v":30000},0]
["EPP-31CUERO Y MODA NATURAL SKIN SAS",null,null,"EPP-31","EPP-31 - TAPABOCAS DOBLE TELA LAVABLE ","ELEMENTOS DE PROTECCION PERSONAL","DOBLE TELA. REUTILIZABLE. SOPORTE NASAL. AJUSTABLE","Und","Und","Si","Atención emergencia COVID-19","CUERO Y MODA NATURAL SKIN SAS","AECovid19-586",240000,"COP",1,1000,{"$f":"Q64-SUMIFS(ResumenCotizacion!L:L,ResumenCotizacion!S:S,L64,ResumenCotizacion!C:C,D64)","v":1000},0]
[{"$f":"D65&L65","v":"EPP-29MARROQUINERA RIVIERA SAS"},null,null,"EPP-29","EPP-29 - TAPABOCA TELA POLYESTER ANTI FLUIDO","ELEMENTOS DE PROTECCION PERSONAL","TAPABOCA DE TELA Y POLYESTER FABRICANDO CON TELA ANTIFLUIDO, CON RESORTE A LA OREJA, AJUSTABLE.","Und","Und","Si","Atención emergencia COVID-19","MARROQUINERA RIVIERA SAS","AECovid19-592",2900,"COP",2,5000,{"$f":"Q65-SUMIFS(ResumenCotizacion!L:L,ResumenCotizacion!S:S,L65,ResumenCotizacion!C:C,D65)","v":5000},0]
["EPP-30MARROQUINERA RIVIERA SAS",null,null,"EPP-30","EPP-30 - TAPABOCAS DESECHABLES ","ELEMENTOS DE PROTECCION PERSONAL","TAPABOCAS DESECHABLE, CON RESORTE A LA OREJA , DOBLE FILTRO, ADAPTADOR NASAL AJUSTABLE, TELA NO TEJIDA","Und","Und","Si","Atención emergencia COVID-19","MARROQUINERA RIVIERA SAS","AECovid19-592",65000,"COP",{"$f":"COUNTIFS(D:D,D66,N:N,N66)","v":4},400000,{"$f":"Q66-SUMIFS(ResumenCotizacion!L:L,ResumenCotizacion!S:S,L66,ResumenCotizacion!C:C,D66)","v":400000},0]
[{"$f":"D67&L67","v":"EPP-30VITRA ART SAS"},null,null,"EPP-30","EPP-30 - TAPABOCAS DESECHABLES ","ELEMENTOS DE PROTECCION PERSONAL","TAPABOCAS DESECHABLE, CON RESORTE A LA OREJA , DOBLE FILTRO, ADAPTADOR NASAL AJUSTABLE, TELA NO TEJIDA","Und","Und","Si","Atención emergencia COVID-19","VITRA ART SAS","AECovid19-591",75000,"COP",4,79000,{"$f":"Q67-SUMIFS(ResumenCotizacion!L:L,ResumenCotizacion!S:S,L67,ResumenCotizacion!C:C,D67)","v":79000},0]
["EPP-19G&G LOGISTIC GROUP SAS",null,null,"EPP-19","EPP-19 - MASCARILLA FACIAL N95 (TAPA BOCA)- RESORTADA ","ELEMENTOS DE PROTECCION PERSONAL","DESECHABLE, CON RESORTE A LA OREJA , DOBLE FILTRO, ADAPTADOR NASAL AJUSTABLE, EN ALGODÓN","Und","Und","Si","Atención emergencia COVID-19","G&G LOGISTIC GROUP SAS","AECovid19-587",395000,"COP",1,3000,{"$f":"Q68-SUMIFS(ResumenCotizacion!L:L,ResumenCotizacion!S:S,L68,ResumenCotizacion!C:C,D68)","v":3000},0]
["EPP-30Realtech Ltda",null,null,"EPP-30","EPP-30 - TAPABOCAS DESECHABLES ","ELEMENTOS DE PROTECCION PERSONAL","TAPABOCAS DESECHABLE, CON RESORTE A LA OREJA , DOBLE FILTRO, ADAPTADOR NASAL AJUSTABLE, TELA NO TEJIDA","Und","Und","Si","Atención emergencia COVID-19","Realtech Ltda","AECovid19-594",85000,"COP",1,3500,{"$f":"Q69-SUMIFS(ResumenCotizacion!L:L,ResumenCotizacion!S:S,L69,ResumenCotizacion!C:C,D69)","v":3500},0]
[{"$f":"D70&L70","v":"EPP-19TIERRA DESEADA SAS"},null,null,"EPP-19","EPP-19 - MASCARILLA FACIAL N95 (TAPA BOCA)- RESORTADA ","ELEMENTOS DE PROTECCION PERSONAL","DESECHABLE, CON RESORTE A LA OREJA , DOBLE FILTRO, ADAPTADOR NASAL AJUSTABLE, EN ALGODÓN","Und","Und","Si","Atención emergencia COVID-19","TIERRA DESEADA SAS","AECovid19-578",160000,"COP",1,500000,{"$f":"Q70-SUMIFS(ResumenCotizacion!L:L,ResumenCotizacion!S:S,L70,ResumenCotizacion!C:C,D70)","v":500000},0]
[{"$f":"D71&L71","v":"EPP-30GRUPO EMPRESARIAL LCS SAS"},null,null,"EPP-30","EPP-30 - TAPABOCAS DESECHABLES ","ELEMENTOS DE PROTECCION PERSONAL","TAPABOCAS DESECHABLE, CON RESORTE A LA OREJA , DOBLE FILTRO, ADAPTADOR NASAL AJUSTABLE, TELA NO TEJIDA","Und","Und","Si","Atención emergencia COVID-19","GRUPO EMPRESARIAL LCS SAS","AECovid19-572",22000,"COP",2,2800,{"$f":"Q71-SUMIFS(ResumenCotizacion!L:L,ResumenCotizacion!S:S,L71,ResumenCotizacion!C:C,D71)","v":2800},0]
[{"$f":"D72&L72","v":"EPP-2OFIBEST SAS"},null,null,"EPP-2","EPP-2 - BATA AISLAMIENTO NO ESTERIL MANGA LARGA ","ELEMENTOS DE PROTECCION PERSONAL","Debe cumplir la siguiente reglamentación: NTC 5623 - Campos Quirurgicos, Batas y trajes para aire limpio de utilizacion quirurgica como Dispositivos Medicos para pacientes, personal clinico y equipo. Parte 1 Requisitos Generales para los fabricantes procesadores y productos. NTC 5624 - Campos Quirurgicos, Batas y trajes para aire limpio de utilizacion quirurgica como Dispositivos Medicos para pacientes, personal clinico y equipo. Parte 2 Metodos de Ensayo. NTC 5625 - Campos Quirurgicos, Batas y trajes para aire limpio de utilizacion quirurgica como Dispositivos Medicos para pacientes, personal clinico y equipo. Parte 3 Requisitos y niveles de funcionamiento.","Und","Und","Si","Atención emergencia COVID-19","OFIBEST SAS","AECovid19-519",5860,"COP",1,10000,{"$f":"Q72-SUMIFS(ResumenCotizacion!L:L,ResumenCotizacion!S:S,L72,ResumenCotizacion!C:C,D72)","v":10000},0]
["EPP-11OFIBEST SAS",null,null,"EPP-11","EPP-11 - GORRO DESECHABLE REDONDO ELÁSTICO AZUL ","ELEMENTOS DE PROTECCION PERSONAL","GORRO REDONDO DESECHABLE TIPO BAÑO BOLAN 15 A 20 GRAMOS TAMAÑO ESTÁNDAR, ENCAUCHADO PARA AJUSTE SUAVE Y FIRME","Und","Und","Si","Atención emergencia COVID-19","OFIBEST SAS","AECovid19-519",11500,"COP",1,10000,{"$f":"Q73-SUMIFS(ResumenCotizacion!L:L,ResumenCotizacion!S:S,L73,ResumenCotizacion!C:C,D73)","v":10000},0]
["EPP-12OFIBEST SAS",null,null,"EPP-12","EPP-12 - GORRO QUIRURJICO ","ELEMENTOS DE PROTECCION PERSONAL","Gorro con elástico para adaptarse al entorno craneal que se coloca en la cabeza sin que cubra totalmente la frente, ni los ojos. En Tela polipropileno 100% en spundbounded y el Resorte en Nylon blanco. 15 a 20 gramos.","Und","Und","Si","Atención emergencia COVID-19","OFIBEST SAS","AECovid19-519",11300,"COP",1,10000,{"$f":"Q74-SUMIFS(ResumenCotizacion!L:L,ResumenCotizacion!S:S,L74,ResumenCotizacion!C:C,D74)","v":10000},0]
[{"$f":"D75&L75","v":"EPP-2MAJOSUM SAS"},null,null,"EPP-2","EPP-2 - BATA AISLAMIENTO NO ESTERIL MANGA LARGA ","ELEMENTOS DE PROTECCION PERSONAL","Debe cumplir la siguiente reglamentación: NTC 5623 - Campos Quirurgicos, Batas y trajes para aire limpio de utilizacion quirurgica como Dispositivos Medicos para pacientes, personal clinico y equipo. Parte 1 Requisitos Generales para los fabricantes procesadores y productos. NTC 5624 - Campos Quirurgicos, Batas y trajes para aire limpio de utilizacion quirurgica como Dispositivos Medicos para pacientes, personal clinico y equipo. Parte 2 Metodos de Ensayo. NTC 5625 - Campos Quirurgicos, Batas y trajes para aire limpio de utilizacion quirurgica como Dispositivos Medicos para pacientes, personal clinico y equipo. Parte 3 Requisitos y niveles de funcionamiento.","Und","Und","Si","Atención emergencia COVID-19","MAJOSUM SAS","AECovid19-576",8000,"COP",1,50000,{"$f":"Q75-SUMIFS(ResumenCotizacion!L:L,ResumenCotizacion!S:S,L75,ResumenCotizacion!C:C,D75)","v":50000},0]
["EPP-3MAJOSUM SAS",null,null,"EPP-3","EPP-3 - BATA CIRUJANO DESECHABLE ","ELEMENTOS DE PROTECCION PERSONAL","BATA CIRUJANO DESECHABLE TALLA S, M, L, XL PRESENTACION ESTERIL","Und","Und","Si","Atención emergencia COVID-19","MAJOSUM SAS","AECovid19-576",14000,"COP",1,2000,{"$f":"Q76-SUMIFS(ResumenCotizacion!L:L,ResumenCotizacion!S:S,L76,ResumenCotizacion!C:C,D76)","v":2000},0]
["EPP-4MAJOSUM SAS",null,null,"EPP-4","EPP-4 - BATA DESECHABLE CORTAS CON MANGA RESORTADA ","ELEMENTOS DE PROTECCION PERSONAL","BATA DESECHABLE CORTAS CON MANGA RESORTADA CON CIERRE FRONTAL DE CREMALLERA","Und","Und","Si","Atención emergencia COVID-19","MAJOSUM SAS","AECovid19-576",16000,"COP",1,500,{"$f":"Q77-SUMIFS(ResumenCotizacion!L:L,ResumenCotizacion!S:S,L77,ResumenCotizacion!C:C,D77)","v":500},0]
["EPP-6MAJOSUM SAS",null,null,"EPP-6","EPP-6 - BATA PUÑO RIB ","ELEMENTOS DE PROTECCION PERSONAL","Tela no tejida\nDesechable\nAislante de liquidos\nAlta transpirabilidad\nManga Larga\nPuño en algodón con resorte\nCon tiras de amarre en la cintura y cuello","Und","Und","Si","Atención emergencia COVID-19","MAJOSUM SAS","AECovid19-576",7800,"COP",2,150000,{"$f":"Q78-SUMIFS(ResumenCotizacion!L:L,ResumenCotizacion!S:S,L78,ResumenCotizacion!C:C,D78)","v":150000},0]
["EPP-11MAJOSUM SAS",null,null,"EPP-11","EPP-11 - GORRO DESECHABLE REDONDO ELÁSTICO AZUL ","ELEMENTOS DE PROTECCION PERSONAL","GORRO REDONDO DESECHABLE TIPO BAÑO BOLAN 15 A 20 GRAMOS TAMAÑO ESTÁNDAR, ENCAUCHADO PARA AJUSTE SUAVE Y FIRME","Und","Und","Si","Atención emergencia COVID-19","MAJOSUM SAS","AECovid19-576",15000,"COP",2,10000,{"$f":"Q79-SUMIFS(ResumenCotizacion!L:L,ResumenCotizacion!S:S,L79,ResumenCotizacion!C:C,D79)","v":10000},0]
["EPP-12MAJOSUM SAS",null,null,"EPP-12","EPP-12 - GORRO QUIRURJICO ","ELEMENTOS DE PROTECCION PERSONAL","Gorro con elástico para adaptarse al entorno craneal que se coloca en la cabeza sin que cubra totalmente la frente, ni los ojos. En Tela polipropileno 100% en spundbounded y el Resorte en Nylon blanco. 15 a 20 gramos.","Und","Und","Si","Atención emergencia COVID-19","MAJOSUM SAS","AECovid19-576",24000,"COP",1,10000,{"$f":"Q80-SUMIFS(ResumenCotizacion!L:L,ResumenCotizacion!S:S,L80,ResumenCotizacion!C:C,D80)","v":10000},0]
["EPP-21MAJOSUM SAS",null,null,"EPP-21","EPP-21 - POLAINAS ","ELEMENTOS DE PROTECCION PERSONAL","Polaina antideslizante, no estéril, no tejida. Libre de hebras, ni partículas volátiles, lisa, sin deformaciones. Sellado con ultrasonido. Con recuento controlado microbiano.En Polipropileno (PP) con elástico de látex natural. Dimensión estándar. De un solo uso.","Und","Und","Si","Atención emergencia COVID-19","MAJOSUM SAS","AECovid19-576",45000,"COP",1,10000,{"$f":"Q81-SUMIFS(ResumenCotizacion!L:L,ResumenCotizacion!S:S,L81,ResumenCotizacion!C:C,D81)","v":10000},0]
["EPP-24MAJOSUM SAS",null,null,"EPP-24","EPP-24 - ROPA POR CAMA DESECHABLE ","ELEMENTOS DE PROTECCION PERSONAL","KIT DE JUEGO DE CAMA QUE INCLUYE SABANA, FORRO, SABANA DE MOVIMIENTO ","Und","Und","Si","Atención emergencia COVID-19","MAJOSUM SAS","AECovid19-576",32000,"COP",1,5000,{"$f":"Q82-SUMIFS(ResumenCotizacion!L:L,ResumenCotizacion!S:S,L82,ResumenCotizacion!C:C,D82)","v":5000},0]
["EPP-27MAJOSUM SAS",null,null,"EPP-27","EPP-27 - SABANAS ","ELEMENTOS DE PROTECCION PERSONAL","DESECHABLE, PLANA, 2,40X2,20 M, EN TELA SMS 35 GR, REPELENTE DE FLUIDOS, RESISTENTE, SIN ESTERILIZAR","Und","Und","Si","Atención emergencia COVID-19","MAJOSUM SAS","AECovid19-576",19000,"COP",1,5000,{"$f":"Q83-SUMIFS(ResumenCotizacion!L:L,ResumenCotizacion!S:S,L83,ResumenCotizacion!C:C,D83)","v":5000},0]
["EPP-34MAJOSUM SAS",null,null,"EPP-34","EPP-34 - TRAJE DESECHABLE ANTIFLUIDO ","ELEMENTOS DE PROTECCION PERSONAL","TALLAS: S,M,L,XL\nCOSTURAS SERIADAS, CON CAPUCHA.\nCIERRE DE CREMALLERA FRONTAL\nMUÑECAS Y TOBILLOS ELASTICOS\nFABRICADO EN TELA ANTIFLUIDO","Und","Und","Si","Atención emergencia COVID-19","MAJOSUM SAS","AECovid19-576",48000,"COP",1,10000,{"$f":"Q84-SUMIFS(ResumenCotizacion!L:L,ResumenCotizacion!S:S,L84,ResumenCotizacion!C:C,D84)","v":10000},0]
[{"$f":"D85&L85","v":"EPP-11CENTRAL DE SOLDADURAS Y PROTECCION INDUSTRIAL SA"},null,null,"EPP-11","EPP-11 - GORRO DESECHABLE REDONDO ELÁSTICO AZUL ","ELEMENTOS DE PROTECCION PERSONAL","GORRO REDONDO DESECHABLE TIPO BAÑO BOLAN 15 A 20 GRAMOS TAMAÑO ESTÁNDAR, ENCAUCHADO PARA AJUSTE SUAVE Y FIRME","Und","Und","Si","Atención emergencia COVID-19","CENTRAL DE SOLDADURAS Y PROTECCION INDUSTRIAL SA","AECovid19-529",14000,"COP",1,400,{"$f":"Q85-SUMIFS(ResumenCotizacion!L:L,ResumenCotizacion!S:S,L85,ResumenCotizacion!C:C,D85)","v":400},0]
["EPP-19CENTRAL DE SOLDADURAS Y PROTECCION INDUSTRIAL SA",null,null,"EPP-19","EPP-19 - MASCARILLA FACIAL N95 (TAPA BOCA)- RESORTADA ","ELEMENTOS DE PROTECCION PERSONAL","DESECHABLE, CON RESORTE A LA OREJA , DOBLE FILTRO, ADAPTADOR NASAL AJUSTABLE, EN ALGODÓN","Und","Und","Si","Atención emergencia COVID-19","CENTRAL DE SOLDADURAS Y PROTECCION INDUSTRIAL SA","AECovid19-529",150000,"COP",1,150000,{"$f":"Q86-SUMIFS(ResumenCotizacion!L:L,ResumenCotizacion!S:S,L86,ResumenCotizacion!C:C,D86)","v":150000},0]
["EPP-30CENTRAL DE SOLDADURAS Y PROTECCION INDUSTRIAL SA",null,null,"EPP-30","EPP-30 - TAPABOCAS DESECHABLES ","ELEMENTOS DE PROTECCION PERSONAL","TAPABOCAS DESECHABLE, CON RESORTE A LA OREJA , DOBLE FILTRO, ADAPTADOR NASAL AJUSTABLE, TELA NO TEJIDA","Und","Und","Si","Atención emergencia COVID-19","CENTRAL DE SOLDADURAS Y PROTECCION INDUSTRIAL SA","AECovid19-529",29000,"COP",1,100000,{"$f":"Q87-SUMIFS(ResumenCotizacion!L:L,ResumenCotizacion!S:S,L87,ResumenCotizacion!C:C,D87)","v":100000},0]
[{"$f":"D88&L88","v":"EPP-6ICOMMERCE SAS"},null,null,"EPP-6","EPP-6 - BATA PUÑO RIB ","ELEMENTOS DE PROTECCION PERSONAL","Tela no tejida\nDesechable\nAislante de liquidos\nAlta transpirabilidad\nManga Larga\nPuño en algodón con resorte\nCon tiras de amarre en la cintura y cuello","Und","Und","Si","Atención emergencia COVID-19","ICOMMERCE SAS","AECovid19-552",4750,"COP",1,210000,{"$f":"Q88-SUMIFS(ResumenCotizacion!L:L,ResumenCotizacion!S:S,L88,ResumenCotizacion!C:C,D88)","v":210000},0]
[{"$f":"D89&L89","v":"EPP-9DYD SAS"},null,null,"EPP-9","EPP-9 - CARETAS VISORES (PROTECTOR FACIAL) ","ELEMENTOS DE PROTECCION PERSONAL","CARETA VISOR DE USO MEDICO EN PASTA CON SEGURO ELASTICO","Und","Und","Si","Atención emergencia COVID-19","DYD SAS","AECovid19-14",18000,"COP",1,1000,{"$f":"Q89-SUMIFS(ResumenCotizacion!L:L,ResumenCotizacion!S:S,L89,ResumenCotizacion!C:C,D89)","v":1000},0]
[{"$f":"D90&L90","v":"EPP-30Comercializadora de Tecnologia Maxmobile SAS"},null,null,"EPP-30","EPP-30 - TAPABOCAS DESECHABLES ","ELEMENTOS DE PROTECCION PERSONAL","TAPABOCAS DESECHABLE, CON RESORTE A LA OREJA , DOBLE FILTRO, ADAPTADOR NASAL AJUSTABLE, TELA NO TEJIDA","Und","Und","Si","Atención emergencia COVID-19","Comercializadora de Tecnologia Maxmobile SAS","AECovid19-599",50000,"COP",1,9000,{"$f":"Q90-SUMIFS(ResumenCotizacion!L:L,ResumenCotizacion!S:S,L90,ResumenCotizacion!C:C,D90)","v":9000},0]
[{"$f":"D91&L91","v":"EPP-6AMBT SAS"},null,null,"EPP-6","EPP-6 - BATA PUÑO RIB ","ELEMENTOS DE PROTECCION PERSONAL","Tela no tejida\nDesechable\nAislante de liquidos\nAlta transpirabilidad\nManga Larga\nPuño en algodón con resorte\nCon tiras de amarre en la cintura y cuello","Und","Und","Si","Atención emergencia COVID-19","AMBT SAS","AECovid19-569",7000,"COP",1,2500,{"$f":"Q91-SUMIFS(ResumenCotizacion!L:L,ResumenCotizacion!S:S,L91,ResumenCotizacion!C:C,D91)","v":2500},0]
["EPP-19AMBT SAS",null,null,"EPP-19","EPP-19 - MASCARILLA FACIAL N95 (TAPA BOCA)- RESORTADA ","ELEMENTOS DE PROTECCION PERSONAL","DESECHABLE, CON RESORTE A LA OREJA , DOBLE FILTRO, ADAPTADOR NASAL AJUSTABLE, EN ALGODÓN","Und","Und","Si","Atención emergencia COVID-19","AMBT SAS","AECovid19-569",375000,"COP",1,200,{"$f":"Q92-SUMIFS(ResumenCotizacion!L:L,ResumenCotizacion!S:S,L92,ResumenCotizacion!C:C,D92)","v":200},0]
["EPP-21AMBT SAS",null,null,"EPP-21","EPP-21 - POLAINAS ","ELEMENTOS DE PROTECCION PERSONAL","Polaina antideslizante, no estéril, no tejida. Libre de hebras, ni partículas volátiles, lisa, sin deformaciones. Sellado con ultrasonido. Con recuento controlado microbiano.En Polipropileno (PP) con elástico de látex natural. Dimensión estándar. De un solo uso.","Und","Und","Si","Atención emergencia COVID-19","AMBT SAS","AECovid19-569",31250,"COP",1,1000,{"$f":"Q93-SUMIFS(ResumenCotizacion!L:L,ResumenCotizacion!S:S,L93,ResumenCotizacion!C:C,D93)","v":1000},0]
["EPP-30AMBT SAS",null,null,"EPP-30","EPP-30 - TAPABOCAS DESECHABLES ","ELEMENTOS DE PROTECCION PERSONAL","TAPABOCAS DESECHABLE, CON RESORTE A LA OREJA , DOBLE FILTRO, ADAPTADOR NASAL AJUSTABLE, TELA NO TEJIDA","Und","Und","Si","Atención emergencia COVID-19","AMBT SAS","AECovid19-569",56158,"COP",1,4000,{"$f":"Q94-SUMIFS(ResumenCotizacion!L:L,ResumenCotizacion!S:S,L94,ResumenCotizacion!C:C,D94)","v":4000},0]
["EPP-33AMBT SAS",null,null,"EPP-33","EPP-33 - TRAJE BIOLÓGICO ","ELEMENTOS DE PROTECCION PERSONAL","TRAJE DE PROTECCCIÓN CONTRA AGENTES BIOLÓGICOS Y QUÍMICOS, TAMAÑO (S, M, L, XL, XXL, XXXL)\n· CAPUCHA, CINTURA Y TOBILLOS ELÁSTICOS, PARA UNA MAYOR SEGURIDAD Y LIBERTAD DE\nMOVIMIENTOS.\n· MATERIAL MICROPOROSO LAMINADO, LE BRINDA UNA GRAN RESISTENCIA Y DURACIÓN, LIBRE DE FIBRAS.\n· CIERRE CUBIERTO PARA MEJOR PROTECCIÓN.","Und","Und","Si","Atención emergencia COVID-19","AMBT SAS","AECovid19-569",60000,"COP",1,360,{"$f":"Q95-SUMIFS(ResumenCotizacion!L:L,ResumenCotizacion!S:S,L95,ResumenCotizacion!C:C,D95)","v":360},0]
["EPP-30BIOKEMICAL S.A.S.",null,null,"EPP-30","EPP-30 - TAPABOCAS DESECHABLES ","ELEMENTOS DE PROTECCION PERSONAL","TAPABOCAS DESECHABLE, CON RESORTE A LA OREJA , DOBLE FILTRO, ADAPTADOR NASAL AJUSTABLE, TELA NO TEJIDA","Und","Und","Si","Atención emergencia COVID-19","BIOKEMICAL S.A.S.","AECovid19-543",56000,"COP",2,5000,{"$f":"Q96-SUMIFS(ResumenCotizacion!L:L,ResumenCotizacion!S:S,L96,ResumenCotizacion!C:C,D96)","v":5000},0]
[{"$f":"D97&L97","v":"EPP-30EDUARDO GOMEZ & COMERCIALIZADORA GLOBAL-CO"},null,null,"EPP-30","EPP-30 - TAPABOCAS DESECHABLES ","ELEMENTOS DE PROTECCION PERSONAL","TAPABOCAS DESECHABLE, CON RESORTE A LA OREJA , DOBLE FILTRO, ADAPTADOR NASAL AJUSTABLE, TELA NO TEJIDA","Und","Und","Si","Atención emergencia COVID-19","EDUARDO GOMEZ & COMERCIALIZADORA GLOBAL-CO","AECovid19-590",65000,"COP",4,3000000,{"$f":"Q97-SUMIFS(ResumenCotizacion!L:L,ResumenCotizacion!S:S,L97,ResumenCotizacion!C:C,D97)","v":3000000},0]
[{"$f":"D98&L98","v":"EPP-29MASIVA SAS"},null,null,"EPP-29","EPP-29 - TAPABOCA TELA POLYESTER ANTI FLUIDO","ELEMENTOS DE PROTECCION PERSONAL","TAPABOCA DE TELA Y POLYESTER FABRICANDO CON TELA ANTIFLUIDO, CON RESORTE A LA OREJA, AJUSTABLE.","Und","Und","Si","Atención emergencia COVID-19","MASIVA SAS","AECovid19-557",1000,"COP",1,30000,{"$f":"Q98-SUMIFS(ResumenCotizacion!L:L,ResumenCotizacion!S:S,L98,ResumenCotizacion!C:C,D98)","v":30000},0]
["EPP-9PERMODA LTDA",null,null,"EPP-9","EPP-9 - CARETAS VISORES (PROTECTOR FACIAL) ","ELEMENTOS DE PROTECCION PERSONAL","CARETA VISOR DE USO MEDICO EN PASTA CON SEGURO ELASTICO","Und","Und","Si","Atención emergencia COVID-19","PERMODA LTDA","AECovid19-566",4000,"COP",1,100000,{"$f":"Q99-SUMIFS(ResumenCotizacion!L:L,ResumenCotizacion!S:S,L99,ResumenCotizacion!C:C,D99)","v":100000},0]
["EPP-10PERMODA LTDA",null,null,"EPP-10","EPP-10 - GAFAS PROTECTORAS ","ELEMENTOS DE PROTECCION PERSONAL","BUEN SELLO DE ADHERENCIA CON LA PIEL DE LA CARA, MARCO DE PVC FLEXIBLE PARA ADAPTARSE FÁCILMENTE A TODOS LOS CONTORNOS DE LA CARA CON PRESIÓN UNIFORME, ENCERRAR LOS OJOS Y LAS ÁREAS CIRCUNDANTES, USUARIOS DE ALOJAMIENTO CON GAFAS GRADUADAS, LENTE DE PLÁSTICO TRANSPARENTE CON TRATAMIENTOS RESISTENTES A LA NIEBLA Y A LOS ARAÑAZOS, sistema AJUSTABLE PARA ASEGURAR FIRMEMENTE PARA NO LIBERARSE DURANTE LA ACTIVIDAD CLÍNICA, VENTILACIÓN INDIRECTA PARA EVITAR LA NIEBLA, PUEDE SER REUTILIZABLE (SIEMPRE QUE SE DISPONGA DE LAS DISPOSICIONES ADECUADAS PARA LA DESCONTAMINACIÓN) O DESECHABLE.","Und","Und","Si","Atención emergencia COVID-19","PERMODA LTDA","AECovid19-566",63600,"COP",1,90000,{"$f":"Q100-SUMIFS(ResumenCotizacion!L:L,ResumenCotizacion!S:S,L100,ResumenCotizacion!C:C,D100)","v":90000},0]
["EPP-19PERMODA LTDA",null,null,"EPP-19","EPP-19 - MASCARILLA FACIAL N95 (TAPA BOCA)- RESORTADA ","ELEMENTOS DE PROTECCION PERSONAL","DESECHABLE, CON RESORTE A LA OREJA , DOBLE FILTRO, ADAPTADOR NASAL AJUSTABLE, EN ALGODÓN","Und","Und","Si","Atención emergencia COVID-19","PERMODA LTDA","AECovid19-566",68000,"COP",1,2400000,{"$f":"Q101-SUMIFS(ResumenCotizacion!L:L,ResumenCotizacion!S:S,L101,ResumenCotizacion!C:C,D101)","v":2400000},0]
["EPP-30PERMODA LTDA",null,null,"EPP-30","EPP-30 - TAPABOCAS DESECHABLES ","ELEMENTOS DE PROTECCION PERSONAL","TAPABOCAS DESECHABLE, CON RESORTE A LA OREJA , DOBLE FILTRO, ADAPTADOR NASAL AJUSTABLE, TELA NO TEJIDA","Und","Und","Si","Atención emergencia COVID-19","PERMODA LTDA","AECovid19-566",14000,"COP",1,10000000,{"$f":"Q102-SUMIFS(ResumenCotizacion!L:L,ResumenCotizacion!S:S,L102,ResumenCotizacion!C:C,D102)","v":10000000},0]
["EPP-30SYCO INGENIERIA S.A.S",null,null,"EPP-30","EPP-30 - TAPABOCAS DESECHABLES ","ELEMENTOS DE PROTECCION PERSONAL","TAPABOCAS DESECHABLE, CON RESORTE A LA OREJA , DOBLE FILTRO, ADAPTADOR NASAL AJUSTABLE, TELA NO TEJIDA","Und","Und","Si","Atención emergencia COVID-19","SYCO INGENIERIA S.A.S","AECovid19-588",55000,"COP",4,1000,{"$f":"Q103-SUMIFS(ResumenCotizacion!L:L,ResumenCotizacion!S:S,L103,ResumenCotizacion!C:C,D103)","v":1000},0]
["EPP-30MDV LIGHTS SAS",null,null,"EPP-30","EPP-30 - TAPABOCAS DESECHABLES ","ELEMENTOS DE PROTECCION PERSONAL","TAPABOCAS DESECHABLE, CON RESORTE A LA OREJA , DOBLE FILTRO, ADAPTADOR NASAL AJUSTABLE, TELA NO TEJIDA","Und","Und","Si","Atención emergencia COVID-19","MDV LIGHTS SAS","AECovid19-608",58000,"COP",2,4000000,{"$f":"Q104-SUMIFS(ResumenCotizacion!L:L,ResumenCotizacion!S:S,L104,ResumenCotizacion!C:C,D104)","v":4000000},0]
["EPP-32MDV LIGHTS SAS",null,null,"EPP-32","EPP-32 - TAPABOCAS QUIRUGICO N95","ELEMENTOS DE PROTECCION PERSONAL","DEBE CUMPLIR LA SIGUIENTE REGLAMENTACIÓN: NTC 3851 Parte 1 Criterios para la selección y uso de los equipos de protecicion respiratoria. / NTC 3852 Parte 2 Equipos de proteccion respiratoria, proteccion contra particulas.","Und","Und","Si","Atención emergencia COVID-19","MDV LIGHTS SAS","AECovid19-608",600000,"COP",1,64000,{"$f":"Q105-SUMIFS(ResumenCotizacion!L:L,ResumenCotizacion!S:S,L105,ResumenCotizacion!C:C,D105)","v":64000},0]
["EPP-1CLAUDIA PATRICIA MURILLO",null,null,"EPP-1","EPP-1 - BATA  DESECHABLE PARA PACIENTE ADULTO  - TALLA S, M , L, XL COMPUESTO POR BATA SIN MANGA CON AMARRADERA  POSTERIOR ","ELEMENTOS DE PROTECCION PERSONAL","COMPUESTO DE BATA PACIENTE MANGA CIZA, AMARRADERAS EN LA PARTE POSTERIOR 2 A NIVEL DE CUELLO Y 2 A NIVEL DE LA CINTURA EN TELA SMS 35 GRAMOS.","Und","Und","Si","Atención emergencia COVID-19","CLAUDIA PATRICIA MURILLO","AECovid19-507",4800,"COP",1,800000,{"$f":"Q106-SUMIFS(ResumenCotizacion!L:L,ResumenCotizacion!S:S,L106,ResumenCotizacion!C:C,D106)","v":800000},0]
["EPP-4CLAUDIA PATRICIA MURILLO",null,null,"EPP-4","EPP-4 - BATA DESECHABLE CORTAS CON MANGA RESORTADA ","ELEMENTOS DE PROTECCION PERSONAL","BATA DESECHABLE CORTAS CON MANGA RESORTADA CON CIERRE FRONTAL DE CREMALLERA","Und","Und","Si","Atención emergencia COVID-19","CLAUDIA PATRICIA MURILLO","AECovid19-507",7400,"COP",1,500000,{"$f":"Q107-SUMIFS(ResumenCotizacion!L:L,ResumenCotizacion!S:S,L107,ResumenCotizacion!C:C,D107)","v":500000},0]
["EPP-5CLAUDIA PATRICIA MURILLO",null,null,"EPP-5","EPP-5 - BATA DESECHABLE PARA PACIENTE PEDIATRICO - ROPA DESECHABLE  COMPUESTO POR BATA SIN MANGA CON AMARRADERA  POSTERIOR. ","ELEMENTOS DE PROTECCION PERSONAL","COMPUESTO DE BATA PACIENTE MANGA CIZA DE 80 CMS, AMARRADERAS EN LA PARTE POSTERIOR 2 A NIVEL DE CUELLO Y 2 A NIVEL DE LA CINTURA EN TELA SMS 35 GRAMOS.","Und","Und","Si","Atención emergencia COVID-19","CLAUDIA PATRICIA MURILLO","AECovid19-507",5000,"COP",1,500000,{"$f":"Q108-SUMIFS(ResumenCotizacion!L:L,ResumenCotizacion!S:S,L108,ResumenCotizacion!C:C,D108)","v":500000},0]
["EPP-6CLAUDIA PATRICIA MURILLO",null,null,"EPP-6","EPP-6 - BATA PUÑO RIB ","ELEMENTOS DE PROTECCION PERSONAL","Tela no tejida\nDesechable\nAislante de liquidos\nAlta transpirabilidad\nManga Larga\nPuño en algodón con resorte\nCon tiras de amarre en la cintura y cuello","Und","Und","Si","Atención emergencia COVID-19","CLAUDIA PATRICIA MURILLO","AECovid19-507",7800,"COP",2,500000,{"$f":"Q109-SUMIFS(ResumenCotizacion!L:L,ResumenCotizacion!S:S,L109,ResumenCotizacion!C:C,D109)","v":500000},0]
["EPP-27CLAUDIA PATRICIA MURILLO",null,null,"EPP-27","EPP-27 - SABANAS ","ELEMENTOS DE PROTECCION PERSONAL","DESECHABLE, PLANA, 2,40X2,20 M, EN TELA SMS 35 GR, REPELENTE DE FLUIDOS, RESISTENTE, SIN ESTERILIZAR","Und","Und","Si","Atención emergencia COVID-19","CLAUDIA PATRICIA MURILLO","AECovid19-507",7440,"COP",1,500000,{"$f":"Q110-SUMIFS(ResumenCotizacion!L:L,ResumenCotizacion!S:S,L110,ResumenCotizacion!C:C,D110)","v":500000},0]
["EPP-30CLAUDIA PATRICIA MURILLO",null,null,"EPP-30","EPP-30 - TAPABOCAS DESECHABLES ","ELEMENTOS DE PROTECCION PERSONAL","TAPABOCAS DESECHABLE, CON RESORTE A LA OREJA , DOBLE FILTRO, ADAPTADOR NASAL AJUSTABLE, TELA NO TEJIDA","Und","Und","Si","Atención emergencia COVID-19","CLAUDIA PATRICIA MURILLO","AECovid19-507",59900,"COP",1,100000,{"$f":"Q111-SUMIFS(ResumenCotizacion!L:L,ResumenCotizacion!S:S,L111,ResumenCotizacion!C:C,D111)","v":100000},0]
["EPP-34CLAUDIA PATRICIA MURILLO",null,null,"EPP-34","EPP-34 - TRAJE DESECHABLE ANTIFLUIDO ","ELEMENTOS DE PROTECCION PERSONAL","TALLAS: S,M,L,XL\nCOSTURAS SERIADAS, CON CAPUCHA.\nCIERRE DE CREMALLERA FRONTAL\nMUÑECAS Y TOBILLOS ELASTICOS\nFABRICADO EN TELA ANTIFLUIDO","Und","Und","Si","Atención emergencia COVID-19","CLAUDIA PATRICIA MURILLO","AECovid19-507",22650,"COP",1,500000,{"$f":"Q112-SUMIFS(ResumenCotizacion!L:L,ResumenCotizacion!S:S,L112,ResumenCotizacion!C:C,D112)","v":500000},0]
[{"$f":"D113&L113","v":"EPP-30GRUPO EMPRESARIAL DE SUMINISTROS Y SERVICIOS DE LA ORINOQUIA SAS"},null,null,"EPP-30","EPP-30 - TAPABOCAS DESECHABLES ","ELEMENTOS DE PROTECCION PERSONAL","TAPABOCAS DESECHABLE, CON RESORTE A LA OREJA , DOBLE FILTRO, ADAPTADOR NASAL AJUSTABLE, TELA NO TEJIDA","Und","Und","Si","Atención emergencia COVID-19","GRUPO EMPRESARIAL DE SUMINISTROS Y SERVICIOS DE LA ORINOQUIA SAS","AECovid19-614",58000,"COP",2,5000000,{"$f":"Q113-SUMIFS(ResumenCotizacion!L:L,ResumenCotizacion!S:S,L113,ResumenCotizacion!C:C,D113)","v":5000000},0]
["EPP-19ROCCA SOLIDA GROUP SAS",null,null,"EPP-19","EPP-19 - MASCARILLA FACIAL N95 (TAPA BOCA)- RESORTADA ","ELEMENTOS DE PROTECCION PERSONAL","DESECHABLE, CON RESORTE A LA OREJA , DOBLE FILTRO, ADAPTADOR NASAL AJUSTABLE, EN ALGODÓN","Und","Und","Si","Atención emergencia COVID-19","ROCCA SOLIDA GROUP SAS","AECovid19-615",325000,"COP",1,10000,{"$f":"Q114-SUMIFS(ResumenCotizacion!L:L,ResumenCotizacion!S:S,L114,ResumenCotizacion!C:C,D114)","v":10000},0]
[{"$f":"D115&L115","v":"EPP-30TIKKE SAS"},null,null,"EPP-30","EPP-30 - TAPABOCAS DESECHABLES ","ELEMENTOS DE PROTECCION PERSONAL","TAPABOCAS DESECHABLE, CON RESORTE A LA OREJA , DOBLE FILTRO, ADAPTADOR NASAL AJUSTABLE, TELA NO TEJIDA","Und","Und","Si","Atención emergencia COVID-19","TIKKE SAS","AECovid19-520",10700,"COP",1,3000002,{"$f":"Q115-SUMIFS(ResumenCotizacion!L:L,ResumenCotizacion!S:S,L115,ResumenCotizacion!C:C,D115)","v":3000002},0]
[{"$f":"D116&L116","v":"EPP-11RADIOLOGICAL PROTECTION SERVICES SAS"},null,null,"EPP-11","EPP-11 - GORRO DESECHABLE REDONDO ELÁSTICO AZUL ","ELEMENTOS DE PROTECCION PERSONAL","GORRO REDONDO DESECHABLE TIPO BAÑO BOLAN 15 A 20 GRAMOS TAMAÑO ESTÁNDAR, ENCAUCHADO PARA AJUSTE SUAVE Y FIRME","Und","Und","Si","Atención emergencia COVID-19","RADIOLOGICAL PROTECTION SERVICES SAS","AECovid19-7",20000,"COP",1,20000,{"$f":"Q116-SUMIFS(ResumenCotizacion!L:L,ResumenCotizacion!S:S,L116,ResumenCotizacion!C:C,D116)","v":20000},0]
[{"$f":"D117&L117","v":"EPP-21RADIOLOGICAL PROTECTION SERVICES SAS"},null,null,"EPP-21","EPP-21 - POLAINAS ","ELEMENTOS DE PROTECCION PERSONAL","Polaina antideslizante, no estéril, no tejida. Libre de hebras, ni partículas volátiles, lisa, sin deformaciones. Sellado con ultrasonido. Con recuento controlado microbiano.En Polipropileno (PP) con elástico de látex natural. Dimensión estándar. De un solo uso.","Und","Und","Si","Atención emergencia COVID-19","RADIOLOGICAL PROTECTION SERVICES SAS","AECovid19-7",54000,"COP",1,20000,{"$f":"Q117-SUMIFS(ResumenCotizacion!L:L,ResumenCotizacion!S:S,L117,ResumenCotizacion!C:C,D117)","v":20000},0]
["EPP-12Twity S.A.",null,null,"EPP-12","EPP-12 - GORRO QUIRURJICO ","ELEMENTOS DE PROTECCION PERSONAL","Gorro con elástico para adaptarse al entorno craneal que se coloca en la cabeza sin que cubra totalmente la frente, ni los ojos. En Tela polipropileno 100% en spundbounded y el Resorte en Nylon blanco. 15 a 20 gramos.","Und","Und","Si","Atención emergencia COVID-19","Twity S.A.","AECovid19-606",12000,"COP",3,5000,{"$f":"Q118-SUMIFS(ResumenCotizacion!L:L,ResumenCotizacion!S:S,L118,ResumenCotizacion!C:C,D118)","v":5000},0]
[{"$f":"D119&L119","v":"EPP-30BIOANALYTICA SAS"},null,null,"EPP-30","EPP-30 - TAPABOCAS DESECHABLES ","ELEMENTOS DE PROTECCION PERSONAL","TAPABOCAS DESECHABLE, CON RESORTE A LA OREJA , DOBLE FILTRO, ADAPTADOR NASAL AJUSTABLE, TELA NO TEJIDA","Und","Und","Si","Atención emergencia COVID-19","BIOANALYTICA SAS","AECovid19-625",55000,"COP",4,1000,{"$f":"Q119-SUMIFS(ResumenCotizacion!L:L,ResumenCotizacion!S:S,L119,ResumenCotizacion!C:C,D119)","v":1000},0]
["EPP-30NINFA DE COLOMBIA SAS",null,null,"EPP-30","EPP-30 - TAPABOCAS DESECHABLES ","ELEMENTOS DE PROTECCION PERSONAL","TAPABOCAS DESECHABLE, CON RESORTE A LA OREJA , DOBLE FILTRO, ADAPTADOR NASAL AJUSTABLE, TELA NO TEJIDA","Und","Und","Si","Atención emergencia COVID-19","NINFA DE COLOMBIA SAS","AECovid19-624",59000,"COP",1,2000000,{"$f":"Q120-SUMIFS(ResumenCotizacion!L:L,ResumenCotizacion!S:S,L120,ResumenCotizacion!C:C,D120)","v":2000000},0]
[{"$f":"D121&L121","v":"EPP-30ACTIVOS RELEVANT SAS"},null,null,"EPP-30","EPP-30 - TAPABOCAS DESECHABLES ","ELEMENTOS DE PROTECCION PERSONAL","TAPABOCAS DESECHABLE, CON RESORTE A LA OREJA , DOBLE FILTRO, ADAPTADOR NASAL AJUSTABLE, TELA NO TEJIDA","Und","Und","Si","Atención emergencia COVID-19","ACTIVOS RELEVANT SAS","AECovid19-628",45000,"COP",2,12200,{"$f":"Q121-SUMIFS(ResumenCotizacion!L:L,ResumenCotizacion!S:S,L121,ResumenCotizacion!C:C,D121)","v":12200},0]
[{"$f":"D122&L122","v":"EPP-30BESTON COLOMBIA SAS"},null,null,"EPP-30","EPP-30 - TAPABOCAS DESECHABLES ","ELEMENTOS DE PROTECCION PERSONAL","TAPABOCAS DESECHABLE, CON RESORTE A LA OREJA , DOBLE FILTRO, ADAPTADOR NASAL AJUSTABLE, TELA NO TEJIDA","Und","Und","Si","Atención emergencia COVID-19","BESTON COLOMBIA SAS","AECovid19-631",55000,"COP",4,1000,{"$f":"Q122-SUMIFS(ResumenCotizacion!L:L,ResumenCotizacion!S:S,L122,ResumenCotizacion!C:C,D122)","v":1000},0]
["EPP-30JALM SAS",null,null,"EPP-30","EPP-30 - TAPABOCAS DESECHABLES ","ELEMENTOS DE PROTECCION PERSONAL","TAPABOCAS DESECHABLE, CON RESORTE A LA OREJA , DOBLE FILTRO, ADAPTADOR NASAL AJUSTABLE, TELA NO TEJIDA","Und","Und","Si","Atención emergencia COVID-19","JALM SAS","AECovid19-629",54000,"COP",1,5000000,{"$f":"Q123-SUMIFS(ResumenCotizacion!L:L,ResumenCotizacion!S:S,L123,ResumenCotizacion!C:C,D123)","v":5000000},0]
["EPP-1DISTRIBUCIONES CLINICAS",null,null,"EPP-1","EPP-1 - BATA  DESECHABLE PARA PACIENTE ADULTO  - TALLA S, M , L, XL COMPUESTO POR BATA SIN MANGA CON AMARRADERA  POSTERIOR ","ELEMENTOS DE PROTECCION PERSONAL","COMPUESTO DE BATA PACIENTE MANGA CIZA, AMARRADERAS EN LA PARTE POSTERIOR 2 A NIVEL DE CUELLO Y 2 A NIVEL DE LA CINTURA EN TELA SMS 35 GRAMOS.","Und","Und","Si","Atención emergencia COVID-19","DISTRIBUCIONES CLINICAS","AECovid19-518",7800,"COP",1,188,{"$f":"Q124-SUMIFS(ResumenCotizacion!L:L,ResumenCotizacion!S:S,L124,ResumenCotizacion!C:C,D124)","v":188},0]
["EPP-25DISTRIBUCIONES CLINICAS",null,null,"EPP-25","EPP-25 - SABANA DESECHABLE ","ELEMENTOS DE PROTECCION PERSONAL","SÁBANA AJUSTABLE DESECHABLE, CONFECCIONADA CON TEJIDO NO TEJIDO DE POLIPROPILENO (PP). CON ELÁSTICOS EN LOS EXTREMOS PARA AJUSTAR A LAS CAMILLAS.","Und","Und","Si","Atención emergencia COVID-19","DISTRIBUCIONES CLINICAS","AECovid19-518",7000,"COP",1,70,{"$f":"Q125-SUMIFS(ResumenCotizacion!L:L,ResumenCotizacion!S:S,L125,ResumenCotizacion!C:C,D125)","v":70},0]
["EPP-30COLOMBIANA DE NO TEJIDOS Y ACOLCHADOS S A COLNOTEX SA",null,null,"EPP-30","EPP-30 - TAPABOCAS DESECHABLES ","ELEMENTOS DE PROTECCION PERSONAL","TAPABOCAS DESECHABLE, CON RESORTE A LA OREJA , DOBLE FILTRO, ADAPTADOR NASAL AJUSTABLE, TELA NO TEJIDA","Und","Und","Si","Atención emergencia COVID-19","COLOMBIANA DE NO TEJIDOS Y ACOLCHADOS S A COLNOTEX SA","AECovid19-595",19500,"COP",1,10000000,{"$f":"Q126-SUMIFS(ResumenCotizacion!L:L,ResumenCotizacion!S:S,L126,ResumenCotizacion!C:C,D126)","v":10000000},0]
["EPP-1COMERCIALIZADORA DINPRO SAS",null,null,"EPP-1","EPP-1 - BATA  DESECHABLE PARA PACIENTE ADULTO  - TALLA S, M , L, XL COMPUESTO POR BATA SIN MANGA CON AMARRADERA  POSTERIOR ","ELEMENTOS DE PROTECCION PERSONAL","COMPUESTO DE BATA PACIENTE MANGA CIZA, AMARRADERAS EN LA PARTE POSTERIOR 2 A NIVEL DE CUELLO Y 2 A NIVEL DE LA CINTURA EN TELA SMS 35 GRAMOS.","Und","Und","Si","Atención emergencia COVID-19","COMERCIALIZADORA DINPRO SAS","AECovid19-626",3100,"COP",2,100000,{"$f":"Q127-SUMIFS(ResumenCotizacion!L:L,ResumenCotizacion!S:S,L127,ResumenCotizacion!C:C,D127)","v":100000},0]
["EPP-2COMERCIALIZADORA DINPRO SAS",null,null,"EPP-2","EPP-2 - BATA AISLAMIENTO NO ESTERIL MANGA LARGA ","ELEMENTOS DE PROTECCION PERSONAL","Debe cumplir la siguiente reglamentación: NTC 5623 - Campos Quirurgicos, Batas y trajes para aire limpio de utilizacion quirurgica como Dispositivos Medicos para pacientes, personal clinico y equipo. Parte 1 Requisitos Generales para los fabricantes procesadores y productos. NTC 5624 - Campos Quirurgicos, Batas y trajes para aire limpio de utilizacion quirurgica como Dispositivos Medicos para pacientes, personal clinico y equipo. Parte 2 Metodos de Ensayo. NTC 5625 - Campos Quirurgicos, Batas y trajes para aire limpio de utilizacion quirurgica como Dispositivos Medicos para pacientes, personal clinico y equipo. Parte 3 Requisitos y niveles de funcionamiento.","Und","Und","Si","Atención emergencia COVID-19","COMERCIALIZADORA DINPRO SAS","AECovid19-626",4200,"COP",1,100000,{"$f":"Q128-SUMIFS(ResumenCotizacion!L:L,ResumenCotizacion!S:S,L128,ResumenCotizacion!C:C,D128)","v":100000},0]
["EPP-5COMERCIALIZADORA DINPRO SAS",null,null,"EPP-5","EPP-5 - BATA DESECHABLE PARA PACIENTE PEDIATRICO - ROPA DESECHABLE  COMPUESTO POR BATA SIN MANGA CON AMARRADERA  POSTERIOR. ","ELEMENTOS DE PROTECCION PERSONAL","COMPUESTO DE BATA PACIENTE MANGA CIZA DE 80 CMS, AMARRADERAS EN LA PARTE POSTERIOR 2 A NIVEL DE CUELLO Y 2 A NIVEL DE LA CINTURA EN TELA SMS 35 GRAMOS.","Und","Und","Si","Atención emergencia COVID-19","COMERCIALIZADORA DINPRO SAS","AECovid19-626",5200,"COP",1,200000,{"$f":"Q129-SUMIFS(ResumenCotizacion!L:L,ResumenCotizacion!S:S,L129,ResumenCotizacion!C:C,D129)","v":200000},0]
["EPP-6COMERCIALIZADORA DINPRO SAS",null,null,"EPP-6","EPP-6 - BATA PUÑO RIB ","ELEMENTOS DE PROTECCION PERSONAL","Tela no tejida\nDesechable\nAislante de liquidos\nAlta transpirabilidad\nManga Larga\nPuño en algodón con resorte\nCon tiras de amarre en la cintura y cuello","Und","Und","Si","Atención emergencia COVID-19","COMERCIALIZADORA DINPRO SAS","AECovid19-626",4200,"COP",{"$f":"COUNTIFS(D:D,D130,N:N,N130)","v":1},120000,{"$f":"Q130-SUMIFS(ResumenCotizacion!L:L,ResumenCotizacion!S:S,L130,ResumenCotizacion!C:C,D130)","v":120000},0]
[{"$f":"D131&L131","v":"EPP-1RN GRUPO EMPRESARIAL SAS"},null,null,"EPP-1","EPP-1 - BATA  DESECHABLE PARA PACIENTE ADULTO  - TALLA S, M , L, XL COMPUESTO POR BATA SIN MANGA CON AMARRADERA  POSTERIOR ","ELEMENTOS DE PROTECCION PERSONAL","COMPUESTO DE BATA PACIENTE MANGA CIZA, AMARRADERAS EN LA PARTE POSTERIOR 2 A NIVEL DE CUELLO Y 2 A NIVEL DE LA CINTURA EN TELA SMS 35 GRAMOS.","Und","Und","Si","Atención emergencia COVID-19","RN GRUPO EMPRESARIAL SAS","AECovid19-633",3200,"COP",1,100000,{"$f":"Q131-SUMIFS(ResumenCotizacion!L:L,ResumenCotizacion!S:S,L131,ResumenCotizacion!C:C,D131)","v":100000},0]
["EPP-2RN GRUPO EMPRESARIAL SAS",null,null,"EPP-2","EPP-2 - BATA AISLAMIENTO NO ESTERIL MANGA LARGA ","ELEMENTOS DE PROTECCION PERSONAL","Debe cumplir la siguiente reglamentación: NTC 5623 - Campos Quirurgicos, Batas y trajes para aire limpio de utilizacion quirurgica como Dispositivos Medicos para pacientes, personal clinico y equipo. Parte 1 Requisitos Generales para los fabricantes procesadores y productos. NTC 5624 - Campos Quirurgicos, Batas y trajes para aire limpio de utilizacion quirurgica como Dispositivos Medicos para pacientes, personal clinico y equipo. Parte 2 Metodos de Ensayo. NTC 5625 - Campos Quirurgicos, Batas y trajes para aire limpio de utilizacion quirurgica como Dispositivos Medicos para pacientes, personal clinico y equipo. Parte 3 Requisitos y niveles de funcionamiento.","Und","Und","Si","Atención emergencia COVID-19","RN GRUPO EMPRESARIAL SAS","AECovid19-633",4500,"COP",2,100000,{"$f":"Q132-SUMIFS(ResumenCotizacion!L:L,ResumenCotizacion!S:S,L132,ResumenCotizacion!C:C,D132)","v":100000},0]
["EPP-5RN GRUPO EMPRESARIAL SAS",null,null,"EPP-5","EPP-5 - BATA DESECHABLE PARA PACIENTE PEDIATRICO - ROPA DESECHABLE  COMPUESTO POR BATA SIN MANGA CON AMARRADERA  POSTERIOR. ","ELEMENTOS DE PROTECCION PERSONAL","COMPUESTO DE BATA PACIENTE MANGA CIZA DE 80 CMS, AMARRADERAS EN LA PARTE POSTERIOR 2 A NIVEL DE CUELLO Y 2 A NIVEL DE LA CINTURA EN TELA SMS 35 GRAMOS.","Und","Und","Si","Atención emergencia COVID-19","RN GRUPO EMPRESARIAL SAS","AECovid19-633",3900,"COP",1,100000,{"$f":"Q133-SUMIFS(ResumenCotizacion!L:L,ResumenCotizacion!S:S,L133,ResumenCotizacion!C:C,D133)","v":100000},0]
["EPP-6RN GRUPO EMPRESARIAL SAS",null,null,"EPP-6","EPP-6 - BATA PUÑO RIB ","ELEMENTOS DE PROTECCION PERSONAL","Tela no tejida\nDesechable\nAislante de liquidos\nAlta transpirabilidad\nManga Larga\nPuño en algodón con resorte\nCon tiras de amarre en la cintura y cuello","Und","Und","Si","Atención emergencia COVID-19","RN GRUPO EMPRESARIAL SAS","AECovid19-633",4400,"COP",1,100000,{"$f":"Q134-SUMIFS(ResumenCotizacion!L:L,ResumenCotizacion!S:S,L134,ResumenCotizacion!C:C,D134)","v":100000},0]
["EPP-19RN GRUPO EMPRESARIAL SAS",null,null,"EPP-19","EPP-19 - MASCARILLA FACIAL N95 (TAPA BOCA)- RESORTADA ","ELEMENTOS DE PROTECCION PERSONAL","DESECHABLE, CON RESORTE A LA OREJA , DOBLE FILTRO, ADAPTADOR NASAL AJUSTABLE, EN ALGODÓN","Und","Und","Si","Atención emergencia COVID-19","RN GRUPO EMPRESARIAL SAS","AECovid19-633",175000,"COP",1,6000,{"$f":"Q135-SUMIFS(ResumenCotizacion!L:L,ResumenCotizacion!S:S,L135,ResumenCotizacion!C:C,D135)","v":6000},0]
["EPP-25RN GRUPO EMPRESARIAL SAS",null,null,"EPP-25","EPP-25 - SABANA DESECHABLE ","ELEMENTOS DE PROTECCION PERSONAL","SÁBANA AJUSTABLE DESECHABLE, CONFECCIONADA CON TEJIDO NO TEJIDO DE POLIPROPILENO (PP). CON ELÁSTICOS EN LOS EXTREMOS PARA AJUSTAR A LAS CAMILLAS.","Und","Und","Si","Atención emergencia COVID-19","RN GRUPO EMPRESARIAL SAS","AECovid19-633",3000,"COP",1,100000,{"$f":"Q136-SUMIFS(ResumenCotizacion!L:L,ResumenCotizacion!S:S,L136,ResumenCotizacion!C:C,D136)","v":100000},0]
["EPP-30RN GRUPO EMPRESARIAL SAS",null,null,"EPP-30","EPP-30 - TAPABOCAS DESECHABLES ","ELEMENTOS DE PROTECCION PERSONAL","TAPABOCAS DESECHABLE, CON RESORTE A LA OREJA , DOBLE FILTRO, ADAPTADOR NASAL AJUSTABLE, TELA NO TEJIDA","Und","Und","Si","Atención emergencia COVID-19","RN GRUPO EMPRESARIAL SAS","AECovid19-633",30000,"COP",3,6000,{"$f":"Q137-SUMIFS(ResumenCotizacion!L:L,ResumenCotizacion!S:S,L137,ResumenCotizacion!C:C,D137)","v":6000},0]
[{"$f":"D138&L138","v":"EPP-30ARTE Y MODA DOTACIONES SAS"},null,null,"EPP-30","EPP-30 - TAPABOCAS DESECHABLES ","ELEMENTOS DE PROTECCION PERSONAL","TAPABOCAS DESECHABLE, CON RESORTE A LA OREJA , DOBLE FILTRO, ADAPTADOR NASAL AJUSTABLE, TELA NO TEJIDA","Und","Und","Si","Atención emergencia COVID-19","ARTE Y MODA DOTACIONES SAS","AECovid19-635",48000,"COP",1,2000000,{"$f":"Q138-SUMIFS(ResumenCotizacion!L:L,ResumenCotizacion!S:S,L138,ResumenCotizacion!C:C,D138)","v":2000000},0]
["EPP-30INNOVA MERCADEO Y LOGISTICA SAS",null,null,"EPP-30","EPP-30 - TAPABOCAS DESECHABLES ","ELEMENTOS DE PROTECCION PERSONAL","TAPABOCAS DESECHABLE, CON RESORTE A LA OREJA , DOBLE FILTRO, ADAPTADOR NASAL AJUSTABLE, TELA NO TEJIDA","Und","Und","Si","Atención emergencia COVID-19","INNOVA MERCADEO Y LOGISTICA SAS","AECovid19-634",55000,"COP",4,4000000,{"$f":"Q139-SUMIFS(ResumenCotizacion!L:L,ResumenCotizacion!S:S,L139,ResumenCotizacion!C:C,D139)","v":4000000},0]
["EPP-44TIKKE SAS",null,null,"EPP-44","EPP-44 - OVEROL MULTIPROPOSITO PROTECCION ANTIFLUIDO","ELEMENTOS DE PROTECCION PERSONAL","OVEROL en tela antifluido lavable alta impermeabilidad, liviano, antialérgico evita el contacto con superficies y líquidos, cuello alto para brindar más protección al usuario, con capucha ajustable y resorte en mangas, cintura y tobillos, cremallera para cierre de prenda, incluido polainas con elástico para mayor protección.\n\nMateriales: Antifluido \nTallas: M, L, XL, XXL\nColor: De acuerdo con la necesidad de la entidad \nInspecciones Físicas: Doblado, costuras, cremallera y presencia de amarres.\nInspecciones Visuales: Libre de presencia de partículas removibles, coloraciones y partículas incrustadas.\nAtributos: Antiestático, Resistencia a las bacterias y Resistencia a los hongos.\nMétodo de Esterilización: No aplica producto no estéril.\nAtoxicidad: Atóxico.\nFecha de Vencimiento: ** Tres Años Después de la Fecha de Fabricación.\nEmpaque Primario: Bolsa de Polietileno de Alta Densidad.\nTela: Antifluido 100% poliéster\nCostura interna: filete y punta de seguridad \nPespuntes: refuerzo cremallera:1/8”, contorno de capota en escote y pegue elástico.\nCondiciones de Conservación: Humedad Relativa: Entre 40%RH y 70%RH Temperatura: Entre 4ºC y 32 ºc Área de almacenamiento fresca, seca y protegido de la luz y humedad. Área de almacenamiento que no entre en contacto con aceites, colorantes, detergentes, sustancias de olor fuerte y/o productos químicos que pueden alterar las condiciones del producto.\nAdvertencias y Precauciones: No utilizar si el empaque no está en perfecto estado. Evitar humedad, salpicaduras de agua y contacto con elementos cortopunzantes durante su almacenamiento.\nMétodo de Reutilización: Producto Reutilizable.","Und","Und","Si","Atención emergencia COVID-19","TIKKE SAS","AECovid19-520",44500,"COP",1,70000,{"$f":"Q140-SUMIFS(ResumenCotizacion!L:L,ResumenCotizacion!S:S,L140,ResumenCotizacion!C:C,D140)","v":70000},0]
["EPP-6CI CREAR MODA SAS",null,null,"EPP-6","EPP-6 - BATA PUÑO RIB ","ELEMENTOS DE PROTECCION PERSONAL","Tela no tejida\nDesechable\nAislante de liquidos\nAlta transpirabilidad\nManga Larga\nPuño en algodón con resorte\nCon tiras de amarre en la cintura y cuello","Und","Und","Si","Atención emergencia COVID-19","CI CREAR MODA SAS","AECovid19-571",4800,"COP",1,20000,{"$f":"Q141-SUMIFS(ResumenCotizacion!L:L,ResumenCotizacion!S:S,L141,ResumenCotizacion!C:C,D141)","v":20000},0]
["EPP-11CI CREAR MODA SAS",null,null,"EPP-11","EPP-11 - GORRO DESECHABLE REDONDO ELÁSTICO AZUL ","ELEMENTOS DE PROTECCION PERSONAL","GORRO REDONDO DESECHABLE TIPO BAÑO BOLAN 15 A 20 GRAMOS TAMAÑO ESTÁNDAR, ENCAUCHADO PARA AJUSTE SUAVE Y FIRME","Und","Und","Si","Atención emergencia COVID-19","CI CREAR MODA SAS","AECovid19-571",8690,"COP",1,10000,{"$f":"Q142-SUMIFS(ResumenCotizacion!L:L,ResumenCotizacion!S:S,L142,ResumenCotizacion!C:C,D142)","v":10000},0]
["EPP-21CI CREAR MODA SAS",null,null,"EPP-21","EPP-21 - POLAINAS ","ELEMENTOS DE PROTECCION PERSONAL","Polaina antideslizante, no estéril, no tejida. Libre de hebras, ni partículas volátiles, lisa, sin deformaciones. Sellado con ultrasonido. Con recuento controlado microbiano.En Polipropileno (PP) con elástico de látex natural. Dimensión estándar. De un solo uso.","Und","Und","Si","Atención emergencia COVID-19","CI CREAR MODA SAS","AECovid19-571",21250,"COP",1,4000,{"$f":"Q143-SUMIFS(ResumenCotizacion!L:L,ResumenCotizacion!S:S,L143,ResumenCotizacion!C:C,D143)","v":4000},0]
["EPP-25CI CREAR MODA SAS",null,null,"EPP-25","EPP-25 - SABANA DESECHABLE ","ELEMENTOS DE PROTECCION PERSONAL","SÁBANA AJUSTABLE DESECHABLE, CONFECCIONADA CON TEJIDO NO TEJIDO DE POLIPROPILENO (PP). CON ELÁSTICOS EN LOS EXTREMOS PARA AJUSTAR A LAS CAMILLAS.","Und","Und","Si","Atención emergencia COVID-19","CI CREAR MODA SAS","AECovid19-571",4600,"COP",1,3000,{"$f":"Q144-SUMIFS(ResumenCotizacion!L:L,ResumenCotizacion!S:S,L144,ResumenCotizacion!C:C,D144)","v":3000},0]
["EPP-36CI CREAR MODA SAS",null,null,"EPP-36","EPP-36 - TRAJES DE BIO PORTECCIÓN- BLUSA ","ELEMENTOS DE PROTECCION PERSONAL","BLUSA EN TELA ANTI-FLUIDO.\nREPELENTE A LIQUIDO Y ANTI-CLORO.\nTALLAS S,M,L,XL","Und","Und","Si","Atención emergencia COVID-19","CI CREAR MODA SAS","AECovid19-571",19000,"COP",1,500,{"$f":"Q145-SUMIFS(ResumenCotizacion!L:L,ResumenCotizacion!S:S,L145,ResumenCotizacion!C:C,D145)","v":500},0]
["EPP-37CI CREAR MODA SAS",null,null,"EPP-37","EPP-37 - TRAJES DE BIO PORTECCIÓN- PANTALON ","ELEMENTOS DE PROTECCION PERSONAL","PANTALÓN/PANTALONES, TEJIDOS, EXFOLIANTES, REUTILIZABLES O DE UN SOLO USO, DE MANGA CORTA (TÚNICA/TOPS), USADOS DEBAJO DE LAS FUNDAS O BATAS.","Und","Und","Si","Atención emergencia COVID-19","CI CREAR MODA SAS","AECovid19-571",19000,"COP",2,500,{"$f":"Q146-SUMIFS(ResumenCotizacion!L:L,ResumenCotizacion!S:S,L146,ResumenCotizacion!C:C,D146)","v":500},0]
[{"$f":"D147&L147","v":"EPP-30Engineering Consulting Group SAS"},null,null,"EPP-30","EPP-30 - TAPABOCAS DESECHABLES ","ELEMENTOS DE PROTECCION PERSONAL","TAPABOCAS DESECHABLE, CON RESORTE A LA OREJA , DOBLE FILTRO, ADAPTADOR NASAL AJUSTABLE, TELA NO TEJIDA","Und","Und","Si","Atención emergencia COVID-19","Engineering Consulting Group SAS","AECovid19-619",16850,"COP",1,10000000,{"$f":"Q147-SUMIFS(ResumenCotizacion!L:L,ResumenCotizacion!S:S,L147,ResumenCotizacion!C:C,D147)","v":10000000},0]
[{"$f":"D148&L148","v":"EPP-9GOMEZ NARANJO & CIA LTDA"},null,null,"EPP-9","EPP-9 - CARETAS VISORES (PROTECTOR FACIAL) ","ELEMENTOS DE PROTECCION PERSONAL","CARETA VISOR DE USO MEDICO EN PASTA CON SEGURO ELASTICO","Und","Und","Si","Atención emergencia COVID-19","GOMEZ NARANJO & CIA LTDA","AECovid19-637",6500,"COP",1,10000,{"$f":"Q148-SUMIFS(ResumenCotizacion!L:L,ResumenCotizacion!S:S,L148,ResumenCotizacion!C:C,D148)","v":10000},0]
["EPP-18GOMEZ NARANJO & CIA LTDA",null,null,"EPP-18","EPP-18 - MASCARILLA FACIAL N95 (TAPA BOCA) ","ELEMENTOS DE PROTECCION PERSONAL","DESECHABLE, CON TIRAS PARA AMARRAR, DOBLE FILTRO, ADAPTADOR NASAL AJUSTABLE, EN ALGODÓN,","Und","Und","Si","Atención emergencia COVID-19","GOMEZ NARANJO & CIA LTDA","AECovid19-637",250000,"COP",2,100,{"$f":"Q149-SUMIFS(ResumenCotizacion!L:L,ResumenCotizacion!S:S,L149,ResumenCotizacion!C:C,D149)","v":100},0]
["EPP-20GOMEZ NARANJO & CIA LTDA",null,null,"EPP-20","EPP-20 - MASCARILLA TIPO RESPIRADOR N95 CON VÁLVULA ","ELEMENTOS DE PROTECCION PERSONAL","MASCARILLA TIPO RESPIRADOR CON VÁLVULA PARA PARTÍCULAS, CON TECNOLOGÍA MEA, MASCARILLAS QUIRÚRGICAS/RIESGO BIOLÓGICO N95.","Und","Und","Si","Atención emergencia COVID-19","GOMEZ NARANJO & CIA LTDA","AECovid19-637",7500,"COP",1,5000,{"$f":"Q150-SUMIFS(ResumenCotizacion!L:L,ResumenCotizacion!S:S,L150,ResumenCotizacion!C:C,D150)","v":5000},0]
["EPP-30GOMEZ NARANJO & CIA LTDA",null,null,"EPP-30","EPP-30 - TAPABOCAS DESECHABLES ","ELEMENTOS DE PROTECCION PERSONAL","TAPABOCAS DESECHABLE, CON RESORTE A LA OREJA , DOBLE FILTRO, ADAPTADOR NASAL AJUSTABLE, TELA NO TEJIDA","Und","Und","Si","Atención emergencia COVID-19","GOMEZ NARANJO & CIA LTDA","AECovid19-637",35000,"COP",2,20000,{"$f":"Q151-SUMIFS(ResumenCotizacion!L:L,ResumenCotizacion!S:S,L151,ResumenCotizacion!C:C,D151)","v":20000},0]
["EPP-30MULTI IMPRESOS SAS",null,null,"EPP-30","EPP-30 - TAPABOCAS DESECHABLES ","ELEMENTOS DE PROTECCION PERSONAL","TAPABOCAS DESECHABLE, CON RESORTE A LA OREJA , DOBLE FILTRO, ADAPTADOR NASAL AJUSTABLE, TELA NO TEJIDA","Und","Und","Si","Atención emergencia COVID-19","MULTI IMPRESOS SAS","AECovid19-638",53655,"COP",1,2800000,{"$f":"Q152-SUMIFS(ResumenCotizacion!L:L,ResumenCotizacion!S:S,L152,ResumenCotizacion!C:C,D152)","v":2800000},0]
["EPP-32MULTI IMPRESOS SAS",null,null,"EPP-32","EPP-32 - TAPABOCAS QUIRUGICO N95","ELEMENTOS DE PROTECCION PERSONAL","DEBE CUMPLIR LA SIGUIENTE REGLAMENTACIÓN: NTC 3851 Parte 1 Criterios para la selección y uso de los equipos de protecicion respiratoria. / NTC 3852 Parte 2 Equipos de proteccion respiratoria, proteccion contra particulas.","Und","Und","Si","Atención emergencia COVID-19","MULTI IMPRESOS SAS","AECovid19-638",365950,"COP",1,10000,{"$f":"Q153-SUMIFS(ResumenCotizacion!L:L,ResumenCotizacion!S:S,L153,ResumenCotizacion!C:C,D153)","v":10000},0]
["EPP-18ONLY PISOS SAS",null,null,"EPP-18","EPP-18 - MASCARILLA FACIAL N95 (TAPA BOCA) ","ELEMENTOS DE PROTECCION PERSONAL","DESECHABLE, CON TIRAS PARA AMARRAR, DOBLE FILTRO, ADAPTADOR NASAL AJUSTABLE, EN ALGODÓN,","Und","Und","Si","Atención emergencia COVID-19","ONLY PISOS SAS","AECovid19-621",250000,"COP",2,80000,{"$f":"Q154-SUMIFS(ResumenCotizacion!L:L,ResumenCotizacion!S:S,L154,ResumenCotizacion!C:C,D154)","v":80000},0]
[{"$f":"D155&L155","v":"EPP-14EUROCOSSET"},null,null,"EPP-14","EPP-14 - GUANTES DE NITRILO ","ELEMENTOS DE PROTECCION PERSONAL","GUANTES DE NITRILO (CALIBRE DE 8 MILESIMAS MÍNIMO) TALLAS,M Y L DESECHABLES, HIPOALERGÉNICOS, NO ESTÉRILES, ALTA RESISTENCIA A LA ELONGACIÓN, CON ENTALCAMIENTO LEVE INTERNO, AMBIDIESTROS, PUÑO CON REBORDE.","Und","Und","Si","Atención emergencia COVID-19","EUROCOSSET","AECovid19-523",70000,"COP",4,10000,{"$f":"Q155-SUMIFS(ResumenCotizacion!L:L,ResumenCotizacion!S:S,L155,ResumenCotizacion!C:C,D155)","v":10000},0]
["EPP-32EUROCOSSET",null,null,"EPP-32","EPP-32 - TAPABOCAS QUIRUGICO N95","ELEMENTOS DE PROTECCION PERSONAL","DEBE CUMPLIR LA SIGUIENTE REGLAMENTACIÓN: NTC 3851 Parte 1 Criterios para la selección y uso de los equipos de protecicion respiratoria. / NTC 3852 Parte 2 Equipos de proteccion respiratoria, proteccion contra particulas.","Und","Und","Si","Atención emergencia COVID-19","EUROCOSSET","AECovid19-523",510000,"COP",1,300000,{"$f":"Q156-SUMIFS(ResumenCotizacion!L:L,ResumenCotizacion!S:S,L156,ResumenCotizacion!C:C,D156)","v":300000},0]
[{"$f":"D157&L157","v":"EPP-30JHON JAIRO CARRILLO"},null,null,"EPP-30","EPP-30 - TAPABOCAS DESECHABLES ","ELEMENTOS DE PROTECCION PERSONAL","TAPABOCAS DESECHABLE, CON RESORTE A LA OREJA , DOBLE FILTRO, ADAPTADOR NASAL AJUSTABLE, TELA NO TEJIDA","Und","Und","Si","Atención emergencia COVID-19","JHON JAIRO CARRILLO","AECovid19-605",10750,"COP",1,100,{"$f":"Q157-SUMIFS(ResumenCotizacion!L:L,ResumenCotizacion!S:S,L157,ResumenCotizacion!C:C,D157)","v":100},0]
[{"$f":"D158&L158","v":"EPP-19JOSE ALVARO PONGUTA GARZON"},null,null,"EPP-19",{"$f":"+VLOOKUP(D158,[2]Catálogo!$A$2:$D$44,3,0)","v":"EPP-19 - MASCARILLA FACIAL N95 (TAPA BOCA)- RESORTADA "},"ELEMENTOS DE PROTECCION PERSONAL","DESECHABLE, CON RESORTE A LA OREJA , DOBLE FILTRO, ADAPTADOR NASAL AJUSTABLE, EN ALGODÓN","Und","Und","Si","Atención emergencia COVID-19","JOSE ALVARO PONGUTA GARZON","AECovid19-548",320000,"COP",1,14000,{"$f":"Q158-SUMIFS(ResumenCotizacion!L:L,ResumenCotizacion!S:S,L158,ResumenCotizacion!C:C,D158)","v":14000},0]
["EPP-34SERVICIOS INTEGRALES INTELIGENTES SAS",null,null,"EPP-34",{"$f":"+VLOOKUP(D159,[2]Catálogo!$A$2:$D$44,3,0)","v":"EPP-34 - TRAJE DESECHABLE ANTIFLUIDO "},"ELEMENTOS DE PROTECCION PERSONAL","TALLAS: S,M,L,XL\nCOSTURAS SERIADAS, CON CAPUCHA.\nCIERRE DE CREMALLERA FRONTAL\nMUÑECAS Y TOBILLOS ELASTICOS\nFABRICADO EN TELA ANTIFLUIDO","Und","Und","Si","Atención emergencia COVID-19","SERVICIOS INTEGRALES INTELIGENTES SAS","AECovid19-617",11000,"COP",1,250,{"$f":"Q159-SUMIFS(ResumenCotizacion!L:L,ResumenCotizacion!S:S,L159,ResumenCotizacion!C:C,D159)","v":250},0]
[{"$f":"D160&L160","v":"EPP-30DATA LINK CORP SAS"},null,null,"EPP-30","EPP-30 - TAPABOCAS DESECHABLES ","ELEMENTOS DE PROTECCION PERSONAL","TAPABOCAS DESECHABLE, CON RESORTE A LA OREJA , DOBLE FILTRO, ADAPTADOR NASAL AJUSTABLE, TELA NO TEJIDA","Und","Und","Si","Atención emergencia COVID-19","DATA LINK CORP SAS","AECovid19-630",38500,"COP",1,1200,{"$f":"Q160-SUMIFS(ResumenCotizacion!L:L,ResumenCotizacion!S:S,L160,ResumenCotizacion!C:C,D160)","v":1200},0]
[{"$f":"D161&L161","v":"EPP-20CLONHADAS LTDA"},null,null,"EPP-20","EPP-20 - MASCARILLA TIPO RESPIRADOR N95 CON VÁLVULA ","ELEMENTOS DE PROTECCION PERSONAL","MASCARILLA TIPO RESPIRADOR CON VÁLVULA PARA PARTÍCULAS, CON TECNOLOGÍA MEA, MASCARILLAS QUIRÚRGICAS/RIESGO BIOLÓGICO N95.","Und","Und","Si","Atención emergencia COVID-19","CLONHADAS LTDA","AECovid19-613",6000,"COP",1,300,{"$f":"Q161-SUMIFS(ResumenCotizacion!L:L,ResumenCotizacion!S:S,L161,ResumenCotizacion!C:C,D161)","v":300},0]
[{"$f":"D162&L162","v":"EPP-30MATRIX ENERGY & INFRASTRUCTURE SAS"},null,null,"EPP-30","EPP-30 - TAPABOCAS DESECHABLES ","ELEMENTOS DE PROTECCION PERSONAL","TAPABOCAS DESECHABLE, CON RESORTE A LA OREJA , DOBLE FILTRO, ADAPTADOR NASAL AJUSTABLE, TELA NO TEJIDA","Und","Und","Si","Atención emergencia COVID-19","MATRIX ENERGY & INFRASTRUCTURE SAS","AECovid19-603",135000,"COP",2,10000,{"$f":"Q162-SUMIFS(ResumenCotizacion!L:L,ResumenCotizacion!S:S,L162,ResumenCotizacion!C:C,D162)","v":10000},0]
[{"$f":"D163&L163","v":"EPP-19MATRIX ENERGY & INFRASTRUCTURE SAS"},null,null,"EPP-19","EPP-19 - MASCARILLA FACIAL N95 (TAPA BOCA)- RESORTADA ","ELEMENTOS DE PROTECCION PERSONAL","DESECHABLE, CON RESORTE A LA OREJA , DOBLE FILTRO, ADAPTADOR NASAL AJUSTABLE, EN ALGODÓN","Und","Und","Si","Atención emergencia COVID-19","MATRIX ENERGY & INFRASTRUCTURE SAS","AECovid19-603",575000,"COP",1,70000,{"$f":"Q163-SUMIFS(ResumenCotizacion!L:L,ResumenCotizacion!S:S,L163,ResumenCotizacion!C:C,D163)","v":70000},0]
[{"$f":"D164&L164","v":"EPP-30MASK FACE LIBER GROUP SAS"},null,null,"EPP-30","EPP-30 - TAPABOCAS DESECHABLES ","ELEMENTOS DE PROTECCION PERSONAL","TAPABOCAS DESECHABLE, CON RESORTE A LA OREJA , DOBLE FILTRO, ADAPTADOR NASAL AJUSTABLE, TELA NO TEJIDA","Und","Und","Si","Atención emergencia COVID-19","MASK FACE LIBER GROUP SAS","AECovid19-647",37000,"COP",1,5000,{"$f":"Q164-SUMIFS(ResumenCotizacion!L:L,ResumenCotizacion!S:S,L164,ResumenCotizacion!C:C,D164)","v":5000},0]
["EPP-14SUQUIN SAS",null,null,"EPP-14","EPP-14 - GUANTES DE NITRILO ","ELEMENTOS DE PROTECCION PERSONAL","GUANTES DE NITRILO (CALIBRE DE 8 MILESIMAS MÍNIMO) TALLAS,M Y L DESECHABLES, HIPOALERGÉNICOS, NO ESTÉRILES, ALTA RESISTENCIA A LA ELONGACIÓN, CON ENTALCAMIENTO LEVE INTERNO, AMBIDIESTROS, PUÑO CON REBORDE.","Und","Und","Si","Atención emergencia COVID-19","SUQUIN SAS","AECovid19-620",60000,"COP",2,50,{"$f":"Q165-SUMIFS(ResumenCotizacion!L:L,ResumenCotizacion!S:S,L165,ResumenCotizacion!C:C,D165)","v":50},0]
["EPP-2MEDIHEALTH DE COLOMBIA SAS",null,null,"EPP-2","EPP-2 - BATA AISLAMIENTO NO ESTERIL MANGA LARGA ","ELEMENTOS DE PROTECCION PERSONAL","Debe cumplir la siguiente reglamentación: NTC 5623 - Campos Quirurgicos, Batas y trajes para aire limpio de utilizacion quirurgica como Dispositivos Medicos para pacientes, personal clinico y equipo. Parte 1 Requisitos Generales para los fabricantes procesadores y productos. NTC 5624 - Campos Quirurgicos, Batas y trajes para aire limpio de utilizacion quirurgica como Dispositivos Medicos para pacientes, personal clinico y equipo. Parte 2 Metodos de Ensayo. NTC 5625 - Campos Quirurgicos, Batas y trajes para aire limpio de utilizacion quirurgica como Dispositivos Medicos para pacientes, personal clinico y equipo. Parte 3 Requisitos y niveles de funcionamiento.","Und","Und","Si","Atención emergencia COVID-19","MEDIHEALTH DE COLOMBIA SAS","AECovid19-560",4900,"COP",1,2500,{"$f":"Q166-SUMIFS(ResumenCotizacion!L:L,ResumenCotizacion!S:S,L166,ResumenCotizacion!C:C,D166)","v":2500},0]
["EPP-12MEDIHEALTH DE COLOMBIA SAS",null,null,"EPP-12","EPP-12 - GORRO QUIRURJICO ","ELEMENTOS DE PROTECCION PERSONAL","Gorro con elástico para adaptarse al entorno craneal que se coloca en la cabeza sin que cubra totalmente la frente, ni los ojos. En Tela polipropileno 100% en spundbounded y el Resorte en Nylon blanco. 15 a 20 gramos.","Und","Und","Si","Atención emergencia COVID-19","MEDIHEALTH DE COLOMBIA SAS","AECovid19-560",12000,"COP",3,5000,{"$f":"Q167-SUMIFS(ResumenCotizacion!L:L,ResumenCotizacion!S:S,L167,ResumenCotizacion!C:C,D167)","v":5000},0]
["EPP-21MEDIHEALTH DE COLOMBIA SAS",null,null,"EPP-21","EPP-21 - POLAINAS ","ELEMENTOS DE PROTECCION PERSONAL","Polaina antideslizante, no estéril, no tejida. Libre de hebras, ni partículas volátiles, lisa, sin deformaciones. Sellado con ultrasonido. Con recuento controlado microbiano.En Polipropileno (PP) con elástico de látex natural. Dimensión estándar. De un solo uso.","Und","Und","Si","Atención emergencia COVID-19","MEDIHEALTH DE COLOMBIA SAS","AECovid19-560",25000,"COP",1,2000,{"$f":"Q168-SUMIFS(ResumenCotizacion!L:L,ResumenCotizacion!S:S,L168,ResumenCotizacion!C:C,D168)","v":2000},0]
["EPP-30MEDIHEALTH DE COLOMBIA SAS",null,null,"EPP-30","EPP-30 - TAPABOCAS DESECHABLES ","ELEMENTOS DE PROTECCION PERSONAL","TAPABOCAS DESECHABLE, CON RESORTE A LA OREJA , DOBLE FILTRO, ADAPTADOR NASAL AJUSTABLE, TELA NO TEJIDA","Und","Und","Si","Atención emergencia COVID-19","MEDIHEALTH DE COLOMBIA SAS","AECovid19-560",22000,"COP",2,500,{"$f":"Q169-SUMIFS(ResumenCotizacion!L:L,ResumenCotizacion!S:S,L169,ResumenCotizacion!C:C,D169)","v":500},0]
["EPP-33MEDIHEALTH DE COLOMBIA SAS",null,null,"EPP-33","EPP-33 - TRAJE BIOLÓGICO ","ELEMENTOS DE PROTECCION PERSONAL","TRAJE DE PROTECCCIÓN CONTRA AGENTES BIOLÓGICOS Y QUÍMICOS, TAMAÑO (S, M, L, XL, XXL, XXXL)\n· CAPUCHA, CINTURA Y TOBILLOS ELÁSTICOS, PARA UNA MAYOR SEGURIDAD Y LIBERTAD DE\nMOVIMIENTOS.\n· MATERIAL MICROPOROSO LAMINADO, LE BRINDA UNA GRAN RESISTENCIA Y DURACIÓN, LIBRE DE FIBRAS.\n· CIERRE CUBIERTO PARA MEJOR PROTECCIÓN.","Und","Und","Si","Atención emergencia COVID-19","MEDIHEALTH DE COLOMBIA SAS","AECovid19-560",22000,"COP",1,3000,{"$f":"Q170-SUMIFS(ResumenCotizacion!L:L,ResumenCotizacion!S:S,L170,ResumenCotizacion!C:C,D170)","v":3000},0]
["EPP-35MEDIHEALTH DE COLOMBIA SAS",null,null,"EPP-35","EPP-35 - TRAJE KLEENGUAR A35 ","ELEMENTOS DE PROTECCION PERSONAL","TRAJE DE PROTECCIÓN PERSONAL.\nELABORADO CON TECNOLOGÍA SFL.\nCAPA INTERNA HECHA CON FIBRAS DE POLIPROPILENO\nTALLAS: S,M,L,XL  ","Und","Und","Si","Atención emergencia COVID-19","MEDIHEALTH DE COLOMBIA SAS","AECovid19-560",44000,"COP",1,1060,{"$f":"Q171-SUMIFS(ResumenCotizacion!L:L,ResumenCotizacion!S:S,L171,ResumenCotizacion!C:C,D171)","v":1060},0]
[{"$f":"D172&L172","v":"EPP-1GRUPO KAVAW S.A.S"},null,null,"EPP-1","EPP-1 - BATA  DESECHABLE PARA PACIENTE ADULTO  - TALLA S, M , L, XL COMPUESTO POR BATA SIN MANGA CON AMARRADERA  POSTERIOR ","ELEMENTOS DE PROTECCION PERSONAL","COMPUESTO DE BATA PACIENTE MANGA CIZA, AMARRADERAS EN LA PARTE POSTERIOR 2 A NIVEL DE CUELLO Y 2 A NIVEL DE LA CINTURA EN TELA SMS 35 GRAMOS.","Und","Und","Si","Atención emergencia COVID-19","GRUPO KAVAW S.A.S","AECovid19-546",2500,"COP",1,10000,{"$f":"Q172-SUMIFS(ResumenCotizacion!L:L,ResumenCotizacion!S:S,L172,ResumenCotizacion!C:C,D172)","v":10000},0]
["EPP-2GRUPO KAVAW S.A.S",null,null,"EPP-2","EPP-2 - BATA AISLAMIENTO NO ESTERIL MANGA LARGA ","ELEMENTOS DE PROTECCION PERSONAL","Debe cumplir la siguiente reglamentación: NTC 5623 - Campos Quirurgicos, Batas y trajes para aire limpio de utilizacion quirurgica como Dispositivos Medicos para pacientes, personal clinico y equipo. Parte 1 Requisitos Generales para los fabricantes procesadores y productos. NTC 5624 - Campos Quirurgicos, Batas y trajes para aire limpio de utilizacion quirurgica como Dispositivos Medicos para pacientes, personal clinico y equipo. Parte 2 Metodos de Ensayo. NTC 5625 - Campos Quirurgicos, Batas y trajes para aire limpio de utilizacion quirurgica como Dispositivos Medicos para pacientes, personal clinico y equipo. Parte 3 Requisitos y niveles de funcionamiento.","Und","Und","Si","Atención emergencia COVID-19","GRUPO KAVAW S.A.S","AECovid19-546",4500,"COP",2,10000,{"$f":"Q173-SUMIFS(ResumenCotizacion!L:L,ResumenCotizacion!S:S,L173,ResumenCotizacion!C:C,D173)","v":10000},0]
["EPP-3GRUPO KAVAW S.A.S",null,null,"EPP-3","EPP-3 - BATA CIRUJANO DESECHABLE ","ELEMENTOS DE PROTECCION PERSONAL","BATA CIRUJANO DESECHABLE TALLA S, M, L, XL PRESENTACION ESTERIL","Und","Und","Si","Atención emergencia COVID-19","GRUPO KAVAW S.A.S","AECovid19-546",4500,"COP",2,10000,{"$f":"Q174-SUMIFS(ResumenCotizacion!L:L,ResumenCotizacion!S:S,L174,ResumenCotizacion!C:C,D174)","v":10000},0]
["EPP-4GRUPO KAVAW S.A.S",null,null,"EPP-4","EPP-4 - BATA DESECHABLE CORTAS CON MANGA RESORTADA ","ELEMENTOS DE PROTECCION PERSONAL","BATA DESECHABLE CORTAS CON MANGA RESORTADA CON CIERRE FRONTAL DE CREMALLERA","Und","Und","Si","Atención emergencia COVID-19","GRUPO KAVAW S.A.S","AECovid19-546",5000,"COP",2,10000,{"$f":"Q175-SUMIFS(ResumenCotizacion!L:L,ResumenCotizacion!S:S,L175,ResumenCotizacion!C:C,D175)","v":10000},0]
["EPP-6GRUPO KAVAW S.A.S",null,null,"EPP-6","EPP-6 - BATA PUÑO RIB ","ELEMENTOS DE PROTECCION PERSONAL","Tela no tejida\nDesechable\nAislante de liquidos\nAlta transpirabilidad\nManga Larga\nPuño en algodón con resorte\nCon tiras de amarre en la cintura y cuello","Und","Und","Si","Atención emergencia COVID-19","GRUPO KAVAW S.A.S","AECovid19-546",4500,"COP",2,10000,{"$f":"Q176-SUMIFS(ResumenCotizacion!L:L,ResumenCotizacion!S:S,L176,ResumenCotizacion!C:C,D176)","v":10000},0]
["EPP-7GRUPO KAVAW S.A.S",null,null,"EPP-7","EPP-7 - BATA QUIRURGICA ASTOUND ","ELEMENTOS DE PROTECCION PERSONAL","ELABORADA EN SMS POLIPROPILENO DE ALTO RENDIMIENTO IMPERMEABLE LIBRE DE PELUSA, POLIREFORSADA EN ZONAS CRÍTICAS, PECHO Y ANTEBRAZO, RESISTENTE A PENETRACIÓN DE FLUIDOS PELIGROSOS, QUE CONSERVA SU INTEGRIDAD A LO LARGO DEL PROCEDIMIENTO QUIRÚRGICO, MANTIENE TEMPERATURA CORPORAL CONFORTABLE, INFLABILIDAD TESTIBLE CPSC 16.","Und","Und","Si","Atención emergencia COVID-19","GRUPO KAVAW S.A.S","AECovid19-546",7000,"COP",1,5000,{"$f":"Q177-SUMIFS(ResumenCotizacion!L:L,ResumenCotizacion!S:S,L177,ResumenCotizacion!C:C,D177)","v":5000},0]
["EPP-10GRUPO KAVAW S.A.S",null,null,"EPP-10","EPP-10 - GAFAS PROTECTORAS ","ELEMENTOS DE PROTECCION PERSONAL","BUEN SELLO DE ADHERENCIA CON LA PIEL DE LA CARA, MARCO DE PVC FLEXIBLE PARA ADAPTARSE FÁCILMENTE A TODOS LOS CONTORNOS DE LA CARA CON PRESIÓN UNIFORME, ENCERRAR LOS OJOS Y LAS ÁREAS CIRCUNDANTES, USUARIOS DE ALOJAMIENTO CON GAFAS GRADUADAS, LENTE DE PLÁSTICO TRANSPARENTE CON TRATAMIENTOS RESISTENTES A LA NIEBLA Y A LOS ARAÑAZOS, sistema AJUSTABLE PARA ASEGURAR FIRMEMENTE PARA NO LIBERARSE DURANTE LA ACTIVIDAD CLÍNICA, VENTILACIÓN INDIRECTA PARA EVITAR LA NIEBLA, PUEDE SER REUTILIZABLE (SIEMPRE QUE SE DISPONGA DE LAS DISPOSICIONES ADECUADAS PARA LA DESCONTAMINACIÓN) O DESECHABLE.","Und","Und","Si","Atención emergencia COVID-19","GRUPO KAVAW S.A.S","AECovid19-546",45000,"COP",1,15000,{"$f":"Q178-SUMIFS(ResumenCotizacion!L:L,ResumenCotizacion!S:S,L178,ResumenCotizacion!C:C,D178)","v":15000},0]
["EPP-11GRUPO KAVAW S.A.S",null,null,"EPP-11","EPP-11 - GORRO DESECHABLE REDONDO ELÁSTICO AZUL ","ELEMENTOS DE PROTECCION PERSONAL","GORRO REDONDO DESECHABLE TIPO BAÑO BOLAN 15 A 20 GRAMOS TAMAÑO ESTÁNDAR, ENCAUCHADO PARA AJUSTE SUAVE Y FIRME","Und","Und","Si","Atención emergencia COVID-19","GRUPO KAVAW S.A.S","AECovid19-546",8300,"COP",1,45000,{"$f":"Q179-SUMIFS(ResumenCotizacion!L:L,ResumenCotizacion!S:S,L179,ResumenCotizacion!C:C,D179)","v":45000},0]
["EPP-12GRUPO KAVAW S.A.S",null,null,"EPP-12","EPP-12 - GORRO QUIRURJICO ","ELEMENTOS DE PROTECCION PERSONAL","Gorro con elástico para adaptarse al entorno craneal que se coloca en la cabeza sin que cubra totalmente la frente, ni los ojos. En Tela polipropileno 100% en spundbounded y el Resorte en Nylon blanco. 15 a 20 gramos.","Und","Und","Si","Atención emergencia COVID-19","GRUPO KAVAW S.A.S","AECovid19-546",7700,"COP",1,45000,{"$f":"Q180-SUMIFS(ResumenCotizacion!L:L,ResumenCotizacion!S:S,L180,ResumenCotizacion!C:C,D180)","v":45000},0]
["EPP-18GRUPO KAVAW S.A.S",null,null,"EPP-18","EPP-18 - MASCARILLA FACIAL N95 (TAPA BOCA) ","ELEMENTOS DE PROTECCION PERSONAL","DESECHABLE, CON TIRAS PARA AMARRAR, DOBLE FILTRO, ADAPTADOR NASAL AJUSTABLE, EN ALGODÓN,","Und","Und","Si","Atención emergencia COVID-19","GRUPO KAVAW S.A.S","AECovid19-546",85000,"COP",1,5000,{"$f":"Q181-SUMIFS(ResumenCotizacion!L:L,ResumenCotizacion!S:S,L181,ResumenCotizacion!C:C,D181)","v":5000},0]
["EPP-19GRUPO KAVAW S.A.S",null,null,"EPP-19","EPP-19 - MASCARILLA FACIAL N95 (TAPA BOCA)- RESORTADA ","ELEMENTOS DE PROTECCION PERSONAL","DESECHABLE, CON RESORTE A LA OREJA , DOBLE FILTRO, ADAPTADOR NASAL AJUSTABLE, EN ALGODÓN","Und","Und","Si","Atención emergencia COVID-19","GRUPO KAVAW S.A.S","AECovid19-546",50000,"COP",1,5000,{"$f":"Q182-SUMIFS(ResumenCotizacion!L:L,ResumenCotizacion!S:S,L182,ResumenCotizacion!C:C,D182)","v":5000},0]
["EPP-20GRUPO KAVAW S.A.S",null,null,"EPP-20","EPP-20 - MASCARILLA TIPO RESPIRADOR N95 CON VÁLVULA ","ELEMENTOS DE PROTECCION PERSONAL","MASCARILLA TIPO RESPIRADOR CON VÁLVULA PARA PARTÍCULAS, CON TECNOLOGÍA MEA, MASCARILLAS QUIRÚRGICAS/RIESGO BIOLÓGICO N95.","Und","Und","Si","Atención emergencia COVID-19","GRUPO KAVAW S.A.S","AECovid19-546",15000,"COP",1,1000,{"$f":"Q183-SUMIFS(ResumenCotizacion!L:L,ResumenCotizacion!S:S,L183,ResumenCotizacion!C:C,D183)","v":1000},0]
["EPP-21GRUPO KAVAW S.A.S",null,null,"EPP-21","EPP-21 - POLAINAS ","ELEMENTOS DE PROTECCION PERSONAL","Polaina antideslizante, no estéril, no tejida. Libre de hebras, ni partículas volátiles, lisa, sin deformaciones. Sellado con ultrasonido. Con recuento controlado microbiano.En Polipropileno (PP) con elástico de látex natural. Dimensión estándar. De un solo uso.","Und","Und","Si","Atención emergencia COVID-19","GRUPO KAVAW S.A.S","AECovid19-546",12100,"COP",1,48000,{"$f":"Q184-SUMIFS(ResumenCotizacion!L:L,ResumenCotizacion!S:S,L184,ResumenCotizacion!C:C,D184)","v":48000},0]
["EPP-24GRUPO KAVAW S.A.S",null,null,"EPP-24","EPP-24 - ROPA POR CAMA DESECHABLE ","ELEMENTOS DE PROTECCION PERSONAL","KIT DE JUEGO DE CAMA QUE INCLUYE SABANA, FORRO, SABANA DE MOVIMIENTO ","Und","Und","Si","Atención emergencia COVID-19","GRUPO KAVAW S.A.S","AECovid19-546",8200,"COP",1,200,{"$f":"Q185-SUMIFS(ResumenCotizacion!L:L,ResumenCotizacion!S:S,L185,ResumenCotizacion!C:C,D185)","v":200},0]
["EPP-25GRUPO KAVAW S.A.S",null,null,"EPP-25","EPP-25 - SABANA DESECHABLE ","ELEMENTOS DE PROTECCION PERSONAL","SÁBANA AJUSTABLE DESECHABLE, CONFECCIONADA CON TEJIDO NO TEJIDO DE POLIPROPILENO (PP). CON ELÁSTICOS EN LOS EXTREMOS PARA AJUSTAR A LAS CAMILLAS.","Und","Und","Si","Atención emergencia COVID-19","GRUPO KAVAW S.A.S","AECovid19-546",4000,"COP",1,200,{"$f":"Q186-SUMIFS(ResumenCotizacion!L:L,ResumenCotizacion!S:S,L186,ResumenCotizacion!C:C,D186)","v":200},0]
["EPP-26GRUPO KAVAW S.A.S",null,null,"EPP-26","EPP-26 - SABANA NO TEJIDO X100 ","ELEMENTOS DE PROTECCION PERSONAL","TELA NO TEJIDO\nDESECHABLE\nAISLANTE DE LIQUIDOS\nALTA TRANSPIRABILIDAD\nFABRICADA EN POLIESTER","Und","Und","Si","Atención emergencia COVID-19","GRUPO KAVAW S.A.S","AECovid19-546",4000,"COP",1,100,{"$f":"Q187-SUMIFS(ResumenCotizacion!L:L,ResumenCotizacion!S:S,L187,ResumenCotizacion!C:C,D187)","v":100},0]
["EPP-29GRUPO KAVAW S.A.S",null,null,"EPP-29","EPP-29 - TAPABOCA TELA POLYESTER ANTI FLUIDO","ELEMENTOS DE PROTECCION PERSONAL","TAPABOCA DE TELA Y POLYESTER FABRICANDO CON TELA ANTIFLUIDO, CON RESORTE A LA OREJA, AJUSTABLE.","Und","Und","Si","Atención emergencia COVID-19","GRUPO KAVAW S.A.S","AECovid19-546",830,"COP",1,5000,{"$f":"Q188-SUMIFS(ResumenCotizacion!L:L,ResumenCotizacion!S:S,L188,ResumenCotizacion!C:C,D188)","v":5000},0]
["EPP-30GRUPO KAVAW S.A.S",null,null,"EPP-30","EPP-30 - TAPABOCAS DESECHABLES ","ELEMENTOS DE PROTECCION PERSONAL","TAPABOCAS DESECHABLE, CON RESORTE A LA OREJA , DOBLE FILTRO, ADAPTADOR NASAL AJUSTABLE, TELA NO TEJIDA","Und","Und","Si","Atención emergencia COVID-19","GRUPO KAVAW S.A.S","AECovid19-546",12000,"COP",2,200000,{"$f":"Q189-SUMIFS(ResumenCotizacion!L:L,ResumenCotizacion!S:S,L189,ResumenCotizacion!C:C,D189)","v":200000},0]
["EPP-31GRUPO KAVAW S.A.S",null,null,"EPP-31","EPP-31 - TAPABOCAS DOBLE TELA LAVABLE ","ELEMENTOS DE PROTECCION PERSONAL","DOBLE TELA. REUTILIZABLE. SOPORTE NASAL. AJUSTABLE","Und","Und","Si","Atención emergencia COVID-19","GRUPO KAVAW S.A.S","AECovid19-546",45000,"COP",1,5000,{"$f":"Q190-SUMIFS(ResumenCotizacion!L:L,ResumenCotizacion!S:S,L190,ResumenCotizacion!C:C,D190)","v":5000},0]
["EPP-32GRUPO KAVAW S.A.S",null,null,"EPP-32","EPP-32 - TAPABOCAS QUIRUGICO N95","ELEMENTOS DE PROTECCION PERSONAL","DEBE CUMPLIR LA SIGUIENTE REGLAMENTACIÓN: NTC 3851 Parte 1 Criterios para la selección y uso de los equipos de protecicion respiratoria. / NTC 3852 Parte 2 Equipos de proteccion respiratoria, proteccion contra particulas.","Und","Und","Si","Atención emergencia COVID-19","GRUPO KAVAW S.A.S","AECovid19-546",172000,"COP",1,5000,{"$f":"Q191-SUMIFS(ResumenCotizacion!L:L,ResumenCotizacion!S:S,L191,ResumenCotizacion!C:C,D191)","v":5000},0]
["EPP-33GRUPO KAVAW S.A.S",null,null,"EPP-33","EPP-33 - TRAJE BIOLÓGICO ","ELEMENTOS DE PROTECCION PERSONAL","TRAJE DE PROTECCCIÓN CONTRA AGENTES BIOLÓGICOS Y QUÍMICOS, TAMAÑO (S, M, L, XL, XXL, XXXL)\n· CAPUCHA, CINTURA Y TOBILLOS ELÁSTICOS, PARA UNA MAYOR SEGURIDAD Y LIBERTAD DE\nMOVIMIENTOS.\n· MATERIAL MICROPOROSO LAMINADO, LE BRINDA UNA GRAN RESISTENCIA Y DURACIÓN, LIBRE DE FIBRAS.\n· CIERRE CUBIERTO PARA MEJOR PROTECCIÓN.","Und","Und","Si","Atención emergencia COVID-19","GRUPO KAVAW S.A.S","AECovid19-546",20000,"COP",2,500,{"$f":"Q192-SUMIFS(ResumenCotizacion!L:L,ResumenCotizacion!S:S,L192,ResumenCotizacion!C:C,D192)","v":500},0]
["EPP-34GRUPO KAVAW S.A.S",null,null,"EPP-34","EPP-34 - TRAJE DESECHABLE ANTIFLUIDO ","ELEMENTOS DE PROTECCION PERSONAL","TALLAS: S,M,L,XL\nCOSTURAS SERIADAS, CON CAPUCHA.\nCIERRE DE CREMALLERA FRONTAL\nMUÑECAS Y TOBILLOS ELASTICOS\nFABRICADO EN TELA ANTIFLUIDO","Und","Und","Si","Atención emergencia COVID-19","GRUPO KAVAW S.A.S","AECovid19-546",15000,"COP",1,1000,{"$f":"Q193-SUMIFS(ResumenCotizacion!L:L,ResumenCotizacion!S:S,L193,ResumenCotizacion!C:C,D193)","v":1000},0]
["EPP-43GRUPO KAVAW S.A.S",null,null,"EPP-43","EPP-43 - GORRO QUIRURGICO CON RECUENTO CONTROLADO MICROBIANO","ELEMENTOS DE PROTECCION PERSONAL","Gorro con elástico para adaptarse al entorno craneal, que se coloca en la cabeza y cubre parcialmente la frente. \nDebe cumplir con la NTC 5623, NTC 5625, NORMA CFR Title 21 Subpart E of part 807\nDebe cumplir CON RECUENTO CONTROLADO MICROBIANO, en Tela polipropileno 100%","Und","Und","Si","Atención emergencia COVID-19","GRUPO KAVAW S.A.S","AECovid19-546",11750,"COP",{"$f":"COUNTIFS(D:D,D194,N:N,N194)","v":1},50000,{"$f":"Q194-SUMIFS(ResumenCotizacion!L:L,ResumenCotizacion!S:S,L194,ResumenCotizacion!C:C,D194)","v":50000},0]
["EPP-44GRUPO KAVAW S.A.S",null,null,"EPP-44","EPP-44 - OVEROL MULTIPROPOSITO PROTECCION ANTIFLUIDO","ELEMENTOS DE PROTECCION PERSONAL","OVEROL en tela antifluido lavable alta impermeabilidad, liviano, antialérgico evita el contacto con superficies y líquidos, cuello alto para brindar más protección al usuario, con capucha ajustable y resorte en mangas, cintura y tobillos, cremallera para cierre de prenda, incluido polainas con elástico para mayor protección.\n\nMateriales: Antifluido \nTallas: M, L, XL, XXL\nColor: De acuerdo con la necesidad de la entidad \nInspecciones Físicas: Doblado, costuras, cremallera y presencia de amarres.\nInspecciones Visuales: Libre de presencia de partículas removibles, coloraciones y partículas incrustadas.\nAtributos: Antiestático, Resistencia a las bacterias y Resistencia a los hongos.\nMétodo de Esterilización: No aplica producto no estéril.\nAtoxicidad: Atóxico.\nFecha de Vencimiento: ** Tres Años Después de la Fecha de Fabricación.\nEmpaque Primario: Bolsa de Polietileno de Alta Densidad.\nTela: Antifluido 100% poliéster\nCostura interna: filete y punta de seguridad \nPespuntes: refuerzo cremallera:1/8”, contorno de capota en escote y pegue elástico.\nCondiciones de Conservación: Humedad Relativa: Entre 40%RH y 70%RH Temperatura: Entre 4ºC y 32 ºc Área de almacenamiento fresca, seca y protegido de la luz y humedad. Área de almacenamiento que no entre en contacto con aceites, colorantes, detergentes, sustancias de olor fuerte y/o productos químicos que pueden alterar las condiciones del producto.\nAdvertencias y Precauciones: No utilizar si el empaque no está en perfecto estado. Evitar humedad, salpicaduras de agua y contacto con elementos cortopunzantes durante su almacenamiento.\nMétodo de Reutilización: Producto Reutilizable.","Und","Und","Si","Atención emergencia COVID-19","GRUPO KAVAW S.A.S","AECovid19-546",29000,"COP",1,5000,{"$f":"Q195-SUMIFS(ResumenCotizacion!L:L,ResumenCotizacion!S:S,L195,ResumenCotizacion!C:C,D195)","v":5000},0]
[{"$f":"D196&L196","v":"EPP-10DELTA PLUS COLOMBIA SAS"},null,null,"EPP-10","EPP-10 - GAFAS PROTECTORAS ","ELEMENTOS DE PROTECCION PERSONAL","BUEN SELLO DE ADHERENCIA CON LA PIEL DE LA CARA, MARCO DE PVC FLEXIBLE PARA ADAPTARSE FÁCILMENTE A TODOS LOS CONTORNOS DE LA CARA CON PRESIÓN UNIFORME, ENCERRAR LOS OJOS Y LAS ÁREAS CIRCUNDANTES, USUARIOS DE ALOJAMIENTO CON GAFAS GRADUADAS, LENTE DE PLÁSTICO TRANSPARENTE CON TRATAMIENTOS RESISTENTES A LA NIEBLA Y A LOS ARAÑAZOS, sistema AJUSTABLE PARA ASEGURAR FIRMEMENTE PARA NO LIBERARSE DURANTE LA ACTIVIDAD CLÍNICA, VENTILACIÓN INDIRECTA PARA EVITAR LA NIEBLA, PUEDE SER REUTILIZABLE (SIEMPRE QUE SE DISPONGA DE LAS DISPOSICIONES ADECUADAS PARA LA DESCONTAMINACIÓN) O DESECHABLE.","Und","Und","Si","Atención emergencia COVID-19","DELTA PLUS COLOMBIA SAS","AECovid19-583",120000,"COP",1,100,{"$f":"Q196-SUMIFS(ResumenCotizacion!L:L,ResumenCotizacion!S:S,L196,ResumenCotizacion!C:C,D196)","v":100},0]
["EPP-19DELTA PLUS COLOMBIA SAS",null,null,"EPP-19","EPP-19 - MASCARILLA FACIAL N95 (TAPA BOCA)- RESORTADA ","ELEMENTOS DE PROTECCION PERSONAL","DESECHABLE, CON RESORTE A LA OREJA , DOBLE FILTRO, ADAPTADOR NASAL AJUSTABLE, EN ALGODÓN","Und","Und","Si","Atención emergencia COVID-19","DELTA PLUS COLOMBIA SAS","AECovid19-583",409862,"COP",1,200,{"$f":"Q197-SUMIFS(ResumenCotizacion!L:L,ResumenCotizacion!S:S,L197,ResumenCotizacion!C:C,D197)","v":200},0]
["EPP-29DELTA PLUS COLOMBIA SAS",null,null,"EPP-29","EPP-29 - TAPABOCA TELA POLYESTER ANTI FLUIDO","ELEMENTOS DE PROTECCION PERSONAL","TAPABOCA DE TELA Y POLYESTER FABRICANDO CON TELA ANTIFLUIDO, CON RESORTE A LA OREJA, AJUSTABLE.","Und","Und","Si","Atención emergencia COVID-19","DELTA PLUS COLOMBIA SAS","AECovid19-583",1300,"COP",1,2000,{"$f":"Q198-SUMIFS(ResumenCotizacion!L:L,ResumenCotizacion!S:S,L198,ResumenCotizacion!C:C,D198)","v":2000},0]
["EPP-30DELTA PLUS COLOMBIA SAS",null,null,"EPP-30","EPP-30 - TAPABOCAS DESECHABLES ","ELEMENTOS DE PROTECCION PERSONAL","TAPABOCAS DESECHABLE, CON RESORTE A LA OREJA , DOBLE FILTRO, ADAPTADOR NASAL AJUSTABLE, TELA NO TEJIDA","Und","Und","Si","Atención emergencia COVID-19","DELTA PLUS COLOMBIA SAS","AECovid19-583",77000,"COP",1,1000,{"$f":"Q199-SUMIFS(ResumenCotizacion!L:L,ResumenCotizacion!S:S,L199,ResumenCotizacion!C:C,D199)","v":1000},0]
["EPP-31DELTA PLUS COLOMBIA SAS",null,null,"EPP-31","EPP-31 - TAPABOCAS DOBLE TELA LAVABLE ","ELEMENTOS DE PROTECCION PERSONAL","DOBLE TELA. REUTILIZABLE. SOPORTE NASAL. AJUSTABLE","Und","Und","Si","Atención emergencia COVID-19","DELTA PLUS COLOMBIA SAS","AECovid19-583",138500,"COP",1,200,{"$f":"Q200-SUMIFS(ResumenCotizacion!L:L,ResumenCotizacion!S:S,L200,ResumenCotizacion!C:C,D200)","v":200},0]
["EPP-33DELTA PLUS COLOMBIA SAS",null,null,"EPP-33","EPP-33 - TRAJE BIOLÓGICO ","ELEMENTOS DE PROTECCION PERSONAL","TRAJE DE PROTECCCIÓN CONTRA AGENTES BIOLÓGICOS Y QUÍMICOS, TAMAÑO (S, M, L, XL, XXL, XXXL)\n· CAPUCHA, CINTURA Y TOBILLOS ELÁSTICOS, PARA UNA MAYOR SEGURIDAD Y LIBERTAD DE\nMOVIMIENTOS.\n· MATERIAL MICROPOROSO LAMINADO, LE BRINDA UNA GRAN RESISTENCIA Y DURACIÓN, LIBRE DE FIBRAS.\n· CIERRE CUBIERTO PARA MEJOR PROTECCIÓN.","Und","Und","Si","Atención emergencia COVID-19","DELTA PLUS COLOMBIA SAS","AECovid19-583",38227,"COP",1,140,{"$f":"Q201-SUMIFS(ResumenCotizacion!L:L,ResumenCotizacion!S:S,L201,ResumenCotizacion!C:C,D201)","v":140},0]
["EPP-34DELTA PLUS COLOMBIA SAS",null,null,"EPP-34","EPP-34 - TRAJE DESECHABLE ANTIFLUIDO ","ELEMENTOS DE PROTECCION PERSONAL","TALLAS: S,M,L,XL\nCOSTURAS SERIADAS, CON CAPUCHA.\nCIERRE DE CREMALLERA FRONTAL\nMUÑECAS Y TOBILLOS ELASTICOS\nFABRICADO EN TELA ANTIFLUIDO","Und","Und","Si","Atención emergencia COVID-19","DELTA PLUS COLOMBIA SAS","AECovid19-583",22629,"COP",1,1000,{"$f":"Q202-SUMIFS(ResumenCotizacion!L:L,ResumenCotizacion!S:S,L202,ResumenCotizacion!C:C,D202)","v":1000},0]
["EPP-35DELTA PLUS COLOMBIA SAS",null,null,"EPP-35","EPP-35 - TRAJE KLEENGUAR A35 ","ELEMENTOS DE PROTECCION PERSONAL","TRAJE DE PROTECCIÓN PERSONAL.\nELABORADO CON TECNOLOGÍA SFL.\nCAPA INTERNA HECHA CON FIBRAS DE POLIPROPILENO\nTALLAS: S,M,L,XL  ","Und","Und","Si","Atención emergencia COVID-19","DELTA PLUS COLOMBIA SAS","AECovid19-583",33000,"COP",1,1000,{"$f":"Q203-SUMIFS(ResumenCotizacion!L:L,ResumenCotizacion!S:S,L203,ResumenCotizacion!C:C,D203)","v":1000},0]
["EPP-38DELTA PLUS COLOMBIA SAS",null,null,"EPP-38","EPP-38 - CARETA CON VISOR INTERCAMBIABLE","ELEMENTOS DE PROTECCION PERSONAL","Debe cumpir con la Norma ANSI Z87.1\nCabezal: Fabricado en polímero suave. Sostiene la careta en la cabeza. Graduable de acuerdo a la circunferencia de la cabeza del usuario. Con banda frontal absorbente. \nVisera o rodachispa: Elaborada en polímero de alta densidad, resistente al impacto y a la salpicadura de sustancias químicas. Sostiene el visor y oscila en el cabezal para bajar o levantar la careta.\nSistema de ajuste tiene como función sujetar la visera con el cabezal. \nVisor fabricado en acetato de celulosa de mínimo 20 x 30 cm, ópticamente rectificado, sistema que facilite el cambio del visor.\n\nDebe proteger el rostro de salpicaduras de agua, saliva, sangre de la boca del paciente y cuerpos extraños, bajo peso, neutralidad óptica y resistencia al impacto a bajas velocidades.","Und","Und","Si","Atención emergencia COVID-19","DELTA PLUS COLOMBIA SAS","AECovid19-583",24000,"COP",1,3000,{"$f":"Q204-SUMIFS(ResumenCotizacion!L:L,ResumenCotizacion!S:S,L204,ResumenCotizacion!C:C,D204)","v":2250},0]
[{"$f":"D205&L205","v":"EPP-1HEALTHUMANA SAS"},null,null,"EPP-1","EPP-1 - BATA  DESECHABLE PARA PACIENTE ADULTO  - TALLA S, M , L, XL COMPUESTO POR BATA SIN MANGA CON AMARRADERA  POSTERIOR ","ELEMENTOS DE PROTECCION PERSONAL","COMPUESTO DE BATA PACIENTE MANGA CIZA, AMARRADERAS EN LA PARTE POSTERIOR 2 A NIVEL DE CUELLO Y 2 A NIVEL DE LA CINTURA EN TELA SMS 35 GRAMOS.","Und","Und","Si","Atención emergencia COVID-19","HEALTHUMANA SAS","AECovid19-527",3590,"COP",1,10000,{"$f":"Q205-SUMIFS(ResumenCotizacion!L:L,ResumenCotizacion!S:S,L205,ResumenCotizacion!C:C,D205)","v":10000},0]
["EPP-2HEALTHUMANA SAS",null,null,"EPP-2","EPP-2 - BATA AISLAMIENTO NO ESTERIL MANGA LARGA ","ELEMENTOS DE PROTECCION PERSONAL","Debe cumplir la siguiente reglamentación: NTC 5623 - Campos Quirurgicos, Batas y trajes para aire limpio de utilizacion quirurgica como Dispositivos Medicos para pacientes, personal clinico y equipo. Parte 1 Requisitos Generales para los fabricantes procesadores y productos. NTC 5624 - Campos Quirurgicos, Batas y trajes para aire limpio de utilizacion quirurgica como Dispositivos Medicos para pacientes, personal clinico y equipo. Parte 2 Metodos de Ensayo. NTC 5625 - Campos Quirurgicos, Batas y trajes para aire limpio de utilizacion quirurgica como Dispositivos Medicos para pacientes, personal clinico y equipo. Parte 3 Requisitos y niveles de funcionamiento.","Und","Und","Si","Atención emergencia COVID-19","HEALTHUMANA SAS","AECovid19-527",5980,"COP",1,20000,{"$f":"Q206-SUMIFS(ResumenCotizacion!L:L,ResumenCotizacion!S:S,L206,ResumenCotizacion!C:C,D206)","v":20000},0]
["EPP-3HEALTHUMANA SAS",null,null,"EPP-3","EPP-3 - BATA CIRUJANO DESECHABLE ","ELEMENTOS DE PROTECCION PERSONAL","BATA CIRUJANO DESECHABLE TALLA S, M, L, XL PRESENTACION ESTERIL","Und","Und","Si","Atención emergencia COVID-19","HEALTHUMANA SAS","AECovid19-527",5850,"COP",1,20000,{"$f":"Q207-SUMIFS(ResumenCotizacion!L:L,ResumenCotizacion!S:S,L207,ResumenCotizacion!C:C,D207)","v":20000},0]
["EPP-4HEALTHUMANA SAS",null,null,"EPP-4","EPP-4 - BATA DESECHABLE CORTAS CON MANGA RESORTADA ","ELEMENTOS DE PROTECCION PERSONAL","BATA DESECHABLE CORTAS CON MANGA RESORTADA CON CIERRE FRONTAL DE CREMALLERA","Und","Und","Si","Atención emergencia COVID-19","HEALTHUMANA SAS","AECovid19-527",8480,"COP",1,10000,{"$f":"Q208-SUMIFS(ResumenCotizacion!L:L,ResumenCotizacion!S:S,L208,ResumenCotizacion!C:C,D208)","v":10000},0]
["EPP-6HEALTHUMANA SAS",null,null,"EPP-6","EPP-6 - BATA PUÑO RIB ","ELEMENTOS DE PROTECCION PERSONAL","Tela no tejida\nDesechable\nAislante de liquidos\nAlta transpirabilidad\nManga Larga\nPuño en algodón con resorte\nCon tiras de amarre en la cintura y cuello","Und","Und","Si","Atención emergencia COVID-19","HEALTHUMANA SAS","AECovid19-527",5440,"COP",1,10000,{"$f":"Q209-SUMIFS(ResumenCotizacion!L:L,ResumenCotizacion!S:S,L209,ResumenCotizacion!C:C,D209)","v":10000},0]
["EPP-11HEALTHUMANA SAS",null,null,"EPP-11","EPP-11 - GORRO DESECHABLE REDONDO ELÁSTICO AZUL ","ELEMENTOS DE PROTECCION PERSONAL","GORRO REDONDO DESECHABLE TIPO BAÑO BOLAN 15 A 20 GRAMOS TAMAÑO ESTÁNDAR, ENCAUCHADO PARA AJUSTE SUAVE Y FIRME","Und","Und","Si","Atención emergencia COVID-19","HEALTHUMANA SAS","AECovid19-527",25500,"COP",1,50000,{"$f":"Q210-SUMIFS(ResumenCotizacion!L:L,ResumenCotizacion!S:S,L210,ResumenCotizacion!C:C,D210)","v":50000},0]
["EPP-18HEALTHUMANA SAS",null,null,"EPP-18","EPP-18 - MASCARILLA FACIAL N95 (TAPA BOCA) ","ELEMENTOS DE PROTECCION PERSONAL","DESECHABLE, CON TIRAS PARA AMARRAR, DOBLE FILTRO, ADAPTADOR NASAL AJUSTABLE, EN ALGODÓN,","Und","Und","Si","Atención emergencia COVID-19","HEALTHUMANA SAS","AECovid19-527",228000,"COP",1,5000,{"$f":"Q211-SUMIFS(ResumenCotizacion!L:L,ResumenCotizacion!S:S,L211,ResumenCotizacion!C:C,D211)","v":5000},0]
["EPP-19HEALTHUMANA SAS",null,null,"EPP-19","EPP-19 - MASCARILLA FACIAL N95 (TAPA BOCA)- RESORTADA ","ELEMENTOS DE PROTECCION PERSONAL","DESECHABLE, CON RESORTE A LA OREJA , DOBLE FILTRO, ADAPTADOR NASAL AJUSTABLE, EN ALGODÓN","Und","Und","Si","Atención emergencia COVID-19","HEALTHUMANA SAS","AECovid19-527",228000,"COP",1,100000,{"$f":"Q212-SUMIFS(ResumenCotizacion!L:L,ResumenCotizacion!S:S,L212,ResumenCotizacion!C:C,D212)","v":100000},0]
["EPP-29HEALTHUMANA SAS",null,null,"EPP-29","EPP-29 - TAPABOCA TELA POLYESTER ANTI FLUIDO","ELEMENTOS DE PROTECCION PERSONAL","TAPABOCA DE TELA Y POLYESTER FABRICANDO CON TELA ANTIFLUIDO, CON RESORTE A LA OREJA, AJUSTABLE.","Und","Und","Si","Atención emergencia COVID-19","HEALTHUMANA SAS","AECovid19-527",3600,"COP",1,20000,{"$f":"Q213-SUMIFS(ResumenCotizacion!L:L,ResumenCotizacion!S:S,L213,ResumenCotizacion!C:C,D213)","v":20000},0]
["EPP-30HEALTHUMANA SAS",null,null,"EPP-30","EPP-30 - TAPABOCAS DESECHABLES ","ELEMENTOS DE PROTECCION PERSONAL","TAPABOCAS DESECHABLE, CON RESORTE A LA OREJA , DOBLE FILTRO, ADAPTADOR NASAL AJUSTABLE, TELA NO TEJIDA","Und","Und","Si","Atención emergencia COVID-19","HEALTHUMANA SAS","AECovid19-527",28500,"COP",1,1000000,{"$f":"Q214-SUMIFS(ResumenCotizacion!L:L,ResumenCotizacion!S:S,L214,ResumenCotizacion!C:C,D214)","v":1000000},0]
["EPP-31HEALTHUMANA SAS",null,null,"EPP-31","EPP-31 - TAPABOCAS DOBLE TELA LAVABLE ","ELEMENTOS DE PROTECCION PERSONAL","DOBLE TELA. REUTILIZABLE. SOPORTE NASAL. AJUSTABLE","Und","Und","Si","Atención emergencia COVID-19","HEALTHUMANA SAS","AECovid19-527",100000,"COP",1,20000,{"$f":"Q215-SUMIFS(ResumenCotizacion!L:L,ResumenCotizacion!S:S,L215,ResumenCotizacion!C:C,D215)","v":20000},0]
["EPP-33HEALTHUMANA SAS",null,null,"EPP-33","EPP-33 - TRAJE BIOLÓGICO ","ELEMENTOS DE PROTECCION PERSONAL","TRAJE DE PROTECCCIÓN CONTRA AGENTES BIOLÓGICOS Y QUÍMICOS, TAMAÑO (S, M, L, XL, XXL, XXXL)\n· CAPUCHA, CINTURA Y TOBILLOS ELÁSTICOS, PARA UNA MAYOR SEGURIDAD Y LIBERTAD DE\nMOVIMIENTOS.\n· MATERIAL MICROPOROSO LAMINADO, LE BRINDA UNA GRAN RESISTENCIA Y DURACIÓN, LIBRE DE FIBRAS.\n· CIERRE CUBIERTO PARA MEJOR PROTECCIÓN.","Und","Und","Si","Atención emergencia COVID-19","HEALTHUMANA SAS","AECovid19-527",30300,"COP",1,10000,{"$f":"Q216-SUMIFS(ResumenCotizacion!L:L,ResumenCotizacion!S:S,L216,ResumenCotizacion!C:C,D216)","v":10000},0]
["EPP-34HEALTHUMANA SAS",null,null,"EPP-34","EPP-34 - TRAJE DESECHABLE ANTIFLUIDO ","ELEMENTOS DE PROTECCION PERSONAL","TALLAS: S,M,L,XL\nCOSTURAS SERIADAS, CON CAPUCHA.\nCIERRE DE CREMALLERA FRONTAL\nMUÑECAS Y TOBILLOS ELASTICOS\nFABRICADO EN TELA ANTIFLUIDO","Und","Und","Si","Atención emergencia COVID-19","HEALTHUMANA SAS","AECovid19-527",23500,"COP",1,10000,{"$f":"Q217-SUMIFS(ResumenCotizacion!L:L,ResumenCotizacion!S:S,L217,ResumenCotizacion!C:C,D217)","v":10000},0]
[{"$f":"D218&L218","v":"EPP-44EL TOQUE PROFESSIONAL SAS"},null,null,"EPP-44","EPP-44 - OVEROL MULTIPROPOSITO PROTECCION ANTIFLUIDO","ELEMENTOS DE PROTECCION PERSONAL","OVEROL en tela antifluido lavable alta impermeabilidad, liviano, antialérgico evita el contacto con superficies y líquidos, cuello alto para brindar más protección al usuario, con capucha ajustable y resorte en mangas, cintura y tobillos, cremallera para cierre de prenda, incluido polainas con elástico para mayor protección.\n\nMateriales: Antifluido \nTallas: M, L, XL, XXL\nColor: De acuerdo con la necesidad de la entidad \nInspecciones Físicas: Doblado, costuras, cremallera y presencia de amarres.\nInspecciones Visuales: Libre de presencia de partículas removibles, coloraciones y partículas incrustadas.\nAtributos: Antiestático, Resistencia a las bacterias y Resistencia a los hongos.\nMétodo de Esterilización: No aplica producto no estéril.\nAtoxicidad: Atóxico.\nFecha de Vencimiento: ** Tres Años Después de la Fecha de Fabricación.\nEmpaque Primario: Bolsa de Polietileno de Alta Densidad.\nTela: Antifluido 100% poliéster\nCostura interna: filete y punta de seguridad \nPespuntes: refuerzo cremallera:1/8”, contorno de capota en escote y pegue elástico.\nCondiciones de Conservación: Humedad Relativa: Entre 40%RH y 70%RH Temperatura: Entre 4ºC y 32 ºc Área de almacenamiento fresca, seca y protegido de la luz y humedad. Área de almacenamiento que no entre en contacto con aceites, colorantes, detergentes, sustancias de olor fuerte y/o productos químicos que pueden alterar las condiciones del producto.\nAdvertencias y Precauciones: No utilizar si el empaque no está en perfecto estado. Evitar humedad, salpicaduras de agua y contacto con elementos cortopunzantes durante su almacenamiento.\nMétodo de Reutilización: Producto Reutilizable.","Und","Und","Si","Atención emergencia COVID-19","EL TOQUE PROFESSIONAL SAS","AECovid19-649",26250,"COP",1,4520,{"$f":"Q218-SUMIFS(ResumenCotizacion!L:L,ResumenCotizacion!S:S,L218,ResumenCotizacion!C:C,D218)","v":4520},0]
[{"$f":"D219&L219","v":"EPP-44VADEL S.A.S."},null,null,"EPP-44","EPP-44 - OVEROL MULTIPROPOSITO PROTECCION ANTIFLUIDO","ELEMENTOS DE PROTECCION PERSONAL","OVEROL en tela antifluido lavable alta impermeabilidad, liviano, antialérgico evita el contacto con superficies y líquidos, cuello alto para brindar más protección al usuario, con capucha ajustable y resorte en mangas, cintura y tobillos, cremallera para cierre de prenda, incluido polainas con elástico para mayor protección.\n\nMateriales: Antifluido \nTallas: M, L, XL, XXL\nColor: De acuerdo con la necesidad de la entidad \nInspecciones Físicas: Doblado, costuras, cremallera y presencia de amarres.\nInspecciones Visuales: Libre de presencia de partículas removibles, coloraciones y partículas incrustadas.\nAtributos: Antiestático, Resistencia a las bacterias y Resistencia a los hongos.\nMétodo de Esterilización: No aplica producto no estéril.\nAtoxicidad: Atóxico.\nFecha de Vencimiento: ** Tres Años Después de la Fecha de Fabricación.\nEmpaque Primario: Bolsa de Polietileno de Alta Densidad.\nTela: Antifluido 100% poliéster\nCostura interna: filete y punta de seguridad \nPespuntes: refuerzo cremallera:1/8”, contorno de capota en escote y pegue elástico.\nCondiciones de Conservación: Humedad Relativa: Entre 40%RH y 70%RH Temperatura: Entre 4ºC y 32 ºc Área de almacenamiento fresca, seca y protegido de la luz y humedad. Área de almacenamiento que no entre en contacto con aceites, colorantes, detergentes, sustancias de olor fuerte y/o productos químicos que pueden alterar las condiciones del producto.\nAdvertencias y Precauciones: No utilizar si el empaque no está en perfecto estado. Evitar humedad, salpicaduras de agua y contacto con elementos cortopunzantes durante su almacenamiento.\nMétodo de Reutilización: Producto Reutilizable.","Und","Und","Si","Atención emergencia COVID-19","VADEL S.A.S.","AECovid19-542",25800,"COP",1,3200,{"$f":"Q219-SUMIFS(ResumenCotizacion!L:L,ResumenCotizacion!S:S,L219,ResumenCotizacion!C:C,D219)","v":3200},0]
[{"$f":"D220&L220","v":"EPP-3MAINCO HEALTH CARE SAS"},null,null,"EPP-3","EPP-3 - BATA CIRUJANO DESECHABLE ","ELEMENTOS DE PROTECCION PERSONAL","BATA CIRUJANO DESECHABLE TALLA S, M, L, XL PRESENTACION ESTERIL","Und","Und","Si","Atención emergencia COVID-19","MAINCO HEALTH CARE SAS","AECovid19-650",7320,"COP",2,10000,{"$f":"Q220-SUMIFS(ResumenCotizacion!L:L,ResumenCotizacion!S:S,L220,ResumenCotizacion!C:C,D220)","v":10000},0]
["EPP-43MAINCO HEALTH CARE SAS",null,null,"EPP-43","EPP-43 - GORRO QUIRURGICO CON RECUENTO CONTROLADO MICROBIANO","ELEMENTOS DE PROTECCION PERSONAL","Gorro con elástico para adaptarse al entorno craneal, que se coloca en la cabeza y cubre parcialmente la frente. \nDebe cumplir con la NTC 5623, NTC 5625, NORMA CFR Title 21 Subpart E of part 807\nDebe cumplir CON RECUENTO CONTROLADO MICROBIANO, en Tela polipropileno 100%","Und","Und","Si","Atención emergencia COVID-19","MAINCO HEALTH CARE SAS","AECovid19-650",6500,"COP",2,1000,{"$f":"Q221-SUMIFS(ResumenCotizacion!L:L,ResumenCotizacion!S:S,L221,ResumenCotizacion!C:C,D221)","v":1000},0]
[{"$f":"D222&L222","v":"EPP-1MAINCO HEALTH CARE SAS"},null,null,"EPP-1","EPP-1 - BATA  DESECHABLE PARA PACIENTE ADULTO  - TALLA S, M , L, XL COMPUESTO POR BATA SIN MANGA CON AMARRADERA  POSTERIOR ","ELEMENTOS DE PROTECCION PERSONAL","COMPUESTO DE BATA PACIENTE MANGA CIZA, AMARRADERAS EN LA PARTE POSTERIOR 2 A NIVEL DE CUELLO Y 2 A NIVEL DE LA CINTURA EN TELA SMS 35 GRAMOS.","Und","Und","Si","Atención emergencia COVID-19","MAINCO HEALTH CARE SAS","AECovid19-650",1766,"COP",1,60000,{"$f":"Q222-SUMIFS(ResumenCotizacion!L:L,ResumenCotizacion!S:S,L222,ResumenCotizacion!C:C,D222)","v":60000},0]
["EPP-2MAINCO HEALTH CARE SAS",null,null,"EPP-2","EPP-2 - BATA AISLAMIENTO NO ESTERIL MANGA LARGA ","ELEMENTOS DE PROTECCION PERSONAL","Debe cumplir la siguiente reglamentación: NTC 5623 - Campos Quirurgicos, Batas y trajes para aire limpio de utilizacion quirurgica como Dispositivos Medicos para pacientes, personal clinico y equipo. Parte 1 Requisitos Generales para los fabricantes procesadores y productos. NTC 5624 - Campos Quirurgicos, Batas y trajes para aire limpio de utilizacion quirurgica como Dispositivos Medicos para pacientes, personal clinico y equipo. Parte 2 Metodos de Ensayo. NTC 5625 - Campos Quirurgicos, Batas y trajes para aire limpio de utilizacion quirurgica como Dispositivos Medicos para pacientes, personal clinico y equipo. Parte 3 Requisitos y niveles de funcionamiento.","Und","Und","Si","Atención emergencia COVID-19","MAINCO HEALTH CARE SAS","AECovid19-650",3750,"COP",1,30000,{"$f":"Q223-SUMIFS(ResumenCotizacion!L:L,ResumenCotizacion!S:S,L223,ResumenCotizacion!C:C,D223)","v":30000},0]
[{"$f":"D224&L224","v":"EPP-3MAINCO HEALTH CARE SAS"},null,null,"EPP-3","EPP-3 - BATA CIRUJANO DESECHABLE ","ELEMENTOS DE PROTECCION PERSONAL","BATA CIRUJANO DESECHABLE TALLA S, M, L, XL PRESENTACION ESTERIL","Und","Und","Si","Atención emergencia COVID-19","MAINCO HEALTH CARE SAS","AECovid19-650",7320,"COP",2,10000,{"$f":"Q224-SUMIFS(ResumenCotizacion!L:L,ResumenCotizacion!S:S,L224,ResumenCotizacion!C:C,D224)","v":10000},0]
["EPP-5MAINCO HEALTH CARE SAS",null,null,"EPP-5","EPP-5 - BATA DESECHABLE PARA PACIENTE PEDIATRICO - ROPA DESECHABLE  COMPUESTO POR BATA SIN MANGA CON AMARRADERA  POSTERIOR. ","ELEMENTOS DE PROTECCION PERSONAL","COMPUESTO DE BATA PACIENTE MANGA CIZA DE 80 CMS, AMARRADERAS EN LA PARTE POSTERIOR 2 A NIVEL DE CUELLO Y 2 A NIVEL DE LA CINTURA EN TELA SMS 35 GRAMOS.","Und","Und","Si","Atención emergencia COVID-19","MAINCO HEALTH CARE SAS","AECovid19-650",1555,"COP",1,3000,{"$f":"Q225-SUMIFS(ResumenCotizacion!L:L,ResumenCotizacion!S:S,L225,ResumenCotizacion!C:C,D225)","v":3000},0]
["EPP-6MAINCO HEALTH CARE SAS",null,null,"EPP-6","EPP-6 - BATA PUÑO RIB ","ELEMENTOS DE PROTECCION PERSONAL","Tela no tejida\nDesechable\nAislante de liquidos\nAlta transpirabilidad\nManga Larga\nPuño en algodón con resorte\nCon tiras de amarre en la cintura y cuello","Und","Und","Si","Atención emergencia COVID-19","MAINCO HEALTH CARE SAS","AECovid19-650",3978,"COP",1,20000,{"$f":"Q226-SUMIFS(ResumenCotizacion!L:L,ResumenCotizacion!S:S,L226,ResumenCotizacion!C:C,D226)","v":20000},0]
["EPP-11MAINCO HEALTH CARE SAS",null,null,"EPP-11","EPP-11 - GORRO DESECHABLE REDONDO ELÁSTICO AZUL ","ELEMENTOS DE PROTECCION PERSONAL","GORRO REDONDO DESECHABLE TIPO BAÑO BOLAN 15 A 20 GRAMOS TAMAÑO ESTÁNDAR, ENCAUCHADO PARA AJUSTE SUAVE Y FIRME","Und","Und","Si","Atención emergencia COVID-19","MAINCO HEALTH CARE SAS","AECovid19-650",6500,"COP",1,1000,{"$f":"Q227-SUMIFS(ResumenCotizacion!L:L,ResumenCotizacion!S:S,L227,ResumenCotizacion!C:C,D227)","v":1000},0]
["EPP-12MAINCO HEALTH CARE SAS",null,null,"EPP-12","EPP-12 - GORRO QUIRURJICO ","ELEMENTOS DE PROTECCION PERSONAL","Gorro con elástico para adaptarse al entorno craneal que se coloca en la cabeza sin que cubra totalmente la frente, ni los ojos. En Tela polipropileno 100% en spundbounded y el Resorte en Nylon blanco. 15 a 20 gramos.","Und","Und","Si","Atención emergencia COVID-19","MAINCO HEALTH CARE SAS","AECovid19-650",6500,"COP",1,1000,{"$f":"Q228-SUMIFS(ResumenCotizacion!L:L,ResumenCotizacion!S:S,L228,ResumenCotizacion!C:C,D228)","v":1000},0]
["EPP-25MAINCO HEALTH CARE SAS",null,null,"EPP-25","EPP-25 - SABANA DESECHABLE ","ELEMENTOS DE PROTECCION PERSONAL","SÁBANA AJUSTABLE DESECHABLE, CONFECCIONADA CON TEJIDO NO TEJIDO DE POLIPROPILENO (PP). CON ELÁSTICOS EN LOS EXTREMOS PARA AJUSTAR A LAS CAMILLAS.","Und","Und","Si","Atención emergencia COVID-19","MAINCO HEALTH CARE SAS","AECovid19-650",2340,"COP",1,2000,{"$f":"Q229-SUMIFS(ResumenCotizacion!L:L,ResumenCotizacion!S:S,L229,ResumenCotizacion!C:C,D229)","v":2000},0]
["EPP-30MAINCO HEALTH CARE SAS",null,null,"EPP-30","EPP-30 - TAPABOCAS DESECHABLES ","ELEMENTOS DE PROTECCION PERSONAL","TAPABOCAS DESECHABLE, CON RESORTE A LA OREJA , DOBLE FILTRO, ADAPTADOR NASAL AJUSTABLE, TELA NO TEJIDA","Und","Und","Si","Atención emergencia COVID-19","MAINCO HEALTH CARE SAS","AECovid19-650",20000,"COP",3,4000,{"$f":"Q230-SUMIFS(ResumenCotizacion!L:L,ResumenCotizacion!S:S,L230,ResumenCotizacion!C:C,D230)","v":4000},0]
["EPP-43MAINCO HEALTH CARE SAS",null,null,"EPP-43","EPP-43 - GORRO QUIRURGICO CON RECUENTO CONTROLADO MICROBIANO","ELEMENTOS DE PROTECCION PERSONAL","Gorro con elástico para adaptarse al entorno craneal, que se coloca en la cabeza y cubre parcialmente la frente. \nDebe cumplir con la NTC 5623, NTC 5625, NORMA CFR Title 21 Subpart E of part 807\nDebe cumplir CON RECUENTO CONTROLADO MICROBIANO, en Tela polipropileno 100%","Und","Und","Si","Atención emergencia COVID-19","MAINCO HEALTH CARE SAS","AECovid19-650",6500,"COP",2,1000,{"$f":"Q231-SUMIFS(ResumenCotizacion!L:L,ResumenCotizacion!S:S,L231,ResumenCotizacion!C:C,D231)","v":1000},0]
["EPP-30IMPORTACIONES Y DISTRIBUCIONES BNW SAS",null,null,"EPP-30","EPP-30 - TAPABOCAS DESECHABLES ","ELEMENTOS DE PROTECCION PERSONAL","TAPABOCAS DESECHABLE, CON RESORTE A LA OREJA , DOBLE FILTRO, ADAPTADOR NASAL AJUSTABLE, TELA NO TEJIDA","Und","Und","Si","Atención emergencia COVID-19","IMPORTACIONES Y DISTRIBUCIONES BNW SAS","AECovid19-646",35000,"COP",2,15000,{"$f":"Q232-SUMIFS(ResumenCotizacion!L:L,ResumenCotizacion!S:S,L232,ResumenCotizacion!C:C,D232)","v":15000},0]
["EPP-3COLCREATIVA SAS",null,null,"EPP-3","EPP-3 - BATA CIRUJANO DESECHABLE ","ELEMENTOS DE PROTECCION PERSONAL","BATA CIRUJANO DESECHABLE TALLA S, M, L, XL PRESENTACION ESTERIL","Und","Und","Si","Atención emergencia COVID-19","COLCREATIVA SAS","AECovid19-525",10500,"COP",1,10,{"$f":"Q233-SUMIFS(ResumenCotizacion!L:L,ResumenCotizacion!S:S,L233,ResumenCotizacion!C:C,D233)","v":10},0]
["EPP-13COLCREATIVA SAS",null,null,"EPP-13","EPP-13 - GUANTES DE LATEX  ","ELEMENTOS DE PROTECCION PERSONAL","GUANTES DE LÁTEX TALLA S,M, L  DESECHABLES, HIPOALERGÉNICOS, NO ESTÉRILES, ALTA RESISTENCIA A LA ELONGACIÓN, CON ENTALCAMIENTO LEVE INTERNO, AMBIDIESTROS, LÁTEX BLANCO, PUÑO CON REBORDE. ","Und","Und","Si","Atención emergencia COVID-19","COLCREATIVA SAS","AECovid19-525",50000,"COP",1,2,{"$f":"Q234-SUMIFS(ResumenCotizacion!L:L,ResumenCotizacion!S:S,L234,ResumenCotizacion!C:C,D234)","v":2},0]
["EPP-14COLCREATIVA SAS",null,null,"EPP-14","EPP-14 - GUANTES DE NITRILO ","ELEMENTOS DE PROTECCION PERSONAL","GUANTES DE NITRILO (CALIBRE DE 8 MILESIMAS MÍNIMO) TALLAS,M Y L DESECHABLES, HIPOALERGÉNICOS, NO ESTÉRILES, ALTA RESISTENCIA A LA ELONGACIÓN, CON ENTALCAMIENTO LEVE INTERNO, AMBIDIESTROS, PUÑO CON REBORDE.","Und","Und","Si","Atención emergencia COVID-19","COLCREATIVA SAS","AECovid19-525",64000,"COP",1,2,{"$f":"Q235-SUMIFS(ResumenCotizacion!L:L,ResumenCotizacion!S:S,L235,ResumenCotizacion!C:C,D235)","v":2},0]
["EPP-30COLCREATIVA SAS",null,null,"EPP-30","EPP-30 - TAPABOCAS DESECHABLES ","ELEMENTOS DE PROTECCION PERSONAL","TAPABOCAS DESECHABLE, CON RESORTE A LA OREJA , DOBLE FILTRO, ADAPTADOR NASAL AJUSTABLE, TELA NO TEJIDA","Und","Und","Si","Atención emergencia COVID-19","COLCREATIVA SAS","AECovid19-525",96000,"COP",1,40000,{"$f":"Q236-SUMIFS(ResumenCotizacion!L:L,ResumenCotizacion!S:S,L236,ResumenCotizacion!C:C,D236)","v":40000},0]
["EPP-34COLCREATIVA SAS",null,null,"EPP-34","EPP-34 - TRAJE DESECHABLE ANTIFLUIDO ","ELEMENTOS DE PROTECCION PERSONAL","TALLAS: S,M,L,XL\nCOSTURAS SERIADAS, CON CAPUCHA.\nCIERRE DE CREMALLERA FRONTAL\nMUÑECAS Y TOBILLOS ELASTICOS\nFABRICADO EN TELA ANTIFLUIDO","Und","Und","Si","Atención emergencia COVID-19","COLCREATIVA SAS","AECovid19-525",52000,"COP",1,10,{"$f":"Q237-SUMIFS(ResumenCotizacion!L:L,ResumenCotizacion!S:S,L237,ResumenCotizacion!C:C,D237)","v":10},0]
[{"$f":"D238&L238","v":"EPP-30JG CIRUGIA PLASTICA INTEGRAL SAS"},null,null,"EPP-30","EPP-30 - TAPABOCAS DESECHABLES ","ELEMENTOS DE PROTECCION PERSONAL","TAPABOCAS DESECHABLE, CON RESORTE A LA OREJA , DOBLE FILTRO, ADAPTADOR NASAL AJUSTABLE, TELA NO TEJIDA","Und","Und","Si","Atención emergencia COVID-19","JG CIRUGIA PLASTICA INTEGRAL SAS","AECovid19-642",82000,"COP",2,3380,{"$f":"Q238-SUMIFS(ResumenCotizacion!L:L,ResumenCotizacion!S:S,L238,ResumenCotizacion!C:C,D238)","v":3380},0]
["EPP-45PROYECTAR ICO",null,null,"EPP-45","EPP-45 - TAPABOCAS DESECHABLES,  TRES CAPAS TERMOSELLADO PARA NIÑOS","ELEMENTOS DE PROTECCION PERSONAL","TAPABOCAS DESECHABLE PARA NIÑOS, CON RESORTE A LA OREJA , TRES CAPAS, ADAPTADOR NASAL AJUSTABLE, TELA NO TEJIDA,TERMOSELLADOS","Und","Und","Si","Atención emergencia COVID-19","PROYECTAR ICO","AECovid19-654",14000,"COP",1,2000000,{"$f":"Q239-SUMIFS(ResumenCotizacion!L:L,ResumenCotizacion!S:S,L239,ResumenCotizacion!C:C,D239)","v":2000000},0]
[{"$f":"D240&L240","v":"EPP-45Distribuciones y Productos LIfe - DISPROLIFE SAS"},null,null,"EPP-45","EPP-45 - TAPABOCAS DESECHABLES,  TRES CAPAS TERMOSELLADO PARA NIÑOS","ELEMENTOS DE PROTECCION PERSONAL","TAPABOCAS DESECHABLE PARA NIÑOS, CON RESORTE A LA OREJA , TRES CAPAS, ADAPTADOR NASAL AJUSTABLE, TELA NO TEJIDA,TERMOSELLADOS","Und","Und","Si","Atención emergencia COVID-19","Distribuciones y Productos LIfe - DISPROLIFE SAS","AECovid19-652",19000,"COP",1,250000,{"$f":"Q240-SUMIFS(ResumenCotizacion!L:L,ResumenCotizacion!S:S,L240,ResumenCotizacion!C:C,D240)","v":250000},0]
["EPP-9LYR FARMACEUTICA LTDA ",null,null,"EPP-9","EPP-9 - CARETAS VISORES (PROTECTOR FACIAL) ","ELEMENTOS DE PROTECCION PERSONAL","CARETA VISOR DE USO MEDICO EN PASTA CON SEGURO ELASTICO","Und","Und","Si","Atención emergencia COVID-19","LYR FARMACEUTICA LTDA ","AECovid19-653",12500,"COP",1,1000,{"$f":"Q241-SUMIFS(ResumenCotizacion!L:L,ResumenCotizacion!S:S,L241,ResumenCotizacion!C:C,D241)","v":1000},0]
["EPP-19LYR FARMACEUTICA LTDA ",null,null,"EPP-19","EPP-19 - MASCARILLA FACIAL N95 (TAPA BOCA)- RESORTADA ","ELEMENTOS DE PROTECCION PERSONAL","DESECHABLE, CON RESORTE A LA OREJA , DOBLE FILTRO, ADAPTADOR NASAL AJUSTABLE, EN ALGODÓN","Und","Und","Si","Atención emergencia COVID-19","LYR FARMACEUTICA LTDA ","AECovid19-653",125000,"COP",1,12000,{"$f":"Q242-SUMIFS(ResumenCotizacion!L:L,ResumenCotizacion!S:S,L242,ResumenCotizacion!C:C,D242)","v":12000},0]
["EPP-30LYR FARMACEUTICA LTDA ",null,null,"EPP-30","EPP-30 - TAPABOCAS DESECHABLES ","ELEMENTOS DE PROTECCION PERSONAL","TAPABOCAS DESECHABLE, CON RESORTE A LA OREJA , DOBLE FILTRO, ADAPTADOR NASAL AJUSTABLE, TELA NO TEJIDA","Und","Und","Si","Atención emergencia COVID-19","LYR FARMACEUTICA LTDA ","AECovid19-653",20000,"COP",1,890000,{"$f":"Q243-SUMIFS(ResumenCotizacion!L:L,ResumenCotizacion!S:S,L243,ResumenCotizacion!C:C,D243)","v":890000},0]
[{"$f":"D244&L244","v":"EPP-9PROVEIMPRESOS SAS"},null,null,"EPP-9","EPP-9 - CARETAS VISORES (PROTECTOR FACIAL) ","ELEMENTOS DE PROTECCION PERSONAL","CARETA VISOR DE USO MEDICO EN PASTA CON SEGURO ELASTICO","Und","Und","Si","Atención emergencia COVID-19","PROVEIMPRESOS SAS","AECovid19-601",5650,"COP",1,1000,{"$f":"Q244-SUMIFS(ResumenCotizacion!L:L,ResumenCotizacion!S:S,L244,ResumenCotizacion!C:C,D244)","v":1000},0]
["EPP-14PROVEIMPRESOS SAS",null,null,"EPP-14","EPP-14 - GUANTES DE NITRILO ","ELEMENTOS DE PROTECCION PERSONAL","GUANTES DE NITRILO (CALIBRE DE 8 MILESIMAS MÍNIMO) TALLAS,M Y L DESECHABLES, HIPOALERGÉNICOS, NO ESTÉRILES, ALTA RESISTENCIA A LA ELONGACIÓN, CON ENTALCAMIENTO LEVE INTERNO, AMBIDIESTROS, PUÑO CON REBORDE.","Und","Und","Si","Atención emergencia COVID-19","PROVEIMPRESOS SAS","AECovid19-601",70000,"COP",1,500,{"$f":"Q245-SUMIFS(ResumenCotizacion!L:L,ResumenCotizacion!S:S,L245,ResumenCotizacion!C:C,D245)","v":500},0]
["EPP-42PROVEIMPRESOS SAS",null,null,"EPP-42","EPP-42 - ZAPATOS PLASTICOS ANTIDESLIZANTES","ELEMENTOS DE PROTECCION PERSONAL","* Capellada: EVA (ETIL Etileno Vinil Acetato, polímero termoplástico)\n* Suela: Plástico Termoplastico TPR, o caucho antideslizante y anti hongo.\n* El zapato debe ser unisex con diseño neutro tanto para hombres como para mujeres\n* Debe ser cerrado o abierto con correa que asegure el zapato hasta el talon, del mismo material del zapato\n* Suela antideslizante\n* Adecuado para cocina, baño, hospital y otros que tienen un ambiente de trabajo con agua y de uso diario \n* Debe estar disponible en colores: blanco, negro y azul petróleo \n* Debe estar disponible en tallas de la 34 a la 43. El proveedor debe adjuntar un documento que contenga la guía de tallas para la correcta selección por parte del usuario comprador. \n* Debe estar el zapato para ambos pies, derecho e izquierdo","Und","Und","Si","Atención emergencia COVID-19","PROVEIMPRESOS SAS","AECovid19-601",48599,"COP",1,500,{"$f":"Q246-SUMIFS(ResumenCotizacion!L:L,ResumenCotizacion!S:S,L246,ResumenCotizacion!C:C,D246)","v":500},0.19]
[{"$f":"D247&L247","v":"EPP-29MANUFACTURAS ELIOT SAS"},null,null,"EPP-29","EPP-29 - TAPABOCA TELA POLYESTER ANTI FLUIDO","ELEMENTOS DE PROTECCION PERSONAL","TAPABOCA DE TELA Y POLYESTER FABRICANDO CON TELA ANTIFLUIDO, CON RESORTE A LA OREJA, AJUSTABLE.","Und","Und","Si","Atención emergencia COVID-19","MANUFACTURAS ELIOT SAS","AECovid19-612",2617,"COP",1,500,{"$f":"Q247-SUMIFS(ResumenCotizacion!L:L,ResumenCotizacion!S:S,L247,ResumenCotizacion!C:C,D247)","v":500},0]
["EPP-34MANUFACTURAS ELIOT SAS",null,null,"EPP-34","EPP-34 - TRAJE DESECHABLE ANTIFLUIDO ","ELEMENTOS DE PROTECCION PERSONAL","TALLAS: S,M,L,XL\nCOSTURAS SERIADAS, CON CAPUCHA.\nCIERRE DE CREMALLERA FRONTAL\nMUÑECAS Y TOBILLOS ELASTICOS\nFABRICADO EN TELA ANTIFLUIDO","Und","Und","Si","Atención emergencia COVID-19","MANUFACTURAS ELIOT SAS","AECovid19-612",44000,"COP",1,500,{"$f":"Q248-SUMIFS(ResumenCotizacion!L:L,ResumenCotizacion!S:S,L248,ResumenCotizacion!C:C,D248)","v":500},0]
["EPP-36MANUFACTURAS ELIOT SAS",null,null,"EPP-36","EPP-36 - TRAJES DE BIO PORTECCIÓN- BLUSA ","ELEMENTOS DE PROTECCION PERSONAL","BLUSA EN TELA ANTI-FLUIDO.\nREPELENTE A LIQUIDO Y ANTI-CLORO.\nTALLAS S,M,L,XL","Und","Und","Si","Atención emergencia COVID-19","MANUFACTURAS ELIOT SAS","AECovid19-612",16000,"COP",1,500,{"$f":"Q249-SUMIFS(ResumenCotizacion!L:L,ResumenCotizacion!S:S,L249,ResumenCotizacion!C:C,D249)","v":500},0]
["EPP-37MANUFACTURAS ELIOT SAS",null,null,"EPP-37","EPP-37 - TRAJES DE BIO PORTECCIÓN- PANTALON ","ELEMENTOS DE PROTECCION PERSONAL","PANTALÓN/PANTALONES, TEJIDOS, EXFOLIANTES, REUTILIZABLES O DE UN SOLO USO, DE MANGA CORTA (TÚNICA/TOPS), USADOS DEBAJO DE LAS FUNDAS O BATAS.","Und","Und","Si","Atención emergencia COVID-19","MANUFACTURAS ELIOT SAS","AECovid19-612",19000,"COP",1,500,{"$f":"Q250-SUMIFS(ResumenCotizacion!L:L,ResumenCotizacion!S:S,L250,ResumenCotizacion!C:C,D250)","v":500},0]
[{"$f":"D251&L251","v":"EPP-29XP Colombia S.A.S."},null,null,"EPP-29","EPP-29 - TAPABOCA TELA POLYESTER ANTI FLUIDO","ELEMENTOS DE PROTECCION PERSONAL","TAPABOCA DE TELA Y POLYESTER FABRICANDO CON TELA ANTIFLUIDO, CON RESORTE A LA OREJA, AJUSTABLE.","Und","Und","Si","Atención emergencia COVID-19","XP Colombia S.A.S.","AECovid19-536",1020,"COP",1,40000,{"$f":"Q251-SUMIFS(ResumenCotizacion!L:L,ResumenCotizacion!S:S,L251,ResumenCotizacion!C:C,D251)","v":40000},0]
["EPP-30XP Colombia S.A.S.",null,null,"EPP-30","EPP-30 - TAPABOCAS DESECHABLES ","ELEMENTOS DE PROTECCION PERSONAL","TAPABOCAS DESECHABLE, CON RESORTE A LA OREJA , DOBLE FILTRO, ADAPTADOR NASAL AJUSTABLE, TELA NO TEJIDA","Und","Und","Si","Atención emergencia COVID-19","XP Colombia S.A.S.","AECovid19-536",30000,"COP",1,30000,{"$f":"Q252-SUMIFS(ResumenCotizacion!L:L,ResumenCotizacion!S:S,L252,ResumenCotizacion!C:C,D252)","v":30000},0]
[{"$f":"D253&L253","v":"EPP-30MANUFACTURAS ELIOT SAS"},null,null,"EPP-30","EPP-30 - TAPABOCAS DESECHABLES ","ELEMENTOS DE PROTECCION PERSONAL","TAPABOCAS DESECHABLE, CON RESORTE A LA OREJA , DOBLE FILTRO, ADAPTADOR NASAL AJUSTABLE, TELA NO TEJIDA","Und","Und","Si","Atención emergencia COVID-19","MANUFACTURAS ELIOT SAS","AECovid19-612",24700,"COP",1,37000,{"$f":"Q253-SUMIFS(ResumenCotizacion!L:L,ResumenCotizacion!S:S,L253,ResumenCotizacion!C:C,D253)","v":37000},0]
[{"$f":"D254&L254","v":"EPP-19Marcela Alexandra Mesa"},null,null,"EPP-19","EPP-19 - MASCARILLA FACIAL N95 (TAPA BOCA)- RESORTADA ","ELEMENTOS DE PROTECCION PERSONAL","DESECHABLE, CON RESORTE A LA OREJA , DOBLE FILTRO, ADAPTADOR NASAL AJUSTABLE, EN ALGODÓN","Und","Und","Si","Atención emergencia COVID-19","Marcela Alexandra Mesa","AECovid19-585",168802,"COP",1,5000,{"$f":"Q254-SUMIFS(ResumenCotizacion!L:L,ResumenCotizacion!S:S,L254,ResumenCotizacion!C:C,D254)","v":5000},0]
["EPP-30Marcela Alexandra Mesa",null,null,"EPP-30","EPP-30 - TAPABOCAS DESECHABLES ","ELEMENTOS DE PROTECCION PERSONAL","TAPABOCAS DESECHABLE, CON RESORTE A LA OREJA , DOBLE FILTRO, ADAPTADOR NASAL AJUSTABLE, TELA NO TEJIDA","Und","Und","Si","Atención emergencia COVID-19","Marcela Alexandra Mesa","AECovid19-585",15950,"COP",1,5000,{"$f":"Q255-SUMIFS(ResumenCotizacion!L:L,ResumenCotizacion!S:S,L255,ResumenCotizacion!C:C,D255)","v":5000},0]
["EPP-12NOBALSE SAS",null,null,"EPP-12","EPP-12 - GORRO QUIRURJICO ","ELEMENTOS DE PROTECCION PERSONAL","Gorro con elástico para adaptarse al entorno craneal que se coloca en la cabeza sin que cubra totalmente la frente, ni los ojos. En Tela polipropileno 100% en spundbounded y el Resorte en Nylon blanco. 15 a 20 gramos.","Und","Und","Si","Atención emergencia COVID-19","NOBALSE SAS","AECovid19-648",6900,"COP",1,5000,{"$f":"Q256-SUMIFS(ResumenCotizacion!L:L,ResumenCotizacion!S:S,L256,ResumenCotizacion!C:C,D256)","v":5000},0]
["EPP-20NOBALSE SAS",null,null,"EPP-20","EPP-20 - MASCARILLA TIPO RESPIRADOR N95 CON VÁLVULA ","ELEMENTOS DE PROTECCION PERSONAL","MASCARILLA TIPO RESPIRADOR CON VÁLVULA PARA PARTÍCULAS, CON TECNOLOGÍA MEA, MASCARILLAS QUIRÚRGICAS/RIESGO BIOLÓGICO N95.","Und","Und","Si","Atención emergencia COVID-19","NOBALSE SAS","AECovid19-648",4549,"COP",1,1000,{"$f":"Q257-SUMIFS(ResumenCotizacion!L:L,ResumenCotizacion!S:S,L257,ResumenCotizacion!C:C,D257)","v":1000},0]
["EPP-25NOBALSE SAS",null,null,"EPP-25","EPP-25 - SABANA DESECHABLE ","ELEMENTOS DE PROTECCION PERSONAL","SÁBANA AJUSTABLE DESECHABLE, CONFECCIONADA CON TEJIDO NO TEJIDO DE POLIPROPILENO (PP). CON ELÁSTICOS EN LOS EXTREMOS PARA AJUSTAR A LAS CAMILLAS.","Und","Und","Si","Atención emergencia COVID-19","NOBALSE SAS","AECovid19-648",2439,"COP",1,5000,{"$f":"Q258-SUMIFS(ResumenCotizacion!L:L,ResumenCotizacion!S:S,L258,ResumenCotizacion!C:C,D258)","v":5000},0]
["EPP-35NOBALSE SAS",null,null,"EPP-35","EPP-35 - TRAJE KLEENGUAR A35 ","ELEMENTOS DE PROTECCION PERSONAL","TRAJE DE PROTECCIÓN PERSONAL.\nELABORADO CON TECNOLOGÍA SFL.\nCAPA INTERNA HECHA CON FIBRAS DE POLIPROPILENO\nTALLAS: S,M,L,XL  ","Und","Und","Si","Atención emergencia COVID-19","NOBALSE SAS","AECovid19-648",29400,"COP",1,500,{"$f":"Q259-SUMIFS(ResumenCotizacion!L:L,ResumenCotizacion!S:S,L259,ResumenCotizacion!C:C,D259)","v":500},0]
["EPP-39NOBALSE SAS",null,null,"EPP-39","EPP-39 - MASCARA RESPIRADOR FULLFACE CON CARTUCHO","ELEMENTOS DE PROTECCION PERSONAL","Pieza facial suave para la piel del usuario que reduzca la posibilidad de irritación en la piel para ajuste y sellamiento en la cara, con arnés minimo de cuatro (4) puntos de apoyo, se utilza en conjunto con los cartuchos para quimicos, con valvula frontal central de exhalación que ayude a una respiración más cómoda, fresca y seca. Debe estar disponible en tres tamaños: (i) pequeña (S), (ii) mediana (M), y (iii) grande (L). Debe tener acople rapido con los cartuchos y filtros, libre de piezas y partes metálicas, visor panoramico con amplio campo de visibilidad. \n\nPieza facial cara completa con visor, de doble cartucho, con la posibilidad de ser utilizada con filtros y cartuchos reemplazables para protección contra gases, vapores y material particulado como polvo, neblina y humos. La máscara respirador fullface debe tener los dos cartuchos iniciales.\n\nNOTA: si presenta este producto, debe ofrecer también los cartuchos en el siguiente item. ","Und","Und","Si","Atención emergencia COVID-19","NOBALSE SAS","AECovid19-648",422910,"COP",1,200,{"$f":"Q260-SUMIFS(ResumenCotizacion!L:L,ResumenCotizacion!S:S,L260,ResumenCotizacion!C:C,D260)","v":200},0]
["EPP-40NOBALSE SAS",null,null,"EPP-40","EPP-40 - CARTUCHO MULTIGAS","ELEMENTOS DE PROTECCION PERSONAL","El proveedor que ofrezca la MACARA RESPIRADOR FULLFACE CON CARTUCHO debe ofrecer también de manera independiente los cartuchos para esta, dichos cartuchos deben brindar una efectiva protección respiratoria contra ciertos vapores orgánicos, cloro, cloruro de hidrógeno, dióxido de cloro, dióxido de azufre, sulfuro de hidrógeno (sólo para escapar), amoníaco/metilamina, formaldehído.","Und","Und","Si","Atención emergencia COVID-19","NOBALSE SAS","AECovid19-648",69156,"COP",1,200,{"$f":"Q261-SUMIFS(ResumenCotizacion!L:L,ResumenCotizacion!S:S,L261,ResumenCotizacion!C:C,D261)","v":200},0]
["EPP-32SECURITY BOOTS INT SAS",null,null,"EPP-32","EPP-32 - TAPABOCAS QUIRUGICO N95","ELEMENTOS DE PROTECCION PERSONAL","DEBE CUMPLIR LA SIGUIENTE REGLAMENTACIÓN: NTC 3851 Parte 1 Criterios para la selección y uso de los equipos de protecicion respiratoria. / NTC 3852 Parte 2 Equipos de proteccion respiratoria, proteccion contra particulas.","Und","Und","Si","Atención emergencia COVID-19","SECURITY BOOTS INT SAS","AECovid19-582",579740,"COP",1,3000000,{"$f":"Q262-SUMIFS(ResumenCotizacion!L:L,ResumenCotizacion!S:S,L262,ResumenCotizacion!C:C,D262)","v":3000000},0]
["EPP-45SECURITY BOOTS INT SAS",null,null,"EPP-45","EPP-45 - TAPABOCAS DESECHABLES,  TRES CAPAS TERMOSELLADO PARA NIÑOS","ELEMENTOS DE PROTECCION PERSONAL","TAPABOCAS DESECHABLE PARA NIÑOS, CON RESORTE A LA OREJA , TRES CAPAS, ADAPTADOR NASAL AJUSTABLE, TELA NO TEJIDA,TERMOSELLADOS","Und","Und","Si","Atención emergencia COVID-19","SECURITY BOOTS INT SAS","AECovid19-582",11125,"COP",1,5000000,{"$f":"Q263-SUMIFS(ResumenCotizacion!L:L,ResumenCotizacion!S:S,L263,ResumenCotizacion!C:C,D263)","v":5000000},0]
["EPP-6VADEL S.A.S.",null,null,"EPP-6","EPP-6 - BATA PUÑO RIB ","ELEMENTOS DE PROTECCION PERSONAL","Tela no tejida\nDesechable\nAislante de liquidos\nAlta transpirabilidad\nManga Larga\nPuño en algodón con resorte\nCon tiras de amarre en la cintura y cuello","Und","Und","Si","Atención emergencia COVID-19","VADEL S.A.S.","AECovid19-542",2990,"COP",1,20000,{"$f":"Q264-SUMIFS(ResumenCotizacion!L:L,ResumenCotizacion!S:S,L264,ResumenCotizacion!C:C,D264)","v":20000},0]
["EPP-33VADEL S.A.S.",null,null,"EPP-33","EPP-33 - TRAJE BIOLÓGICO ","ELEMENTOS DE PROTECCION PERSONAL","TRAJE DE PROTECCCIÓN CONTRA AGENTES BIOLÓGICOS Y QUÍMICOS, TAMAÑO (S, M, L, XL, XXL, XXXL)\n· CAPUCHA, CINTURA Y TOBILLOS ELÁSTICOS, PARA UNA MAYOR SEGURIDAD Y LIBERTAD DE\nMOVIMIENTOS.\n· MATERIAL MICROPOROSO LAMINADO, LE BRINDA UNA GRAN RESISTENCIA Y DURACIÓN, LIBRE DE FIBRAS.\n· CIERRE CUBIERTO PARA MEJOR PROTECCIÓN.","Und","Und","Si","Atención emergencia COVID-19","VADEL S.A.S.","AECovid19-542",39990,"COP",1,2000,{"$f":"Q265-SUMIFS(ResumenCotizacion!L:L,ResumenCotizacion!S:S,L265,ResumenCotizacion!C:C,D265)","v":2000},0]
[{"$f":"D266&L266","v":"EPP-5MAKEI SOLUCIONES Y ASESORIAS SAS"},null,null,"EPP-5",{"$f":"+VLOOKUP(D266,[3]Catálogo!$A$2:$C$45,3,0)","v":"EPP-5 - BATA DESECHABLE PARA PACIENTE PEDIATRICO - ROPA DESECHABLE  COMPUESTO POR BATA SIN MANGA CON AMARRADERA  POSTERIOR. "},"ELEMENTOS DE PROTECCION PERSONAL",{"$f":"+VLOOKUP(D266,[3]Catálogo!$A$2:$D$45,4,0)","v":"COMPUESTO DE BATA PACIENTE MANGA CIZA DE 80 CMS, AMARRADERAS EN LA PARTE POSTERIOR 2 A NIVEL DE CUELLO Y 2 A NIVEL DE LA CINTURA EN TELA SMS 35 GRAMOS."},"Und","Und","Si","Atención emergencia COVID-19","MAKEI SOLUCIONES Y ASESORIAS SAS","AECovid19-627",4286,"COP",1,400,{"$f":"Q266-SUMIFS(ResumenCotizacion!L:L,ResumenCotizacion!S:S,L266,ResumenCotizacion!C:C,D266)","v":400},0]
["EPP-12MAKEI SOLUCIONES Y ASESORIAS SAS",null,null,"EPP-12",{"$f":"+VLOOKUP(D267,[3]Catálogo!$A$2:$C$45,3,0)","v":"EPP-12 - GORRO QUIRURJICO "},"ELEMENTOS DE PROTECCION PERSONAL",{"$f":"+VLOOKUP(D267,[3]Catálogo!$A$2:$D$45,4,0)","v":"Gorro con elástico para adaptarse al entorno craneal que se coloca en la cabeza sin que cubra totalmente la frente, ni los ojos. En Tela polipropileno 100% en spundbounded y el Resorte en Nylon blanco. 15 a 20 gramos."},"Und","Und","Si","Atención emergencia COVID-19","MAKEI SOLUCIONES Y ASESORIAS SAS","AECovid19-627",13000,"COP",1,2000,{"$f":"Q267-SUMIFS(ResumenCotizacion!L:L,ResumenCotizacion!S:S,L267,ResumenCotizacion!C:C,D267)","v":2000},0]
["EPP-18MAKEI SOLUCIONES Y ASESORIAS SAS",null,null,"EPP-18",{"$f":"+VLOOKUP(D268,[3]Catálogo!$A$2:$C$45,3,0)","v":"EPP-18 - MASCARILLA FACIAL N95 (TAPA BOCA) "},"ELEMENTOS DE PROTECCION PERSONAL",{"$f":"+VLOOKUP(D268,[3]Catálogo!$A$2:$D$45,4,0)","v":"DESECHABLE, CON TIRAS PARA AMARRAR, DOBLE FILTRO, ADAPTADOR NASAL AJUSTABLE, EN ALGODÓN,"},"Und","Und","Si","Atención emergencia COVID-19","MAKEI SOLUCIONES Y ASESORIAS SAS","AECovid19-627",648750,"COP",1,140,{"$f":"Q268-SUMIFS(ResumenCotizacion!L:L,ResumenCotizacion!S:S,L268,ResumenCotizacion!C:C,D268)","v":140},0]
["EPP-30MAKEI SOLUCIONES Y ASESORIAS SAS",null,null,"EPP-30",{"$f":"+VLOOKUP(D269,[3]Catálogo!$A$2:$C$45,3,0)","v":"EPP-30 - TAPABOCAS DESECHABLES "},"ELEMENTOS DE PROTECCION PERSONAL",{"$f":"+VLOOKUP(D269,[3]Catálogo!$A$2:$D$45,4,0)","v":"TAPABOCAS DESECHABLE, CON RESORTE A LA OREJA , DOBLE FILTRO, ADAPTADOR NASAL AJUSTABLE, TELA NO TEJIDA"},"Und","Und","Si","Atención emergencia COVID-19","MAKEI SOLUCIONES Y ASESORIAS SAS","AECovid19-627",49650,"COP",1,25000,{"$f":"Q269-SUMIFS(ResumenCotizacion!L:L,ResumenCotizacion!S:S,L269,ResumenCotizacion!C:C,D269)","v":25000},0]
["EPP-33MAKEI SOLUCIONES Y ASESORIAS SAS",null,null,"EPP-33",{"$f":"+VLOOKUP(D270,[3]Catálogo!$A$2:$C$45,3,0)","v":"EPP-33 - TRAJE BIOLÓGICO "},"ELEMENTOS DE PROTECCION PERSONAL",{"$f":"+VLOOKUP(D270,[3]Catálogo!$A$2:$D$45,4,0)","v":"TRAJE DE PROTECCCIÓN CONTRA AGENTES BIOLÓGICOS Y QUÍMICOS, TAMAÑO (S, M, L, XL, XXL, XXXL)\n· CAPUCHA, CINTURA Y TOBILLOS ELÁSTICOS, PARA UNA MAYOR SEGURIDAD Y LIBERTAD DE\nMOVIMIENTOS.\n· MATERIAL MICROPOROSO LAMINADO, LE BRINDA UNA GRAN RESISTENCIA Y DURACIÓN, LIBRE DE FIBRAS.\n· CIERRE CUBIERTO PARA MEJOR PROTECCIÓN."},"Und","Und","Si","Atención emergencia COVID-19","MAKEI SOLUCIONES Y ASESORIAS SAS","AECovid19-627",25249,"COP",1,3138,{"$f":"Q270-SUMIFS(ResumenCotizacion!L:L,ResumenCotizacion!S:S,L270,ResumenCotizacion!C:C,D270)","v":3138},0]
["EPP-13Sumimas_S.A.S",null,null,"EPP-13",{"$f":"+VLOOKUP(D271,[3]Catálogo!$A$2:$C$45,3,0)","v":"EPP-13 - GUANTES DE LATEX  "},"ELEMENTOS DE PROTECCION PERSONAL",{"$f":"+VLOOKUP(D271,[3]Catálogo!$A$2:$D$45,4,0)","v":"GUANTES DE LÁTEX TALLA S,M, L  DESECHABLES, HIPOALERGÉNICOS, NO ESTÉRILES, ALTA RESISTENCIA A LA ELONGACIÓN, CON ENTALCAMIENTO LEVE INTERNO, AMBIDIESTROS, LÁTEX BLANCO, PUÑO CON REBORDE. "},"Und","Und","Si","Atención emergencia COVID-19","Sumimas_S.A.S","AECovid19-521",51000,"COP",1,1,{"$f":"Q271-SUMIFS(ResumenCotizacion!L:L,ResumenCotizacion!S:S,L271,ResumenCotizacion!C:C,D271)","v":1},0]
["EPP-14Sumimas_S.A.S",null,null,"EPP-14",{"$f":"+VLOOKUP(D272,[3]Catálogo!$A$2:$C$45,3,0)","v":"EPP-14 - GUANTES DE NITRILO "},"ELEMENTOS DE PROTECCION PERSONAL",{"$f":"+VLOOKUP(D272,[3]Catálogo!$A$2:$D$45,4,0)","v":"GUANTES DE NITRILO (CALIBRE DE 8 MILESIMAS MÍNIMO) TALLAS,M Y L DESECHABLES, HIPOALERGÉNICOS, NO ESTÉRILES, ALTA RESISTENCIA A LA ELONGACIÓN, CON ENTALCAMIENTO LEVE INTERNO, AMBIDIESTROS, PUÑO CON REBORDE."},"Und","Und","Si","Atención emergencia COVID-19","Sumimas_S.A.S","AECovid19-521",62000,"COP",1,1,{"$f":"Q272-SUMIFS(ResumenCotizacion!L:L,ResumenCotizacion!S:S,L272,ResumenCotizacion!C:C,D272)","v":1},0]
["EPP-30Sumimas_S.A.S",null,null,"EPP-30",{"$f":"+VLOOKUP(D273,[3]Catálogo!$A$2:$C$45,3,0)","v":"EPP-30 - TAPABOCAS DESECHABLES "},"ELEMENTOS DE PROTECCION PERSONAL",{"$f":"+VLOOKUP(D273,[3]Catálogo!$A$2:$D$45,4,0)","v":"TAPABOCAS DESECHABLE, CON RESORTE A LA OREJA , DOBLE FILTRO, ADAPTADOR NASAL AJUSTABLE, TELA NO TEJIDA"},"Und","Und","Si","Atención emergencia COVID-19","Sumimas_S.A.S","AECovid19-521",29474,"COP",1,50000,{"$f":"Q273-SUMIFS(ResumenCotizacion!L:L,ResumenCotizacion!S:S,L273,ResumenCotizacion!C:C,D273)","v":50000},0]
[{"$f":"D274&L274","v":"EPP-1FELIPE MONDRAGON DUQUE"},null,null,"EPP-1","EPP-1 - BATA  DESECHABLE PARA PACIENTE ADULTO  - TALLA S, M , L, XL COMPUESTO POR BATA SIN MANGA CON AMARRADERA  POSTERIOR ","ELEMENTOS DE PROTECCION PERSONAL","COMPUESTO DE BATA PACIENTE MANGA CIZA, AMARRADERAS EN LA PARTE POSTERIOR 2 A NIVEL DE CUELLO Y 2 A NIVEL DE LA CINTURA EN TELA SMS 35 GRAMOS.","Und","Und","Si","Atención emergencia COVID-19","FELIPE MONDRAGON DUQUE","AECovid19-522",7400,"COP",1,20000,{"$f":"Q274-SUMIFS(ResumenCotizacion!L:L,ResumenCotizacion!S:S,L274,ResumenCotizacion!C:C,D274)","v":20000},0]
["EPP-2FELIPE MONDRAGON DUQUE",null,null,"EPP-2","EPP-2 - BATA AISLAMIENTO NO ESTERIL MANGA LARGA ","ELEMENTOS DE PROTECCION PERSONAL","Debe cumplir la siguiente reglamentación: NTC 5623 - Campos Quirurgicos, Batas y trajes para aire limpio de utilizacion quirurgica como Dispositivos Medicos para pacientes, personal clinico y equipo. Parte 1 Requisitos Generales para los fabricantes procesadores y productos. NTC 5624 - Campos Quirurgicos, Batas y trajes para aire limpio de utilizacion quirurgica como Dispositivos Medicos para pacientes, personal clinico y equipo. Parte 2 Metodos de Ensayo. NTC 5625 - Campos Quirurgicos, Batas y trajes para aire limpio de utilizacion quirurgica como Dispositivos Medicos para pacientes, personal clinico y equipo. Parte 3 Requisitos y niveles de funcionamiento.","Und","Und","Si","Atención emergencia COVID-19","FELIPE MONDRAGON DUQUE","AECovid19-522",11001,"COP",1,15000,{"$f":"Q275-SUMIFS(ResumenCotizacion!L:L,ResumenCotizacion!S:S,L275,ResumenCotizacion!C:C,D275)","v":15000},0]
["EPP-3FELIPE MONDRAGON DUQUE",null,null,"EPP-3","EPP-3 - BATA CIRUJANO DESECHABLE ","ELEMENTOS DE PROTECCION PERSONAL","BATA CIRUJANO DESECHABLE TALLA S, M, L, XL PRESENTACION ESTERIL","Und","Und","Si","Atención emergencia COVID-19","FELIPE MONDRAGON DUQUE","AECovid19-522",11500,"COP",1,15000,{"$f":"Q276-SUMIFS(ResumenCotizacion!L:L,ResumenCotizacion!S:S,L276,ResumenCotizacion!C:C,D276)","v":15000},0]
["EPP-4FELIPE MONDRAGON DUQUE",null,null,"EPP-4","EPP-4 - BATA DESECHABLE CORTAS CON MANGA RESORTADA ","ELEMENTOS DE PROTECCION PERSONAL","BATA DESECHABLE CORTAS CON MANGA RESORTADA CON CIERRE FRONTAL DE CREMALLERA","Und","Und","Si","Atención emergencia COVID-19","FELIPE MONDRAGON DUQUE","AECovid19-522",11200,"COP",1,500,{"$f":"Q277-SUMIFS(ResumenCotizacion!L:L,ResumenCotizacion!S:S,L277,ResumenCotizacion!C:C,D277)","v":500},0]
["EPP-5FELIPE MONDRAGON DUQUE",null,null,"EPP-5","EPP-5 - BATA DESECHABLE PARA PACIENTE PEDIATRICO - ROPA DESECHABLE  COMPUESTO POR BATA SIN MANGA CON AMARRADERA  POSTERIOR. ","ELEMENTOS DE PROTECCION PERSONAL","COMPUESTO DE BATA PACIENTE MANGA CIZA DE 80 CMS, AMARRADERAS EN LA PARTE POSTERIOR 2 A NIVEL DE CUELLO Y 2 A NIVEL DE LA CINTURA EN TELA SMS 35 GRAMOS.","Und","Und","Si","Atención emergencia COVID-19","FELIPE MONDRAGON DUQUE","AECovid19-522",6554,"COP",1,500,{"$f":"Q278-SUMIFS(ResumenCotizacion!L:L,ResumenCotizacion!S:S,L278,ResumenCotizacion!C:C,D278)","v":500},0]
["EPP-6FELIPE MONDRAGON DUQUE",null,null,"EPP-6","EPP-6 - BATA PUÑO RIB ","ELEMENTOS DE PROTECCION PERSONAL","Tela no tejida\nDesechable\nAislante de liquidos\nAlta transpirabilidad\nManga Larga\nPuño en algodón con resorte\nCon tiras de amarre en la cintura y cuello","Und","Und","Si","Atención emergencia COVID-19","FELIPE MONDRAGON DUQUE","AECovid19-522",10400,"COP",1,200,{"$f":"Q279-SUMIFS(ResumenCotizacion!L:L,ResumenCotizacion!S:S,L279,ResumenCotizacion!C:C,D279)","v":200},0]
["EPP-11FELIPE MONDRAGON DUQUE",null,null,"EPP-11","EPP-11 - GORRO DESECHABLE REDONDO ELÁSTICO AZUL ","ELEMENTOS DE PROTECCION PERSONAL","GORRO REDONDO DESECHABLE TIPO BAÑO BOLAN 15 A 20 GRAMOS TAMAÑO ESTÁNDAR, ENCAUCHADO PARA AJUSTE SUAVE Y FIRME","Und","Und","Si","Atención emergencia COVID-19","FELIPE MONDRAGON DUQUE","AECovid19-522",16500,"COP",1,10,{"$f":"Q280-SUMIFS(ResumenCotizacion!L:L,ResumenCotizacion!S:S,L280,ResumenCotizacion!C:C,D280)","v":10},0]
["EPP-13FELIPE MONDRAGON DUQUE",null,null,"EPP-13","EPP-13 - GUANTES DE LATEX  ","ELEMENTOS DE PROTECCION PERSONAL","GUANTES DE LÁTEX TALLA S,M, L  DESECHABLES, HIPOALERGÉNICOS, NO ESTÉRILES, ALTA RESISTENCIA A LA ELONGACIÓN, CON ENTALCAMIENTO LEVE INTERNO, AMBIDIESTROS, LÁTEX BLANCO, PUÑO CON REBORDE. ","Und","Und","Si","Atención emergencia COVID-19","FELIPE MONDRAGON DUQUE","AECovid19-522",51000,"COP",1,5000,{"$f":"Q281-SUMIFS(ResumenCotizacion!L:L,ResumenCotizacion!S:S,L281,ResumenCotizacion!C:C,D281)","v":5000},0]
["EPP-14FELIPE MONDRAGON DUQUE",null,null,"EPP-14","EPP-14 - GUANTES DE NITRILO ","ELEMENTOS DE PROTECCION PERSONAL","GUANTES DE NITRILO (CALIBRE DE 8 MILESIMAS MÍNIMO) TALLAS,M Y L DESECHABLES, HIPOALERGÉNICOS, NO ESTÉRILES, ALTA RESISTENCIA A LA ELONGACIÓN, CON ENTALCAMIENTO LEVE INTERNO, AMBIDIESTROS, PUÑO CON REBORDE.","Und","Und","Si","Atención emergencia COVID-19","FELIPE MONDRAGON DUQUE","AECovid19-522",68900,"COP",1,5000,{"$f":"Q282-SUMIFS(ResumenCotizacion!L:L,ResumenCotizacion!S:S,L282,ResumenCotizacion!C:C,D282)","v":5000},0]
["EPP-17FELIPE MONDRAGON DUQUE",null,null,"EPP-17","EPP-17 - KIT PREVENCIÓN: CONTIENE TRAJE ANTIFLUIDO, BATA QUIRURGICA, PANTALON PIJAMA, CUBRE ZAPATOS GORRO Y TAPABOCAS, CUALQUIER PIEZA SE PUEDE HACER INDEPENDIENTE, SON RESISTENTES AL CLORO ","ELEMENTOS DE PROTECCION PERSONAL","DEBE CONTENER TODOS LOS ELEMENTOS DESCRITOS, NO PUEDEN SER ENTREGAS PARCIALES","Und","Und","Si","Atención emergencia COVID-19","FELIPE MONDRAGON DUQUE","AECovid19-522",59700,"COP",1,5000,{"$f":"Q283-SUMIFS(ResumenCotizacion!L:L,ResumenCotizacion!S:S,L283,ResumenCotizacion!C:C,D283)","v":5000},0]
["EPP-31FELIPE MONDRAGON DUQUE",null,null,"EPP-31","EPP-31 - TAPABOCAS DOBLE TELA LAVABLE ","ELEMENTOS DE PROTECCION PERSONAL","DOBLE TELA. REUTILIZABLE. SOPORTE NASAL. AJUSTABLE","Und","Und","Si","Atención emergencia COVID-19","FELIPE MONDRAGON DUQUE","AECovid19-522",150000,"COP",1,10,{"$f":"Q284-SUMIFS(ResumenCotizacion!L:L,ResumenCotizacion!S:S,L284,ResumenCotizacion!C:C,D284)","v":10},0]
["EPP-34FELIPE MONDRAGON DUQUE",null,null,"EPP-34","EPP-34 - TRAJE DESECHABLE ANTIFLUIDO ","ELEMENTOS DE PROTECCION PERSONAL","TALLAS: S,M,L,XL\nCOSTURAS SERIADAS, CON CAPUCHA.\nCIERRE DE CREMALLERA FRONTAL\nMUÑECAS Y TOBILLOS ELASTICOS\nFABRICADO EN TELA ANTIFLUIDO","Und","Und","Si","Atención emergencia COVID-19","FELIPE MONDRAGON DUQUE","AECovid19-522",55500,"COP",1,56000,{"$f":"Q285-SUMIFS(ResumenCotizacion!L:L,ResumenCotizacion!S:S,L285,ResumenCotizacion!C:C,D285)","v":56000},0]
["EPP-35ALIANZA CON HUELLAS S.A.S",null,null,"EPP-35","EPP-35 - TRAJE KLEENGUAR A35 ","ELEMENTOS DE PROTECCION PERSONAL","TRAJE DE PROTECCIÓN PERSONAL.\nELABORADO CON TECNOLOGÍA SFL.\nCAPA INTERNA HECHA CON FIBRAS DE POLIPROPILENO\nTALLAS: S,M,L,XL  ","Und","Und","Si","Atención emergencia COVID-19","ALIANZA CON HUELLAS S.A.S","AECovid19-589",35500,"COP",1,5500,{"$f":"Q286-SUMIFS(ResumenCotizacion!L:L,ResumenCotizacion!S:S,L286,ResumenCotizacion!C:C,D286)","v":5500},0]
[{"$f":"D287&L287","v":"EPP-1INVERSIONES Y VALORES DEL CARIBE- INVALCA SAS"},null,null,"EPP-1","EPP-1 - BATA  DESECHABLE PARA PACIENTE ADULTO  - TALLA S, M , L, XL COMPUESTO POR BATA SIN MANGA CON AMARRADERA  POSTERIOR ","ELEMENTOS DE PROTECCION PERSONAL","COMPUESTO DE BATA PACIENTE MANGA CIZA, AMARRADERAS EN LA PARTE POSTERIOR 2 A NIVEL DE CUELLO Y 2 A NIVEL DE LA CINTURA EN TELA SMS 35 GRAMOS.","Und","Und","Si","Atención emergencia COVID-19","INVERSIONES Y VALORES DEL CARIBE- INVALCA SAS","AECovid19-596",4999.9989999999998,"COP",1,100000,{"$f":"Q287-SUMIFS(ResumenCotizacion!L:L,ResumenCotizacion!S:S,L287,ResumenCotizacion!C:C,D287)","v":100000},0]
["EPP-2INVERSIONES Y VALORES DEL CARIBE- INVALCA SAS",null,null,"EPP-2","EPP-2 - BATA AISLAMIENTO NO ESTERIL MANGA LARGA ","ELEMENTOS DE PROTECCION PERSONAL","Debe cumplir la siguiente reglamentación: NTC 5623 - Campos Quirurgicos, Batas y trajes para aire limpio de utilizacion quirurgica como Dispositivos Medicos para pacientes, personal clinico y equipo. Parte 1 Requisitos Generales para los fabricantes procesadores y productos. NTC 5624 - Campos Quirurgicos, Batas y trajes para aire limpio de utilizacion quirurgica como Dispositivos Medicos para pacientes, personal clinico y equipo. Parte 2 Metodos de Ensayo. NTC 5625 - Campos Quirurgicos, Batas y trajes para aire limpio de utilizacion quirurgica como Dispositivos Medicos para pacientes, personal clinico y equipo. Parte 3 Requisitos y niveles de funcionamiento.","Und","Und","Si","Atención emergencia COVID-19","INVERSIONES Y VALORES DEL CARIBE- INVALCA SAS","AECovid19-596",5000,"COP",1,200000,{"$f":"Q288-SUMIFS(ResumenCotizacion!L:L,ResumenCotizacion!S:S,L288,ResumenCotizacion!C:C,D288)","v":200000},0]
["EPP-3INVERSIONES Y VALORES DEL CARIBE- INVALCA SAS",null,null,"EPP-3","EPP-3 - BATA CIRUJANO DESECHABLE ","ELEMENTOS DE PROTECCION PERSONAL","BATA CIRUJANO DESECHABLE TALLA S, M, L, XL PRESENTACION ESTERIL","Und","Und","Si","Atención emergencia COVID-19","INVERSIONES Y VALORES DEL CARIBE- INVALCA SAS","AECovid19-596",5000,"COP",1,100000,{"$f":"Q289-SUMIFS(ResumenCotizacion!L:L,ResumenCotizacion!S:S,L289,ResumenCotizacion!C:C,D289)","v":100000},0]
["EPP-4INVERSIONES Y VALORES DEL CARIBE- INVALCA SAS",null,null,"EPP-4","EPP-4 - BATA DESECHABLE CORTAS CON MANGA RESORTADA ","ELEMENTOS DE PROTECCION PERSONAL","BATA DESECHABLE CORTAS CON MANGA RESORTADA CON CIERRE FRONTAL DE CREMALLERA","Und","Und","Si","Atención emergencia COVID-19","INVERSIONES Y VALORES DEL CARIBE- INVALCA SAS","AECovid19-596",5000,"COP",1,100000,{"$f":"Q290-SUMIFS(ResumenCotizacion!L:L,ResumenCotizacion!S:S,L290,ResumenCotizacion!C:C,D290)","v":100000},0]
["EPP-5INVERSIONES Y VALORES DEL CARIBE- INVALCA SAS",null,null,"EPP-5","EPP-5 - BATA DESECHABLE PARA PACIENTE PEDIATRICO - ROPA DESECHABLE  COMPUESTO POR BATA SIN MANGA CON AMARRADERA  POSTERIOR. ","ELEMENTOS DE PROTECCION PERSONAL","COMPUESTO DE BATA PACIENTE MANGA CIZA DE 80 CMS, AMARRADERAS EN LA PARTE POSTERIOR 2 A NIVEL DE CUELLO Y 2 A NIVEL DE LA CINTURA EN TELA SMS 35 GRAMOS.","Und","Und","Si","Atención emergencia COVID-19","INVERSIONES Y VALORES DEL CARIBE- INVALCA SAS","AECovid19-596",4999.9989999999998,"COP",1,100000,{"$f":"Q291-SUMIFS(ResumenCotizacion!L:L,ResumenCotizacion!S:S,L291,ResumenCotizacion!C:C,D291)","v":100000},0]
["EPP-6INVERSIONES Y VALORES DEL CARIBE- INVALCA SAS",null,null,"EPP-6","EPP-6 - BATA PUÑO RIB ","ELEMENTOS DE PROTECCION PERSONAL","Tela no tejida\nDesechable\nAislante de liquidos\nAlta transpirabilidad\nManga Larga\nPuño en algodón con resorte\nCon tiras de amarre en la cintura y cuello","Und","Und","Si","Atención emergencia COVID-19","INVERSIONES Y VALORES DEL CARIBE- INVALCA SAS","AECovid19-596",4999.9998999999998,"COP",1,100000,{"$f":"Q292-SUMIFS(ResumenCotizacion!L:L,ResumenCotizacion!S:S,L292,ResumenCotizacion!C:C,D292)","v":100000},0]
["EPP-9INVERSIONES Y VALORES DEL CARIBE- INVALCA SAS",null,null,"EPP-9","EPP-9 - CARETAS VISORES (PROTECTOR FACIAL) ","ELEMENTOS DE PROTECCION PERSONAL","CARETA VISOR DE USO MEDICO EN PASTA CON SEGURO ELASTICO","Und","Und","Si","Atención emergencia COVID-19","INVERSIONES Y VALORES DEL CARIBE- INVALCA SAS","AECovid19-596",5000,"COP",1,1,{"$f":"Q293-SUMIFS(ResumenCotizacion!L:L,ResumenCotizacion!S:S,L293,ResumenCotizacion!C:C,D293)","v":1},0]
["EPP-10INVERSIONES Y VALORES DEL CARIBE- INVALCA SAS",null,null,"EPP-10","EPP-10 - GAFAS PROTECTORAS ","ELEMENTOS DE PROTECCION PERSONAL","BUEN SELLO DE ADHERENCIA CON LA PIEL DE LA CARA, MARCO DE PVC FLEXIBLE PARA ADAPTARSE FÁCILMENTE A TODOS LOS CONTORNOS DE LA CARA CON PRESIÓN UNIFORME, ENCERRAR LOS OJOS Y LAS ÁREAS CIRCUNDANTES, USUARIOS DE ALOJAMIENTO CON GAFAS GRADUADAS, LENTE DE PLÁSTICO TRANSPARENTE CON TRATAMIENTOS RESISTENTES A LA NIEBLA Y A LOS ARAÑAZOS, sistema AJUSTABLE PARA ASEGURAR FIRMEMENTE PARA NO LIBERARSE DURANTE LA ACTIVIDAD CLÍNICA, VENTILACIÓN INDIRECTA PARA EVITAR LA NIEBLA, PUEDE SER REUTILIZABLE (SIEMPRE QUE SE DISPONGA DE LAS DISPOSICIONES ADECUADAS PARA LA DESCONTAMINACIÓN) O DESECHABLE.","Und","Und","Si","Atención emergencia COVID-19","INVERSIONES Y VALORES DEL CARIBE- INVALCA SAS","AECovid19-596",65000,"COP",1,1,{"$f":"Q294-SUMIFS(ResumenCotizacion!L:L,ResumenCotizacion!S:S,L294,ResumenCotizacion!C:C,D294)","v":1},0]
["EPP-14INVERSIONES Y VALORES DEL CARIBE- INVALCA SAS",null,null,"EPP-14","EPP-14 - GUANTES DE NITRILO ","ELEMENTOS DE PROTECCION PERSONAL","GUANTES DE NITRILO (CALIBRE DE 8 MILESIMAS MÍNIMO) TALLAS,M Y L DESECHABLES, HIPOALERGÉNICOS, NO ESTÉRILES, ALTA RESISTENCIA A LA ELONGACIÓN, CON ENTALCAMIENTO LEVE INTERNO, AMBIDIESTROS, PUÑO CON REBORDE.","Und","Und","Si","Atención emergencia COVID-19","INVERSIONES Y VALORES DEL CARIBE- INVALCA SAS","AECovid19-596",60000,"COP",1,1,{"$f":"Q295-SUMIFS(ResumenCotizacion!L:L,ResumenCotizacion!S:S,L295,ResumenCotizacion!C:C,D295)","v":1},0]
["EPP-18INVERSIONES Y VALORES DEL CARIBE- INVALCA SAS",null,null,"EPP-18","EPP-18 - MASCARILLA FACIAL N95 (TAPA BOCA) ","ELEMENTOS DE PROTECCION PERSONAL","DESECHABLE, CON TIRAS PARA AMARRAR, DOBLE FILTRO, ADAPTADOR NASAL AJUSTABLE, EN ALGODÓN,","Und","Und","Si","Atención emergencia COVID-19","INVERSIONES Y VALORES DEL CARIBE- INVALCA SAS","AECovid19-596",72200,"COP",1,100,{"$f":"Q296-SUMIFS(ResumenCotizacion!L:L,ResumenCotizacion!S:S,L296,ResumenCotizacion!C:C,D296)","v":100},0]
["EPP-19INVERSIONES Y VALORES DEL CARIBE- INVALCA SAS",null,null,"EPP-19","EPP-19 - MASCARILLA FACIAL N95 (TAPA BOCA)- RESORTADA ","ELEMENTOS DE PROTECCION PERSONAL","DESECHABLE, CON RESORTE A LA OREJA , DOBLE FILTRO, ADAPTADOR NASAL AJUSTABLE, EN ALGODÓN","Und","Und","Si","Atención emergencia COVID-19","INVERSIONES Y VALORES DEL CARIBE- INVALCA SAS","AECovid19-596",72200,"COP",1,100,{"$f":"Q297-SUMIFS(ResumenCotizacion!L:L,ResumenCotizacion!S:S,L297,ResumenCotizacion!C:C,D297)","v":100},0]
["EPP-25INVERSIONES Y VALORES DEL CARIBE- INVALCA SAS",null,null,"EPP-25","EPP-25 - SABANA DESECHABLE ","ELEMENTOS DE PROTECCION PERSONAL","SÁBANA AJUSTABLE DESECHABLE, CONFECCIONADA CON TEJIDO NO TEJIDO DE POLIPROPILENO (PP). CON ELÁSTICOS EN LOS EXTREMOS PARA AJUSTAR A LAS CAMILLAS.","Und","Und","Si","Atención emergencia COVID-19","INVERSIONES Y VALORES DEL CARIBE- INVALCA SAS","AECovid19-596",8400,"COP",1,1,{"$f":"Q298-SUMIFS(ResumenCotizacion!L:L,ResumenCotizacion!S:S,L298,ResumenCotizacion!C:C,D298)","v":1},0]
["EPP-41INVERSIONES Y VALORES DEL CARIBE- INVALCA SAS",null,null,"EPP-41","EPP-41 - GUANTES DE NEOPRENO","ELEMENTOS DE PROTECCION PERSONAL","Guantes de Neopreno liso (Guantes de neopreno con forrado interior, mínimo de 13 pulgadas (ácidos, alcoholes, disolventes, causticas, aceites) y gran resistencia a agresiones mecánicas. Permite la manipulación intermitente en líquidos a temperaturas muy bajas. \nUnidad de empaque: Caja x 100","Und","Und","Si","Atención emergencia COVID-19","INVERSIONES Y VALORES DEL CARIBE- INVALCA SAS","AECovid19-596",21999.999999899999,"COP",1,20000,{"$f":"Q299-SUMIFS(ResumenCotizacion!L:L,ResumenCotizacion!S:S,L299,ResumenCotizacion!C:C,D299)","v":20000},0]
["EPP-42INVERSIONES Y VALORES DEL CARIBE- INVALCA SAS",null,null,"EPP-42","EPP-42 - ZAPATOS PLASTICOS ANTIDESLIZANTES","ELEMENTOS DE PROTECCION PERSONAL","* Capellada: EVA (ETIL Etileno Vinil Acetato, polímero termoplástico)\n* Suela: Plástico Termoplastico TPR, o caucho antideslizante y anti hongo.\n* El zapato debe ser unisex con diseño neutro tanto para hombres como para mujeres\n* Debe ser cerrado o abierto con correa que asegure el zapato hasta el talon, del mismo material del zapato\n* Suela antideslizante\n* Adecuado para cocina, baño, hospital y otros que tienen un ambiente de trabajo con agua y de uso diario \n* Debe estar disponible en colores: blanco, negro y azul petróleo \n* Debe estar disponible en tallas de la 34 a la 43. El proveedor debe adjuntar un documento que contenga la guía de tallas para la correcta selección por parte del usuario comprador. \n* Debe estar el zapato para ambos pies, derecho e izquierdo","Und","Und","Si","Atención emergencia COVID-19","INVERSIONES Y VALORES DEL CARIBE- INVALCA SAS","AECovid19-596",48199.999900000003,"COP",1,1000,{"$f":"Q300-SUMIFS(ResumenCotizacion!L:L,ResumenCotizacion!S:S,L300,ResumenCotizacion!C:C,D300)","v":1000},0.19]
["EPP-17Exito Industrias SAS",null,null,"EPP-17","EPP-17 - KIT PREVENCIÓN: CONTIENE TRAJE ANTIFLUIDO, BATA QUIRURGICA, PANTALON PIJAMA, CUBRE ZAPATOS GORRO Y TAPABOCAS, CUALQUIER PIEZA SE PUEDE HACER INDEPENDIENTE, SON RESISTENTES AL CLORO ","ELEMENTOS DE PROTECCION PERSONAL","DEBE CONTENER TODOS LOS ELEMENTOS DESCRITOS, NO PUEDEN SER ENTREGAS PARCIALES","Und","Und","Si","Atención emergencia COVID-19","Exito Industrias SAS","AECovid19-559",52890,"COP",1,5000,{"$f":"Q301-SUMIFS(ResumenCotizacion!L:L,ResumenCotizacion!S:S,L301,ResumenCotizacion!C:C,D301)","v":5000},0]
["EPP-29Exito Industrias SAS",null,null,"EPP-29","EPP-29 - TAPABOCA TELA POLYESTER ANTI FLUIDO","ELEMENTOS DE PROTECCION PERSONAL","TAPABOCA DE TELA Y POLYESTER FABRICANDO CON TELA ANTIFLUIDO, CON RESORTE A LA OREJA, AJUSTABLE.","Und","Und","Si","Atención emergencia COVID-19","Exito Industrias SAS","AECovid19-559",800,"COP",1,1000000,{"$f":"Q302-SUMIFS(ResumenCotizacion!L:L,ResumenCotizacion!S:S,L302,ResumenCotizacion!C:C,D302)","v":1000000},0]
["EPP-36Exito Industrias SAS",null,null,"EPP-36","EPP-36 - TRAJES DE BIO PORTECCIÓN- BLUSA ","ELEMENTOS DE PROTECCION PERSONAL","BLUSA EN TELA ANTI-FLUIDO.\nREPELENTE A LIQUIDO Y ANTI-CLORO.\nTALLAS S,M,L,XL","Und","Und","Si","Atención emergencia COVID-19","Exito Industrias SAS","AECovid19-559",14500,"COP",1,5000,{"$f":"Q303-SUMIFS(ResumenCotizacion!L:L,ResumenCotizacion!S:S,L303,ResumenCotizacion!C:C,D303)","v":5000},0]
["EPP-37Exito Industrias SAS",null,null,"EPP-37","EPP-37 - TRAJES DE BIO PORTECCIÓN- PANTALON ","ELEMENTOS DE PROTECCION PERSONAL","PANTALÓN/PANTALONES, TEJIDOS, EXFOLIANTES, REUTILIZABLES O DE UN SOLO USO, DE MANGA CORTA (TÚNICA/TOPS), USADOS DEBAJO DE LAS FUNDAS O BATAS.","Und","Und","Si","Atención emergencia COVID-19","Exito Industrias SAS","AECovid19-559",15300,"COP",1,5000,{"$f":"Q304-SUMIFS(ResumenCotizacion!L:L,ResumenCotizacion!S:S,L304,ResumenCotizacion!C:C,D304)","v":5000},0]
[{"$f":"D305&L305","v":"EPP-20VIVATEX SAS"},null,null,"EPP-20","EPP-20 - MASCARILLA TIPO RESPIRADOR N95 CON VÁLVULA ","ELEMENTOS DE PROTECCION PERSONAL","MASCARILLA TIPO RESPIRADOR CON VÁLVULA PARA PARTÍCULAS, CON TECNOLOGÍA MEA, MASCARILLAS QUIRÚRGICAS/RIESGO BIOLÓGICO N95.","Und","Und","Si","Atención emergencia COVID-19","VIVATEX SAS","AECovid19-607",8000,"COP",1,1000,{"$f":"Q305-SUMIFS(ResumenCotizacion!L:L,ResumenCotizacion!S:S,L305,ResumenCotizacion!C:C,D305)","v":1000},0]
["EPP-30VIVATEX SAS",null,null,"EPP-30","EPP-30 - TAPABOCAS DESECHABLES ","ELEMENTOS DE PROTECCION PERSONAL","TAPABOCAS DESECHABLE, CON RESORTE A LA OREJA , DOBLE FILTRO, ADAPTADOR NASAL AJUSTABLE, TELA NO TEJIDA","Und","Und","Si","Atención emergencia COVID-19","VIVATEX SAS","AECovid19-607",30000,"COP",1,30000,{"$f":"Q306-SUMIFS(ResumenCotizacion!L:L,ResumenCotizacion!S:S,L306,ResumenCotizacion!C:C,D306)","v":30000},0]
[{"$f":"D307&L307","v":"EPP-32VIVATEX SAS"},null,null,"EPP-32","EPP-32 - TAPABOCAS QUIRUGICO N95","ELEMENTOS DE PROTECCION PERSONAL","DEBE CUMPLIR LA SIGUIENTE REGLAMENTACIÓN: NTC 3851 Parte 1 Criterios para la selección y uso de los equipos de protecicion respiratoria. / NTC 3852 Parte 2 Equipos de proteccion respiratoria, proteccion contra particulas.","Und","Und","Si","Atención emergencia COVID-19","VIVATEX SAS","AECovid19-607",500000,"COP",1,2000,{"$f":"Q307-SUMIFS(ResumenCotizacion!L:L,ResumenCotizacion!S:S,L307,ResumenCotizacion!C:C,D307)","v":2000},0]
[{"$f":"D308&L308","v":"EPP-1JM GRUPO EMPRESARIAL S.A.S"},null,null,"EPP-1","EPP-1 - BATA  DESECHABLE PARA PACIENTE ADULTO  - TALLA S, M , L, XL COMPUESTO POR BATA SIN MANGA CON AMARRADERA  POSTERIOR ","ELEMENTOS DE PROTECCION PERSONAL","COMPUESTO DE BATA PACIENTE MANGA CIZA, AMARRADERAS EN LA PARTE POSTERIOR 2 A NIVEL DE CUELLO Y 2 A NIVEL DE LA CINTURA EN TELA SMS 35 GRAMOS.","Und","Und","Si","Atención emergencia COVID-19","JM GRUPO EMPRESARIAL S.A.S","AECovid19-24",3100,"COP",1,1000000,{"$f":"Q308-SUMIFS(ResumenCotizacion!L:L,ResumenCotizacion!S:S,L308,ResumenCotizacion!C:C,D308)","v":1000000},0]
["EPP-2JM GRUPO EMPRESARIAL S.A.S",null,null,"EPP-2","EPP-2 - BATA AISLAMIENTO NO ESTERIL MANGA LARGA ","ELEMENTOS DE PROTECCION PERSONAL","Debe cumplir la siguiente reglamentación: NTC 5623 - Campos Quirurgicos, Batas y trajes para aire limpio de utilizacion quirurgica como Dispositivos Medicos para pacientes, personal clinico y equipo. Parte 1 Requisitos Generales para los fabricantes procesadores y productos. NTC 5624 - Campos Quirurgicos, Batas y trajes para aire limpio de utilizacion quirurgica como Dispositivos Medicos para pacientes, personal clinico y equipo. Parte 2 Metodos de Ensayo. NTC 5625 - Campos Quirurgicos, Batas y trajes para aire limpio de utilizacion quirurgica como Dispositivos Medicos para pacientes, personal clinico y equipo. Parte 3 Requisitos y niveles de funcionamiento.","Und","Und","Si","Atención emergencia COVID-19","JM GRUPO EMPRESARIAL S.A.S","AECovid19-24",4199.9999900000003,"COP",1,1000000,{"$f":"Q309-SUMIFS(ResumenCotizacion!L:L,ResumenCotizacion!S:S,L309,ResumenCotizacion!C:C,D309)","v":1000000},0]
["EPP-3JM GRUPO EMPRESARIAL S.A.S",null,null,"EPP-3","EPP-3 - BATA CIRUJANO DESECHABLE ","ELEMENTOS DE PROTECCION PERSONAL","BATA CIRUJANO DESECHABLE TALLA S, M, L, XL PRESENTACION ESTERIL","Und","Und","Si","Atención emergencia COVID-19","JM GRUPO EMPRESARIAL S.A.S","AECovid19-24",4499.9999900000003,"COP",1,1000000,{"$f":"Q310-SUMIFS(ResumenCotizacion!L:L,ResumenCotizacion!S:S,L310,ResumenCotizacion!C:C,D310)","v":1000000},0]
["EPP-4JM GRUPO EMPRESARIAL S.A.S",null,null,"EPP-4","EPP-4 - BATA DESECHABLE CORTAS CON MANGA RESORTADA ","ELEMENTOS DE PROTECCION PERSONAL","BATA DESECHABLE CORTAS CON MANGA RESORTADA CON CIERRE FRONTAL DE CREMALLERA","Und","Und","Si","Atención emergencia COVID-19","JM GRUPO EMPRESARIAL S.A.S","AECovid19-24",4900,"COP",1,1000000,{"$f":"Q311-SUMIFS(ResumenCotizacion!L:L,ResumenCotizacion!S:S,L311,ResumenCotizacion!C:C,D311)","v":1000000},0]
["EPP-5JM GRUPO EMPRESARIAL S.A.S",null,null,"EPP-5","EPP-5 - BATA DESECHABLE PARA PACIENTE PEDIATRICO - ROPA DESECHABLE  COMPUESTO POR BATA SIN MANGA CON AMARRADERA  POSTERIOR. ","ELEMENTOS DE PROTECCION PERSONAL","COMPUESTO DE BATA PACIENTE MANGA CIZA DE 80 CMS, AMARRADERAS EN LA PARTE POSTERIOR 2 A NIVEL DE CUELLO Y 2 A NIVEL DE LA CINTURA EN TELA SMS 35 GRAMOS.","Und","Und","Si","Atención emergencia COVID-19","JM GRUPO EMPRESARIAL S.A.S","AECovid19-24",3100,"COP",1,1000000,{"$f":"Q312-SUMIFS(ResumenCotizacion!L:L,ResumenCotizacion!S:S,L312,ResumenCotizacion!C:C,D312)","v":1000000},0]
["EPP-6JM GRUPO EMPRESARIAL S.A.S",null,null,"EPP-6","EPP-6 - BATA PUÑO RIB ","ELEMENTOS DE PROTECCION PERSONAL","Tela no tejida\nDesechable\nAislante de liquidos\nAlta transpirabilidad\nManga Larga\nPuño en algodón con resorte\nCon tiras de amarre en la cintura y cuello","Und","Und","Si","Atención emergencia COVID-19","JM GRUPO EMPRESARIAL S.A.S","AECovid19-24",4600,"COP",1,1000000,{"$f":"Q313-SUMIFS(ResumenCotizacion!L:L,ResumenCotizacion!S:S,L313,ResumenCotizacion!C:C,D313)","v":1000000},0]
["EPP-9JM GRUPO EMPRESARIAL S.A.S",null,null,"EPP-9","EPP-9 - CARETAS VISORES (PROTECTOR FACIAL) ","ELEMENTOS DE PROTECCION PERSONAL","CARETA VISOR DE USO MEDICO EN PASTA CON SEGURO ELASTICO","Und","Und","Si","Atención emergencia COVID-19","JM GRUPO EMPRESARIAL S.A.S","AECovid19-24",3000,"COP",1,1000000,{"$f":"Q314-SUMIFS(ResumenCotizacion!L:L,ResumenCotizacion!S:S,L314,ResumenCotizacion!C:C,D314)","v":1000000},0]
["EPP-10JM GRUPO EMPRESARIAL S.A.S",null,null,"EPP-10","EPP-10 - GAFAS PROTECTORAS ","ELEMENTOS DE PROTECCION PERSONAL","BUEN SELLO DE ADHERENCIA CON LA PIEL DE LA CARA, MARCO DE PVC FLEXIBLE PARA ADAPTARSE FÁCILMENTE A TODOS LOS CONTORNOS DE LA CARA CON PRESIÓN UNIFORME, ENCERRAR LOS OJOS Y LAS ÁREAS CIRCUNDANTES, USUARIOS DE ALOJAMIENTO CON GAFAS GRADUADAS, LENTE DE PLÁSTICO TRANSPARENTE CON TRATAMIENTOS RESISTENTES A LA NIEBLA Y A LOS ARAÑAZOS, sistema AJUSTABLE PARA ASEGURAR FIRMEMENTE PARA NO LIBERARSE DURANTE LA ACTIVIDAD CLÍNICA, VENTILACIÓN INDIRECTA PARA EVITAR LA NIEBLA, PUEDE SER REUTILIZABLE (SIEMPRE QUE SE DISPONGA DE LAS DISPOSICIONES ADECUADAS PARA LA DESCONTAMINACIÓN) O DESECHABLE.","Und","Und","Si","Atención emergencia COVID-19","JM GRUPO EMPRESARIAL S.A.S","AECovid19-24",40000,"COP",1,1000000,{"$f":"Q315-SUMIFS(ResumenCotizacion!L:L,ResumenCotizacion!S:S,L315,ResumenCotizacion!C:C,D315)","v":1000000},0]
["EPP-12JM GRUPO EMPRESARIAL S.A.S",null,null,"EPP-12","EPP-12 - GORRO QUIRURJICO ","ELEMENTOS DE PROTECCION PERSONAL","Gorro con elástico para adaptarse al entorno craneal que se coloca en la cabeza sin que cubra totalmente la frente, ni los ojos. En Tela polipropileno 100% en spundbounded y el Resorte en Nylon blanco. 15 a 20 gramos.","Und","Und","Si","Atención emergencia COVID-19","JM GRUPO EMPRESARIAL S.A.S","AECovid19-24",15000,"COP",1,5,{"$f":"Q316-SUMIFS(ResumenCotizacion!L:L,ResumenCotizacion!S:S,L316,ResumenCotizacion!C:C,D316)","v":5},0]
["EPP-14JM GRUPO EMPRESARIAL S.A.S",null,null,"EPP-14","EPP-14 - GUANTES DE NITRILO ","ELEMENTOS DE PROTECCION PERSONAL","GUANTES DE NITRILO (CALIBRE DE 8 MILESIMAS MÍNIMO) TALLAS,M Y L DESECHABLES, HIPOALERGÉNICOS, NO ESTÉRILES, ALTA RESISTENCIA A LA ELONGACIÓN, CON ENTALCAMIENTO LEVE INTERNO, AMBIDIESTROS, PUÑO CON REBORDE.","Und","Und","Si","Atención emergencia COVID-19","JM GRUPO EMPRESARIAL S.A.S","AECovid19-24",64000,"COP",1,5000,{"$f":"Q317-SUMIFS(ResumenCotizacion!L:L,ResumenCotizacion!S:S,L317,ResumenCotizacion!C:C,D317)","v":5000},0]
["EPP-18JM GRUPO EMPRESARIAL S.A.S",null,null,"EPP-18","EPP-18 - MASCARILLA FACIAL N95 (TAPA BOCA) ","ELEMENTOS DE PROTECCION PERSONAL","DESECHABLE, CON TIRAS PARA AMARRAR, DOBLE FILTRO, ADAPTADOR NASAL AJUSTABLE, EN ALGODÓN,","Und","Und","Si","Atención emergencia COVID-19","JM GRUPO EMPRESARIAL S.A.S","AECovid19-24",72199.999899999995,"COP",1,1000,{"$f":"Q318-SUMIFS(ResumenCotizacion!L:L,ResumenCotizacion!S:S,L318,ResumenCotizacion!C:C,D318)","v":1000},0]
["EPP-19JM GRUPO EMPRESARIAL S.A.S",null,null,"EPP-19","EPP-19 - MASCARILLA FACIAL N95 (TAPA BOCA)- RESORTADA ","ELEMENTOS DE PROTECCION PERSONAL","DESECHABLE, CON RESORTE A LA OREJA , DOBLE FILTRO, ADAPTADOR NASAL AJUSTABLE, EN ALGODÓN","Und","Und","Si","Atención emergencia COVID-19","JM GRUPO EMPRESARIAL S.A.S","AECovid19-24",72199.999899999995,"COP",1,1000,{"$f":"Q319-SUMIFS(ResumenCotizacion!L:L,ResumenCotizacion!S:S,L319,ResumenCotizacion!C:C,D319)","v":1000},0]
["EPP-20JM GRUPO EMPRESARIAL S.A.S",null,null,"EPP-20","EPP-20 - MASCARILLA TIPO RESPIRADOR N95 CON VÁLVULA ","ELEMENTOS DE PROTECCION PERSONAL","MASCARILLA TIPO RESPIRADOR CON VÁLVULA PARA PARTÍCULAS, CON TECNOLOGÍA MEA, MASCARILLAS QUIRÚRGICAS/RIESGO BIOLÓGICO N95.","Und","Und","Si","Atención emergencia COVID-19","JM GRUPO EMPRESARIAL S.A.S","AECovid19-24",4229.9999999900001,"COP",1,1000000,{"$f":"Q320-SUMIFS(ResumenCotizacion!L:L,ResumenCotizacion!S:S,L320,ResumenCotizacion!C:C,D320)","v":1000000},0]
["EPP-21JM GRUPO EMPRESARIAL S.A.S",null,null,"EPP-21","EPP-21 - POLAINAS ","ELEMENTOS DE PROTECCION PERSONAL","Polaina antideslizante, no estéril, no tejida. Libre de hebras, ni partículas volátiles, lisa, sin deformaciones. Sellado con ultrasonido. Con recuento controlado microbiano.En Polipropileno (PP) con elástico de látex natural. Dimensión estándar. De un solo uso.","Und","Und","Si","Atención emergencia COVID-19","JM GRUPO EMPRESARIAL S.A.S","AECovid19-24",14999.999999,"COP",1,100000,{"$f":"Q321-SUMIFS(ResumenCotizacion!L:L,ResumenCotizacion!S:S,L321,ResumenCotizacion!C:C,D321)","v":100000},0]
["EPP-24JM GRUPO EMPRESARIAL S.A.S",null,null,"EPP-24","EPP-24 - ROPA POR CAMA DESECHABLE ","ELEMENTOS DE PROTECCION PERSONAL","KIT DE JUEGO DE CAMA QUE INCLUYE SABANA, FORRO, SABANA DE MOVIMIENTO ","Und","Und","Si","Atención emergencia COVID-19","JM GRUPO EMPRESARIAL S.A.S","AECovid19-24",24000,"COP",1,10,{"$f":"Q322-SUMIFS(ResumenCotizacion!L:L,ResumenCotizacion!S:S,L322,ResumenCotizacion!C:C,D322)","v":10},0]
["EPP-25JM GRUPO EMPRESARIAL S.A.S",null,null,"EPP-25","EPP-25 - SABANA DESECHABLE ","ELEMENTOS DE PROTECCION PERSONAL","SÁBANA AJUSTABLE DESECHABLE, CONFECCIONADA CON TEJIDO NO TEJIDO DE POLIPROPILENO (PP). CON ELÁSTICOS EN LOS EXTREMOS PARA AJUSTAR A LAS CAMILLAS.","Und","Und","Si","Atención emergencia COVID-19","JM GRUPO EMPRESARIAL S.A.S","AECovid19-24",4200,"COP",1,10000,{"$f":"Q323-SUMIFS(ResumenCotizacion!L:L,ResumenCotizacion!S:S,L323,ResumenCotizacion!C:C,D323)","v":10000},0]
["EPP-27JM GRUPO EMPRESARIAL S.A.S",null,null,"EPP-27","EPP-27 - SABANAS ","ELEMENTOS DE PROTECCION PERSONAL","DESECHABLE, PLANA, 2,40X2,20 M, EN TELA SMS 35 GR, REPELENTE DE FLUIDOS, RESISTENTE, SIN ESTERILIZAR","Und","Und","Si","Atención emergencia COVID-19","JM GRUPO EMPRESARIAL S.A.S","AECovid19-24",5399.9989999999998,"COP",1,10000,{"$f":"Q324-SUMIFS(ResumenCotizacion!L:L,ResumenCotizacion!S:S,L324,ResumenCotizacion!C:C,D324)","v":10000},0]
["EPP-30JM GRUPO EMPRESARIAL S.A.S",null,null,"EPP-30","EPP-30 - TAPABOCAS DESECHABLES ","ELEMENTOS DE PROTECCION PERSONAL","TAPABOCAS DESECHABLE, CON RESORTE A LA OREJA , DOBLE FILTRO, ADAPTADOR NASAL AJUSTABLE, TELA NO TEJIDA","Und","Und","Si","Atención emergencia COVID-19","JM GRUPO EMPRESARIAL S.A.S","AECovid19-24",15000,"COP",1,350000,{"$f":"Q325-SUMIFS(ResumenCotizacion!L:L,ResumenCotizacion!S:S,L325,ResumenCotizacion!C:C,D325)","v":350000},0]
["EPP-32JM GRUPO EMPRESARIAL S.A.S",null,null,"EPP-32","EPP-32 - TAPABOCAS QUIRUGICO N95","ELEMENTOS DE PROTECCION PERSONAL","DEBE CUMPLIR LA SIGUIENTE REGLAMENTACIÓN: NTC 3851 Parte 1 Criterios para la selección y uso de los equipos de protecicion respiratoria. / NTC 3852 Parte 2 Equipos de proteccion respiratoria, proteccion contra particulas.","Und","Und","Si","Atención emergencia COVID-19","JM GRUPO EMPRESARIAL S.A.S","AECovid19-24",199999.9999999,"COP",1,10000,{"$f":"Q326-SUMIFS(ResumenCotizacion!L:L,ResumenCotizacion!S:S,L326,ResumenCotizacion!C:C,D326)","v":10000},0]
["EPP-33JM GRUPO EMPRESARIAL S.A.S",null,null,"EPP-33","EPP-33 - TRAJE BIOLÓGICO ","ELEMENTOS DE PROTECCION PERSONAL","TRAJE DE PROTECCCIÓN CONTRA AGENTES BIOLÓGICOS Y QUÍMICOS, TAMAÑO (S, M, L, XL, XXL, XXXL)\n· CAPUCHA, CINTURA Y TOBILLOS ELÁSTICOS, PARA UNA MAYOR SEGURIDAD Y LIBERTAD DE\nMOVIMIENTOS.\n· MATERIAL MICROPOROSO LAMINADO, LE BRINDA UNA GRAN RESISTENCIA Y DURACIÓN, LIBRE DE FIBRAS.\n· CIERRE CUBIERTO PARA MEJOR PROTECCIÓN.","Und","Und","Si","Atención emergencia COVID-19","JM GRUPO EMPRESARIAL S.A.S","AECovid19-24",20000,"COP",1,10000,{"$f":"Q327-SUMIFS(ResumenCotizacion!L:L,ResumenCotizacion!S:S,L327,ResumenCotizacion!C:C,D327)","v":10000},0]
["EPP-34JM GRUPO EMPRESARIAL S.A.S",null,null,"EPP-34","EPP-34 - TRAJE DESECHABLE ANTIFLUIDO ","ELEMENTOS DE PROTECCION PERSONAL","TALLAS: S,M,L,XL\nCOSTURAS SERIADAS, CON CAPUCHA.\nCIERRE DE CREMALLERA FRONTAL\nMUÑECAS Y TOBILLOS ELASTICOS\nFABRICADO EN TELA ANTIFLUIDO","Und","Und","Si","Atención emergencia COVID-19","JM GRUPO EMPRESARIAL S.A.S","AECovid19-24",12000,"COP",1,100000,{"$f":"Q328-SUMIFS(ResumenCotizacion!L:L,ResumenCotizacion!S:S,L328,ResumenCotizacion!C:C,D328)","v":100000},0]
["EPP-36JM GRUPO EMPRESARIAL S.A.S",null,null,"EPP-36","EPP-36 - TRAJES DE BIO PORTECCIÓN- BLUSA ","ELEMENTOS DE PROTECCION PERSONAL","BLUSA EN TELA ANTI-FLUIDO.\nREPELENTE A LIQUIDO Y ANTI-CLORO.\nTALLAS S,M,L,XL","Und","Und","Si","Atención emergencia COVID-19","JM GRUPO EMPRESARIAL S.A.S","AECovid19-24",14499.999999899999,"COP",1,100000,{"$f":"Q329-SUMIFS(ResumenCotizacion!L:L,ResumenCotizacion!S:S,L329,ResumenCotizacion!C:C,D329)","v":100000},0]
["EPP-37JM GRUPO EMPRESARIAL S.A.S",null,null,"EPP-37","EPP-37 - TRAJES DE BIO PORTECCIÓN- PANTALON ","ELEMENTOS DE PROTECCION PERSONAL","PANTALÓN/PANTALONES, TEJIDOS, EXFOLIANTES, REUTILIZABLES O DE UN SOLO USO, DE MANGA CORTA (TÚNICA/TOPS), USADOS DEBAJO DE LAS FUNDAS O BATAS.","Und","Und","Si","Atención emergencia COVID-19","JM GRUPO EMPRESARIAL S.A.S","AECovid19-24",17000,"COP",1,100000,{"$f":"Q330-SUMIFS(ResumenCotizacion!L:L,ResumenCotizacion!S:S,L330,ResumenCotizacion!C:C,D330)","v":100000},0]
["EPP-45JM GRUPO EMPRESARIAL S.A.S",null,null,"EPP-45","EPP-45 - TAPABOCAS DESECHABLES,  TRES CAPAS TERMOSELLADO PARA NIÑOS","ELEMENTOS DE PROTECCION PERSONAL","TAPABOCAS DESECHABLE PARA NIÑOS, CON RESORTE A LA OREJA , TRES CAPAS, ADAPTADOR NASAL AJUSTABLE, TELA NO TEJIDA,TERMOSELLADOS","Und","Und","Si","Atención emergencia COVID-19","JM GRUPO EMPRESARIAL S.A.S","AECovid19-24",13400,"COP",1,100000,{"$f":"Q331-SUMIFS(ResumenCotizacion!L:L,ResumenCotizacion!S:S,L331,ResumenCotizacion!C:C,D331)","v":100000},0]
[{"$f":"D332&L332","v":"EPP-1TRENDY SUPPLIERS SAS"},null,null,"EPP-1","EPP-1 - BATA  DESECHABLE PARA PACIENTE ADULTO  - TALLA S, M , L, XL COMPUESTO POR BATA SIN MANGA CON AMARRADERA  POSTERIOR ","ELEMENTOS DE PROTECCION PERSONAL","COMPUESTO DE BATA PACIENTE MANGA CIZA, AMARRADERAS EN LA PARTE POSTERIOR 2 A NIVEL DE CUELLO Y 2 A NIVEL DE LA CINTURA EN TELA SMS 35 GRAMOS.","Und","Und","Si","Atención emergencia COVID-19","TRENDY SUPPLIERS SAS","AECovid19-581",3600,"COP",1,8000,{"$f":"Q332-SUMIFS(ResumenCotizacion!L:L,ResumenCotizacion!S:S,L332,ResumenCotizacion!C:C,D332)","v":8000},0]
["EPP-13TRENDY SUPPLIERS SAS",null,null,"EPP-13","EPP-13 - GUANTES DE LATEX  ","ELEMENTOS DE PROTECCION PERSONAL","GUANTES DE LÁTEX TALLA S,M, L  DESECHABLES, HIPOALERGÉNICOS, NO ESTÉRILES, ALTA RESISTENCIA A LA ELONGACIÓN, CON ENTALCAMIENTO LEVE INTERNO, AMBIDIESTROS, LÁTEX BLANCO, PUÑO CON REBORDE. ","Und","Und","Si","Atención emergencia COVID-19","TRENDY SUPPLIERS SAS","AECovid19-581",47000,"COP",1,1000,{"$f":"Q333-SUMIFS(ResumenCotizacion!L:L,ResumenCotizacion!S:S,L333,ResumenCotizacion!C:C,D333)","v":1000},0]
["EPP-19IMPOCOSER SAS",null,null,"EPP-19","EPP-19 - MASCARILLA FACIAL N95 (TAPA BOCA)- RESORTADA ","ELEMENTOS DE PROTECCION PERSONAL","DESECHABLE, CON RESORTE A LA OREJA , DOBLE FILTRO, ADAPTADOR NASAL AJUSTABLE, EN ALGODÓN","Und","Und","Si","Atención emergencia COVID-19","IMPOCOSER SAS","AECovid19-534",27800,"COP",1,5000,{"$f":"Q334-SUMIFS(ResumenCotizacion!L:L,ResumenCotizacion!S:S,L334,ResumenCotizacion!C:C,D334)","v":5000},0]
["EPP-30IMPOCOSER SAS",null,null,"EPP-30","EPP-30 - TAPABOCAS DESECHABLES ","ELEMENTOS DE PROTECCION PERSONAL","TAPABOCAS DESECHABLE, CON RESORTE A LA OREJA , DOBLE FILTRO, ADAPTADOR NASAL AJUSTABLE, TELA NO TEJIDA","Und","Und","Si","Atención emergencia COVID-19","IMPOCOSER SAS","AECovid19-534",10300,"COP",1,10000,{"$f":"Q335-SUMIFS(ResumenCotizacion!L:L,ResumenCotizacion!S:S,L335,ResumenCotizacion!C:C,D335)","v":10000},0]
[{"$f":"D336&L336","v":"EPP-30INDUSTRIA SUENO REAL"},null,null,"EPP-30","EPP-30 - TAPABOCAS DESECHABLES ","ELEMENTOS DE PROTECCION PERSONAL","TAPABOCAS DESECHABLE, CON RESORTE A LA OREJA , DOBLE FILTRO, ADAPTADOR NASAL AJUSTABLE, TELA NO TEJIDA","Und","Und","Si","Atención emergencia COVID-19","INDUSTRIA SUENO REAL","AECovid19-658",56000,"COP",1,1000000,{"$f":"Q336-SUMIFS(ResumenCotizacion!L:L,ResumenCotizacion!S:S,L336,ResumenCotizacion!C:C,D336)","v":1000000},0]
["EPP-32INDUSTRIA SUENO REAL",null,null,"EPP-32","EPP-32 - TAPABOCAS QUIRUGICO N95","ELEMENTOS DE PROTECCION PERSONAL","DEBE CUMPLIR LA SIGUIENTE REGLAMENTACIÓN: NTC 3851 Parte 1 Criterios para la selección y uso de los equipos de protecicion respiratoria. / NTC 3852 Parte 2 Equipos de proteccion respiratoria, proteccion contra particulas.","Und","Und","Si","Atención emergencia COVID-19","INDUSTRIA SUENO REAL","AECovid19-658",231900,"COP",1,370000,{"$f":"Q337-SUMIFS(ResumenCotizacion!L:L,ResumenCotizacion!S:S,L337,ResumenCotizacion!C:C,D337)","v":370000},0]
["EPP-10STS DE COLOMBIA S.A.S.",null,null,"EPP-10","EPP-10 - GAFAS PROTECTORAS ","ELEMENTOS DE PROTECCION PERSONAL","BUEN SELLO DE ADHERENCIA CON LA PIEL DE LA CARA, MARCO DE PVC FLEXIBLE PARA ADAPTARSE FÁCILMENTE A TODOS LOS CONTORNOS DE LA CARA CON PRESIÓN UNIFORME, ENCERRAR LOS OJOS Y LAS ÁREAS CIRCUNDANTES, USUARIOS DE ALOJAMIENTO CON GAFAS GRADUADAS, LENTE DE PLÁSTICO TRANSPARENTE CON TRATAMIENTOS RESISTENTES A LA NIEBLA Y A LOS ARAÑAZOS, sistema AJUSTABLE PARA ASEGURAR FIRMEMENTE PARA NO LIBERARSE DURANTE LA ACTIVIDAD CLÍNICA, VENTILACIÓN INDIRECTA PARA EVITAR LA NIEBLA, PUEDE SER REUTILIZABLE (SIEMPRE QUE SE DISPONGA DE LAS DISPOSICIONES ADECUADAS PARA LA DESCONTAMINACIÓN) O DESECHABLE.","Und","Und","Si","Atención emergencia COVID-19","STS DE COLOMBIA S.A.S.","AECovid19-655",132000,"COP",1,2000,{"$f":"Q338-SUMIFS(ResumenCotizacion!L:L,ResumenCotizacion!S:S,L338,ResumenCotizacion!C:C,D338)","v":2000},0]
["EPP-18STS DE COLOMBIA S.A.S.",null,null,"EPP-18","EPP-18 - MASCARILLA FACIAL N95 (TAPA BOCA) ","ELEMENTOS DE PROTECCION PERSONAL","DESECHABLE, CON TIRAS PARA AMARRAR, DOBLE FILTRO, ADAPTADOR NASAL AJUSTABLE, EN ALGODÓN,","Und","Und","Si","Atención emergencia COVID-19","STS DE COLOMBIA S.A.S.","AECovid19-655",603750,"COP",1,5000,{"$f":"Q339-SUMIFS(ResumenCotizacion!L:L,ResumenCotizacion!S:S,L339,ResumenCotizacion!C:C,D339)","v":5000},0]
["EPP-19STS DE COLOMBIA S.A.S.",null,null,"EPP-19","EPP-19 - MASCARILLA FACIAL N95 (TAPA BOCA)- RESORTADA ","ELEMENTOS DE PROTECCION PERSONAL","DESECHABLE, CON RESORTE A LA OREJA , DOBLE FILTRO, ADAPTADOR NASAL AJUSTABLE, EN ALGODÓN","Und","Und","Si","Atención emergencia COVID-19","STS DE COLOMBIA S.A.S.","AECovid19-655",497500,"COP",1,5000,{"$f":"Q340-SUMIFS(ResumenCotizacion!L:L,ResumenCotizacion!S:S,L340,ResumenCotizacion!C:C,D340)","v":5000},0]
["EPP-20STS DE COLOMBIA S.A.S.",null,null,"EPP-20","EPP-20 - MASCARILLA TIPO RESPIRADOR N95 CON VÁLVULA ","ELEMENTOS DE PROTECCION PERSONAL","MASCARILLA TIPO RESPIRADOR CON VÁLVULA PARA PARTÍCULAS, CON TECNOLOGÍA MEA, MASCARILLAS QUIRÚRGICAS/RIESGO BIOLÓGICO N95.","Und","Und","Si","Atención emergencia COVID-19","STS DE COLOMBIA S.A.S.","AECovid19-655",17990,"COP",1,5000,{"$f":"Q341-SUMIFS(ResumenCotizacion!L:L,ResumenCotizacion!S:S,L341,ResumenCotizacion!C:C,D341)","v":5000},0]
["EPP-29STS DE COLOMBIA S.A.S.",null,null,"EPP-29","EPP-29 - TAPABOCA TELA POLYESTER ANTI FLUIDO","ELEMENTOS DE PROTECCION PERSONAL","TAPABOCA DE TELA Y POLYESTER FABRICANDO CON TELA ANTIFLUIDO, CON RESORTE A LA OREJA, AJUSTABLE.","Und","Und","Si","Atención emergencia COVID-19","STS DE COLOMBIA S.A.S.","AECovid19-655",2408,"COP",1,2000,{"$f":"Q342-SUMIFS(ResumenCotizacion!L:L,ResumenCotizacion!S:S,L342,ResumenCotizacion!C:C,D342)","v":2000},0]
["EPP-30STS DE COLOMBIA S.A.S.",null,null,"EPP-30","EPP-30 - TAPABOCAS DESECHABLES ","ELEMENTOS DE PROTECCION PERSONAL","TAPABOCAS DESECHABLE, CON RESORTE A LA OREJA , DOBLE FILTRO, ADAPTADOR NASAL AJUSTABLE, TELA NO TEJIDA","Und","Und","Si","Atención emergencia COVID-19","STS DE COLOMBIA S.A.S.","AECovid19-655",99300,"COP",1,500,{"$f":"Q343-SUMIFS(ResumenCotizacion!L:L,ResumenCotizacion!S:S,L343,ResumenCotizacion!C:C,D343)","v":500},0]
["EPP-32STS DE COLOMBIA S.A.S.",null,null,"EPP-32","EPP-32 - TAPABOCAS QUIRUGICO N95","ELEMENTOS DE PROTECCION PERSONAL","DEBE CUMPLIR LA SIGUIENTE REGLAMENTACIÓN: NTC 3851 Parte 1 Criterios para la selección y uso de los equipos de protecicion respiratoria. / NTC 3852 Parte 2 Equipos de proteccion respiratoria, proteccion contra particulas.","Und","Und","Si","Atención emergencia COVID-19","STS DE COLOMBIA S.A.S.","AECovid19-655",386500,"COP",1,5000,{"$f":"Q344-SUMIFS(ResumenCotizacion!L:L,ResumenCotizacion!S:S,L344,ResumenCotizacion!C:C,D344)","v":5000},0]
["EPP-33STS DE COLOMBIA S.A.S.",null,null,"EPP-33","EPP-33 - TRAJE BIOLÓGICO ","ELEMENTOS DE PROTECCION PERSONAL","TRAJE DE PROTECCCIÓN CONTRA AGENTES BIOLÓGICOS Y QUÍMICOS, TAMAÑO (S, M, L, XL, XXL, XXXL)\n· CAPUCHA, CINTURA Y TOBILLOS ELÁSTICOS, PARA UNA MAYOR SEGURIDAD Y LIBERTAD DE\nMOVIMIENTOS.\n· MATERIAL MICROPOROSO LAMINADO, LE BRINDA UNA GRAN RESISTENCIA Y DURACIÓN, LIBRE DE FIBRAS.\n· CIERRE CUBIERTO PARA MEJOR PROTECCIÓN.","Und","Und","Si","Atención emergencia COVID-19","STS DE COLOMBIA S.A.S.","AECovid19-655",50497.5,"COP",1,1000,{"$f":"Q345-SUMIFS(ResumenCotizacion!L:L,ResumenCotizacion!S:S,L345,ResumenCotizacion!C:C,D345)","v":1000},0]
["EPP-34STS DE COLOMBIA S.A.S.",null,null,"EPP-34","EPP-34 - TRAJE DESECHABLE ANTIFLUIDO ","ELEMENTOS DE PROTECCION PERSONAL","TALLAS: S,M,L,XL\nCOSTURAS SERIADAS, CON CAPUCHA.\nCIERRE DE CREMALLERA FRONTAL\nMUÑECAS Y TOBILLOS ELASTICOS\nFABRICADO EN TELA ANTIFLUIDO","Und","Und","Si","Atención emergencia COVID-19","STS DE COLOMBIA S.A.S.","AECovid19-655",45000,"COP",1,1000,{"$f":"Q346-SUMIFS(ResumenCotizacion!L:L,ResumenCotizacion!S:S,L346,ResumenCotizacion!C:C,D346)","v":1000},0]
["EPP-35STS DE COLOMBIA S.A.S.",null,null,"EPP-35","EPP-35 - TRAJE KLEENGUAR A35 ","ELEMENTOS DE PROTECCION PERSONAL","TRAJE DE PROTECCIÓN PERSONAL.\nELABORADO CON TECNOLOGÍA SFL.\nCAPA INTERNA HECHA CON FIBRAS DE POLIPROPILENO\nTALLAS: S,M,L,XL  ","Und","Und","Si","Atención emergencia COVID-19","STS DE COLOMBIA S.A.S.","AECovid19-655",66000,"COP",1,1000,{"$f":"Q347-SUMIFS(ResumenCotizacion!L:L,ResumenCotizacion!S:S,L347,ResumenCotizacion!C:C,D347)","v":1000},0]
["EPP-39STS DE COLOMBIA S.A.S.",null,null,"EPP-39","EPP-39 - MASCARA RESPIRADOR FULLFACE CON CARTUCHO","ELEMENTOS DE PROTECCION PERSONAL","Pieza facial suave para la piel del usuario que reduzca la posibilidad de irritación en la piel para ajuste y sellamiento en la cara, con arnés minimo de cuatro (4) puntos de apoyo, se utilza en conjunto con los cartuchos para quimicos, con valvula frontal central de exhalación que ayude a una respiración más cómoda, fresca y seca. Debe estar disponible en tres tamaños: (i) pequeña (S), (ii) mediana (M), y (iii) grande (L). Debe tener acople rapido con los cartuchos y filtros, libre de piezas y partes metálicas, visor panoramico con amplio campo de visibilidad. \n\nPieza facial cara completa con visor, de doble cartucho, con la posibilidad de ser utilizada con filtros y cartuchos reemplazables para protección contra gases, vapores y material particulado como polvo, neblina y humos. La máscara respirador fullface debe tener los dos cartuchos iniciales.\n\nNOTA: si presenta este producto, debe ofrecer también los cartuchos en el siguiente item. ","Und","Und","Si","Atención emergencia COVID-19","STS DE COLOMBIA S.A.S.","AECovid19-655",308300,"COP",1,100,{"$f":"Q348-SUMIFS(ResumenCotizacion!L:L,ResumenCotizacion!S:S,L348,ResumenCotizacion!C:C,D348)","v":100},0]
["EPP-40STS DE COLOMBIA S.A.S.",null,null,"EPP-40","EPP-40 - CARTUCHO MULTIGAS","ELEMENTOS DE PROTECCION PERSONAL","El proveedor que ofrezca la MACARA RESPIRADOR FULLFACE CON CARTUCHO debe ofrecer también de manera independiente los cartuchos para esta, dichos cartuchos deben brindar una efectiva protección respiratoria contra ciertos vapores orgánicos, cloro, cloruro de hidrógeno, dióxido de cloro, dióxido de azufre, sulfuro de hidrógeno (sólo para escapar), amoníaco/metilamina, formaldehído.","Und","Und","Si","Atención emergencia COVID-19","STS DE COLOMBIA S.A.S.","AECovid19-655",55300,"COP",1,100,{"$f":"Q349-SUMIFS(ResumenCotizacion!L:L,ResumenCotizacion!S:S,L349,ResumenCotizacion!C:C,D349)","v":100},0]
["EPP-45STS DE COLOMBIA S.A.S.",null,null,"EPP-45","EPP-45 - TAPABOCAS DESECHABLES,  TRES CAPAS TERMOSELLADO PARA NIÑOS","ELEMENTOS DE PROTECCION PERSONAL","TAPABOCAS DESECHABLE PARA NIÑOS, CON RESORTE A LA OREJA , TRES CAPAS, ADAPTADOR NASAL AJUSTABLE, TELA NO TEJIDA,TERMOSELLADOS","Und","Und","Si","Atención emergencia COVID-19","STS DE COLOMBIA S.A.S.","AECovid19-655",30000,"COP",1,1000,{"$f":"Q350-SUMIFS(ResumenCotizacion!L:L,ResumenCotizacion!S:S,L350,ResumenCotizacion!C:C,D350)","v":1000},0]
[{"$f":"D351&L351","v":"EPP-10VADEL S.A.S."},null,null,"EPP-10","EPP-10 - GAFAS PROTECTORAS ","ELEMENTOS DE PROTECCION PERSONAL","BUEN SELLO DE ADHERENCIA CON LA PIEL DE LA CARA, MARCO DE PVC FLEXIBLE PARA ADAPTARSE FÁCILMENTE A TODOS LOS CONTORNOS DE LA CARA CON PRESIÓN UNIFORME, ENCERRAR LOS OJOS Y LAS ÁREAS CIRCUNDANTES, USUARIOS DE ALOJAMIENTO CON GAFAS GRADUADAS, LENTE DE PLÁSTICO TRANSPARENTE CON TRATAMIENTOS RESISTENTES A LA NIEBLA Y A LOS ARAÑAZOS, sistema AJUSTABLE PARA ASEGURAR FIRMEMENTE PARA NO LIBERARSE DURANTE LA ACTIVIDAD CLÍNICA, VENTILACIÓN INDIRECTA PARA EVITAR LA NIEBLA, PUEDE SER REUTILIZABLE (SIEMPRE QUE SE DISPONGA DE LAS DISPOSICIONES ADECUADAS PARA LA DESCONTAMINACIÓN) O DESECHABLE.","Und","Und","Si","Atención emergencia COVID-19","VADEL S.A.S.","AECovid19-542",96000,"COP",1,100,{"$f":"Q351-SUMIFS(ResumenCotizacion!L:L,ResumenCotizacion!S:S,L351,ResumenCotizacion!C:C,D351)","v":100},0]
["EPP-21VADEL S.A.S.",null,null,"EPP-21","EPP-21 - POLAINAS ","ELEMENTOS DE PROTECCION PERSONAL","Polaina antideslizante, no estéril, no tejida. Libre de hebras, ni partículas volátiles, lisa, sin deformaciones. Sellado con ultrasonido. Con recuento controlado microbiano.En Polipropileno (PP) con elástico de látex natural. Dimensión estándar. De un solo uso.","Und","Und","Si","Atención emergencia COVID-19","VADEL S.A.S.","AECovid19-542",15000,"COP",1,500,{"$f":"Q352-SUMIFS(ResumenCotizacion!L:L,ResumenCotizacion!S:S,L352,ResumenCotizacion!C:C,D352)","v":500},0]
["EPP-34VADEL S.A.S.",null,null,"EPP-34","EPP-34 - TRAJE DESECHABLE ANTIFLUIDO ","ELEMENTOS DE PROTECCION PERSONAL","TALLAS: S,M,L,XL\nCOSTURAS SERIADAS, CON CAPUCHA.\nCIERRE DE CREMALLERA FRONTAL\nMUÑECAS Y TOBILLOS ELASTICOS\nFABRICADO EN TELA ANTIFLUIDO","Und","Und","Si","Atención emergencia COVID-19","VADEL S.A.S.","AECovid19-542",39990,"COP",1,10550,{"$f":"Q353-SUMIFS(ResumenCotizacion!L:L,ResumenCotizacion!S:S,L353,ResumenCotizacion!C:C,D353)","v":10550},0]
["EPP-35VADEL S.A.S.",null,null,"EPP-35","EPP-35 - TRAJE KLEENGUAR A35 ","ELEMENTOS DE PROTECCION PERSONAL","TRAJE DE PROTECCIÓN PERSONAL.\nELABORADO CON TECNOLOGÍA SFL.\nCAPA INTERNA HECHA CON FIBRAS DE POLIPROPILENO\nTALLAS: S,M,L,XL  ","Und","Und","Si","Atención emergencia COVID-19","VADEL S.A.S.","AECovid19-542",39990,"COP",1,10550,{"$f":"Q354-SUMIFS(ResumenCotizacion!L:L,ResumenCotizacion!S:S,L354,ResumenCotizacion!C:C,D354)","v":10550},0]
[{"$f":"D355&L355","v":"EPP-19DYSATEX SAS COMERCIALIZADORA INTERNACIONAL"},null,null,"EPP-19",{"$f":"+VLOOKUP(D355,[4]Catálogo!$A$2:$C$45,3,0)","v":"EPP-19 - MASCARILLA FACIAL N95 (TAPA BOCA)- RESORTADA "},"ELEMENTOS DE PROTECCION PERSONAL",{"$f":"+VLOOKUP(D355,[4]Catálogo!$A$2:$D$45,4,0)","v":"DESECHABLE, CON RESORTE A LA OREJA , DOBLE FILTRO, ADAPTADOR NASAL AJUSTABLE, EN ALGODÓN"},"Und","Und","Si","Atención emergencia COVID-19","DYSATEX SAS COMERCIALIZADORA INTERNACIONAL","AECovid19-643",25500,"COP",1,750000,{"$f":"Q355-SUMIFS(ResumenCotizacion!L:L,ResumenCotizacion!S:S,L355,ResumenCotizacion!C:C,D355)","v":750000},0]
[{"$f":"D356&L356","v":"EPP-46BIOKEMICAL S.A.S."},null,null,"EPP-46",{"$f":"+VLOOKUP(D356,[5]Catálogo!$A$2:$C$46,3,0)","v":"EPP-46 - TAPABOCAS DESECHABLES,  TRES CAPAS TERMOSELLADO"},"ELEMENTOS DE PROTECCION PERSONAL",{"$f":"+VLOOKUP(D356,[5]Catálogo!$A$2:$D$46,4,0)","v":"TAPABOCAS DESECHABLE, CON RESORTE A LA OREJA , TRES CAPAS, ADAPTADOR NASAL AJUSTABLE (ALAMBRE RECUBIERTO DE PLASTICO), TELA NO TEJIDA. EMPAQUE INDIVIDUAL"},"Und","Und","Si","Atención emergencia COVID-19","BIOKEMICAL S.A.S.","AECovid19-543",15950,"COP",1,11000,{"$f":"Q356-SUMIFS(ResumenCotizacion!L:L,ResumenCotizacion!S:S,L356,ResumenCotizacion!C:C,D356)","v":11000},0]
[{"$f":"D357&L357","v":"EPP-46CENTRAL DE SOLDADURAS Y PROTECCION INDUSTRIAL SA"},null,null,"EPP-46",{"$f":"+VLOOKUP(D357,[5]Catálogo!$A$2:$C$46,3,0)","v":"EPP-46 - TAPABOCAS DESECHABLES,  TRES CAPAS TERMOSELLADO"},"ELEMENTOS DE PROTECCION PERSONAL",{"$f":"+VLOOKUP(D357,[5]Catálogo!$A$2:$D$46,4,0)","v":"TAPABOCAS DESECHABLE, CON RESORTE A LA OREJA , TRES CAPAS, ADAPTADOR NASAL AJUSTABLE (ALAMBRE RECUBIERTO DE PLASTICO), TELA NO TEJIDA. EMPAQUE INDIVIDUAL"},"Und","Und","Si","Atención emergencia COVID-19","CENTRAL DE SOLDADURAS Y PROTECCION INDUSTRIAL SA","AECovid19-529",8400,"COP",1,10000,{"$f":"Q357-SUMIFS(ResumenCotizacion!L:L,ResumenCotizacion!S:S,L357,ResumenCotizacion!C:C,D357)","v":10000},0]
["EPP-46Engineering Consulting Group SAS",null,null,"EPP-46",{"$f":"+VLOOKUP(D358,[5]Catálogo!$A$2:$C$46,3,0)","v":"EPP-46 - TAPABOCAS DESECHABLES,  TRES CAPAS TERMOSELLADO"},"ELEMENTOS DE PROTECCION PERSONAL",{"$f":"+VLOOKUP(D358,[5]Catálogo!$A$2:$D$46,4,0)","v":"TAPABOCAS DESECHABLE, CON RESORTE A LA OREJA , TRES CAPAS, ADAPTADOR NASAL AJUSTABLE (ALAMBRE RECUBIERTO DE PLASTICO), TELA NO TEJIDA. EMPAQUE INDIVIDUAL"},"Und","Und","Si","Atención emergencia COVID-19","Engineering Consulting Group SAS","AECovid19-619",9000,"COP",1,100000,{"$f":"Q358-SUMIFS(ResumenCotizacion!L:L,ResumenCotizacion!S:S,L358,ResumenCotizacion!C:C,D358)","v":100000},0]
["EPP-46MAINCO HEALTH CARE SAS",null,null,"EPP-46",{"$f":"+VLOOKUP(D359,[5]Catálogo!$A$2:$C$46,3,0)","v":"EPP-46 - TAPABOCAS DESECHABLES,  TRES CAPAS TERMOSELLADO"},"ELEMENTOS DE PROTECCION PERSONAL",{"$f":"+VLOOKUP(D359,[5]Catálogo!$A$2:$D$46,4,0)","v":"TAPABOCAS DESECHABLE, CON RESORTE A LA OREJA , TRES CAPAS, ADAPTADOR NASAL AJUSTABLE (ALAMBRE RECUBIERTO DE PLASTICO), TELA NO TEJIDA. EMPAQUE INDIVIDUAL"},"Und","Und","Si","Atención emergencia COVID-19","MAINCO HEALTH CARE SAS","AECovid19-650",20000,"COP",1,4000,{"$f":"Q359-SUMIFS(ResumenCotizacion!L:L,ResumenCotizacion!S:S,L359,ResumenCotizacion!C:C,D359)","v":4000},0]
[{"$f":"D360&L360","v":"EPP-30NACH SOLUCIONES AMBIENTALES E INDUSTRIALES SAS"},null,null,"EPP-30",{"$f":"+VLOOKUP(D360,[5]Catálogo!$A$2:$C$46,3,0)","v":"EPP-30 - TAPABOCAS DESECHABLES "},"ELEMENTOS DE PROTECCION PERSONAL",{"$f":"+VLOOKUP(D360,[5]Catálogo!$A$2:$D$46,4,0)","v":"TAPABOCAS DESECHABLE, CON RESORTE A LA OREJA , DOBLE FILTRO, ADAPTADOR NASAL AJUSTABLE, TELA NO TEJIDA"},"Und","Und","Si","Atención emergencia COVID-19","NACH SOLUCIONES AMBIENTALES E INDUSTRIALES SAS","AECovid19-656",20000,"COP",1,50000,{"$f":"Q360-SUMIFS(ResumenCotizacion!L:L,ResumenCotizacion!S:S,L360,ResumenCotizacion!C:C,D360)","v":50000},0]
[{"$f":"D361&L361","v":"EPP-1CONFEKAREN SAS"},null,null,"EPP-1",{"$f":"+VLOOKUP(D361,[5]Catálogo!$A$2:$C$46,3,0)","v":"EPP-1 - BATA  DESECHABLE PARA PACIENTE ADULTO  - TALLA S, M , L, XL COMPUESTO POR BATA SIN MANGA CON AMARRADERA  POSTERIOR "},"ELEMENTOS DE PROTECCION PERSONAL",{"$f":"+VLOOKUP(D361,[5]Catálogo!$A$2:$D$46,4,0)","v":"COMPUESTO DE BATA PACIENTE MANGA CIZA, AMARRADERAS EN LA PARTE POSTERIOR 2 A NIVEL DE CUELLO Y 2 A NIVEL DE LA CINTURA EN TELA SMS 35 GRAMOS."},"Und","Und","Si","Atención emergencia COVID-19","CONFEKAREN SAS","AECovid19-645",1295,"COP",1,50000,{"$f":"Q361-SUMIFS(ResumenCotizacion!L:L,ResumenCotizacion!S:S,L361,ResumenCotizacion!C:C,D361)","v":50000},0]
["EPP-2CONFEKAREN SAS",null,null,"EPP-2",{"$f":"+VLOOKUP(D362,[5]Catálogo!$A$2:$C$46,3,0)","v":"EPP-2 - BATA AISLAMIENTO NO ESTERIL MANGA LARGA "},"ELEMENTOS DE PROTECCION PERSONAL",{"$f":"+VLOOKUP(D362,[5]Catálogo!$A$2:$D$46,4,0)","v":"Debe cumplir la siguiente reglamentación: NTC 5623 - Campos Quirurgicos, Batas y trajes para aire limpio de utilizacion quirurgica como Dispositivos Medicos para pacientes, personal clinico y equipo. Parte 1 Requisitos Generales para los fabricantes procesadores y productos. NTC 5624 - Campos Quirurgicos, Batas y trajes para aire limpio de utilizacion quirurgica como Dispositivos Medicos para pacientes, personal clinico y equipo. Parte 2 Metodos de Ensayo. NTC 5625 - Campos Quirurgicos, Batas y trajes para aire limpio de utilizacion quirurgica como Dispositivos Medicos para pacientes, personal clinico y equipo. Parte 3 Requisitos y niveles de funcionamiento."},"Und","Und","Si","Atención emergencia COVID-19","CONFEKAREN SAS","AECovid19-645",1800,"COP",1,50000,{"$f":"Q362-SUMIFS(ResumenCotizacion!L:L,ResumenCotizacion!S:S,L362,ResumenCotizacion!C:C,D362)","v":50000},0]
["EPP-4CONFEKAREN SAS",null,null,"EPP-4",{"$f":"+VLOOKUP(D363,[5]Catálogo!$A$2:$C$46,3,0)","v":"EPP-4 - BATA DESECHABLE CORTAS CON MANGA RESORTADA "},"ELEMENTOS DE PROTECCION PERSONAL",{"$f":"+VLOOKUP(D363,[5]Catálogo!$A$2:$D$46,4,0)","v":"BATA DESECHABLE CORTAS CON MANGA RESORTADA CON CIERRE FRONTAL DE CREMALLERA"},"Und","Und","Si","Atención emergencia COVID-19","CONFEKAREN SAS","AECovid19-645",2500,"COP",1,50000,{"$f":"Q363-SUMIFS(ResumenCotizacion!L:L,ResumenCotizacion!S:S,L363,ResumenCotizacion!C:C,D363)","v":50000},0]
["EPP-5CONFEKAREN SAS",null,null,"EPP-5",{"$f":"+VLOOKUP(D364,[5]Catálogo!$A$2:$C$46,3,0)","v":"EPP-5 - BATA DESECHABLE PARA PACIENTE PEDIATRICO - ROPA DESECHABLE  COMPUESTO POR BATA SIN MANGA CON AMARRADERA  POSTERIOR. "},"ELEMENTOS DE PROTECCION PERSONAL",{"$f":"+VLOOKUP(D364,[5]Catálogo!$A$2:$D$46,4,0)","v":"COMPUESTO DE BATA PACIENTE MANGA CIZA DE 80 CMS, AMARRADERAS EN LA PARTE POSTERIOR 2 A NIVEL DE CUELLO Y 2 A NIVEL DE LA CINTURA EN TELA SMS 35 GRAMOS."},"Und","Und","Si","Atención emergencia COVID-19","CONFEKAREN SAS","AECovid19-645",1200,"COP",1,50000,{"$f":"Q364-SUMIFS(ResumenCotizacion!L:L,ResumenCotizacion!S:S,L364,ResumenCotizacion!C:C,D364)","v":50000},0]
["EPP-6CONFEKAREN SAS",null,null,"EPP-6",{"$f":"+VLOOKUP(D365,[5]Catálogo!$A$2:$C$46,3,0)","v":"EPP-6 - BATA PUÑO RIB "},"ELEMENTOS DE PROTECCION PERSONAL",{"$f":"+VLOOKUP(D365,[5]Catálogo!$A$2:$D$46,4,0)","v":"Tela no tejida\nDesechable\nAislante de liquidos\nAlta transpirabilidad\nManga Larga\nPuño en algodón con resorte\nCon tiras de amarre en la cintura y cuello"},"Und","Und","Si","Atención emergencia COVID-19","CONFEKAREN SAS","AECovid19-645",2500,"COP",1,50000,{"$f":"Q365-SUMIFS(ResumenCotizacion!L:L,ResumenCotizacion!S:S,L365,ResumenCotizacion!C:C,D365)","v":50000},0]
["EPP-7CONFEKAREN SAS",null,null,"EPP-7",{"$f":"+VLOOKUP(D366,[5]Catálogo!$A$2:$C$46,3,0)","v":"EPP-7 - BATA QUIRURGICA ASTOUND "},"ELEMENTOS DE PROTECCION PERSONAL",{"$f":"+VLOOKUP(D366,[5]Catálogo!$A$2:$D$46,4,0)","v":"ELABORADA EN SMS POLIPROPILENO DE ALTO RENDIMIENTO IMPERMEABLE LIBRE DE PELUSA, POLIREFORSADA EN ZONAS CRÍTICAS, PECHO Y ANTEBRAZO, RESISTENTE A PENETRACIÓN DE FLUIDOS PELIGROSOS, QUE CONSERVA SU INTEGRIDAD A LO LARGO DEL PROCEDIMIENTO QUIRÚRGICO, MANTIENE TEMPERATURA CORPORAL CONFORTABLE, INFLABILIDAD TESTIBLE CPSC 16."},"Und","Und","Si","Atención emergencia COVID-19","CONFEKAREN SAS","AECovid19-645",3000,"COP",1,50000,{"$f":"Q366-SUMIFS(ResumenCotizacion!L:L,ResumenCotizacion!S:S,L366,ResumenCotizacion!C:C,D366)","v":50000},0]
["EPP-8CONFEKAREN SAS",null,null,"EPP-8",{"$f":"+VLOOKUP(D367,[5]Catálogo!$A$2:$C$46,3,0)","v":"EPP-8 - CAMPOS QUIRURGICOS - CAMPO OPERATORIO "},"ELEMENTOS DE PROTECCION PERSONAL",{"$f":"+VLOOKUP(D367,[5]Catálogo!$A$2:$D$46,4,0)","v":"CAMPO QUIRURGICOS DESECHABLES DE\nDIFERENTES DIAMETROS Y MEDIDAS OVALADOS,\nLINEALES, EN U CUADRADOS,\nRECTANGULARES,CIRCULARES, TRIANGUALARES\nCON FENESTRA OVALADAS ,LINEALES, EN U,\nCUADRADAS,\nRECTANGULARES,CIRULARES,TRIANGULARES(CON\nO SIN REFUERZO,CON O SIN ADHESIVO).CAMPOS\nOPERATORIOS Y AUXILIARES PARA DIFERENTES\nESPECIALIDADES DESECHABLES DE DIFERENTES\nDIAMETROS Y MEDIDAS OVALADOS,LINEALES, EN\nU, CUADRADOS,RECTANGULARES,\nCIRCULARES,TRIANGULARES CON FENESTRA\nOVALADAS, LINEALES , EN U,CUADRADAS,\nRECTANGULARES,CIRCULARES,\nTRIANGULARES(CON O SIN REFUERZO ,CON O SIN\nADHESIVO)"},"Und","Und","Si","Atención emergencia COVID-19","CONFEKAREN SAS","AECovid19-645",25000,"COP",1,50000,{"$f":"Q367-SUMIFS(ResumenCotizacion!L:L,ResumenCotizacion!S:S,L367,ResumenCotizacion!C:C,D367)","v":50000},0]
["EPP-9CONFEKAREN SAS",null,null,"EPP-9",{"$f":"+VLOOKUP(D368,[5]Catálogo!$A$2:$C$46,3,0)","v":"EPP-9 - CARETAS VISORES (PROTECTOR FACIAL) "},"ELEMENTOS DE PROTECCION PERSONAL",{"$f":"+VLOOKUP(D368,[5]Catálogo!$A$2:$D$46,4,0)","v":"CARETA VISOR DE USO MEDICO EN PASTA CON SEGURO ELASTICO"},"Und","Und","Si","Atención emergencia COVID-19","CONFEKAREN SAS","AECovid19-645",1900,"COP",1,50000,{"$f":"Q368-SUMIFS(ResumenCotizacion!L:L,ResumenCotizacion!S:S,L368,ResumenCotizacion!C:C,D368)","v":50000},0]
["EPP-11CONFEKAREN SAS",null,null,"EPP-11",{"$f":"+VLOOKUP(D369,[5]Catálogo!$A$2:$C$46,3,0)","v":"EPP-11 - GORRO DESECHABLE REDONDO ELÁSTICO AZUL "},"ELEMENTOS DE PROTECCION PERSONAL",{"$f":"+VLOOKUP(D369,[5]Catálogo!$A$2:$D$46,4,0)","v":"GORRO REDONDO DESECHABLE TIPO BAÑO BOLAN 15 A 20 GRAMOS TAMAÑO ESTÁNDAR, ENCAUCHADO PARA AJUSTE SUAVE Y FIRME"},"Und","Und","Si","Atención emergencia COVID-19","CONFEKAREN SAS","AECovid19-645",8000,"COP",1,50000,{"$f":"Q369-SUMIFS(ResumenCotizacion!L:L,ResumenCotizacion!S:S,L369,ResumenCotizacion!C:C,D369)","v":50000},0]
["EPP-12CONFEKAREN SAS",null,null,"EPP-12",{"$f":"+VLOOKUP(D370,[5]Catálogo!$A$2:$C$46,3,0)","v":"EPP-12 - GORRO QUIRURJICO "},"ELEMENTOS DE PROTECCION PERSONAL",{"$f":"+VLOOKUP(D370,[5]Catálogo!$A$2:$D$46,4,0)","v":"Gorro con elástico para adaptarse al entorno craneal que se coloca en la cabeza sin que cubra totalmente la frente, ni los ojos. En Tela polipropileno 100% en spundbounded y el Resorte en Nylon blanco. 15 a 20 gramos."},"Und","Und","Si","Atención emergencia COVID-19","CONFEKAREN SAS","AECovid19-645",8000,"COP",1,50000,{"$f":"Q370-SUMIFS(ResumenCotizacion!L:L,ResumenCotizacion!S:S,L370,ResumenCotizacion!C:C,D370)","v":50000},0]
["EPP-17CONFEKAREN SAS",null,null,"EPP-17",{"$f":"+VLOOKUP(D371,[5]Catálogo!$A$2:$C$46,3,0)","v":"EPP-17 - KIT PREVENCIÓN: CONTIENE TRAJE ANTIFLUIDO, BATA QUIRURGICA, PANTALON PIJAMA, CUBRE ZAPATOS GORRO Y TAPABOCAS, CUALQUIER PIEZA SE PUEDE HACER INDEPENDIENTE, SON RESISTENTES AL CLORO "},"ELEMENTOS DE PROTECCION PERSONAL",{"$f":"+VLOOKUP(D371,[5]Catálogo!$A$2:$D$46,4,0)","v":"DEBE CONTENER TODOS LOS ELEMENTOS DESCRITOS, NO PUEDEN SER ENTREGAS PARCIALES"},"Und","Und","Si","Atención emergencia COVID-19","CONFEKAREN SAS","AECovid19-645",11600,"COP",1,50000,{"$f":"Q371-SUMIFS(ResumenCotizacion!L:L,ResumenCotizacion!S:S,L371,ResumenCotizacion!C:C,D371)","v":50000},0]
["EPP-21CONFEKAREN SAS",null,null,"EPP-21",{"$f":"+VLOOKUP(D372,[5]Catálogo!$A$2:$C$46,3,0)","v":"EPP-21 - POLAINAS "},"ELEMENTOS DE PROTECCION PERSONAL",{"$f":"+VLOOKUP(D372,[5]Catálogo!$A$2:$D$46,4,0)","v":"Polaina antideslizante, no estéril, no tejida. Libre de hebras, ni partículas volátiles, lisa, sin deformaciones. Sellado con ultrasonido. Con recuento controlado microbiano.En Polipropileno (PP) con elástico de látex natural. Dimensión estándar. De un solo uso."},"Und","Und","Si","Atención emergencia COVID-19","CONFEKAREN SAS","AECovid19-645",9700,"COP",1,50000,{"$f":"Q372-SUMIFS(ResumenCotizacion!L:L,ResumenCotizacion!S:S,L372,ResumenCotizacion!C:C,D372)","v":50000},0]
["EPP-24CONFEKAREN SAS",null,null,"EPP-24",{"$f":"+VLOOKUP(D373,[5]Catálogo!$A$2:$C$46,3,0)","v":"EPP-24 - ROPA POR CAMA DESECHABLE "},"ELEMENTOS DE PROTECCION PERSONAL",{"$f":"+VLOOKUP(D373,[5]Catálogo!$A$2:$D$46,4,0)","v":"KIT DE JUEGO DE CAMA QUE INCLUYE SABANA, FORRO, SABANA DE MOVIMIENTO "},"Und","Und","Si","Atención emergencia COVID-19","CONFEKAREN SAS","AECovid19-645",5950,"COP",1,50000,{"$f":"Q373-SUMIFS(ResumenCotizacion!L:L,ResumenCotizacion!S:S,L373,ResumenCotizacion!C:C,D373)","v":50000},0]
["EPP-25CONFEKAREN SAS",null,null,"EPP-25",{"$f":"+VLOOKUP(D374,[5]Catálogo!$A$2:$C$46,3,0)","v":"EPP-25 - SABANA DESECHABLE "},"ELEMENTOS DE PROTECCION PERSONAL",{"$f":"+VLOOKUP(D374,[5]Catálogo!$A$2:$D$46,4,0)","v":"SÁBANA AJUSTABLE DESECHABLE, CONFECCIONADA CON TEJIDO NO TEJIDO DE POLIPROPILENO (PP). CON ELÁSTICOS EN LOS EXTREMOS PARA AJUSTAR A LAS CAMILLAS."},"Und","Und","Si","Atención emergencia COVID-19","CONFEKAREN SAS","AECovid19-645",1550,"COP",1,50000,{"$f":"Q374-SUMIFS(ResumenCotizacion!L:L,ResumenCotizacion!S:S,L374,ResumenCotizacion!C:C,D374)","v":50000},0]
["EPP-27CONFEKAREN SAS",null,null,"EPP-27",{"$f":"+VLOOKUP(D375,[5]Catálogo!$A$2:$C$46,3,0)","v":"EPP-27 - SABANAS "},"ELEMENTOS DE PROTECCION PERSONAL",{"$f":"+VLOOKUP(D375,[5]Catálogo!$A$2:$D$46,4,0)","v":"DESECHABLE, PLANA, 2,40X2,20 M, EN TELA SMS 35 GR, REPELENTE DE FLUIDOS, RESISTENTE, SIN ESTERILIZAR"},"Und","Und","Si","Atención emergencia COVID-19","CONFEKAREN SAS","AECovid19-645",2850,"COP",1,50000,{"$f":"Q375-SUMIFS(ResumenCotizacion!L:L,ResumenCotizacion!S:S,L375,ResumenCotizacion!C:C,D375)","v":50000},0]
["EPP-29CONFEKAREN SAS",null,null,"EPP-29",{"$f":"+VLOOKUP(D376,[5]Catálogo!$A$2:$C$46,3,0)","v":"EPP-29 - TAPABOCA TELA POLYESTER ANTI FLUIDO"},"ELEMENTOS DE PROTECCION PERSONAL",{"$f":"+VLOOKUP(D376,[5]Catálogo!$A$2:$D$46,4,0)","v":"TAPABOCA DE TELA Y POLYESTER FABRICANDO CON TELA ANTIFLUIDO, CON RESORTE A LA OREJA, AJUSTABLE."},"Und","Und","Si","Atención emergencia COVID-19","CONFEKAREN SAS","AECovid19-645",900,"COP",1,50000,{"$f":"Q376-SUMIFS(ResumenCotizacion!L:L,ResumenCotizacion!S:S,L376,ResumenCotizacion!C:C,D376)","v":50000},0]
["EPP-33CONFEKAREN SAS",null,null,"EPP-33",{"$f":"+VLOOKUP(D377,[5]Catálogo!$A$2:$C$46,3,0)","v":"EPP-33 - TRAJE BIOLÓGICO "},"ELEMENTOS DE PROTECCION PERSONAL",{"$f":"+VLOOKUP(D377,[5]Catálogo!$A$2:$D$46,4,0)","v":"TRAJE DE PROTECCCIÓN CONTRA AGENTES BIOLÓGICOS Y QUÍMICOS, TAMAÑO (S, M, L, XL, XXL, XXXL)\n· CAPUCHA, CINTURA Y TOBILLOS ELÁSTICOS, PARA UNA MAYOR SEGURIDAD Y LIBERTAD DE\nMOVIMIENTOS.\n· MATERIAL MICROPOROSO LAMINADO, LE BRINDA UNA GRAN RESISTENCIA Y DURACIÓN, LIBRE DE FIBRAS.\n· CIERRE CUBIERTO PARA MEJOR PROTECCIÓN."},"Und","Und","Si","Atención emergencia COVID-19","CONFEKAREN SAS","AECovid19-645",10900,"COP",1,50000,{"$f":"Q377-SUMIFS(ResumenCotizacion!L:L,ResumenCotizacion!S:S,L377,ResumenCotizacion!C:C,D377)","v":50000},0]
["EPP-34CONFEKAREN SAS",null,null,"EPP-34",{"$f":"+VLOOKUP(D378,[5]Catálogo!$A$2:$C$46,3,0)","v":"EPP-34 - TRAJE DESECHABLE ANTIFLUIDO "},"ELEMENTOS DE PROTECCION PERSONAL",{"$f":"+VLOOKUP(D378,[5]Catálogo!$A$2:$D$46,4,0)","v":"TALLAS: S,M,L,XL\nCOSTURAS SERIADAS, CON CAPUCHA.\nCIERRE DE CREMALLERA FRONTAL\nMUÑECAS Y TOBILLOS ELASTICOS\nFABRICADO EN TELA ANTIFLUIDO"},"Und","Und","Si","Atención emergencia COVID-19","CONFEKAREN SAS","AECovid19-645",6400,"COP",1,50000,{"$f":"Q378-SUMIFS(ResumenCotizacion!L:L,ResumenCotizacion!S:S,L378,ResumenCotizacion!C:C,D378)","v":50000},0]
["EPP-36CONFEKAREN SAS",null,null,"EPP-36",{"$f":"+VLOOKUP(D379,[5]Catálogo!$A$2:$C$46,3,0)","v":"EPP-36 - TRAJES DE BIO PORTECCIÓN- BLUSA "},"ELEMENTOS DE PROTECCION PERSONAL",{"$f":"+VLOOKUP(D379,[5]Catálogo!$A$2:$D$46,4,0)","v":"BLUSA EN TELA ANTI-FLUIDO.\nREPELENTE A LIQUIDO Y ANTI-CLORO.\nTALLAS S,M,L,XL"},"Und","Und","Si","Atención emergencia COVID-19","CONFEKAREN SAS","AECovid19-645",3700,"COP",1,50000,{"$f":"Q379-SUMIFS(ResumenCotizacion!L:L,ResumenCotizacion!S:S,L379,ResumenCotizacion!C:C,D379)","v":50000},0]
["EPP-37CONFEKAREN SAS",null,null,"EPP-37",{"$f":"+VLOOKUP(D380,[5]Catálogo!$A$2:$C$46,3,0)","v":"EPP-37 - TRAJES DE BIO PORTECCIÓN- PANTALON "},"ELEMENTOS DE PROTECCION PERSONAL",{"$f":"+VLOOKUP(D380,[5]Catálogo!$A$2:$D$46,4,0)","v":"PANTALÓN/PANTALONES, TEJIDOS, EXFOLIANTES, REUTILIZABLES O DE UN SOLO USO, DE MANGA CORTA (TÚNICA/TOPS), USADOS DEBAJO DE LAS FUNDAS O BATAS."},"Und","Und","Si","Atención emergencia COVID-19","CONFEKAREN SAS","AECovid19-645",5800,"COP",1,50000,{"$f":"Q380-SUMIFS(ResumenCotizacion!L:L,ResumenCotizacion!S:S,L380,ResumenCotizacion!C:C,D380)","v":50000},0]
["EPP-44CONFEKAREN SAS",null,null,"EPP-44",{"$f":"+VLOOKUP(D381,[5]Catálogo!$A$2:$C$46,3,0)","v":"EPP-44 - OVEROL MULTIPROPOSITO PROTECCION ANTIFLUIDO"},"ELEMENTOS DE PROTECCION PERSONAL",{"$f":"+VLOOKUP(D381,[5]Catálogo!$A$2:$D$46,4,0)","v":"OVEROL en tela antifluido lavable alta impermeabilidad, liviano, antialérgico evita el contacto con superficies y líquidos, cuello alto para brindar más protección al usuario, con capucha ajustable y resorte en mangas, cintura y tobillos, cremallera para cierre de prenda, incluido polainas con elástico para mayor protección.\n\nMateriales: Antifluido \nTallas: M, L, XL, XXL\nColor: De acuerdo con la necesidad de la entidad \nInspecciones Físicas: Doblado, costuras, cremallera y presencia de amarres.\nInspecciones Visuales: Libre de presencia de partículas removibles, coloraciones y partículas incrustadas.\nAtributos: Antiestático, Resistencia a las bacterias y Resistencia a los hongos.\nMétodo de Esterilización: No aplica producto no estéril.\nAtoxicidad: Atóxico.\nFecha de Vencimiento: ** Tres Años Después de la Fecha de Fabricación.\nEmpaque Primario: Bolsa de Polietileno de Alta Densidad.\nTela: Antifluido 100% poliéster\nCostura interna: filete y punta de seguridad \nPespuntes: refuerzo cremallera:1/8”, contorno de capota en escote y pegue elástico.\nCondiciones de Conservación: Humedad Relativa: Entre 40%RH y 70%RH Temperatura: Entre 4ºC y 32 ºc Área de almacenamiento fresca, seca y protegido de la luz y humedad. Área de almacenamiento que no entre en contacto con aceites, colorantes, detergentes, sustancias de olor fuerte y/o productos químicos que pueden alterar las condiciones del producto.\nAdvertencias y Precauciones: No utilizar si el empaque no está en perfecto estado. Evitar humedad, salpicaduras de agua y contacto con elementos cortopunzantes durante su almacenamiento.\nMétodo de Reutilización: Producto Reutilizable."},"Und","Und","Si","Atención emergencia COVID-19","CONFEKAREN SAS","AECovid19-645",15500,"COP",1,50000,{"$f":"Q381-SUMIFS(ResumenCotizacion!L:L,ResumenCotizacion!S:S,L381,ResumenCotizacion!C:C,D381)","v":50000},0]
["EPP-29Fabian Perez",null,null,"EPP-29",{"$f":"+VLOOKUP(D382,[5]Catálogo!$A$2:$C$46,3,0)","v":"EPP-29 - TAPABOCA TELA POLYESTER ANTI FLUIDO"},"ELEMENTOS DE PROTECCION PERSONAL",{"$f":"+VLOOKUP(D382,[5]Catálogo!$A$2:$D$46,4,0)","v":"TAPABOCA DE TELA Y POLYESTER FABRICANDO CON TELA ANTIFLUIDO, CON RESORTE A LA OREJA, AJUSTABLE."},"Und","Und","Si","Atención emergencia COVID-19","Fabian Perez","AECovid19-1",575,"COP",1,5000,{"$f":"Q382-SUMIFS(ResumenCotizacion!L:L,ResumenCotizacion!S:S,L382,ResumenCotizacion!C:C,D382)","v":5000},0]
["EPP-30Fabian Perez",null,null,"EPP-30",{"$f":"+VLOOKUP(D383,[5]Catálogo!$A$2:$C$46,3,0)","v":"EPP-30 - TAPABOCAS DESECHABLES "},"ELEMENTOS DE PROTECCION PERSONAL",{"$f":"+VLOOKUP(D383,[5]Catálogo!$A$2:$D$46,4,0)","v":"TAPABOCAS DESECHABLE, CON RESORTE A LA OREJA , DOBLE FILTRO, ADAPTADOR NASAL AJUSTABLE, TELA NO TEJIDA"},"Und","Und","Si","Atención emergencia COVID-19","Fabian Perez","AECovid19-1",77300,"COP",1,1000,{"$f":"Q383-SUMIFS(ResumenCotizacion!L:L,ResumenCotizacion!S:S,L383,ResumenCotizacion!C:C,D383)","v":1000},0]
[{"$f":"D384&L384","v":"EPP-17TECNOINNSOFT SAS"},null,null,"EPP-17",{"$f":"+VLOOKUP(D384,[5]Catálogo!$A$2:$C$46,3,0)","v":"EPP-17 - KIT PREVENCIÓN: CONTIENE TRAJE ANTIFLUIDO, BATA QUIRURGICA, PANTALON PIJAMA, CUBRE ZAPATOS GORRO Y TAPABOCAS, CUALQUIER PIEZA SE PUEDE HACER INDEPENDIENTE, SON RESISTENTES AL CLORO "},"ELEMENTOS DE PROTECCION PERSONAL",{"$f":"+VLOOKUP(D384,[5]Catálogo!$A$2:$D$46,4,0)","v":"DEBE CONTENER TODOS LOS ELEMENTOS DESCRITOS, NO PUEDEN SER ENTREGAS PARCIALES"},"Und","Und","Si","Atención emergencia COVID-19","TECNOINNSOFT SAS","AECovid19-510",40000,"COP",1,1000,{"$f":"Q384-SUMIFS(ResumenCotizacion!L:L,ResumenCotizacion!S:S,L384,ResumenCotizacion!C:C,D384)","v":1000},0]
["EPP-21TECNOINNSOFT SAS",null,null,"EPP-21",{"$f":"+VLOOKUP(D385,[5]Catálogo!$A$2:$C$46,3,0)","v":"EPP-21 - POLAINAS "},"ELEMENTOS DE PROTECCION PERSONAL",{"$f":"+VLOOKUP(D385,[5]Catálogo!$A$2:$D$46,4,0)","v":"Polaina antideslizante, no estéril, no tejida. Libre de hebras, ni partículas volátiles, lisa, sin deformaciones. Sellado con ultrasonido. Con recuento controlado microbiano.En Polipropileno (PP) con elástico de látex natural. Dimensión estándar. De un solo uso."},"Und","Und","Si","Atención emergencia COVID-19","TECNOINNSOFT SAS","AECovid19-510",20600,"COP",1,500,{"$f":"Q385-SUMIFS(ResumenCotizacion!L:L,ResumenCotizacion!S:S,L385,ResumenCotizacion!C:C,D385)","v":500},0]
["EPP-30TECNOINNSOFT SAS",null,null,"EPP-30",{"$f":"+VLOOKUP(D386,[5]Catálogo!$A$2:$C$46,3,0)","v":"EPP-30 - TAPABOCAS DESECHABLES "},"ELEMENTOS DE PROTECCION PERSONAL",{"$f":"+VLOOKUP(D386,[5]Catálogo!$A$2:$D$46,4,0)","v":"TAPABOCAS DESECHABLE, CON RESORTE A LA OREJA , DOBLE FILTRO, ADAPTADOR NASAL AJUSTABLE, TELA NO TEJIDA"},"Und","Und","Si","Atención emergencia COVID-19","TECNOINNSOFT SAS","AECovid19-510",49300,"COP",1,100000,{"$f":"Q386-SUMIFS(ResumenCotizacion!L:L,ResumenCotizacion!S:S,L386,ResumenCotizacion!C:C,D386)","v":100000},0]
["EPP-31TECNOINNSOFT SAS",null,null,"EPP-31",{"$f":"+VLOOKUP(D387,[5]Catálogo!$A$2:$C$46,3,0)","v":"EPP-31 - TAPABOCAS DOBLE TELA LAVABLE "},"ELEMENTOS DE PROTECCION PERSONAL",{"$f":"+VLOOKUP(D387,[5]Catálogo!$A$2:$D$46,4,0)","v":"DOBLE TELA. REUTILIZABLE. SOPORTE NASAL. AJUSTABLE. "},"Und","Und","Si","Atención emergencia COVID-19","TECNOINNSOFT SAS","AECovid19-510",150000,"COP",1,2000,{"$f":"Q387-SUMIFS(ResumenCotizacion!L:L,ResumenCotizacion!S:S,L387,ResumenCotizacion!C:C,D387)","v":2000},0]
["EPP-33TECNOINNSOFT SAS",null,null,"EPP-33",{"$f":"+VLOOKUP(D388,[5]Catálogo!$A$2:$C$46,3,0)","v":"EPP-33 - TRAJE BIOLÓGICO "},"ELEMENTOS DE PROTECCION PERSONAL",{"$f":"+VLOOKUP(D388,[5]Catálogo!$A$2:$D$46,4,0)","v":"TRAJE DE PROTECCCIÓN CONTRA AGENTES BIOLÓGICOS Y QUÍMICOS, TAMAÑO (S, M, L, XL, XXL, XXXL)\n· CAPUCHA, CINTURA Y TOBILLOS ELÁSTICOS, PARA UNA MAYOR SEGURIDAD Y LIBERTAD DE\nMOVIMIENTOS.\n· MATERIAL MICROPOROSO LAMINADO, LE BRINDA UNA GRAN RESISTENCIA Y DURACIÓN, LIBRE DE FIBRAS.\n· CIERRE CUBIERTO PARA MEJOR PROTECCIÓN."},"Und","Und","Si","Atención emergencia COVID-19","TECNOINNSOFT SAS","AECovid19-510",29000,"COP",1,1000,{"$f":"Q388-SUMIFS(ResumenCotizacion!L:L,ResumenCotizacion!S:S,L388,ResumenCotizacion!C:C,D388)","v":1000},0]
["EPP-34TECNOINNSOFT SAS",null,null,"EPP-34",{"$f":"+VLOOKUP(D389,[5]Catálogo!$A$2:$C$46,3,0)","v":"EPP-34 - TRAJE DESECHABLE ANTIFLUIDO "},"ELEMENTOS DE PROTECCION PERSONAL",{"$f":"+VLOOKUP(D389,[5]Catálogo!$A$2:$D$46,4,0)","v":"TALLAS: S,M,L,XL\nCOSTURAS SERIADAS, CON CAPUCHA.\nCIERRE DE CREMALLERA FRONTAL\nMUÑECAS Y TOBILLOS ELASTICOS\nFABRICADO EN TELA ANTIFLUIDO"},"Und","Und","Si","Atención emergencia COVID-19","TECNOINNSOFT SAS","AECovid19-510",24000,"COP",1,1000,{"$f":"Q389-SUMIFS(ResumenCotizacion!L:L,ResumenCotizacion!S:S,L389,ResumenCotizacion!C:C,D389)","v":1000},0]
["EPP-35TECNOINNSOFT SAS",null,null,"EPP-35",{"$f":"+VLOOKUP(D390,[5]Catálogo!$A$2:$C$46,3,0)","v":"EPP-35 - TRAJE KLEENGUAR A35 "},"ELEMENTOS DE PROTECCION PERSONAL",{"$f":"+VLOOKUP(D390,[5]Catálogo!$A$2:$D$46,4,0)","v":"TRAJE DE PROTECCIÓN PERSONAL.\nELABORADO CON TECNOLOGÍA SFL.\nCAPA INTERNA HECHA CON FIBRAS DE POLIPROPILENO\nTALLAS: S,M,L,XL  "},"Und","Und","Si","Atención emergencia COVID-19","TECNOINNSOFT SAS","AECovid19-510",75000,"COP",1,200,{"$f":"Q390-SUMIFS(ResumenCotizacion!L:L,ResumenCotizacion!S:S,L390,ResumenCotizacion!C:C,D390)","v":200},0]
["EPP-44TECNOINNSOFT SAS",null,null,"EPP-44",{"$f":"+VLOOKUP(D391,[5]Catálogo!$A$2:$C$46,3,0)","v":"EPP-44 - OVEROL MULTIPROPOSITO PROTECCION ANTIFLUIDO"},"ELEMENTOS DE PROTECCION PERSONAL",{"$f":"+VLOOKUP(D391,[5]Catálogo!$A$2:$D$46,4,0)","v":"OVEROL en tela antifluido lavable alta impermeabilidad, liviano, antialérgico evita el contacto con superficies y líquidos, cuello alto para brindar más protección al usuario, con capucha ajustable y resorte en mangas, cintura y tobillos, cremallera para cierre de prenda, incluido polainas con elástico para mayor protección.\n\nMateriales: Antifluido \nTallas: M, L, XL, XXL\nColor: De acuerdo con la necesidad de la entidad \nInspecciones Físicas: Doblado, costuras, cremallera y presencia de amarres.\nInspecciones Visuales: Libre de presencia de partículas removibles, coloraciones y partículas incrustadas.\nAtributos: Antiestático, Resistencia a las bacterias y Resistencia a los hongos.\nMétodo de Esterilización: No aplica producto no estéril.\nAtoxicidad: Atóxico.\nFecha de Vencimiento: ** Tres Años Después de la Fecha de Fabricación.\nEmpaque Primario: Bolsa de Polietileno de Alta Densidad.\nTela: Antifluido 100% poliéster\nCostura interna: filete y punta de seguridad \nPespuntes: refuerzo cremallera:1/8”, contorno de capota en escote y pegue elástico.\nCondiciones de Conservación: Humedad Relativa: Entre 40%RH y 70%RH Temperatura: Entre 4ºC y 32 ºc Área de almacenamiento fresca, seca y protegido de la luz y humedad. Área de almacenamiento que no entre en contacto con aceites, colorantes, detergentes, sustancias de olor fuerte y/o productos químicos que pueden alterar las condiciones del producto.\nAdvertencias y Precauciones: No utilizar si el empaque no está en perfecto estado. Evitar humedad, salpicaduras de agua y contacto con elementos cortopunzantes durante su almacenamiento.\nMétodo de Reutilización: Producto Reutilizable."},"Und","Und","Si","Atención emergencia COVID-19","TECNOINNSOFT SAS","AECovid19-510",62000,"COP",1,1000,{"$f":"Q391-SUMIFS(ResumenCotizacion!L:L,ResumenCotizacion!S:S,L391,ResumenCotizacion!C:C,D391)","v":1000},0]
["EPP-1NACH SOLUCIONES AMBIENTALES E INDUSTRIALES SAS",null,null,"EPP-1",{"$f":"+VLOOKUP(D392,[5]Catálogo!$A$2:$C$46,3,0)","v":"EPP-1 - BATA  DESECHABLE PARA PACIENTE ADULTO  - TALLA S, M , L, XL COMPUESTO POR BATA SIN MANGA CON AMARRADERA  POSTERIOR "},"ELEMENTOS DE PROTECCION PERSONAL",{"$f":"+VLOOKUP(D392,[5]Catálogo!$A$2:$D$46,4,0)","v":"COMPUESTO DE BATA PACIENTE MANGA CIZA, AMARRADERAS EN LA PARTE POSTERIOR 2 A NIVEL DE CUELLO Y 2 A NIVEL DE LA CINTURA EN TELA SMS 35 GRAMOS."},"Und","Und","Si","Atención emergencia COVID-19","NACH SOLUCIONES AMBIENTALES E INDUSTRIALES SAS","AECovid19-656",6000,"COP",1,200,{"$f":"Q392-SUMIFS(ResumenCotizacion!L:L,ResumenCotizacion!S:S,L392,ResumenCotizacion!C:C,D392)","v":200},0]
["EPP-9NACH SOLUCIONES AMBIENTALES E INDUSTRIALES SAS",null,null,"EPP-9",{"$f":"+VLOOKUP(D393,[5]Catálogo!$A$2:$C$46,3,0)","v":"EPP-9 - CARETAS VISORES (PROTECTOR FACIAL) "},"ELEMENTOS DE PROTECCION PERSONAL",{"$f":"+VLOOKUP(D393,[5]Catálogo!$A$2:$D$46,4,0)","v":"CARETA VISOR DE USO MEDICO EN PASTA CON SEGURO ELASTICO"},"Und","Und","Si","Atención emergencia COVID-19","NACH SOLUCIONES AMBIENTALES E INDUSTRIALES SAS","AECovid19-656",10000,"COP",1,200,{"$f":"Q393-SUMIFS(ResumenCotizacion!L:L,ResumenCotizacion!S:S,L393,ResumenCotizacion!C:C,D393)","v":200},0]
["EPP-11NACH SOLUCIONES AMBIENTALES E INDUSTRIALES SAS",null,null,"EPP-11",{"$f":"+VLOOKUP(D394,[5]Catálogo!$A$2:$C$46,3,0)","v":"EPP-11 - GORRO DESECHABLE REDONDO ELÁSTICO AZUL "},"ELEMENTOS DE PROTECCION PERSONAL",{"$f":"+VLOOKUP(D394,[5]Catálogo!$A$2:$D$46,4,0)","v":"GORRO REDONDO DESECHABLE TIPO BAÑO BOLAN 15 A 20 GRAMOS TAMAÑO ESTÁNDAR, ENCAUCHADO PARA AJUSTE SUAVE Y FIRME"},"Und","Und","Si","Atención emergencia COVID-19","NACH SOLUCIONES AMBIENTALES E INDUSTRIALES SAS","AECovid19-656",15000,"COP",1,200,{"$f":"Q394-SUMIFS(ResumenCotizacion!L:L,ResumenCotizacion!S:S,L394,ResumenCotizacion!C:C,D394)","v":200},0]
["EPP-12NACH SOLUCIONES AMBIENTALES E INDUSTRIALES SAS",null,null,"EPP-12",{"$f":"+VLOOKUP(D395,[5]Catálogo!$A$2:$C$46,3,0)","v":"EPP-12 - GORRO QUIRURJICO "},"ELEMENTOS DE PROTECCION PERSONAL",{"$f":"+VLOOKUP(D395,[5]Catálogo!$A$2:$D$46,4,0)","v":"Gorro con elástico para adaptarse al entorno craneal que se coloca en la cabeza sin que cubra totalmente la frente, ni los ojos. En Tela polipropileno 100% en spundbounded y el Resorte en Nylon blanco. 15 a 20 gramos."},"Und","Und","Si","Atención emergencia COVID-19","NACH SOLUCIONES AMBIENTALES E INDUSTRIALES SAS","AECovid19-656",18000,"COP",1,200,{"$f":"Q395-SUMIFS(ResumenCotizacion!L:L,ResumenCotizacion!S:S,L395,ResumenCotizacion!C:C,D395)","v":200},0]
["EPP-13NACH SOLUCIONES AMBIENTALES E INDUSTRIALES SAS",null,null,"EPP-13",{"$f":"+VLOOKUP(D396,[5]Catálogo!$A$2:$C$46,3,0)","v":"EPP-13 - GUANTES DE LATEX  "},"ELEMENTOS DE PROTECCION PERSONAL",{"$f":"+VLOOKUP(D396,[5]Catálogo!$A$2:$D$46,4,0)","v":"GUANTES DE LÁTEX TALLA S,M, L  DESECHABLES, HIPOALERGÉNICOS, NO ESTÉRILES, ALTA RESISTENCIA A LA ELONGACIÓN, CON ENTALCAMIENTO LEVE INTERNO, AMBIDIESTROS, LÁTEX BLANCO, PUÑO CON REBORDE. "},"Und","Und","Si","Atención emergencia COVID-19","NACH SOLUCIONES AMBIENTALES E INDUSTRIALES SAS","AECovid19-656",50000,"COP",1,500,{"$f":"Q396-SUMIFS(ResumenCotizacion!L:L,ResumenCotizacion!S:S,L396,ResumenCotizacion!C:C,D396)","v":500},0]
["EPP-14NACH SOLUCIONES AMBIENTALES E INDUSTRIALES SAS",null,null,"EPP-14",{"$f":"+VLOOKUP(D397,[5]Catálogo!$A$2:$C$46,3,0)","v":"EPP-14 - GUANTES DE NITRILO "},"ELEMENTOS DE PROTECCION PERSONAL",{"$f":"+VLOOKUP(D397,[5]Catálogo!$A$2:$D$46,4,0)","v":"GUANTES DE NITRILO (CALIBRE DE 8 MILESIMAS MÍNIMO) TALLAS,M Y L DESECHABLES, HIPOALERGÉNICOS, NO ESTÉRILES, ALTA RESISTENCIA A LA ELONGACIÓN, CON ENTALCAMIENTO LEVE INTERNO, AMBIDIESTROS, PUÑO CON REBORDE."},"Und","Und","Si","Atención emergencia COVID-19","NACH SOLUCIONES AMBIENTALES E INDUSTRIALES SAS","AECovid19-656",70000,"COP",1,500,{"$f":"Q397-SUMIFS(ResumenCotizacion!L:L,ResumenCotizacion!S:S,L397,ResumenCotizacion!C:C,D397)","v":500},0]
["EPP-21NACH SOLUCIONES AMBIENTALES E INDUSTRIALES SAS",null,null,"EPP-21",{"$f":"+VLOOKUP(D398,[5]Catálogo!$A$2:$C$46,3,0)","v":"EPP-21 - POLAINAS "},"ELEMENTOS DE PROTECCION PERSONAL",{"$f":"+VLOOKUP(D398,[5]Catálogo!$A$2:$D$46,4,0)","v":"Polaina antideslizante, no estéril, no tejida. Libre de hebras, ni partículas volátiles, lisa, sin deformaciones. Sellado con ultrasonido. Con recuento controlado microbiano.En Polipropileno (PP) con elástico de látex natural. Dimensión estándar. De un solo uso."},"Und","Und","Si","Atención emergencia COVID-19","NACH SOLUCIONES AMBIENTALES E INDUSTRIALES SAS","AECovid19-656",30000,"COP",1,500,{"$f":"Q398-SUMIFS(ResumenCotizacion!L:L,ResumenCotizacion!S:S,L398,ResumenCotizacion!C:C,D398)","v":500},0]
["EPP-25NACH SOLUCIONES AMBIENTALES E INDUSTRIALES SAS",null,null,"EPP-25",{"$f":"+VLOOKUP(D399,[5]Catálogo!$A$2:$C$46,3,0)","v":"EPP-25 - SABANA DESECHABLE "},"ELEMENTOS DE PROTECCION PERSONAL",{"$f":"+VLOOKUP(D399,[5]Catálogo!$A$2:$D$46,4,0)","v":"SÁBANA AJUSTABLE DESECHABLE, CONFECCIONADA CON TEJIDO NO TEJIDO DE POLIPROPILENO (PP). CON ELÁSTICOS EN LOS EXTREMOS PARA AJUSTAR A LAS CAMILLAS."},"Und","Und","Si","Atención emergencia COVID-19","NACH SOLUCIONES AMBIENTALES E INDUSTRIALES SAS","AECovid19-656",7900,"COP",1,500,{"$f":"Q399-SUMIFS(ResumenCotizacion!L:L,ResumenCotizacion!S:S,L399,ResumenCotizacion!C:C,D399)","v":500},0]
["EPP-33NACH SOLUCIONES AMBIENTALES E INDUSTRIALES SAS",null,null,"EPP-33",{"$f":"+VLOOKUP(D400,[5]Catálogo!$A$2:$C$46,3,0)","v":"EPP-33 - TRAJE BIOLÓGICO "},"ELEMENTOS DE PROTECCION PERSONAL",{"$f":"+VLOOKUP(D400,[5]Catálogo!$A$2:$D$46,4,0)","v":"TRAJE DE PROTECCCIÓN CONTRA AGENTES BIOLÓGICOS Y QUÍMICOS, TAMAÑO (S, M, L, XL, XXL, XXXL)\n· CAPUCHA, CINTURA Y TOBILLOS ELÁSTICOS, PARA UNA MAYOR SEGURIDAD Y LIBERTAD DE\nMOVIMIENTOS.\n· MATERIAL MICROPOROSO LAMINADO, LE BRINDA UNA GRAN RESISTENCIA Y DURACIÓN, LIBRE DE FIBRAS.\n· CIERRE CUBIERTO PARA MEJOR PROTECCIÓN."},"Und","Und","Si","Atención emergencia COVID-19","NACH SOLUCIONES AMBIENTALES E INDUSTRIALES SAS","AECovid19-656",18000,"COP",1,200,{"$f":"Q400-SUMIFS(ResumenCotizacion!L:L,ResumenCotizacion!S:S,L400,ResumenCotizacion!C:C,D400)","v":200},0]
["EPP-34NACH SOLUCIONES AMBIENTALES E INDUSTRIALES SAS",null,null,"EPP-34",{"$f":"+VLOOKUP(D401,[5]Catálogo!$A$2:$C$46,3,0)","v":"EPP-34 - TRAJE DESECHABLE ANTIFLUIDO "},"ELEMENTOS DE PROTECCION PERSONAL",{"$f":"+VLOOKUP(D401,[5]Catálogo!$A$2:$D$46,4,0)","v":"TALLAS: S,M,L,XL\nCOSTURAS SERIADAS, CON CAPUCHA.\nCIERRE DE CREMALLERA FRONTAL\nMUÑECAS Y TOBILLOS ELASTICOS\nFABRICADO EN TELA ANTIFLUIDO"},"Und","Und","Si","Atención emergencia COVID-19","NACH SOLUCIONES AMBIENTALES E INDUSTRIALES SAS","AECovid19-656",40000,"COP",1,200,{"$f":"Q401-SUMIFS(ResumenCotizacion!L:L,ResumenCotizacion!S:S,L401,ResumenCotizacion!C:C,D401)","v":200},0]
["EPP-46NACH SOLUCIONES AMBIENTALES E INDUSTRIALES SAS",null,null,"EPP-46",{"$f":"+VLOOKUP(D402,[5]Catálogo!$A$2:$C$46,3,0)","v":"EPP-46 - TAPABOCAS DESECHABLES,  TRES CAPAS TERMOSELLADO"},"ELEMENTOS DE PROTECCION PERSONAL",{"$f":"+VLOOKUP(D402,[5]Catálogo!$A$2:$D$46,4,0)","v":"TAPABOCAS DESECHABLE, CON RESORTE A LA OREJA , TRES CAPAS, ADAPTADOR NASAL AJUSTABLE (ALAMBRE RECUBIERTO DE PLASTICO), TELA NO TEJIDA. EMPAQUE INDIVIDUAL"},"Und","Und","Si","Atención emergencia COVID-19","NACH SOLUCIONES AMBIENTALES E INDUSTRIALES SAS","AECovid19-656",15000,"COP",1,50000,{"$f":"Q402-SUMIFS(ResumenCotizacion!L:L,ResumenCotizacion!S:S,L402,ResumenCotizacion!C:C,D402)","v":50000},0]
["EPP-1CACHUCHAS Y CAMISETAS GOOD WILL SAS",null,null,"EPP-1",{"$f":"+VLOOKUP(D403,[5]Catálogo!$A$2:$C$46,3,0)","v":"EPP-1 - BATA  DESECHABLE PARA PACIENTE ADULTO  - TALLA S, M , L, XL COMPUESTO POR BATA SIN MANGA CON AMARRADERA  POSTERIOR "},"ELEMENTOS DE PROTECCION PERSONAL",{"$f":"+VLOOKUP(D403,[5]Catálogo!$A$2:$D$46,4,0)","v":"COMPUESTO DE BATA PACIENTE MANGA CIZA, AMARRADERAS EN LA PARTE POSTERIOR 2 A NIVEL DE CUELLO Y 2 A NIVEL DE LA CINTURA EN TELA SMS 35 GRAMOS."},"Und","Und","Si","Atención emergencia COVID-19","CACHUCHAS Y CAMISETAS GOOD WILL SAS","AECovid19-502",4125,"COP",1,5000,{"$f":"Q403-SUMIFS(ResumenCotizacion!L:L,ResumenCotizacion!S:S,L403,ResumenCotizacion!C:C,D403)","v":5000},0]
["EPP-2CACHUCHAS Y CAMISETAS GOOD WILL SAS",null,null,"EPP-2",{"$f":"+VLOOKUP(D404,[5]Catálogo!$A$2:$C$46,3,0)","v":"EPP-2 - BATA AISLAMIENTO NO ESTERIL MANGA LARGA "},"ELEMENTOS DE PROTECCION PERSONAL",{"$f":"+VLOOKUP(D404,[5]Catálogo!$A$2:$D$46,4,0)","v":"Debe cumplir la siguiente reglamentación: NTC 5623 - Campos Quirurgicos, Batas y trajes para aire limpio de utilizacion quirurgica como Dispositivos Medicos para pacientes, personal clinico y equipo. Parte 1 Requisitos Generales para los fabricantes procesadores y productos. NTC 5624 - Campos Quirurgicos, Batas y trajes para aire limpio de utilizacion quirurgica como Dispositivos Medicos para pacientes, personal clinico y equipo. Parte 2 Metodos de Ensayo. NTC 5625 - Campos Quirurgicos, Batas y trajes para aire limpio de utilizacion quirurgica como Dispositivos Medicos para pacientes, personal clinico y equipo. Parte 3 Requisitos y niveles de funcionamiento."},"Und","Und","Si","Atención emergencia COVID-19","CACHUCHAS Y CAMISETAS GOOD WILL SAS","AECovid19-502",10530,"COP",1,5000,{"$f":"Q404-SUMIFS(ResumenCotizacion!L:L,ResumenCotizacion!S:S,L404,ResumenCotizacion!C:C,D404)","v":5000},0]
["EPP-3CACHUCHAS Y CAMISETAS GOOD WILL SAS",null,null,"EPP-3",{"$f":"+VLOOKUP(D405,[5]Catálogo!$A$2:$C$46,3,0)","v":"EPP-3 - BATA CIRUJANO DESECHABLE "},"ELEMENTOS DE PROTECCION PERSONAL",{"$f":"+VLOOKUP(D405,[5]Catálogo!$A$2:$D$46,4,0)","v":"BATA CIRUJANO DESECHABLE TALLA S, M, L, XL PRESENTACION ESTERIL"},"Und","Und","Si","Atención emergencia COVID-19","CACHUCHAS Y CAMISETAS GOOD WILL SAS","AECovid19-502",10260,"COP",1,5000,{"$f":"Q405-SUMIFS(ResumenCotizacion!L:L,ResumenCotizacion!S:S,L405,ResumenCotizacion!C:C,D405)","v":5000},0]
["EPP-4CACHUCHAS Y CAMISETAS GOOD WILL SAS",null,null,"EPP-4",{"$f":"+VLOOKUP(D406,[5]Catálogo!$A$2:$C$46,3,0)","v":"EPP-4 - BATA DESECHABLE CORTAS CON MANGA RESORTADA "},"ELEMENTOS DE PROTECCION PERSONAL",{"$f":"+VLOOKUP(D406,[5]Catálogo!$A$2:$D$46,4,0)","v":"BATA DESECHABLE CORTAS CON MANGA RESORTADA CON CIERRE FRONTAL DE CREMALLERA"},"Und","Und","Si","Atención emergencia COVID-19","CACHUCHAS Y CAMISETAS GOOD WILL SAS","AECovid19-502",7375,"COP",1,5000,{"$f":"Q406-SUMIFS(ResumenCotizacion!L:L,ResumenCotizacion!S:S,L406,ResumenCotizacion!C:C,D406)","v":5000},0]
["EPP-5CACHUCHAS Y CAMISETAS GOOD WILL SAS",null,null,"EPP-5",{"$f":"+VLOOKUP(D407,[5]Catálogo!$A$2:$C$46,3,0)","v":"EPP-5 - BATA DESECHABLE PARA PACIENTE PEDIATRICO - ROPA DESECHABLE  COMPUESTO POR BATA SIN MANGA CON AMARRADERA  POSTERIOR. "},"ELEMENTOS DE PROTECCION PERSONAL",{"$f":"+VLOOKUP(D407,[5]Catálogo!$A$2:$D$46,4,0)","v":"COMPUESTO DE BATA PACIENTE MANGA CIZA DE 80 CMS, AMARRADERAS EN LA PARTE POSTERIOR 2 A NIVEL DE CUELLO Y 2 A NIVEL DE LA CINTURA EN TELA SMS 35 GRAMOS."},"Und","Und","Si","Atención emergencia COVID-19","CACHUCHAS Y CAMISETAS GOOD WILL SAS","AECovid19-502",4374,"COP",1,5000,{"$f":"Q407-SUMIFS(ResumenCotizacion!L:L,ResumenCotizacion!S:S,L407,ResumenCotizacion!C:C,D407)","v":5000},0]
["EPP-6CACHUCHAS Y CAMISETAS GOOD WILL SAS",null,null,"EPP-6",{"$f":"+VLOOKUP(D408,[5]Catálogo!$A$2:$C$46,3,0)","v":"EPP-6 - BATA PUÑO RIB "},"ELEMENTOS DE PROTECCION PERSONAL",{"$f":"+VLOOKUP(D408,[5]Catálogo!$A$2:$D$46,4,0)","v":"Tela no tejida\nDesechable\nAislante de liquidos\nAlta transpirabilidad\nManga Larga\nPuño en algodón con resorte\nCon tiras de amarre en la cintura y cuello"},"Und","Und","Si","Atención emergencia COVID-19","CACHUCHAS Y CAMISETAS GOOD WILL SAS","AECovid19-502",6660,"COP",1,5000,{"$f":"Q408-SUMIFS(ResumenCotizacion!L:L,ResumenCotizacion!S:S,L408,ResumenCotizacion!C:C,D408)","v":5000},0]
["EPP-7CACHUCHAS Y CAMISETAS GOOD WILL SAS",null,null,"EPP-7",{"$f":"+VLOOKUP(D409,[5]Catálogo!$A$2:$C$46,3,0)","v":"EPP-7 - BATA QUIRURGICA ASTOUND "},"ELEMENTOS DE PROTECCION PERSONAL",{"$f":"+VLOOKUP(D409,[5]Catálogo!$A$2:$D$46,4,0)","v":"ELABORADA EN SMS POLIPROPILENO DE ALTO RENDIMIENTO IMPERMEABLE LIBRE DE PELUSA, POLIREFORSADA EN ZONAS CRÍTICAS, PECHO Y ANTEBRAZO, RESISTENTE A PENETRACIÓN DE FLUIDOS PELIGROSOS, QUE CONSERVA SU INTEGRIDAD A LO LARGO DEL PROCEDIMIENTO QUIRÚRGICO, MANTIENE TEMPERATURA CORPORAL CONFORTABLE, INFLABILIDAD TESTIBLE CPSC 16."},"Und","Und","Si","Atención emergencia COVID-19","CACHUCHAS Y CAMISETAS GOOD WILL SAS","AECovid19-502",9180,"COP",1,5000,{"$f":"Q409-SUMIFS(ResumenCotizacion!L:L,ResumenCotizacion!S:S,L409,ResumenCotizacion!C:C,D409)","v":5000},0]
["EPP-8CACHUCHAS Y CAMISETAS GOOD WILL SAS",null,null,"EPP-8",{"$f":"+VLOOKUP(D410,[5]Catálogo!$A$2:$C$46,3,0)","v":"EPP-8 - CAMPOS QUIRURGICOS - CAMPO OPERATORIO "},"ELEMENTOS DE PROTECCION PERSONAL",{"$f":"+VLOOKUP(D410,[5]Catálogo!$A$2:$D$46,4,0)","v":"CAMPO QUIRURGICOS DESECHABLES DE\nDIFERENTES DIAMETROS Y MEDIDAS OVALADOS,\nLINEALES, EN U CUADRADOS,\nRECTANGULARES,CIRCULARES, TRIANGUALARES\nCON FENESTRA OVALADAS ,LINEALES, EN U,\nCUADRADAS,\nRECTANGULARES,CIRULARES,TRIANGULARES(CON\nO SIN REFUERZO,CON O SIN ADHESIVO).CAMPOS\nOPERATORIOS Y AUXILIARES PARA DIFERENTES\nESPECIALIDADES DESECHABLES DE DIFERENTES\nDIAMETROS Y MEDIDAS OVALADOS,LINEALES, EN\nU, CUADRADOS,RECTANGULARES,\nCIRCULARES,TRIANGULARES CON FENESTRA\nOVALADAS, LINEALES , EN U,CUADRADAS,\nRECTANGULARES,CIRCULARES,\nTRIANGULARES(CON O SIN REFUERZO ,CON O SIN\nADHESIVO)"},"Und","Und","Si","Atención emergencia COVID-19","CACHUCHAS Y CAMISETAS GOOD WILL SAS","AECovid19-502",14326,"COP",1,5000,{"$f":"Q410-SUMIFS(ResumenCotizacion!L:L,ResumenCotizacion!S:S,L410,ResumenCotizacion!C:C,D410)","v":5000},0]
["EPP-11CACHUCHAS Y CAMISETAS GOOD WILL SAS",null,null,"EPP-11",{"$f":"+VLOOKUP(D411,[5]Catálogo!$A$2:$C$46,3,0)","v":"EPP-11 - GORRO DESECHABLE REDONDO ELÁSTICO AZUL "},"ELEMENTOS DE PROTECCION PERSONAL",{"$f":"+VLOOKUP(D411,[5]Catálogo!$A$2:$D$46,4,0)","v":"GORRO REDONDO DESECHABLE TIPO BAÑO BOLAN 15 A 20 GRAMOS TAMAÑO ESTÁNDAR, ENCAUCHADO PARA AJUSTE SUAVE Y FIRME"},"Und","Und","Si","Atención emergencia COVID-19","CACHUCHAS Y CAMISETAS GOOD WILL SAS","AECovid19-502",26250,"COP",1,5000,{"$f":"Q411-SUMIFS(ResumenCotizacion!L:L,ResumenCotizacion!S:S,L411,ResumenCotizacion!C:C,D411)","v":5000},0]
["EPP-21CACHUCHAS Y CAMISETAS GOOD WILL SAS",null,null,"EPP-21",{"$f":"+VLOOKUP(D412,[5]Catálogo!$A$2:$C$46,3,0)","v":"EPP-21 - POLAINAS "},"ELEMENTOS DE PROTECCION PERSONAL",{"$f":"+VLOOKUP(D412,[5]Catálogo!$A$2:$D$46,4,0)","v":"Polaina antideslizante, no estéril, no tejida. Libre de hebras, ni partículas volátiles, lisa, sin deformaciones. Sellado con ultrasonido. Con recuento controlado microbiano.En Polipropileno (PP) con elástico de látex natural. Dimensión estándar. De un solo uso."},"Und","Und","Si","Atención emergencia COVID-19","CACHUCHAS Y CAMISETAS GOOD WILL SAS","AECovid19-502",35100,"COP",1,5000,{"$f":"Q412-SUMIFS(ResumenCotizacion!L:L,ResumenCotizacion!S:S,L412,ResumenCotizacion!C:C,D412)","v":5000},0]
["EPP-24CACHUCHAS Y CAMISETAS GOOD WILL SAS",null,null,"EPP-24",{"$f":"+VLOOKUP(D413,[5]Catálogo!$A$2:$C$46,3,0)","v":"EPP-24 - ROPA POR CAMA DESECHABLE "},"ELEMENTOS DE PROTECCION PERSONAL",{"$f":"+VLOOKUP(D413,[5]Catálogo!$A$2:$D$46,4,0)","v":"KIT DE JUEGO DE CAMA QUE INCLUYE SABANA, FORRO, SABANA DE MOVIMIENTO "},"Und","Und","Si","Atención emergencia COVID-19","CACHUCHAS Y CAMISETAS GOOD WILL SAS","AECovid19-502",12600,"COP",1,100,{"$f":"Q413-SUMIFS(ResumenCotizacion!L:L,ResumenCotizacion!S:S,L413,ResumenCotizacion!C:C,D413)","v":100},0]
["EPP-25CACHUCHAS Y CAMISETAS GOOD WILL SAS",null,null,"EPP-25",{"$f":"+VLOOKUP(D414,[5]Catálogo!$A$2:$C$46,3,0)","v":"EPP-25 - SABANA DESECHABLE "},"ELEMENTOS DE PROTECCION PERSONAL",{"$f":"+VLOOKUP(D414,[5]Catálogo!$A$2:$D$46,4,0)","v":"SÁBANA AJUSTABLE DESECHABLE, CONFECCIONADA CON TEJIDO NO TEJIDO DE POLIPROPILENO (PP). CON ELÁSTICOS EN LOS EXTREMOS PARA AJUSTAR A LAS CAMILLAS."},"Und","Und","Si","Atención emergencia COVID-19","CACHUCHAS Y CAMISETAS GOOD WILL SAS","AECovid19-502",5400,"COP",1,100,{"$f":"Q414-SUMIFS(ResumenCotizacion!L:L,ResumenCotizacion!S:S,L414,ResumenCotizacion!C:C,D414)","v":100},0]
["EPP-27CACHUCHAS Y CAMISETAS GOOD WILL SAS",null,null,"EPP-27",{"$f":"+VLOOKUP(D415,[5]Catálogo!$A$2:$C$46,3,0)","v":"EPP-27 - SABANAS "},"ELEMENTOS DE PROTECCION PERSONAL",{"$f":"+VLOOKUP(D415,[5]Catálogo!$A$2:$D$46,4,0)","v":"DESECHABLE, PLANA, 2,40X2,20 M, EN TELA SMS 35 GR, REPELENTE DE FLUIDOS, RESISTENTE, SIN ESTERILIZAR"},"Und","Und","Si","Atención emergencia COVID-19","CACHUCHAS Y CAMISETAS GOOD WILL SAS","AECovid19-502",6660,"COP",1,100,{"$f":"Q415-SUMIFS(ResumenCotizacion!L:L,ResumenCotizacion!S:S,L415,ResumenCotizacion!C:C,D415)","v":100},0]
["EPP-29CACHUCHAS Y CAMISETAS GOOD WILL SAS",null,null,"EPP-29",{"$f":"+VLOOKUP(D416,[5]Catálogo!$A$2:$C$46,3,0)","v":"EPP-29 - TAPABOCA TELA POLYESTER ANTI FLUIDO"},"ELEMENTOS DE PROTECCION PERSONAL",{"$f":"+VLOOKUP(D416,[5]Catálogo!$A$2:$D$46,4,0)","v":"TAPABOCA DE TELA Y POLYESTER FABRICANDO CON TELA ANTIFLUIDO, CON RESORTE A LA OREJA, AJUSTABLE."},"Und","Und","Si","Atención emergencia COVID-19","CACHUCHAS Y CAMISETAS GOOD WILL SAS","AECovid19-502",2900,"COP",1,3000,{"$f":"Q416-SUMIFS(ResumenCotizacion!L:L,ResumenCotizacion!S:S,L416,ResumenCotizacion!C:C,D416)","v":3000},0]
["EPP-32CACHUCHAS Y CAMISETAS GOOD WILL SAS",null,null,"EPP-32",{"$f":"+VLOOKUP(D417,[5]Catálogo!$A$2:$C$46,3,0)","v":"EPP-32 - TAPABOCAS QUIRUGICO N95"},"ELEMENTOS DE PROTECCION PERSONAL",{"$f":"+VLOOKUP(D417,[5]Catálogo!$A$2:$D$46,4,0)","v":"DEBE CUMPLIR LA SIGUIENTE REGLAMENTACIÓN: NTC 3851 Parte 1 Criterios para la selección y uso de los equipos de protecicion respiratoria. / NTC 3852 Parte 2 Equipos de proteccion respiratoria, proteccion contra particulas."},"Und","Und","Si","Atención emergencia COVID-19","CACHUCHAS Y CAMISETAS GOOD WILL SAS","AECovid19-502",579750,"COP",1,2000,{"$f":"Q417-SUMIFS(ResumenCotizacion!L:L,ResumenCotizacion!S:S,L417,ResumenCotizacion!C:C,D417)","v":2000},0]
["EPP-33CACHUCHAS Y CAMISETAS GOOD WILL SAS",null,null,"EPP-33",{"$f":"+VLOOKUP(D418,[5]Catálogo!$A$2:$C$46,3,0)","v":"EPP-33 - TRAJE BIOLÓGICO "},"ELEMENTOS DE PROTECCION PERSONAL",{"$f":"+VLOOKUP(D418,[5]Catálogo!$A$2:$D$46,4,0)","v":"TRAJE DE PROTECCCIÓN CONTRA AGENTES BIOLÓGICOS Y QUÍMICOS, TAMAÑO (S, M, L, XL, XXL, XXXL)\n· CAPUCHA, CINTURA Y TOBILLOS ELÁSTICOS, PARA UNA MAYOR SEGURIDAD Y LIBERTAD DE\nMOVIMIENTOS.\n· MATERIAL MICROPOROSO LAMINADO, LE BRINDA UNA GRAN RESISTENCIA Y DURACIÓN, LIBRE DE FIBRAS.\n· CIERRE CUBIERTO PARA MEJOR PROTECCIÓN."},"Und","Und","Si","Atención emergencia COVID-19","CACHUCHAS Y CAMISETAS GOOD WILL SAS","AECovid19-502",75746,"COP",1,500,{"$f":"Q418-SUMIFS(ResumenCotizacion!L:L,ResumenCotizacion!S:S,L418,ResumenCotizacion!C:C,D418)","v":500},0]
["EPP-34CACHUCHAS Y CAMISETAS GOOD WILL SAS",null,null,"EPP-34",{"$f":"+VLOOKUP(D419,[5]Catálogo!$A$2:$C$46,3,0)","v":"EPP-34 - TRAJE DESECHABLE ANTIFLUIDO "},"ELEMENTOS DE PROTECCION PERSONAL",{"$f":"+VLOOKUP(D419,[5]Catálogo!$A$2:$D$46,4,0)","v":"TALLAS: S,M,L,XL\nCOSTURAS SERIADAS, CON CAPUCHA.\nCIERRE DE CREMALLERA FRONTAL\nMUÑECAS Y TOBILLOS ELASTICOS\nFABRICADO EN TELA ANTIFLUIDO"},"Und","Und","Si","Atención emergencia COVID-19","CACHUCHAS Y CAMISETAS GOOD WILL SAS","AECovid19-502",22500,"COP",1,5000,{"$f":"Q419-SUMIFS(ResumenCotizacion!L:L,ResumenCotizacion!S:S,L419,ResumenCotizacion!C:C,D419)","v":5000},0]
["EPP-37CACHUCHAS Y CAMISETAS GOOD WILL SAS",null,null,"EPP-37",{"$f":"+VLOOKUP(D420,[5]Catálogo!$A$2:$C$46,3,0)","v":"EPP-37 - TRAJES DE BIO PORTECCIÓN- PANTALON "},"ELEMENTOS DE PROTECCION PERSONAL",{"$f":"+VLOOKUP(D420,[5]Catálogo!$A$2:$D$46,4,0)","v":"PANTALÓN/PANTALONES, TEJIDOS, EXFOLIANTES, REUTILIZABLES O DE UN SOLO USO, DE MANGA CORTA (TÚNICA/TOPS), USADOS DEBAJO DE LAS FUNDAS O BATAS."},"Und","Und","Si","Atención emergencia COVID-19","CACHUCHAS Y CAMISETAS GOOD WILL SAS","AECovid19-502",5844,"COP",1,5000,{"$f":"Q420-SUMIFS(ResumenCotizacion!L:L,ResumenCotizacion!S:S,L420,ResumenCotizacion!C:C,D420)","v":5000},0]
["EPP-41CACHUCHAS Y CAMISETAS GOOD WILL SAS",null,null,"EPP-41",{"$f":"+VLOOKUP(D421,[5]Catálogo!$A$2:$C$46,3,0)","v":"EPP-41 - GUANTES DE NEOPRENO"},"ELEMENTOS DE PROTECCION PERSONAL",{"$f":"+VLOOKUP(D421,[5]Catálogo!$A$2:$D$46,4,0)","v":"Guantes de Neopreno liso (Guantes de neopreno con forrado interior, mínimo de 13 pulgadas (ácidos, alcoholes, disolventes, causticas, aceites) y gran resistencia a agresiones mecánicas. Permite la manipulación intermitente en líquidos a temperaturas muy bajas. \nUnidad de empaque: Caja x 100"},"Und","Und","Si","Atención emergencia COVID-19","CACHUCHAS Y CAMISETAS GOOD WILL SAS","AECovid19-502",99456,"COP",1,100,{"$f":"Q421-SUMIFS(ResumenCotizacion!L:L,ResumenCotizacion!S:S,L421,ResumenCotizacion!C:C,D421)","v":100},0]
["EPP-43CACHUCHAS Y CAMISETAS GOOD WILL SAS",null,null,"EPP-43",{"$f":"+VLOOKUP(D422,[5]Catálogo!$A$2:$C$46,3,0)","v":"EPP-43 - GORRO QUIRURGICO CON RECUENTO CONTROLADO MICROBIANO"},"ELEMENTOS DE PROTECCION PERSONAL",{"$f":"+VLOOKUP(D422,[5]Catálogo!$A$2:$D$46,4,0)","v":"Gorro con elástico para adaptarse al entorno craneal, que se coloca en la cabeza y cubre parcialmente la frente. \nDebe cumplir con la NTC 5623, NTC 5625, NORMA CFR Title 21 Subpart E of part 807\nDebe cumplir CON RECUENTO CONTROLADO MICROBIANO, en Tela polipropileno 100%"},"Und","Und","Si","Atención emergencia COVID-19","CACHUCHAS Y CAMISETAS GOOD WILL SAS","AECovid19-502",34200,"COP",1,5000,{"$f":"Q422-SUMIFS(ResumenCotizacion!L:L,ResumenCotizacion!S:S,L422,ResumenCotizacion!C:C,D422)","v":5000},0]
["EPP-46Empaquetaduras y Empaques S.A",null,null,"EPP-46",{"$f":"+VLOOKUP(D423,[5]Catálogo!$A$2:$C$46,3,0)","v":"EPP-46 - TAPABOCAS DESECHABLES,  TRES CAPAS TERMOSELLADO"},"ELEMENTOS DE PROTECCION PERSONAL",{"$f":"+VLOOKUP(D423,[5]Catálogo!$A$2:$D$46,4,0)","v":"TAPABOCAS DESECHABLE, CON RESORTE A LA OREJA , TRES CAPAS, ADAPTADOR NASAL AJUSTABLE (ALAMBRE RECUBIERTO DE PLASTICO), TELA NO TEJIDA. EMPAQUE INDIVIDUAL"},"Und","Und","Si","Atención emergencia COVID-19","Empaquetaduras y Empaques S.A","AECovid19-660",18100,"COP",1,5200,{"$f":"Q423-SUMIFS(ResumenCotizacion!L:L,ResumenCotizacion!S:S,L423,ResumenCotizacion!C:C,D423)","v":5200},0]
[{"$f":"D424&L424","v":"EPP-46PREPACOL S.A.S"},null,null,"EPP-46",{"$f":"+VLOOKUP(D424,[5]Catálogo!$A$2:$C$46,3,0)","v":"EPP-46 - TAPABOCAS DESECHABLES,  TRES CAPAS TERMOSELLADO"},"ELEMENTOS DE PROTECCION PERSONAL",{"$f":"+VLOOKUP(D424,[5]Catálogo!$A$2:$D$46,4,0)","v":"TAPABOCAS DESECHABLE, CON RESORTE A LA OREJA , TRES CAPAS, ADAPTADOR NASAL AJUSTABLE (ALAMBRE RECUBIERTO DE PLASTICO), TELA NO TEJIDA. EMPAQUE INDIVIDUAL"},"Und","Und","Si","Atención emergencia COVID-19","PREPACOL S.A.S","AECovid19-661",13000,"COP",1,220000,{"$f":"Q424-SUMIFS(ResumenCotizacion!L:L,ResumenCotizacion!S:S,L424,ResumenCotizacion!C:C,D424)","v":220000},0]
["EPP-5AVANZA INTERNACIONAL GROUP",null,null,"EPP-5","EPP-5 - BATA DESECHABLE PARA PACIENTE PEDIATRICO - ROPA DESECHABLE  COMPUESTO POR BATA SIN MANGA CON AMARRADERA  POSTERIOR. ","ELEMENTOS DE PROTECCION PERSONAL","COMPUESTO DE BATA PACIENTE MANGA CIZA DE 80 CMS, AMARRADERAS EN LA PARTE POSTERIOR 2 A NIVEL DE CUELLO Y 2 A NIVEL DE LA CINTURA EN TELA SMS 35 GRAMOS.","Und","Und","Si","Atención emergencia COVID-19","AVANZA INTERNACIONAL GROUP","AECovid19-531",1830,"COP",1,50000,{"$f":"Q425-SUMIFS(ResumenCotizacion!L:L,ResumenCotizacion!S:S,L425,ResumenCotizacion!C:C,D425)","v":50000},0]
["EPP-7AVANZA INTERNACIONAL GROUP",null,null,"EPP-7","EPP-7 - BATA QUIRURGICA ASTOUND ","ELEMENTOS DE PROTECCION PERSONAL","ELABORADA EN SMS POLIPROPILENO DE ALTO RENDIMIENTO IMPERMEABLE LIBRE DE PELUSA, POLIREFORSADA EN ZONAS CRÍTICAS, PECHO Y ANTEBRAZO, RESISTENTE A PENETRACIÓN DE FLUIDOS PELIGROSOS, QUE CONSERVA SU INTEGRIDAD A LO LARGO DEL PROCEDIMIENTO QUIRÚRGICO, MANTIENE TEMPERATURA CORPORAL CONFORTABLE, INFLABILIDAD TESTIBLE CPSC 16.","Und","Und","Si","Atención emergencia COVID-19","AVANZA INTERNACIONAL GROUP","AECovid19-531",7500,"COP",1,50000,{"$f":"Q426-SUMIFS(ResumenCotizacion!L:L,ResumenCotizacion!S:S,L426,ResumenCotizacion!C:C,D426)","v":50000},0]
["EPP-9AVANZA INTERNACIONAL GROUP",null,null,"EPP-9","EPP-9 - CARETAS VISORES (PROTECTOR FACIAL) ","ELEMENTOS DE PROTECCION PERSONAL","CARETA VISOR DE USO MEDICO EN PASTA CON SEGURO ELASTICO","Und","Und","Si","Atención emergencia COVID-19","AVANZA INTERNACIONAL GROUP","AECovid19-531",4100,"COP",1,50000,{"$f":"Q427-SUMIFS(ResumenCotizacion!L:L,ResumenCotizacion!S:S,L427,ResumenCotizacion!C:C,D427)","v":50000},0]
["EPP-11AVANZA INTERNACIONAL GROUP",null,null,"EPP-11","EPP-11 - GORRO DESECHABLE REDONDO ELÁSTICO AZUL ","ELEMENTOS DE PROTECCION PERSONAL","GORRO REDONDO DESECHABLE TIPO BAÑO BOLAN 15 A 20 GRAMOS TAMAÑO ESTÁNDAR, ENCAUCHADO PARA AJUSTE SUAVE Y FIRME","Und","Und","Si","Atención emergencia COVID-19","AVANZA INTERNACIONAL GROUP","AECovid19-531",7950,"COP",1,50000,{"$f":"Q428-SUMIFS(ResumenCotizacion!L:L,ResumenCotizacion!S:S,L428,ResumenCotizacion!C:C,D428)","v":50000},0]
["EPP-16AVANZA INTERNACIONAL GROUP",null,null,"EPP-16","EPP-16 - KIT PREVENCION CONTAGIO (Q TAPABOCAS LAVABLE + 1 GAFAS PROTECTORAS + 1 FC ALCOHOL 55 ML, + 1 PQ TOALLITAS HUMEDAS ","ELEMENTOS DE PROTECCION PERSONAL","DEBE CONTENER TODOS LOS ELEMENTOS DESCRITOS, NO PUEDEN SER ENTREGAS PARCIALES","Und","Und","Si","Atención emergencia COVID-19","AVANZA INTERNACIONAL GROUP","AECovid19-531",11300,"COP",1,60000,{"$f":"Q429-SUMIFS(ResumenCotizacion!L:L,ResumenCotizacion!S:S,L429,ResumenCotizacion!C:C,D429)","v":60000},0]
["EPP-17AVANZA INTERNACIONAL GROUP",null,null,"EPP-17","EPP-17 - KIT PREVENCIÓN: CONTIENE TRAJE ANTIFLUIDO, BATA QUIRURGICA, PANTALON PIJAMA, CUBRE ZAPATOS GORRO Y TAPABOCAS, CUALQUIER PIEZA SE PUEDE HACER INDEPENDIENTE, SON RESISTENTES AL CLORO ","ELEMENTOS DE PROTECCION PERSONAL","DEBE CONTENER TODOS LOS ELEMENTOS DESCRITOS, NO PUEDEN SER ENTREGAS PARCIALES","Und","Und","Si","Atención emergencia COVID-19","AVANZA INTERNACIONAL GROUP","AECovid19-531",35000,"COP",1,50000,{"$f":"Q430-SUMIFS(ResumenCotizacion!L:L,ResumenCotizacion!S:S,L430,ResumenCotizacion!C:C,D430)","v":50000},0]
["EPP-18AVANZA INTERNACIONAL GROUP",null,null,"EPP-18","EPP-18 - MASCARILLA FACIAL N95 (TAPA BOCA) ","ELEMENTOS DE PROTECCION PERSONAL","DESECHABLE, CON TIRAS PARA AMARRAR, DOBLE FILTRO, ADAPTADOR NASAL AJUSTABLE, EN ALGODÓN,","Und","Und","Si","Atención emergencia COVID-19","AVANZA INTERNACIONAL GROUP","AECovid19-531",87999,"COP",1,1000,{"$f":"Q431-SUMIFS(ResumenCotizacion!L:L,ResumenCotizacion!S:S,L431,ResumenCotizacion!C:C,D431)","v":1000},0]
["EPP-19AVANZA INTERNACIONAL GROUP",null,null,"EPP-19","EPP-19 - MASCARILLA FACIAL N95 (TAPA BOCA)- RESORTADA ","ELEMENTOS DE PROTECCION PERSONAL","DESECHABLE, CON RESORTE A LA OREJA , DOBLE FILTRO, ADAPTADOR NASAL AJUSTABLE, EN ALGODÓN","Und","Und","Si","Atención emergencia COVID-19","AVANZA INTERNACIONAL GROUP","AECovid19-531",62000,"COP",1,1000,{"$f":"Q432-SUMIFS(ResumenCotizacion!L:L,ResumenCotizacion!S:S,L432,ResumenCotizacion!C:C,D432)","v":1000},0]
["EPP-20AVANZA INTERNACIONAL GROUP",null,null,"EPP-20","EPP-20 - MASCARILLA TIPO RESPIRADOR N95 CON VÁLVULA ","ELEMENTOS DE PROTECCION PERSONAL","MASCARILLA TIPO RESPIRADOR CON VÁLVULA PARA PARTÍCULAS, CON TECNOLOGÍA MEA, MASCARILLAS QUIRÚRGICAS/RIESGO BIOLÓGICO N95.","Und","Und","Si","Atención emergencia COVID-19","AVANZA INTERNACIONAL GROUP","AECovid19-531",9500,"COP",1,1000,{"$f":"Q433-SUMIFS(ResumenCotizacion!L:L,ResumenCotizacion!S:S,L433,ResumenCotizacion!C:C,D433)","v":1000},0]
["EPP-21AVANZA INTERNACIONAL GROUP",null,null,"EPP-21","EPP-21 - POLAINAS ","ELEMENTOS DE PROTECCION PERSONAL","Polaina antideslizante, no estéril, no tejida. Libre de hebras, ni partículas volátiles, lisa, sin deformaciones. Sellado con ultrasonido. Con recuento controlado microbiano.En Polipropileno (PP) con elástico de látex natural. Dimensión estándar. De un solo uso.","Und","Und","Si","Atención emergencia COVID-19","AVANZA INTERNACIONAL GROUP","AECovid19-531",19500,"COP",1,50000,{"$f":"Q434-SUMIFS(ResumenCotizacion!L:L,ResumenCotizacion!S:S,L434,ResumenCotizacion!C:C,D434)","v":50000},0]
["EPP-24AVANZA INTERNACIONAL GROUP",null,null,"EPP-24","EPP-24 - ROPA POR CAMA DESECHABLE ","ELEMENTOS DE PROTECCION PERSONAL","KIT DE JUEGO DE CAMA QUE INCLUYE SABANA, FORRO, SABANA DE MOVIMIENTO ","Und","Und","Si","Atención emergencia COVID-19","AVANZA INTERNACIONAL GROUP","AECovid19-531",7940,"COP",1,50000,{"$f":"Q435-SUMIFS(ResumenCotizacion!L:L,ResumenCotizacion!S:S,L435,ResumenCotizacion!C:C,D435)","v":50000},0]
["EPP-25AVANZA INTERNACIONAL GROUP",null,null,"EPP-25","EPP-25 - SABANA DESECHABLE ","ELEMENTOS DE PROTECCION PERSONAL","SÁBANA AJUSTABLE DESECHABLE, CONFECCIONADA CON TEJIDO NO TEJIDO DE POLIPROPILENO (PP). CON ELÁSTICOS EN LOS EXTREMOS PARA AJUSTAR A LAS CAMILLAS.","Und","Und","Si","Atención emergencia COVID-19","AVANZA INTERNACIONAL GROUP","AECovid19-531",2990,"COP",1,50000,{"$f":"Q436-SUMIFS(ResumenCotizacion!L:L,ResumenCotizacion!S:S,L436,ResumenCotizacion!C:C,D436)","v":50000},0]
["EPP-26AVANZA INTERNACIONAL GROUP",null,null,"EPP-26","EPP-26 - SABANA NO TEJIDO X100 ","ELEMENTOS DE PROTECCION PERSONAL","TELA NO TEJIDO\nDESECHABLE\nAISLANTE DE LIQUIDOS\nALTA TRANSPIRABILIDAD\nFABRICADA EN POLIESTER","Und","Und","Si","Atención emergencia COVID-19","AVANZA INTERNACIONAL GROUP","AECovid19-531",3890,"COP",1,50000,{"$f":"Q437-SUMIFS(ResumenCotizacion!L:L,ResumenCotizacion!S:S,L437,ResumenCotizacion!C:C,D437)","v":50000},0]
["EPP-29AVANZA INTERNACIONAL GROUP",null,null,"EPP-29","EPP-29 - TAPABOCA TELA POLYESTER ANTI FLUIDO","ELEMENTOS DE PROTECCION PERSONAL","TAPABOCA DE TELA Y POLYESTER FABRICANDO CON TELA ANTIFLUIDO, CON RESORTE A LA OREJA, AJUSTABLE.","Und","Und","Si","Atención emergencia COVID-19","AVANZA INTERNACIONAL GROUP","AECovid19-531",605,"COP",1,5000,{"$f":"Q438-SUMIFS(ResumenCotizacion!L:L,ResumenCotizacion!S:S,L438,ResumenCotizacion!C:C,D438)","v":5000},0]
["EPP-30AVANZA INTERNACIONAL GROUP",null,null,"EPP-30","EPP-30 - TAPABOCAS DESECHABLES ","ELEMENTOS DE PROTECCION PERSONAL","TAPABOCAS DESECHABLE, CON RESORTE A LA OREJA , DOBLE FILTRO, ADAPTADOR NASAL AJUSTABLE, TELA NO TEJIDA","Und","Und","Si","Atención emergencia COVID-19","AVANZA INTERNACIONAL GROUP","AECovid19-531",11000,"COP",1,50000,{"$f":"Q439-SUMIFS(ResumenCotizacion!L:L,ResumenCotizacion!S:S,L439,ResumenCotizacion!C:C,D439)","v":50000},0]
["EPP-34AVANZA INTERNACIONAL GROUP",null,null,"EPP-34","EPP-34 - TRAJE DESECHABLE ANTIFLUIDO ","ELEMENTOS DE PROTECCION PERSONAL","TALLAS: S,M,L,XL\nCOSTURAS SERIADAS, CON CAPUCHA.\nCIERRE DE CREMALLERA FRONTAL\nMUÑECAS Y TOBILLOS ELASTICOS\nFABRICADO EN TELA ANTIFLUIDO","Und","Und","Si","Atención emergencia COVID-19","AVANZA INTERNACIONAL GROUP","AECovid19-531",6430,"COP",1,2000,{"$f":"Q440-SUMIFS(ResumenCotizacion!L:L,ResumenCotizacion!S:S,L440,ResumenCotizacion!C:C,D440)","v":2000},0]
["EPP-36AVANZA INTERNACIONAL GROUP",null,null,"EPP-36","EPP-36 - TRAJES DE BIO PORTECCIÓN- BLUSA ","ELEMENTOS DE PROTECCION PERSONAL","BLUSA EN TELA ANTI-FLUIDO.\nREPELENTE A LIQUIDO Y ANTI-CLORO.\nTALLAS S,M,L,XL","Und","Und","Si","Atención emergencia COVID-19","AVANZA INTERNACIONAL GROUP","AECovid19-531",18500,"COP",1,50000,{"$f":"Q441-SUMIFS(ResumenCotizacion!L:L,ResumenCotizacion!S:S,L441,ResumenCotizacion!C:C,D441)","v":50000},0]
["EPP-37AVANZA INTERNACIONAL GROUP",null,null,"EPP-37","EPP-37 - TRAJES DE BIO PORTECCIÓN- PANTALON ","ELEMENTOS DE PROTECCION PERSONAL","PANTALÓN/PANTALONES, TEJIDOS, EXFOLIANTES, REUTILIZABLES O DE UN SOLO USO, DE MANGA CORTA (TÚNICA/TOPS), USADOS DEBAJO DE LAS FUNDAS O BATAS.","Und","Und","Si","Atención emergencia COVID-19","AVANZA INTERNACIONAL GROUP","AECovid19-531",9350,"COP",1,50000,{"$f":"Q442-SUMIFS(ResumenCotizacion!L:L,ResumenCotizacion!S:S,L442,ResumenCotizacion!C:C,D442)","v":50000},0]
["EPP-45AVANZA INTERNACIONAL GROUP",null,null,"EPP-45","EPP-45 - TAPABOCAS DESECHABLES,  TRES CAPAS TERMOSELLADO PARA NIÑOS","ELEMENTOS DE PROTECCION PERSONAL","TAPABOCAS DESECHABLE PARA NIÑOS, CON RESORTE A LA OREJA , TRES CAPAS, ADAPTADOR NASAL AJUSTABLE, TELA NO TEJIDA,TERMOSELLADOS","Und","Und","Si","Atención emergencia COVID-19","AVANZA INTERNACIONAL GROUP","AECovid19-531",9150,"COP",1,50000,{"$f":"Q443-SUMIFS(ResumenCotizacion!L:L,ResumenCotizacion!S:S,L443,ResumenCotizacion!C:C,D443)","v":50000},0]
[{"$f":"D444&L444","v":"EPP-29M.A.S EMPRESARIAL SM S.A.S"},null,null,"EPP-29","EPP-29 - TAPABOCA TELA POLYESTER ANTI FLUIDO","ELEMENTOS DE PROTECCION PERSONAL","TAPABOCA DE TELA Y POLYESTER FABRICANDO CON TELA ANTIFLUIDO, CON RESORTE A LA OREJA, AJUSTABLE.","Und","Und","Si","Atención emergencia COVID-19","M.A.S EMPRESARIAL SM S.A.S","AECovid19-514",1200,"COP",1,20000,{"$f":"Q444-SUMIFS(ResumenCotizacion!L:L,ResumenCotizacion!S:S,L444,ResumenCotizacion!C:C,D444)","v":20000},0]
["EPP-30M.A.S EMPRESARIAL SM S.A.S",null,null,"EPP-30","EPP-30 - TAPABOCAS DESECHABLES ","ELEMENTOS DE PROTECCION PERSONAL","TAPABOCAS DESECHABLE, CON RESORTE A LA OREJA , DOBLE FILTRO, ADAPTADOR NASAL AJUSTABLE, TELA NO TEJIDA","Und","Und","Si","Atención emergencia COVID-19","M.A.S EMPRESARIAL SM S.A.S","AECovid19-514",10900,"COP",1,20000,{"$f":"Q445-SUMIFS(ResumenCotizacion!L:L,ResumenCotizacion!S:S,L445,ResumenCotizacion!C:C,D445)","v":20000},0]
["EPP-31M.A.S EMPRESARIAL SM S.A.S",null,null,"EPP-31","EPP-31 - TAPABOCAS DOBLE TELA LAVABLE ","ELEMENTOS DE PROTECCION PERSONAL","DOBLE TELA. REUTILIZABLE. SOPORTE NASAL. AJUSTABLE. ","Und","Und","Si","Atención emergencia COVID-19","M.A.S EMPRESARIAL SM S.A.S","AECovid19-514",22100,"COP",1,20000,{"$f":"Q446-SUMIFS(ResumenCotizacion!L:L,ResumenCotizacion!S:S,L446,ResumenCotizacion!C:C,D446)","v":20000},0]
["EPP-45M.A.S EMPRESARIAL SM S.A.S",null,null,"EPP-45","EPP-45 - TAPABOCAS DESECHABLES,  TRES CAPAS TERMOSELLADO PARA NIÑOS","ELEMENTOS DE PROTECCION PERSONAL","TAPABOCAS DESECHABLE PARA NIÑOS, CON RESORTE A LA OREJA , TRES CAPAS, ADAPTADOR NASAL AJUSTABLE, TELA NO TEJIDA,TERMOSELLADOS","Und","Und","Si","Atención emergencia COVID-19","M.A.S EMPRESARIAL SM S.A.S","AECovid19-514",7200,"COP",1,20000,{"$f":"Q447-SUMIFS(ResumenCotizacion!L:L,ResumenCotizacion!S:S,L447,ResumenCotizacion!C:C,D447)","v":20000},0]
["EPP-46M.A.S EMPRESARIAL SM S.A.S",null,null,"EPP-46","EPP-46 - TAPABOCAS DESECHABLES,  TRES CAPAS TERMOSELLADO","ELEMENTOS DE PROTECCION PERSONAL","TAPABOCAS DESECHABLE, CON RESORTE A LA OREJA , TRES CAPAS, ADAPTADOR NASAL AJUSTABLE (ALAMBRE RECUBIERTO DE PLASTICO), TELA NO TEJIDA. EMPAQUE INDIVIDUAL","Und","Und","Si","Atención emergencia COVID-19","M.A.S EMPRESARIAL SM S.A.S","AECovid19-514",7190,"COP",1,30000,{"$f":"Q448-SUMIFS(ResumenCotizacion!L:L,ResumenCotizacion!S:S,L448,ResumenCotizacion!C:C,D448)","v":30000},0]
["EPP-1Comercializadora Manutex SAS",null,null,"EPP-1","EPP-1 - BATA  DESECHABLE PARA PACIENTE ADULTO  - TALLA S, M , L, XL COMPUESTO POR BATA SIN MANGA CON AMARRADERA  POSTERIOR ","ELEMENTOS DE PROTECCION PERSONAL","COMPUESTO DE BATA PACIENTE MANGA CIZA, AMARRADERAS EN LA PARTE POSTERIOR 2 A NIVEL DE CUELLO Y 2 A NIVEL DE LA CINTURA EN TELA SMS 35 GRAMOS.","Und","Und","Si","Atención emergencia COVID-19","Comercializadora Manutex SAS","AECovid19-641",1410,"COP",1,2000000,{"$f":"Q449-SUMIFS(ResumenCotizacion!L:L,ResumenCotizacion!S:S,L449,ResumenCotizacion!C:C,D449)","v":2000000},0]
["EPP-6Comercializadora Manutex SAS",null,null,"EPP-6","EPP-6 - BATA PUÑO RIB ","ELEMENTOS DE PROTECCION PERSONAL","Tela no tejida\nDesechable\nAislante de liquidos\nAlta transpirabilidad\nManga Larga\nPuño en algodón con resorte\nCon tiras de amarre en la cintura y cuello","Und","Und","Si","Atención emergencia COVID-19","Comercializadora Manutex SAS","AECovid19-641",2300,"COP",1,2000000,{"$f":"Q450-SUMIFS(ResumenCotizacion!L:L,ResumenCotizacion!S:S,L450,ResumenCotizacion!C:C,D450)","v":2000000},0]
["EPP-11Comercializadora Manutex SAS",null,null,"EPP-11","EPP-11 - GORRO DESECHABLE REDONDO ELÁSTICO AZUL ","ELEMENTOS DE PROTECCION PERSONAL","GORRO REDONDO DESECHABLE TIPO BAÑO BOLAN 15 A 20 GRAMOS TAMAÑO ESTÁNDAR, ENCAUCHADO PARA AJUSTE SUAVE Y FIRME","Und","Und","Si","Atención emergencia COVID-19","Comercializadora Manutex SAS","AECovid19-641",10500,"COP",1,2000000,{"$f":"Q451-SUMIFS(ResumenCotizacion!L:L,ResumenCotizacion!S:S,L451,ResumenCotizacion!C:C,D451)","v":2000000},0]
["EPP-46Comercializadora Manutex SAS",null,null,"EPP-46","EPP-46 - TAPABOCAS DESECHABLES,  TRES CAPAS TERMOSELLADO","ELEMENTOS DE PROTECCION PERSONAL","TAPABOCAS DESECHABLE, CON RESORTE A LA OREJA , TRES CAPAS, ADAPTADOR NASAL AJUSTABLE (ALAMBRE RECUBIERTO DE PLASTICO), TELA NO TEJIDA. EMPAQUE INDIVIDUAL","Und","Und","Si","Atención emergencia COVID-19","Comercializadora Manutex SAS","AECovid19-641",7380,"COP",1,2000000,{"$f":"Q452-SUMIFS(ResumenCotizacion!L:L,ResumenCotizacion!S:S,L452,ResumenCotizacion!C:C,D452)","v":2000000},0]
[{"$f":"D453&L453","v":"EPP-46AVANZA INTERNACIONAL GROUP"},null,null,"EPP-46","EPP-46 - TAPABOCAS DESECHABLES,  TRES CAPAS TERMOSELLADO","ELEMENTOS DE PROTECCION PERSONAL","TAPABOCAS DESECHABLE, CON RESORTE A LA OREJA , TRES CAPAS, ADAPTADOR NASAL AJUSTABLE (ALAMBRE RECUBIERTO DE PLASTICO), TELA NO TEJIDA. EMPAQUE INDIVIDUAL","Und","Und","Si","Atención emergencia COVID-19","AVANZA INTERNACIONAL GROUP","AECovid19-531",12999,"COP",1,50000,{"$f":"Q453-SUMIFS(ResumenCotizacion!L:L,ResumenCotizacion!S:S,L453,ResumenCotizacion!C:C,D453)","v":50000},0]
["EPP-1AESTHETICS & MEDICAL SOLUTIONS S.A.S",null,null,"EPP-1",{"$f":"+VLOOKUP(D454,[5]Catálogo!$A$2:$C$46,3,0)","v":"EPP-1 - BATA  DESECHABLE PARA PACIENTE ADULTO  - TALLA S, M , L, XL COMPUESTO POR BATA SIN MANGA CON AMARRADERA  POSTERIOR "},"ELEMENTOS DE PROTECCION PERSONAL",{"$f":"+VLOOKUP(D454,[5]Catálogo!$A$2:$D$46,4,0)","v":"COMPUESTO DE BATA PACIENTE MANGA CIZA, AMARRADERAS EN LA PARTE POSTERIOR 2 A NIVEL DE CUELLO Y 2 A NIVEL DE LA CINTURA EN TELA SMS 35 GRAMOS."},"Und","Und","Si","Atención emergencia COVID-19","AESTHETICS & MEDICAL SOLUTIONS S.A.S","AECovid19-558",2450,"COP",1,5000,{"$f":"Q454-SUMIFS(ResumenCotizacion!L:L,ResumenCotizacion!S:S,L454,ResumenCotizacion!C:C,D454)","v":5000},0]
["EPP-2AESTHETICS & MEDICAL SOLUTIONS S.A.S",null,null,"EPP-2",{"$f":"+VLOOKUP(D455,[5]Catálogo!$A$2:$C$46,3,0)","v":"EPP-2 - BATA AISLAMIENTO NO ESTERIL MANGA LARGA "},"ELEMENTOS DE PROTECCION PERSONAL",{"$f":"+VLOOKUP(D455,[5]Catálogo!$A$2:$D$46,4,0)","v":"Debe cumplir la siguiente reglamentación: NTC 5623 - Campos Quirurgicos, Batas y trajes para aire limpio de utilizacion quirurgica como Dispositivos Medicos para pacientes, personal clinico y equipo. Parte 1 Requisitos Generales para los fabricantes procesadores y productos. NTC 5624 - Campos Quirurgicos, Batas y trajes para aire limpio de utilizacion quirurgica como Dispositivos Medicos para pacientes, personal clinico y equipo. Parte 2 Metodos de Ensayo. NTC 5625 - Campos Quirurgicos, Batas y trajes para aire limpio de utilizacion quirurgica como Dispositivos Medicos para pacientes, personal clinico y equipo. Parte 3 Requisitos y niveles de funcionamiento."},"Und","Und","Si","Atención emergencia COVID-19","AESTHETICS & MEDICAL SOLUTIONS S.A.S","AECovid19-558",4300,"COP",1,5000,{"$f":"Q455-SUMIFS(ResumenCotizacion!L:L,ResumenCotizacion!S:S,L455,ResumenCotizacion!C:C,D455)","v":5000},0]
["EPP-6AESTHETICS & MEDICAL SOLUTIONS S.A.S",null,null,"EPP-6",{"$f":"+VLOOKUP(D456,[5]Catálogo!$A$2:$C$46,3,0)","v":"EPP-6 - BATA PUÑO RIB "},"ELEMENTOS DE PROTECCION PERSONAL",{"$f":"+VLOOKUP(D456,[5]Catálogo!$A$2:$D$46,4,0)","v":"Tela no tejida\nDesechable\nAislante de liquidos\nAlta transpirabilidad\nManga Larga\nPuño en algodón con resorte\nCon tiras de amarre en la cintura y cuello"},"Und","Und","Si","Atención emergencia COVID-19","AESTHETICS & MEDICAL SOLUTIONS S.A.S","AECovid19-558",4500,"COP",1,5000,{"$f":"Q456-SUMIFS(ResumenCotizacion!L:L,ResumenCotizacion!S:S,L456,ResumenCotizacion!C:C,D456)","v":5000},0]
["EPP-11AESTHETICS & MEDICAL SOLUTIONS S.A.S",null,null,"EPP-11",{"$f":"+VLOOKUP(D457,[5]Catálogo!$A$2:$C$46,3,0)","v":"EPP-11 - GORRO DESECHABLE REDONDO ELÁSTICO AZUL "},"ELEMENTOS DE PROTECCION PERSONAL",{"$f":"+VLOOKUP(D457,[5]Catálogo!$A$2:$D$46,4,0)","v":"GORRO REDONDO DESECHABLE TIPO BAÑO BOLAN 15 A 20 GRAMOS TAMAÑO ESTÁNDAR, ENCAUCHADO PARA AJUSTE SUAVE Y FIRME"},"Und","Und","Si","Atención emergencia COVID-19","AESTHETICS & MEDICAL SOLUTIONS S.A.S","AECovid19-558",5900,"COP",1,5000,{"$f":"Q457-SUMIFS(ResumenCotizacion!L:L,ResumenCotizacion!S:S,L457,ResumenCotizacion!C:C,D457)","v":5000},0]
["EPP-13AESTHETICS & MEDICAL SOLUTIONS S.A.S",null,null,"EPP-13",{"$f":"+VLOOKUP(D458,[5]Catálogo!$A$2:$C$46,3,0)","v":"EPP-13 - GUANTES DE LATEX  "},"ELEMENTOS DE PROTECCION PERSONAL",{"$f":"+VLOOKUP(D458,[5]Catálogo!$A$2:$D$46,4,0)","v":"GUANTES DE LÁTEX TALLA S,M, L  DESECHABLES, HIPOALERGÉNICOS, NO ESTÉRILES, ALTA RESISTENCIA A LA ELONGACIÓN, CON ENTALCAMIENTO LEVE INTERNO, AMBIDIESTROS, LÁTEX BLANCO, PUÑO CON REBORDE. "},"Und","Und","Si","Atención emergencia COVID-19","AESTHETICS & MEDICAL SOLUTIONS S.A.S","AECovid19-558",49000,"COP",1,2000,{"$f":"Q458-SUMIFS(ResumenCotizacion!L:L,ResumenCotizacion!S:S,L458,ResumenCotizacion!C:C,D458)","v":2000},0]
["EPP-14AESTHETICS & MEDICAL SOLUTIONS S.A.S",null,null,"EPP-14",{"$f":"+VLOOKUP(D459,[5]Catálogo!$A$2:$C$46,3,0)","v":"EPP-14 - GUANTES DE NITRILO "},"ELEMENTOS DE PROTECCION PERSONAL",{"$f":"+VLOOKUP(D459,[5]Catálogo!$A$2:$D$46,4,0)","v":"GUANTES DE NITRILO (CALIBRE DE 8 MILESIMAS MÍNIMO) TALLAS,M Y L DESECHABLES, HIPOALERGÉNICOS, NO ESTÉRILES, ALTA RESISTENCIA A LA ELONGACIÓN, CON ENTALCAMIENTO LEVE INTERNO, AMBIDIESTROS, PUÑO CON REBORDE."},"Und","Und","Si","Atención emergencia COVID-19","AESTHETICS & MEDICAL SOLUTIONS S.A.S","AECovid19-558",55000,"COP",1,4000,{"$f":"Q459-SUMIFS(ResumenCotizacion!L:L,ResumenCotizacion!S:S,L459,ResumenCotizacion!C:C,D459)","v":4000},0]
["EPP-21AESTHETICS & MEDICAL SOLUTIONS S.A.S",null,null,"EPP-21",{"$f":"+VLOOKUP(D460,[5]Catálogo!$A$2:$C$46,3,0)","v":"EPP-21 - POLAINAS "},"ELEMENTOS DE PROTECCION PERSONAL",{"$f":"+VLOOKUP(D460,[5]Catálogo!$A$2:$D$46,4,0)","v":"Polaina antideslizante, no estéril, no tejida. Libre de hebras, ni partículas volátiles, lisa, sin deformaciones. Sellado con ultrasonido. Con recuento controlado microbiano.En Polipropileno (PP) con elástico de látex natural. Dimensión estándar. De un solo uso."},"Und","Und","Si","Atención emergencia COVID-19","AESTHETICS & MEDICAL SOLUTIONS S.A.S","AECovid19-558",15000,"COP",1,2000,{"$f":"Q460-SUMIFS(ResumenCotizacion!L:L,ResumenCotizacion!S:S,L460,ResumenCotizacion!C:C,D460)","v":2000},0]
["EPP-30AESTHETICS & MEDICAL SOLUTIONS S.A.S",null,null,"EPP-30",{"$f":"+VLOOKUP(D461,[5]Catálogo!$A$2:$C$46,3,0)","v":"EPP-30 - TAPABOCAS DESECHABLES "},"ELEMENTOS DE PROTECCION PERSONAL",{"$f":"+VLOOKUP(D461,[5]Catálogo!$A$2:$D$46,4,0)","v":"TAPABOCAS DESECHABLE, CON RESORTE A LA OREJA , DOBLE FILTRO, ADAPTADOR NASAL AJUSTABLE, TELA NO TEJIDA"},"Und","Und","Si","Atención emergencia COVID-19","AESTHETICS & MEDICAL SOLUTIONS S.A.S","AECovid19-558",15000,"COP",1,2000,{"$f":"Q461-SUMIFS(ResumenCotizacion!L:L,ResumenCotizacion!S:S,L461,ResumenCotizacion!C:C,D461)","v":2000},0]
["EPP-1BACET GROUP SAS",null,null,"EPP-1",{"$f":"+VLOOKUP(D462,[5]Catálogo!$A$2:$C$46,3,0)","v":"EPP-1 - BATA  DESECHABLE PARA PACIENTE ADULTO  - TALLA S, M , L, XL COMPUESTO POR BATA SIN MANGA CON AMARRADERA  POSTERIOR "},"ELEMENTOS DE PROTECCION PERSONAL",{"$f":"+VLOOKUP(D462,[5]Catálogo!$A$2:$D$46,4,0)","v":"COMPUESTO DE BATA PACIENTE MANGA CIZA, AMARRADERAS EN LA PARTE POSTERIOR 2 A NIVEL DE CUELLO Y 2 A NIVEL DE LA CINTURA EN TELA SMS 35 GRAMOS."},"Und","Und","Si","Atención emergencia COVID-19","BACET GROUP SAS","AECovid19-513",1290,"COP",1,2000000,{"$f":"Q462-SUMIFS(ResumenCotizacion!L:L,ResumenCotizacion!S:S,L462,ResumenCotizacion!C:C,D462)","v":2000000},0]
["EPP-4BACET GROUP SAS",null,null,"EPP-4",{"$f":"+VLOOKUP(D463,[5]Catálogo!$A$2:$C$46,3,0)","v":"EPP-4 - BATA DESECHABLE CORTAS CON MANGA RESORTADA "},"ELEMENTOS DE PROTECCION PERSONAL",{"$f":"+VLOOKUP(D463,[5]Catálogo!$A$2:$D$46,4,0)","v":"BATA DESECHABLE CORTAS CON MANGA RESORTADA CON CIERRE FRONTAL DE CREMALLERA"},"Und","Und","Si","Atención emergencia COVID-19","BACET GROUP SAS","AECovid19-513",2129,"COP",1,2000000,{"$f":"Q463-SUMIFS(ResumenCotizacion!L:L,ResumenCotizacion!S:S,L463,ResumenCotizacion!C:C,D463)","v":2000000},0]
["EPP-5BACET GROUP SAS",null,null,"EPP-5",{"$f":"+VLOOKUP(D464,[5]Catálogo!$A$2:$C$46,3,0)","v":"EPP-5 - BATA DESECHABLE PARA PACIENTE PEDIATRICO - ROPA DESECHABLE  COMPUESTO POR BATA SIN MANGA CON AMARRADERA  POSTERIOR. "},"ELEMENTOS DE PROTECCION PERSONAL",{"$f":"+VLOOKUP(D464,[5]Catálogo!$A$2:$D$46,4,0)","v":"COMPUESTO DE BATA PACIENTE MANGA CIZA DE 80 CMS, AMARRADERAS EN LA PARTE POSTERIOR 2 A NIVEL DE CUELLO Y 2 A NIVEL DE LA CINTURA EN TELA SMS 35 GRAMOS."},"Und","Und","Si","Atención emergencia COVID-19","BACET GROUP SAS","AECovid19-513",915,"COP",1,2000000,{"$f":"Q464-SUMIFS(ResumenCotizacion!L:L,ResumenCotizacion!S:S,L464,ResumenCotizacion!C:C,D464)","v":2000000},0]
["EPP-6BACET GROUP SAS",null,null,"EPP-6",{"$f":"+VLOOKUP(D465,[5]Catálogo!$A$2:$C$46,3,0)","v":"EPP-6 - BATA PUÑO RIB "},"ELEMENTOS DE PROTECCION PERSONAL",{"$f":"+VLOOKUP(D465,[5]Catálogo!$A$2:$D$46,4,0)","v":"Tela no tejida\nDesechable\nAislante de liquidos\nAlta transpirabilidad\nManga Larga\nPuño en algodón con resorte\nCon tiras de amarre en la cintura y cuello"},"Und","Und","Si","Atención emergencia COVID-19","BACET GROUP SAS","AECovid19-513",1890,"COP",1,2000000,{"$f":"Q465-SUMIFS(ResumenCotizacion!L:L,ResumenCotizacion!S:S,L465,ResumenCotizacion!C:C,D465)","v":2000000},0]
["EPP-10BACET GROUP SAS",null,null,"EPP-10",{"$f":"+VLOOKUP(D466,[5]Catálogo!$A$2:$C$46,3,0)","v":"EPP-10 - GAFAS PROTECTORAS "},"ELEMENTOS DE PROTECCION PERSONAL",{"$f":"+VLOOKUP(D466,[5]Catálogo!$A$2:$D$46,4,0)","v":"BUEN SELLO DE ADHERENCIA CON LA PIEL DE LA CARA, MARCO DE PVC FLEXIBLE PARA ADAPTARSE FÁCILMENTE A TODOS LOS CONTORNOS DE LA CARA CON PRESIÓN UNIFORME, ENCERRAR LOS OJOS Y LAS ÁREAS CIRCUNDANTES, USUARIOS DE ALOJAMIENTO CON GAFAS GRADUADAS, LENTE DE PLÁSTICO TRANSPARENTE CON TRATAMIENTOS RESISTENTES A LA NIEBLA Y A LOS ARAÑAZOS, sistema AJUSTABLE PARA ASEGURAR FIRMEMENTE PARA NO LIBERARSE DURANTE LA ACTIVIDAD CLÍNICA, VENTILACIÓN INDIRECTA PARA EVITAR LA NIEBLA, PUEDE SER REUTILIZABLE (SIEMPRE QUE SE DISPONGA DE LAS DISPOSICIONES ADECUADAS PARA LA DESCONTAMINACIÓN) O DESECHABLE."},"Und","Und","Si","Atención emergencia COVID-19","BACET GROUP SAS","AECovid19-513",30000,"COP",1,10000,{"$f":"Q466-SUMIFS(ResumenCotizacion!L:L,ResumenCotizacion!S:S,L466,ResumenCotizacion!C:C,D466)","v":10000},0]
["EPP-11BACET GROUP SAS",null,null,"EPP-11",{"$f":"+VLOOKUP(D467,[5]Catálogo!$A$2:$C$46,3,0)","v":"EPP-11 - GORRO DESECHABLE REDONDO ELÁSTICO AZUL "},"ELEMENTOS DE PROTECCION PERSONAL",{"$f":"+VLOOKUP(D467,[5]Catálogo!$A$2:$D$46,4,0)","v":"GORRO REDONDO DESECHABLE TIPO BAÑO BOLAN 15 A 20 GRAMOS TAMAÑO ESTÁNDAR, ENCAUCHADO PARA AJUSTE SUAVE Y FIRME"},"Und","Und","Si","Atención emergencia COVID-19","BACET GROUP SAS","AECovid19-513",6000,"COP",1,1000000,{"$f":"Q467-SUMIFS(ResumenCotizacion!L:L,ResumenCotizacion!S:S,L467,ResumenCotizacion!C:C,D467)","v":1000000},0]
["EPP-12BACET GROUP SAS",null,null,"EPP-12",{"$f":"+VLOOKUP(D468,[5]Catálogo!$A$2:$C$46,3,0)","v":"EPP-12 - GORRO QUIRURJICO "},"ELEMENTOS DE PROTECCION PERSONAL",{"$f":"+VLOOKUP(D468,[5]Catálogo!$A$2:$D$46,4,0)","v":"Gorro con elástico para adaptarse al entorno craneal que se coloca en la cabeza sin que cubra totalmente la frente, ni los ojos. En Tela polipropileno 100% en spundbounded y el Resorte en Nylon blanco. 15 a 20 gramos."},"Und","Und","Si","Atención emergencia COVID-19","BACET GROUP SAS","AECovid19-513",5985,"COP",1,1000000,{"$f":"Q468-SUMIFS(ResumenCotizacion!L:L,ResumenCotizacion!S:S,L468,ResumenCotizacion!C:C,D468)","v":1000000},0]
["EPP-19BACET GROUP SAS",null,null,"EPP-19",{"$f":"+VLOOKUP(D469,[5]Catálogo!$A$2:$C$46,3,0)","v":"EPP-19 - MASCARILLA FACIAL N95 (TAPA BOCA)- RESORTADA "},"ELEMENTOS DE PROTECCION PERSONAL",{"$f":"+VLOOKUP(D469,[5]Catálogo!$A$2:$D$46,4,0)","v":"DESECHABLE, CON RESORTE A LA OREJA , DOBLE FILTRO, ADAPTADOR NASAL AJUSTABLE, EN ALGODÓN"},"Und","Und","Si","Atención emergencia COVID-19","BACET GROUP SAS","AECovid19-513",22900,"COP",1,800000,{"$f":"Q469-SUMIFS(ResumenCotizacion!L:L,ResumenCotizacion!S:S,L469,ResumenCotizacion!C:C,D469)","v":800000},0]
["EPP-21BACET GROUP SAS",null,null,"EPP-21",{"$f":"+VLOOKUP(D470,[5]Catálogo!$A$2:$C$46,3,0)","v":"EPP-21 - POLAINAS "},"ELEMENTOS DE PROTECCION PERSONAL",{"$f":"+VLOOKUP(D470,[5]Catálogo!$A$2:$D$46,4,0)","v":"Polaina antideslizante, no estéril, no tejida. Libre de hebras, ni partículas volátiles, lisa, sin deformaciones. Sellado con ultrasonido. Con recuento controlado microbiano.En Polipropileno (PP) con elástico de látex natural. Dimensión estándar. De un solo uso."},"Und","Und","Si","Atención emergencia COVID-19","BACET GROUP SAS","AECovid19-513",9780,"COP",1,300000,{"$f":"Q470-SUMIFS(ResumenCotizacion!L:L,ResumenCotizacion!S:S,L470,ResumenCotizacion!C:C,D470)","v":300000},0]
["EPP-25BACET GROUP SAS",null,null,"EPP-25",{"$f":"+VLOOKUP(D471,[5]Catálogo!$A$2:$C$46,3,0)","v":"EPP-25 - SABANA DESECHABLE "},"ELEMENTOS DE PROTECCION PERSONAL",{"$f":"+VLOOKUP(D471,[5]Catálogo!$A$2:$D$46,4,0)","v":"SÁBANA AJUSTABLE DESECHABLE, CONFECCIONADA CON TEJIDO NO TEJIDO DE POLIPROPILENO (PP). CON ELÁSTICOS EN LOS EXTREMOS PARA AJUSTAR A LAS CAMILLAS."},"Und","Und","Si","Atención emergencia COVID-19","BACET GROUP SAS","AECovid19-513",1545,"COP",1,500000,{"$f":"Q471-SUMIFS(ResumenCotizacion!L:L,ResumenCotizacion!S:S,L471,ResumenCotizacion!C:C,D471)","v":500000},0]
["EPP-27BACET GROUP SAS",null,null,"EPP-27",{"$f":"+VLOOKUP(D472,[5]Catálogo!$A$2:$C$46,3,0)","v":"EPP-27 - SABANAS "},"ELEMENTOS DE PROTECCION PERSONAL",{"$f":"+VLOOKUP(D472,[5]Catálogo!$A$2:$D$46,4,0)","v":"DESECHABLE, PLANA, 2,40X2,20 M, EN TELA SMS 35 GR, REPELENTE DE FLUIDOS, RESISTENTE, SIN ESTERILIZAR"},"Und","Und","Si","Atención emergencia COVID-19","BACET GROUP SAS","AECovid19-513",2890,"COP",1,500000,{"$f":"Q472-SUMIFS(ResumenCotizacion!L:L,ResumenCotizacion!S:S,L472,ResumenCotizacion!C:C,D472)","v":500000},0]
["EPP-29BACET GROUP SAS",null,null,"EPP-29",{"$f":"+VLOOKUP(D473,[5]Catálogo!$A$2:$C$46,3,0)","v":"EPP-29 - TAPABOCA TELA POLYESTER ANTI FLUIDO"},"ELEMENTOS DE PROTECCION PERSONAL",{"$f":"+VLOOKUP(D473,[5]Catálogo!$A$2:$D$46,4,0)","v":"TAPABOCA DE TELA Y POLYESTER FABRICANDO CON TELA ANTIFLUIDO, CON RESORTE A LA OREJA, AJUSTABLE."},"Und","Und","Si","Atención emergencia COVID-19","BACET GROUP SAS","AECovid19-513",565,"COP",1,5000000,{"$f":"Q473-SUMIFS(ResumenCotizacion!L:L,ResumenCotizacion!S:S,L473,ResumenCotizacion!C:C,D473)","v":5000000},0]
["EPP-30BACET GROUP SAS",null,null,"EPP-30",{"$f":"+VLOOKUP(D474,[5]Catálogo!$A$2:$C$46,3,0)","v":"EPP-30 - TAPABOCAS DESECHABLES "},"ELEMENTOS DE PROTECCION PERSONAL",{"$f":"+VLOOKUP(D474,[5]Catálogo!$A$2:$D$46,4,0)","v":"TAPABOCAS DESECHABLE, CON RESORTE A LA OREJA , DOBLE FILTRO, ADAPTADOR NASAL AJUSTABLE, TELA NO TEJIDA"},"Und","Und","Si","Atención emergencia COVID-19","BACET GROUP SAS","AECovid19-513",10600,"COP",1,1000000,{"$f":"Q474-SUMIFS(ResumenCotizacion!L:L,ResumenCotizacion!S:S,L474,ResumenCotizacion!C:C,D474)","v":1000000},0]
["EPP-31BACET GROUP SAS",null,null,"EPP-31",{"$f":"+VLOOKUP(D475,[5]Catálogo!$A$2:$C$46,3,0)","v":"EPP-31 - TAPABOCAS DOBLE TELA LAVABLE "},"ELEMENTOS DE PROTECCION PERSONAL",{"$f":"+VLOOKUP(D475,[5]Catálogo!$A$2:$D$46,4,0)","v":"DOBLE TELA. REUTILIZABLE. SOPORTE NASAL. AJUSTABLE. "},"Und","Und","Si","Atención emergencia COVID-19","BACET GROUP SAS","AECovid19-513",20990,"COP",1,5000000,{"$f":"Q475-SUMIFS(ResumenCotizacion!L:L,ResumenCotizacion!S:S,L475,ResumenCotizacion!C:C,D475)","v":5000000},0]
["EPP-32BACET GROUP SAS",null,null,"EPP-32",{"$f":"+VLOOKUP(D476,[5]Catálogo!$A$2:$C$46,3,0)","v":"EPP-32 - TAPABOCAS QUIRUGICO N95"},"ELEMENTOS DE PROTECCION PERSONAL",{"$f":"+VLOOKUP(D476,[5]Catálogo!$A$2:$D$46,4,0)","v":"DEBE CUMPLIR LA SIGUIENTE REGLAMENTACIÓN: NTC 3851 Parte 1 Criterios para la selección y uso de los equipos de protecicion respiratoria. / NTC 3852 Parte 2 Equipos de proteccion respiratoria, proteccion contra particulas."},"Und","Und","Si","Atención emergencia COVID-19","BACET GROUP SAS","AECovid19-513",81999,"COP",1,500000,{"$f":"Q476-SUMIFS(ResumenCotizacion!L:L,ResumenCotizacion!S:S,L476,ResumenCotizacion!C:C,D476)","v":500000},0]
["EPP-34BACET GROUP SAS",null,null,"EPP-34",{"$f":"+VLOOKUP(D477,[5]Catálogo!$A$2:$C$46,3,0)","v":"EPP-34 - TRAJE DESECHABLE ANTIFLUIDO "},"ELEMENTOS DE PROTECCION PERSONAL",{"$f":"+VLOOKUP(D477,[5]Catálogo!$A$2:$D$46,4,0)","v":"TALLAS: S,M,L,XL\nCOSTURAS SERIADAS, CON CAPUCHA.\nCIERRE DE CREMALLERA FRONTAL\nMUÑECAS Y TOBILLOS ELASTICOS\nFABRICADO EN TELA ANTIFLUIDO"},"Und","Und","Si","Atención emergencia COVID-19","BACET GROUP SAS","AECovid19-513",6250,"COP",1,3000000,{"$f":"Q477-SUMIFS(ResumenCotizacion!L:L,ResumenCotizacion!S:S,L477,ResumenCotizacion!C:C,D477)","v":3000000},0]
["EPP-42BACET GROUP SAS",null,null,"EPP-42",{"$f":"+VLOOKUP(D478,[5]Catálogo!$A$2:$C$46,3,0)","v":"EPP-42 - ZAPATOS PLÁSTICOS ANTIDESLIZANTES"},"ELEMENTOS DE PROTECCION PERSONAL",{"$f":"+VLOOKUP(D478,[5]Catálogo!$A$2:$D$46,4,0)","v":"* Capellada: EVA (ETIL Etileno Vinil Acetato, polímero termoplástico)\n* Suela: Plástico Termoplastico TPR, o caucho antideslizante y anti hongo.\n* El zapato debe ser unisex con diseño neutro tanto para hombres como para mujeres\n* Debe ser cerrado o abierto con correa que asegure el zapato hasta el talon, del mismo material del zapato\n* Suela antideslizante\n* Adecuado para cocina, baño, hospital y otros que tienen un ambiente de trabajo con agua y de uso diario \n* Debe estar disponible en colores: blanco, negro y azul petróleo \n* Debe estar disponible en tallas de la 34 a la 43. El proveedor debe adjuntar un documento que contenga la guía de tallas para la correcta selección por parte del usuario comprador. \n* Debe estar el zapato para ambos pies, derecho e izquierdo"},"Und","Und","Si","Atención emergencia COVID-19","BACET GROUP SAS","AECovid19-513",42000,"COP",1,100000,{"$f":"Q478-SUMIFS(ResumenCotizacion!L:L,ResumenCotizacion!S:S,L478,ResumenCotizacion!C:C,D478)","v":100000},0.19]
["EPP-43BACET GROUP SAS",null,null,"EPP-43",{"$f":"+VLOOKUP(D479,[5]Catálogo!$A$2:$C$46,3,0)","v":"EPP-43 - GORRO QUIRURGICO CON RECUENTO CONTROLADO MICROBIANO"},"ELEMENTOS DE PROTECCION PERSONAL",{"$f":"+VLOOKUP(D479,[5]Catálogo!$A$2:$D$46,4,0)","v":"Gorro con elástico para adaptarse al entorno craneal, que se coloca en la cabeza y cubre parcialmente la frente. \nDebe cumplir con la NTC 5623, NTC 5625, NORMA CFR Title 21 Subpart E of part 807\nDebe cumplir CON RECUENTO CONTROLADO MICROBIANO, en Tela polipropileno 100%"},"Und","Und","Si","Atención emergencia COVID-19","BACET GROUP SAS","AECovid19-513",10995,"COP",1,1000000,{"$f":"Q479-SUMIFS(ResumenCotizacion!L:L,ResumenCotizacion!S:S,L479,ResumenCotizacion!C:C,D479)","v":1000000},0]
["EPP-44BACET GROUP SAS",null,null,"EPP-44",{"$f":"+VLOOKUP(D480,[5]Catálogo!$A$2:$C$46,3,0)","v":"EPP-44 - OVEROL MULTIPROPOSITO PROTECCION ANTIFLUIDO"},"ELEMENTOS DE PROTECCION PERSONAL",{"$f":"+VLOOKUP(D480,[5]Catálogo!$A$2:$D$46,4,0)","v":"OVEROL en tela antifluido lavable alta impermeabilidad, liviano, antialérgico evita el contacto con superficies y líquidos, cuello alto para brindar más protección al usuario, con capucha ajustable y resorte en mangas, cintura y tobillos, cremallera para cierre de prenda, incluido polainas con elástico para mayor protección.\n\nMateriales: Antifluido \nTallas: M, L, XL, XXL\nColor: De acuerdo con la necesidad de la entidad \nInspecciones Físicas: Doblado, costuras, cremallera y presencia de amarres.\nInspecciones Visuales: Libre de presencia de partículas removibles, coloraciones y partículas incrustadas.\nAtributos: Antiestático, Resistencia a las bacterias y Resistencia a los hongos.\nMétodo de Esterilización: No aplica producto no estéril.\nAtoxicidad: Atóxico.\nFecha de Vencimiento: ** Tres Años Después de la Fecha de Fabricación.\nEmpaque Primario: Bolsa de Polietileno de Alta Densidad.\nTela: Antifluido 100% poliéster\nCostura interna: filete y punta de seguridad \nPespuntes: refuerzo cremallera:1/8”, contorno de capota en escote y pegue elástico.\nCondiciones de Conservación: Humedad Relativa: Entre 40%RH y 70%RH Temperatura: Entre 4ºC y 32 ºc Área de almacenamiento fresca, seca y protegido de la luz y humedad. Área de almacenamiento que no entre en contacto con aceites, colorantes, detergentes, sustancias de olor fuerte y/o productos químicos que pueden alterar las condiciones del producto.\nAdvertencias y Precauciones: No utilizar si el empaque no está en perfecto estado. Evitar humedad, salpicaduras de agua y contacto con elementos cortopunzantes durante su almacenamiento.\nMétodo de Reutilización: Producto Reutilizable."},"Und","Und","Si","Atención emergencia COVID-19","BACET GROUP SAS","AECovid19-513",14990,"COP",1,500000,{"$f":"Q480-SUMIFS(ResumenCotizacion!L:L,ResumenCotizacion!S:S,L480,ResumenCotizacion!C:C,D480)","v":500000},0]
["EPP-45BACET GROUP SAS",null,null,"EPP-45",{"$f":"+VLOOKUP(D481,[5]Catálogo!$A$2:$C$46,3,0)","v":"EPP-45 - TAPABOCAS DESECHABLES,  TRES CAPAS TERMOSELLADO PARA NIÑOS"},"ELEMENTOS DE PROTECCION PERSONAL",{"$f":"+VLOOKUP(D481,[5]Catálogo!$A$2:$D$46,4,0)","v":"TAPABOCAS DESECHABLE PARA NIÑOS, CON RESORTE A LA OREJA , TRES CAPAS, ADAPTADOR NASAL AJUSTABLE, TELA NO TEJIDA,TERMOSELLADOS"},"Und","Und","Si","Atención emergencia COVID-19","BACET GROUP SAS","AECovid19-513",6750,"COP",1,5000000,{"$f":"Q481-SUMIFS(ResumenCotizacion!L:L,ResumenCotizacion!S:S,L481,ResumenCotizacion!C:C,D481)","v":5000000},0]
["EPP-46BACET GROUP SAS",null,null,"EPP-46",{"$f":"+VLOOKUP(D482,[5]Catálogo!$A$2:$C$46,3,0)","v":"EPP-46 - TAPABOCAS DESECHABLES,  TRES CAPAS TERMOSELLADO"},"ELEMENTOS DE PROTECCION PERSONAL",{"$f":"+VLOOKUP(D482,[5]Catálogo!$A$2:$D$46,4,0)","v":"TAPABOCAS DESECHABLE, CON RESORTE A LA OREJA , TRES CAPAS, ADAPTADOR NASAL AJUSTABLE (ALAMBRE RECUBIERTO DE PLASTICO), TELA NO TEJIDA. EMPAQUE INDIVIDUAL"},"Und","Und","Si","Atención emergencia COVID-19","BACET GROUP SAS","AECovid19-513",6849,"COP",1,2000000,{"$f":"Q482-SUMIFS(ResumenCotizacion!L:L,ResumenCotizacion!S:S,L482,ResumenCotizacion!C:C,D482)","v":2000000},0]
["EPP-1BON SANTE SAS",null,null,"EPP-1",{"$f":"+VLOOKUP(D483,[5]Catálogo!$A$2:$C$46,3,0)","v":"EPP-1 - BATA  DESECHABLE PARA PACIENTE ADULTO  - TALLA S, M , L, XL COMPUESTO POR BATA SIN MANGA CON AMARRADERA  POSTERIOR "},"ELEMENTOS DE PROTECCION PERSONAL",{"$f":"+VLOOKUP(D483,[5]Catálogo!$A$2:$D$46,4,0)","v":"COMPUESTO DE BATA PACIENTE MANGA CIZA, AMARRADERAS EN LA PARTE POSTERIOR 2 A NIVEL DE CUELLO Y 2 A NIVEL DE LA CINTURA EN TELA SMS 35 GRAMOS."},"Und","Und","Si","Atención emergencia COVID-19","BON SANTE SAS","AECovid19-537",1599,"COP",1,500000,{"$f":"Q483-SUMIFS(ResumenCotizacion!L:L,ResumenCotizacion!S:S,L483,ResumenCotizacion!C:C,D483)","v":500000},0]
["EPP-3BON SANTE SAS",null,null,"EPP-3",{"$f":"+VLOOKUP(D484,[5]Catálogo!$A$2:$C$46,3,0)","v":"EPP-3 - BATA CIRUJANO DESECHABLE "},"ELEMENTOS DE PROTECCION PERSONAL",{"$f":"+VLOOKUP(D484,[5]Catálogo!$A$2:$D$46,4,0)","v":"BATA CIRUJANO DESECHABLE TALLA S, M, L, XL PRESENTACION ESTERIL"},"Und","Und","Si","Atención emergencia COVID-19","BON SANTE SAS","AECovid19-537",3780,"COP",1,500000,{"$f":"Q484-SUMIFS(ResumenCotizacion!L:L,ResumenCotizacion!S:S,L484,ResumenCotizacion!C:C,D484)","v":500000},0]
["EPP-4BON SANTE SAS",null,null,"EPP-4",{"$f":"+VLOOKUP(D485,[5]Catálogo!$A$2:$C$46,3,0)","v":"EPP-4 - BATA DESECHABLE CORTAS CON MANGA RESORTADA "},"ELEMENTOS DE PROTECCION PERSONAL",{"$f":"+VLOOKUP(D485,[5]Catálogo!$A$2:$D$46,4,0)","v":"BATA DESECHABLE CORTAS CON MANGA RESORTADA CON CIERRE FRONTAL DE CREMALLERA"},"Und","Und","Si","Atención emergencia COVID-19","BON SANTE SAS","AECovid19-537",4483,"COP",1,500000,{"$f":"Q485-SUMIFS(ResumenCotizacion!L:L,ResumenCotizacion!S:S,L485,ResumenCotizacion!C:C,D485)","v":500000},0]
["EPP-5BON SANTE SAS",null,null,"EPP-5",{"$f":"+VLOOKUP(D486,[5]Catálogo!$A$2:$C$46,3,0)","v":"EPP-5 - BATA DESECHABLE PARA PACIENTE PEDIATRICO - ROPA DESECHABLE  COMPUESTO POR BATA SIN MANGA CON AMARRADERA  POSTERIOR. "},"ELEMENTOS DE PROTECCION PERSONAL",{"$f":"+VLOOKUP(D486,[5]Catálogo!$A$2:$D$46,4,0)","v":"COMPUESTO DE BATA PACIENTE MANGA CIZA DE 80 CMS, AMARRADERAS EN LA PARTE POSTERIOR 2 A NIVEL DE CUELLO Y 2 A NIVEL DE LA CINTURA EN TELA SMS 35 GRAMOS."},"Und","Und","Si","Atención emergencia COVID-19","BON SANTE SAS","AECovid19-537",1541,"COP",1,500000,{"$f":"Q486-SUMIFS(ResumenCotizacion!L:L,ResumenCotizacion!S:S,L486,ResumenCotizacion!C:C,D486)","v":500000},0]
["EPP-6BON SANTE SAS",null,null,"EPP-6",{"$f":"+VLOOKUP(D487,[5]Catálogo!$A$2:$C$46,3,0)","v":"EPP-6 - BATA PUÑO RIB "},"ELEMENTOS DE PROTECCION PERSONAL",{"$f":"+VLOOKUP(D487,[5]Catálogo!$A$2:$D$46,4,0)","v":"Tela no tejida\nDesechable\nAislante de liquidos\nAlta transpirabilidad\nManga Larga\nPuño en algodón con resorte\nCon tiras de amarre en la cintura y cuello"},"Und","Und","Si","Atención emergencia COVID-19","BON SANTE SAS","AECovid19-537",2415,"COP",1,500000,{"$f":"Q487-SUMIFS(ResumenCotizacion!L:L,ResumenCotizacion!S:S,L487,ResumenCotizacion!C:C,D487)","v":500000},0]
["EPP-7BON SANTE SAS",null,null,"EPP-7",{"$f":"+VLOOKUP(D488,[5]Catálogo!$A$2:$C$46,3,0)","v":"EPP-7 - BATA QUIRURGICA ASTOUND "},"ELEMENTOS DE PROTECCION PERSONAL",{"$f":"+VLOOKUP(D488,[5]Catálogo!$A$2:$D$46,4,0)","v":"ELABORADA EN SMS POLIPROPILENO DE ALTO RENDIMIENTO IMPERMEABLE LIBRE DE PELUSA, POLIREFORSADA EN ZONAS CRÍTICAS, PECHO Y ANTEBRAZO, RESISTENTE A PENETRACIÓN DE FLUIDOS PELIGROSOS, QUE CONSERVA SU INTEGRIDAD A LO LARGO DEL PROCEDIMIENTO QUIRÚRGICO, MANTIENE TEMPERATURA CORPORAL CONFORTABLE, INFLABILIDAD TESTIBLE CPSC 16."},"Und","Und","Si","Atención emergencia COVID-19","BON SANTE SAS","AECovid19-537",3555,"COP",1,500000,{"$f":"Q488-SUMIFS(ResumenCotizacion!L:L,ResumenCotizacion!S:S,L488,ResumenCotizacion!C:C,D488)","v":500000},0]
["EPP-9BON SANTE SAS",null,null,"EPP-9",{"$f":"+VLOOKUP(D489,[5]Catálogo!$A$2:$C$46,3,0)","v":"EPP-9 - CARETAS VISORES (PROTECTOR FACIAL) "},"ELEMENTOS DE PROTECCION PERSONAL",{"$f":"+VLOOKUP(D489,[5]Catálogo!$A$2:$D$46,4,0)","v":"CARETA VISOR DE USO MEDICO EN PASTA CON SEGURO ELASTICO"},"Und","Und","Si","Atención emergencia COVID-19","BON SANTE SAS","AECovid19-537",1895,"COP",1,1000000,{"$f":"Q489-SUMIFS(ResumenCotizacion!L:L,ResumenCotizacion!S:S,L489,ResumenCotizacion!C:C,D489)","v":1000000},0]
["EPP-10BON SANTE SAS",null,null,"EPP-10",{"$f":"+VLOOKUP(D490,[5]Catálogo!$A$2:$C$46,3,0)","v":"EPP-10 - GAFAS PROTECTORAS "},"ELEMENTOS DE PROTECCION PERSONAL",{"$f":"+VLOOKUP(D490,[5]Catálogo!$A$2:$D$46,4,0)","v":"BUEN SELLO DE ADHERENCIA CON LA PIEL DE LA CARA, MARCO DE PVC FLEXIBLE PARA ADAPTARSE FÁCILMENTE A TODOS LOS CONTORNOS DE LA CARA CON PRESIÓN UNIFORME, ENCERRAR LOS OJOS Y LAS ÁREAS CIRCUNDANTES, USUARIOS DE ALOJAMIENTO CON GAFAS GRADUADAS, LENTE DE PLÁSTICO TRANSPARENTE CON TRATAMIENTOS RESISTENTES A LA NIEBLA Y A LOS ARAÑAZOS, sistema AJUSTABLE PARA ASEGURAR FIRMEMENTE PARA NO LIBERARSE DURANTE LA ACTIVIDAD CLÍNICA, VENTILACIÓN INDIRECTA PARA EVITAR LA NIEBLA, PUEDE SER REUTILIZABLE (SIEMPRE QUE SE DISPONGA DE LAS DISPOSICIONES ADECUADAS PARA LA DESCONTAMINACIÓN) O DESECHABLE."},"Und","Und","Si","Atención emergencia COVID-19","BON SANTE SAS","AECovid19-537",24990,"COP",1,1000000,{"$f":"Q490-SUMIFS(ResumenCotizacion!L:L,ResumenCotizacion!S:S,L490,ResumenCotizacion!C:C,D490)","v":1000000},0]
["EPP-12BON SANTE SAS",null,null,"EPP-12",{"$f":"+VLOOKUP(D491,[5]Catálogo!$A$2:$C$46,3,0)","v":"EPP-12 - GORRO QUIRURJICO "},"ELEMENTOS DE PROTECCION PERSONAL",{"$f":"+VLOOKUP(D491,[5]Catálogo!$A$2:$D$46,4,0)","v":"Gorro con elástico para adaptarse al entorno craneal que se coloca en la cabeza sin que cubra totalmente la frente, ni los ojos. En Tela polipropileno 100% en spundbounded y el Resorte en Nylon blanco. 15 a 20 gramos."},"Und","Und","Si","Atención emergencia COVID-19","BON SANTE SAS","AECovid19-537",5748,"COP",1,1000000,{"$f":"Q491-SUMIFS(ResumenCotizacion!L:L,ResumenCotizacion!S:S,L491,ResumenCotizacion!C:C,D491)","v":1000000},0]
["EPP-13BON SANTE SAS",null,null,"EPP-13",{"$f":"+VLOOKUP(D492,[5]Catálogo!$A$2:$C$46,3,0)","v":"EPP-13 - GUANTES DE LATEX  "},"ELEMENTOS DE PROTECCION PERSONAL",{"$f":"+VLOOKUP(D492,[5]Catálogo!$A$2:$D$46,4,0)","v":"GUANTES DE LÁTEX TALLA S,M, L  DESECHABLES, HIPOALERGÉNICOS, NO ESTÉRILES, ALTA RESISTENCIA A LA ELONGACIÓN, CON ENTALCAMIENTO LEVE INTERNO, AMBIDIESTROS, LÁTEX BLANCO, PUÑO CON REBORDE. "},"Und","Und","Si","Atención emergencia COVID-19","BON SANTE SAS","AECovid19-537",46890,"COP",1,15000,{"$f":"Q492-SUMIFS(ResumenCotizacion!L:L,ResumenCotizacion!S:S,L492,ResumenCotizacion!C:C,D492)","v":15000},0]
["EPP-14BON SANTE SAS",null,null,"EPP-14",{"$f":"+VLOOKUP(D493,[5]Catálogo!$A$2:$C$46,3,0)","v":"EPP-14 - GUANTES DE NITRILO "},"ELEMENTOS DE PROTECCION PERSONAL",{"$f":"+VLOOKUP(D493,[5]Catálogo!$A$2:$D$46,4,0)","v":"GUANTES DE NITRILO (CALIBRE DE 8 MILESIMAS MÍNIMO) TALLAS,M Y L DESECHABLES, HIPOALERGÉNICOS, NO ESTÉRILES, ALTA RESISTENCIA A LA ELONGACIÓN, CON ENTALCAMIENTO LEVE INTERNO, AMBIDIESTROS, PUÑO CON REBORDE."},"Und","Und","Si","Atención emergencia COVID-19","BON SANTE SAS","AECovid19-537",56470,"COP",1,10000,{"$f":"Q493-SUMIFS(ResumenCotizacion!L:L,ResumenCotizacion!S:S,L493,ResumenCotizacion!C:C,D493)","v":10000},0]
["EPP-16BON SANTE SAS",null,null,"EPP-16",{"$f":"+VLOOKUP(D494,[5]Catálogo!$A$2:$C$46,3,0)","v":"EPP-16 - KIT PREVENCION CONTAGIO (Q TAPABOCAS LAVABLE + 1 GAFAS PROTECTORAS + 1 FC ALCOHOL 55 ML, + 1 PQ TOALLITAS HUMEDAS "},"ELEMENTOS DE PROTECCION PERSONAL",{"$f":"+VLOOKUP(D494,[5]Catálogo!$A$2:$D$46,4,0)","v":"DEBE CONTENER TODOS LOS ELEMENTOS DESCRITOS, NO PUEDEN SER ENTREGAS PARCIALES"},"Und","Und","Si","Atención emergencia COVID-19","BON SANTE SAS","AECovid19-537",7429,"COP",1,1000000,{"$f":"Q494-SUMIFS(ResumenCotizacion!L:L,ResumenCotizacion!S:S,L494,ResumenCotizacion!C:C,D494)","v":1000000},0]
["EPP-17BON SANTE SAS",null,null,"EPP-17",{"$f":"+VLOOKUP(D495,[5]Catálogo!$A$2:$C$46,3,0)","v":"EPP-17 - KIT PREVENCIÓN: CONTIENE TRAJE ANTIFLUIDO, BATA QUIRURGICA, PANTALON PIJAMA, CUBRE ZAPATOS GORRO Y TAPABOCAS, CUALQUIER PIEZA SE PUEDE HACER INDEPENDIENTE, SON RESISTENTES AL CLORO "},"ELEMENTOS DE PROTECCION PERSONAL",{"$f":"+VLOOKUP(D495,[5]Catálogo!$A$2:$D$46,4,0)","v":"DEBE CONTENER TODOS LOS ELEMENTOS DESCRITOS, NO PUEDEN SER ENTREGAS PARCIALES"},"Und","Und","Si","Atención emergencia COVID-19","BON SANTE SAS","AECovid19-537",11990,"COP",1,50000,{"$f":"Q495-SUMIFS(ResumenCotizacion!L:L,ResumenCotizacion!S:S,L495,ResumenCotizacion!C:C,D495)","v":50000},0]
["EPP-18BON SANTE SAS",null,null,"EPP-18",{"$f":"+VLOOKUP(D496,[5]Catálogo!$A$2:$C$46,3,0)","v":"EPP-18 - MASCARILLA FACIAL N95 (TAPA BOCA) "},"ELEMENTOS DE PROTECCION PERSONAL",{"$f":"+VLOOKUP(D496,[5]Catálogo!$A$2:$D$46,4,0)","v":"DESECHABLE, CON TIRAS PARA AMARRAR, DOBLE FILTRO, ADAPTADOR NASAL AJUSTABLE, EN ALGODÓN,"},"Und","Und","Si","Atención emergencia COVID-19","BON SANTE SAS","AECovid19-537",66666,"COP",1,5000,{"$f":"Q496-SUMIFS(ResumenCotizacion!L:L,ResumenCotizacion!S:S,L496,ResumenCotizacion!C:C,D496)","v":5000},0]
["EPP-19BON SANTE SAS",null,null,"EPP-19",{"$f":"+VLOOKUP(D497,[5]Catálogo!$A$2:$C$46,3,0)","v":"EPP-19 - MASCARILLA FACIAL N95 (TAPA BOCA)- RESORTADA "},"ELEMENTOS DE PROTECCION PERSONAL",{"$f":"+VLOOKUP(D497,[5]Catálogo!$A$2:$D$46,4,0)","v":"DESECHABLE, CON RESORTE A LA OREJA , DOBLE FILTRO, ADAPTADOR NASAL AJUSTABLE, EN ALGODÓN"},"Und","Und","Si","Atención emergencia COVID-19","BON SANTE SAS","AECovid19-537",66666,"COP",1,5000,{"$f":"Q497-SUMIFS(ResumenCotizacion!L:L,ResumenCotizacion!S:S,L497,ResumenCotizacion!C:C,D497)","v":5000},0]
["EPP-21BON SANTE SAS",null,null,"EPP-21",{"$f":"+VLOOKUP(D498,[5]Catálogo!$A$2:$C$46,3,0)","v":"EPP-21 - POLAINAS "},"ELEMENTOS DE PROTECCION PERSONAL",{"$f":"+VLOOKUP(D498,[5]Catálogo!$A$2:$D$46,4,0)","v":"Polaina antideslizante, no estéril, no tejida. Libre de hebras, ni partículas volátiles, lisa, sin deformaciones. Sellado con ultrasonido. Con recuento controlado microbiano.En Polipropileno (PP) con elástico de látex natural. Dimensión estándar. De un solo uso."},"Und","Und","Si","Atención emergencia COVID-19","BON SANTE SAS","AECovid19-537",9750,"COP",1,1000000,{"$f":"Q498-SUMIFS(ResumenCotizacion!L:L,ResumenCotizacion!S:S,L498,ResumenCotizacion!C:C,D498)","v":1000000},0]
["EPP-24BON SANTE SAS",null,null,"EPP-24",{"$f":"+VLOOKUP(D499,[5]Catálogo!$A$2:$C$46,3,0)","v":"EPP-24 - ROPA POR CAMA DESECHABLE "},"ELEMENTOS DE PROTECCION PERSONAL",{"$f":"+VLOOKUP(D499,[5]Catálogo!$A$2:$D$46,4,0)","v":"KIT DE JUEGO DE CAMA QUE INCLUYE SABANA, FORRO, SABANA DE MOVIMIENTO "},"Und","Und","Si","Atención emergencia COVID-19","BON SANTE SAS","AECovid19-537",6480,"COP",1,100000,{"$f":"Q499-SUMIFS(ResumenCotizacion!L:L,ResumenCotizacion!S:S,L499,ResumenCotizacion!C:C,D499)","v":100000},0]
["EPP-25BON SANTE SAS",null,null,"EPP-25",{"$f":"+VLOOKUP(D500,[5]Catálogo!$A$2:$C$46,3,0)","v":"EPP-25 - SABANA DESECHABLE "},"ELEMENTOS DE PROTECCION PERSONAL",{"$f":"+VLOOKUP(D500,[5]Catálogo!$A$2:$D$46,4,0)","v":"SÁBANA AJUSTABLE DESECHABLE, CONFECCIONADA CON TEJIDO NO TEJIDO DE POLIPROPILENO (PP). CON ELÁSTICOS EN LOS EXTREMOS PARA AJUSTAR A LAS CAMILLAS."},"Und","Und","Si","Atención emergencia COVID-19","BON SANTE SAS","AECovid19-537",2122,"COP",1,100000,{"$f":"Q500-SUMIFS(ResumenCotizacion!L:L,ResumenCotizacion!S:S,L500,ResumenCotizacion!C:C,D500)","v":100000},0]
["EPP-29BON SANTE SAS",null,null,"EPP-29",{"$f":"+VLOOKUP(D501,[5]Catálogo!$A$2:$C$46,3,0)","v":"EPP-29 - TAPABOCA TELA POLYESTER ANTI FLUIDO"},"ELEMENTOS DE PROTECCION PERSONAL",{"$f":"+VLOOKUP(D501,[5]Catálogo!$A$2:$D$46,4,0)","v":"TAPABOCA DE TELA Y POLYESTER FABRICANDO CON TELA ANTIFLUIDO, CON RESORTE A LA OREJA, AJUSTABLE."},"Und","Und","Si","Atención emergencia COVID-19","BON SANTE SAS","AECovid19-537",1400,"COP",1,1000000,{"$f":"Q501-SUMIFS(ResumenCotizacion!L:L,ResumenCotizacion!S:S,L501,ResumenCotizacion!C:C,D501)","v":1000000},0]
["EPP-30BON SANTE SAS",null,null,"EPP-30",{"$f":"+VLOOKUP(D502,[5]Catálogo!$A$2:$C$46,3,0)","v":"EPP-30 - TAPABOCAS DESECHABLES "},"ELEMENTOS DE PROTECCION PERSONAL",{"$f":"+VLOOKUP(D502,[5]Catálogo!$A$2:$D$46,4,0)","v":"TAPABOCAS DESECHABLE, CON RESORTE A LA OREJA , DOBLE FILTRO, ADAPTADOR NASAL AJUSTABLE, TELA NO TEJIDA"},"Und","Und","Si","Atención emergencia COVID-19","BON SANTE SAS","AECovid19-537",13000,"COP",1,500000,{"$f":"Q502-SUMIFS(ResumenCotizacion!L:L,ResumenCotizacion!S:S,L502,ResumenCotizacion!C:C,D502)","v":500000},0]
["EPP-33BON SANTE SAS",null,null,"EPP-33",{"$f":"+VLOOKUP(D503,[5]Catálogo!$A$2:$C$46,3,0)","v":"EPP-33 - TRAJE BIOLÓGICO "},"ELEMENTOS DE PROTECCION PERSONAL",{"$f":"+VLOOKUP(D503,[5]Catálogo!$A$2:$D$46,4,0)","v":"TRAJE DE PROTECCCIÓN CONTRA AGENTES BIOLÓGICOS Y QUÍMICOS, TAMAÑO (S, M, L, XL, XXL, XXXL)\n· CAPUCHA, CINTURA Y TOBILLOS ELÁSTICOS, PARA UNA MAYOR SEGURIDAD Y LIBERTAD DE\nMOVIMIENTOS.\n· MATERIAL MICROPOROSO LAMINADO, LE BRINDA UNA GRAN RESISTENCIA Y DURACIÓN, LIBRE DE FIBRAS.\n· CIERRE CUBIERTO PARA MEJOR PROTECCIÓN."},"Und","Und","Si","Atención emergencia COVID-19","BON SANTE SAS","AECovid19-537",10700,"COP",1,420,{"$f":"Q503-SUMIFS(ResumenCotizacion!L:L,ResumenCotizacion!S:S,L503,ResumenCotizacion!C:C,D503)","v":420},0]
["EPP-34BON SANTE SAS",null,null,"EPP-34",{"$f":"+VLOOKUP(D504,[5]Catálogo!$A$2:$C$46,3,0)","v":"EPP-34 - TRAJE DESECHABLE ANTIFLUIDO "},"ELEMENTOS DE PROTECCION PERSONAL",{"$f":"+VLOOKUP(D504,[5]Catálogo!$A$2:$D$46,4,0)","v":"TALLAS: S,M,L,XL\nCOSTURAS SERIADAS, CON CAPUCHA.\nCIERRE DE CREMALLERA FRONTAL\nMUÑECAS Y TOBILLOS ELASTICOS\nFABRICADO EN TELA ANTIFLUIDO"},"Und","Und","Si","Atención emergencia COVID-19","BON SANTE SAS","AECovid19-537",6300,"COP",1,563,{"$f":"Q504-SUMIFS(ResumenCotizacion!L:L,ResumenCotizacion!S:S,L504,ResumenCotizacion!C:C,D504)","v":563},0]
["EPP-35BON SANTE SAS",null,null,"EPP-35",{"$f":"+VLOOKUP(D505,[5]Catálogo!$A$2:$C$46,3,0)","v":"EPP-35 - TRAJE KLEENGUAR A35 "},"ELEMENTOS DE PROTECCION PERSONAL",{"$f":"+VLOOKUP(D505,[5]Catálogo!$A$2:$D$46,4,0)","v":"TRAJE DE PROTECCIÓN PERSONAL.\nELABORADO CON TECNOLOGÍA SFL.\nCAPA INTERNA HECHA CON FIBRAS DE POLIPROPILENO\nTALLAS: S,M,L,XL  "},"Und","Und","Si","Atención emergencia COVID-19","BON SANTE SAS","AECovid19-537",27800,"COP",1,1000,{"$f":"Q505-SUMIFS(ResumenCotizacion!L:L,ResumenCotizacion!S:S,L505,ResumenCotizacion!C:C,D505)","v":1000},0]
["EPP-44BON SANTE SAS",null,null,"EPP-44",{"$f":"+VLOOKUP(D506,[5]Catálogo!$A$2:$C$46,3,0)","v":"EPP-44 - OVEROL MULTIPROPOSITO PROTECCION ANTIFLUIDO"},"ELEMENTOS DE PROTECCION PERSONAL",{"$f":"+VLOOKUP(D506,[5]Catálogo!$A$2:$D$46,4,0)","v":"OVEROL en tela antifluido lavable alta impermeabilidad, liviano, antialérgico evita el contacto con superficies y líquidos, cuello alto para brindar más protección al usuario, con capucha ajustable y resorte en mangas, cintura y tobillos, cremallera para cierre de prenda, incluido polainas con elástico para mayor protección.\n\nMateriales: Antifluido \nTallas: M, L, XL, XXL\nColor: De acuerdo con la necesidad de la entidad \nInspecciones Físicas: Doblado, costuras, cremallera y presencia de amarres.\nInspecciones Visuales: Libre de presencia de partículas removibles, coloraciones y partículas incrustadas.\nAtributos: Antiestático, Resistencia a las bacterias y Resistencia a los hongos.\nMétodo de Esterilización: No aplica producto no estéril.\nAtoxicidad: Atóxico.\nFecha de Vencimiento: ** Tres Años Después de la Fecha de Fabricación.\nEmpaque Primario: Bolsa de Polietileno de Alta Densidad.\nTela: Antifluido 100% poliéster\nCostura interna: filete y punta de seguridad \nPespuntes: refuerzo cremallera:1/8”, contorno de capota en escote y pegue elástico.\nCondiciones de Conservación: Humedad Relativa: Entre 40%RH y 70%RH Temperatura: Entre 4ºC y 32 ºc Área de almacenamiento fresca, seca y protegido de la luz y humedad. Área de almacenamiento que no entre en contacto con aceites, colorantes, detergentes, sustancias de olor fuerte y/o productos químicos que pueden alterar las condiciones del producto.\nAdvertencias y Precauciones: No utilizar si el empaque no está en perfecto estado. Evitar humedad, salpicaduras de agua y contacto con elementos cortopunzantes durante su almacenamiento.\nMétodo de Reutilización: Producto Reutilizable."},"Und","Und","Si","Atención emergencia COVID-19","BON SANTE SAS","AECovid19-537",22500,"COP",1,10000,{"$f":"Q506-SUMIFS(ResumenCotizacion!L:L,ResumenCotizacion!S:S,L506,ResumenCotizacion!C:C,D506)","v":10000},0]
["EPP-45BON SANTE SAS",null,null,"EPP-45",{"$f":"+VLOOKUP(D507,[5]Catálogo!$A$2:$C$46,3,0)","v":"EPP-45 - TAPABOCAS DESECHABLES,  TRES CAPAS TERMOSELLADO PARA NIÑOS"},"ELEMENTOS DE PROTECCION PERSONAL",{"$f":"+VLOOKUP(D507,[5]Catálogo!$A$2:$D$46,4,0)","v":"TAPABOCAS DESECHABLE PARA NIÑOS, CON RESORTE A LA OREJA , TRES CAPAS, ADAPTADOR NASAL AJUSTABLE, TELA NO TEJIDA,TERMOSELLADOS"},"Und","Und","Si","Atención emergencia COVID-19","BON SANTE SAS","AECovid19-537",6785,"COP",1,2000000,{"$f":"Q507-SUMIFS(ResumenCotizacion!L:L,ResumenCotizacion!S:S,L507,ResumenCotizacion!C:C,D507)","v":2000000},0]
["EPP-46BON SANTE SAS",null,null,"EPP-46",{"$f":"+VLOOKUP(D508,[5]Catálogo!$A$2:$C$46,3,0)","v":"EPP-46 - TAPABOCAS DESECHABLES,  TRES CAPAS TERMOSELLADO"},"ELEMENTOS DE PROTECCION PERSONAL",{"$f":"+VLOOKUP(D508,[5]Catálogo!$A$2:$D$46,4,0)","v":"TAPABOCAS DESECHABLE, CON RESORTE A LA OREJA , TRES CAPAS, ADAPTADOR NASAL AJUSTABLE (ALAMBRE RECUBIERTO DE PLASTICO), TELA NO TEJIDA. EMPAQUE INDIVIDUAL"},"Und","Und","Si","Atención emergencia COVID-19","BON SANTE SAS","AECovid19-537",7290,"COP",1,3000000,{"$f":"Q508-SUMIFS(ResumenCotizacion!L:L,ResumenCotizacion!S:S,L508,ResumenCotizacion!C:C,D508)","v":3000000},0]
["EPP-14ELEVACON SAS",null,null,"EPP-14",{"$f":"+VLOOKUP(D509,[5]Catálogo!$A$2:$C$46,3,0)","v":"EPP-14 - GUANTES DE NITRILO "},"ELEMENTOS DE PROTECCION PERSONAL",{"$f":"+VLOOKUP(D509,[5]Catálogo!$A$2:$D$46,4,0)","v":"GUANTES DE NITRILO (CALIBRE DE 8 MILESIMAS MÍNIMO) TALLAS,M Y L DESECHABLES, HIPOALERGÉNICOS, NO ESTÉRILES, ALTA RESISTENCIA A LA ELONGACIÓN, CON ENTALCAMIENTO LEVE INTERNO, AMBIDIESTROS, PUÑO CON REBORDE."},"Und","Und","Si","Atención emergencia COVID-19","ELEVACON SAS","AECovid19-530",61900,"COP",1,200000,{"$f":"Q509-SUMIFS(ResumenCotizacion!L:L,ResumenCotizacion!S:S,L509,ResumenCotizacion!C:C,D509)","v":200000},0]
["EPP-18ELEVACON SAS",null,null,"EPP-18",{"$f":"+VLOOKUP(D510,[5]Catálogo!$A$2:$C$46,3,0)","v":"EPP-18 - MASCARILLA FACIAL N95 (TAPA BOCA) "},"ELEMENTOS DE PROTECCION PERSONAL",{"$f":"+VLOOKUP(D510,[5]Catálogo!$A$2:$D$46,4,0)","v":"DESECHABLE, CON TIRAS PARA AMARRAR, DOBLE FILTRO, ADAPTADOR NASAL AJUSTABLE, EN ALGODÓN,"},"Und","Und","Si","Atención emergencia COVID-19","ELEVACON SAS","AECovid19-530",47190,"COP",1,10000000,{"$f":"Q510-SUMIFS(ResumenCotizacion!L:L,ResumenCotizacion!S:S,L510,ResumenCotizacion!C:C,D510)","v":10000000},0]
["EPP-19ELEVACON SAS",null,null,"EPP-19",{"$f":"+VLOOKUP(D511,[5]Catálogo!$A$2:$C$46,3,0)","v":"EPP-19 - MASCARILLA FACIAL N95 (TAPA BOCA)- RESORTADA "},"ELEMENTOS DE PROTECCION PERSONAL",{"$f":"+VLOOKUP(D511,[5]Catálogo!$A$2:$D$46,4,0)","v":"DESECHABLE, CON RESORTE A LA OREJA , DOBLE FILTRO, ADAPTADOR NASAL AJUSTABLE, EN ALGODÓN"},"Und","Und","Si","Atención emergencia COVID-19","ELEVACON SAS","AECovid19-530",22890,"COP",1,7003000,{"$f":"Q511-SUMIFS(ResumenCotizacion!L:L,ResumenCotizacion!S:S,L511,ResumenCotizacion!C:C,D511)","v":7003000},0]
["EPP-30ELEVACON SAS",null,null,"EPP-30",{"$f":"+VLOOKUP(D512,[5]Catálogo!$A$2:$C$46,3,0)","v":"EPP-30 - TAPABOCAS DESECHABLES "},"ELEMENTOS DE PROTECCION PERSONAL",{"$f":"+VLOOKUP(D512,[5]Catálogo!$A$2:$D$46,4,0)","v":"TAPABOCAS DESECHABLE, CON RESORTE A LA OREJA , DOBLE FILTRO, ADAPTADOR NASAL AJUSTABLE, TELA NO TEJIDA"},"Und","Und","Si","Atención emergencia COVID-19","ELEVACON SAS","AECovid19-530",11800,"COP",1,10000,{"$f":"Q512-SUMIFS(ResumenCotizacion!L:L,ResumenCotizacion!S:S,L512,ResumenCotizacion!C:C,D512)","v":10000},0]
["EPP-33ELEVACON SAS",null,null,"EPP-33",{"$f":"+VLOOKUP(D513,[5]Catálogo!$A$2:$C$46,3,0)","v":"EPP-33 - TRAJE BIOLÓGICO "},"ELEMENTOS DE PROTECCION PERSONAL",{"$f":"+VLOOKUP(D513,[5]Catálogo!$A$2:$D$46,4,0)","v":"TRAJE DE PROTECCCIÓN CONTRA AGENTES BIOLÓGICOS Y QUÍMICOS, TAMAÑO (S, M, L, XL, XXL, XXXL)\n· CAPUCHA, CINTURA Y TOBILLOS ELÁSTICOS, PARA UNA MAYOR SEGURIDAD Y LIBERTAD DE\nMOVIMIENTOS.\n· MATERIAL MICROPOROSO LAMINADO, LE BRINDA UNA GRAN RESISTENCIA Y DURACIÓN, LIBRE DE FIBRAS.\n· CIERRE CUBIERTO PARA MEJOR PROTECCIÓN."},"Und","Und","Si","Atención emergencia COVID-19","ELEVACON SAS","AECovid19-530",17000,"COP",1,1000,{"$f":"Q513-SUMIFS(ResumenCotizacion!L:L,ResumenCotizacion!S:S,L513,ResumenCotizacion!C:C,D513)","v":1000},0]
["EPP-34ELEVACON SAS",null,null,"EPP-34",{"$f":"+VLOOKUP(D514,[5]Catálogo!$A$2:$C$46,3,0)","v":"EPP-34 - TRAJE DESECHABLE ANTIFLUIDO "},"ELEMENTOS DE PROTECCION PERSONAL",{"$f":"+VLOOKUP(D514,[5]Catálogo!$A$2:$D$46,4,0)","v":"TALLAS: S,M,L,XL\nCOSTURAS SERIADAS, CON CAPUCHA.\nCIERRE DE CREMALLERA FRONTAL\nMUÑECAS Y TOBILLOS ELASTICOS\nFABRICADO EN TELA ANTIFLUIDO"},"Und","Und","Si","Atención emergencia COVID-19","ELEVACON SAS","AECovid19-530",11200,"COP",1,200000,{"$f":"Q514-SUMIFS(ResumenCotizacion!L:L,ResumenCotizacion!S:S,L514,ResumenCotizacion!C:C,D514)","v":200000},0]
["EPP-44ELEVACON SAS",null,null,"EPP-44",{"$f":"+VLOOKUP(D515,[5]Catálogo!$A$2:$C$46,3,0)","v":"EPP-44 - OVEROL MULTIPROPOSITO PROTECCION ANTIFLUIDO"},"ELEMENTOS DE PROTECCION PERSONAL",{"$f":"+VLOOKUP(D515,[5]Catálogo!$A$2:$D$46,4,0)","v":"OVEROL en tela antifluido lavable alta impermeabilidad, liviano, antialérgico evita el contacto con superficies y líquidos, cuello alto para brindar más protección al usuario, con capucha ajustable y resorte en mangas, cintura y tobillos, cremallera para cierre de prenda, incluido polainas con elástico para mayor protección.\n\nMateriales: Antifluido \nTallas: M, L, XL, XXL\nColor: De acuerdo con la necesidad de la entidad \nInspecciones Físicas: Doblado, costuras, cremallera y presencia de amarres.\nInspecciones Visuales: Libre de presencia de partículas removibles, coloraciones y partículas incrustadas.\nAtributos: Antiestático, Resistencia a las bacterias y Resistencia a los hongos.\nMétodo de Esterilización: No aplica producto no estéril.\nAtoxicidad: Atóxico.\nFecha de Vencimiento: ** Tres Años Después de la Fecha de Fabricación.\nEmpaque Primario: Bolsa de Polietileno de Alta Densidad.\nTela: Antifluido 100% poliéster\nCostura interna: filete y punta de seguridad \nPespuntes: refuerzo cremallera:1/8”, contorno de capota en escote y pegue elástico.\nCondiciones de Conservación: Humedad Relativa: Entre 40%RH y 70%RH Temperatura: Entre 4ºC y 32 ºc Área de almacenamiento fresca, seca y protegido de la luz y humedad. Área de almacenamiento que no entre en contacto con aceites, colorantes, detergentes, sustancias de olor fuerte y/o productos químicos que pueden alterar las condiciones del producto.\nAdvertencias y Precauciones: No utilizar si el empaque no está en perfecto estado. Evitar humedad, salpicaduras de agua y contacto con elementos cortopunzantes durante su almacenamiento.\nMétodo de Reutilización: Producto Reutilizable."},"Und","Und","Si","Atención emergencia COVID-19","ELEVACON SAS","AECovid19-530",14790,"COP",1,205000,{"$f":"Q515-SUMIFS(ResumenCotizacion!L:L,ResumenCotizacion!S:S,L515,ResumenCotizacion!C:C,D515)","v":205000},0]
["EPP-1FUNDACION TEJIDO SOCIAL ORG",null,null,"EPP-1",{"$f":"+VLOOKUP(D516,[5]Catálogo!$A$2:$C$46,3,0)","v":"EPP-1 - BATA  DESECHABLE PARA PACIENTE ADULTO  - TALLA S, M , L, XL COMPUESTO POR BATA SIN MANGA CON AMARRADERA  POSTERIOR "},"ELEMENTOS DE PROTECCION PERSONAL",{"$f":"+VLOOKUP(D516,[5]Catálogo!$A$2:$D$46,4,0)","v":"COMPUESTO DE BATA PACIENTE MANGA CIZA, AMARRADERAS EN LA PARTE POSTERIOR 2 A NIVEL DE CUELLO Y 2 A NIVEL DE LA CINTURA EN TELA SMS 35 GRAMOS."},"Und","Und","Si","Atención emergencia COVID-19","FUNDACION TEJIDO SOCIAL ORG","AECovid19-533",2200,"COP",1,2500,{"$f":"Q516-SUMIFS(ResumenCotizacion!L:L,ResumenCotizacion!S:S,L516,ResumenCotizacion!C:C,D516)","v":2500},0]
[{"$f":"D517&L517","v":"EPP-2FUNDACION TEJIDO SOCIAL ORG"},null,null,"EPP-2",{"$f":"+VLOOKUP(D517,[5]Catálogo!$A$2:$C$46,3,0)","v":"EPP-2 - BATA AISLAMIENTO NO ESTERIL MANGA LARGA "},"ELEMENTOS DE PROTECCION PERSONAL",{"$f":"+VLOOKUP(D517,[5]Catálogo!$A$2:$D$46,4,0)","v":"Debe cumplir la siguiente reglamentación: NTC 5623 - Campos Quirurgicos, Batas y trajes para aire limpio de utilizacion quirurgica como Dispositivos Medicos para pacientes, personal clinico y equipo. Parte 1 Requisitos Generales para los fabricantes procesadores y productos. NTC 5624 - Campos Quirurgicos, Batas y trajes para aire limpio de utilizacion quirurgica como Dispositivos Medicos para pacientes, personal clinico y equipo. Parte 2 Metodos de Ensayo. NTC 5625 - Campos Quirurgicos, Batas y trajes para aire limpio de utilizacion quirurgica como Dispositivos Medicos para pacientes, personal clinico y equipo. Parte 3 Requisitos y niveles de funcionamiento."},"Und","Und","Si","Atención emergencia COVID-19","FUNDACION TEJIDO SOCIAL ORG","AECovid19-533",2600,"COP",1,50000,{"$f":"Q517-SUMIFS(ResumenCotizacion!L:L,ResumenCotizacion!S:S,L517,ResumenCotizacion!C:C,D517)","v":50000},0]
["EPP-3FUNDACION TEJIDO SOCIAL ORG",null,null,"EPP-3",{"$f":"+VLOOKUP(D518,[5]Catálogo!$A$2:$C$46,3,0)","v":"EPP-3 - BATA CIRUJANO DESECHABLE "},"ELEMENTOS DE PROTECCION PERSONAL",{"$f":"+VLOOKUP(D518,[5]Catálogo!$A$2:$D$46,4,0)","v":"BATA CIRUJANO DESECHABLE TALLA S, M, L, XL PRESENTACION ESTERIL"},"Und","Und","Si","Atención emergencia COVID-19","FUNDACION TEJIDO SOCIAL ORG","AECovid19-533",4350,"COP",1,30000,{"$f":"Q518-SUMIFS(ResumenCotizacion!L:L,ResumenCotizacion!S:S,L518,ResumenCotizacion!C:C,D518)","v":30000},0]
["EPP-4FUNDACION TEJIDO SOCIAL ORG",null,null,"EPP-4",{"$f":"+VLOOKUP(D519,[5]Catálogo!$A$2:$C$46,3,0)","v":"EPP-4 - BATA DESECHABLE CORTAS CON MANGA RESORTADA "},"ELEMENTOS DE PROTECCION PERSONAL",{"$f":"+VLOOKUP(D519,[5]Catálogo!$A$2:$D$46,4,0)","v":"BATA DESECHABLE CORTAS CON MANGA RESORTADA CON CIERRE FRONTAL DE CREMALLERA"},"Und","Und","Si","Atención emergencia COVID-19","FUNDACION TEJIDO SOCIAL ORG","AECovid19-533",3400,"COP",1,30000,{"$f":"Q519-SUMIFS(ResumenCotizacion!L:L,ResumenCotizacion!S:S,L519,ResumenCotizacion!C:C,D519)","v":30000},0]
["EPP-5FUNDACION TEJIDO SOCIAL ORG",null,null,"EPP-5",{"$f":"+VLOOKUP(D520,[5]Catálogo!$A$2:$C$46,3,0)","v":"EPP-5 - BATA DESECHABLE PARA PACIENTE PEDIATRICO - ROPA DESECHABLE  COMPUESTO POR BATA SIN MANGA CON AMARRADERA  POSTERIOR. "},"ELEMENTOS DE PROTECCION PERSONAL",{"$f":"+VLOOKUP(D520,[5]Catálogo!$A$2:$D$46,4,0)","v":"COMPUESTO DE BATA PACIENTE MANGA CIZA DE 80 CMS, AMARRADERAS EN LA PARTE POSTERIOR 2 A NIVEL DE CUELLO Y 2 A NIVEL DE LA CINTURA EN TELA SMS 35 GRAMOS."},"Und","Und","Si","Atención emergencia COVID-19","FUNDACION TEJIDO SOCIAL ORG","AECovid19-533",2000,"COP",1,30000,{"$f":"Q520-SUMIFS(ResumenCotizacion!L:L,ResumenCotizacion!S:S,L520,ResumenCotizacion!C:C,D520)","v":30000},0]
["EPP-6FUNDACION TEJIDO SOCIAL ORG",null,null,"EPP-6",{"$f":"+VLOOKUP(D521,[5]Catálogo!$A$2:$C$46,3,0)","v":"EPP-6 - BATA PUÑO RIB "},"ELEMENTOS DE PROTECCION PERSONAL",{"$f":"+VLOOKUP(D521,[5]Catálogo!$A$2:$D$46,4,0)","v":"Tela no tejida\nDesechable\nAislante de liquidos\nAlta transpirabilidad\nManga Larga\nPuño en algodón con resorte\nCon tiras de amarre en la cintura y cuello"},"Und","Und","Si","Atención emergencia COVID-19","FUNDACION TEJIDO SOCIAL ORG","AECovid19-533",2600,"COP",1,30000,{"$f":"Q521-SUMIFS(ResumenCotizacion!L:L,ResumenCotizacion!S:S,L521,ResumenCotizacion!C:C,D521)","v":30000},0]
["EPP-9FUNDACION TEJIDO SOCIAL ORG",null,null,"EPP-9",{"$f":"+VLOOKUP(D522,[5]Catálogo!$A$2:$C$46,3,0)","v":"EPP-9 - CARETAS VISORES (PROTECTOR FACIAL) "},"ELEMENTOS DE PROTECCION PERSONAL",{"$f":"+VLOOKUP(D522,[5]Catálogo!$A$2:$D$46,4,0)","v":"CARETA VISOR DE USO MEDICO EN PASTA CON SEGURO ELASTICO"},"Und","Und","Si","Atención emergencia COVID-19","FUNDACION TEJIDO SOCIAL ORG","AECovid19-533",11500,"COP",1,12000,{"$f":"Q522-SUMIFS(ResumenCotizacion!L:L,ResumenCotizacion!S:S,L522,ResumenCotizacion!C:C,D522)","v":12000},0]
["EPP-17FUNDACION TEJIDO SOCIAL ORG",null,null,"EPP-17",{"$f":"+VLOOKUP(D523,[5]Catálogo!$A$2:$C$46,3,0)","v":"EPP-17 - KIT PREVENCIÓN: CONTIENE TRAJE ANTIFLUIDO, BATA QUIRURGICA, PANTALON PIJAMA, CUBRE ZAPATOS GORRO Y TAPABOCAS, CUALQUIER PIEZA SE PUEDE HACER INDEPENDIENTE, SON RESISTENTES AL CLORO "},"ELEMENTOS DE PROTECCION PERSONAL",{"$f":"+VLOOKUP(D523,[5]Catálogo!$A$2:$D$46,4,0)","v":"DEBE CONTENER TODOS LOS ELEMENTOS DESCRITOS, NO PUEDEN SER ENTREGAS PARCIALES"},"Und","Und","Si","Atención emergencia COVID-19","FUNDACION TEJIDO SOCIAL ORG","AECovid19-533",17000,"COP",1,12000,{"$f":"Q523-SUMIFS(ResumenCotizacion!L:L,ResumenCotizacion!S:S,L523,ResumenCotizacion!C:C,D523)","v":12000},0]
["EPP-21FUNDACION TEJIDO SOCIAL ORG",null,null,"EPP-21",{"$f":"+VLOOKUP(D524,[5]Catálogo!$A$2:$C$46,3,0)","v":"EPP-21 - POLAINAS "},"ELEMENTOS DE PROTECCION PERSONAL",{"$f":"+VLOOKUP(D524,[5]Catálogo!$A$2:$D$46,4,0)","v":"Polaina antideslizante, no estéril, no tejida. Libre de hebras, ni partículas volátiles, lisa, sin deformaciones. Sellado con ultrasonido. Con recuento controlado microbiano.En Polipropileno (PP) con elástico de látex natural. Dimensión estándar. De un solo uso."},"Und","Und","Si","Atención emergencia COVID-19","FUNDACION TEJIDO SOCIAL ORG","AECovid19-533",13390,"COP",1,30000,{"$f":"Q524-SUMIFS(ResumenCotizacion!L:L,ResumenCotizacion!S:S,L524,ResumenCotizacion!C:C,D524)","v":30000},0]
["EPP-24FUNDACION TEJIDO SOCIAL ORG",null,null,"EPP-24",{"$f":"+VLOOKUP(D525,[5]Catálogo!$A$2:$C$46,3,0)","v":"EPP-24 - ROPA POR CAMA DESECHABLE "},"ELEMENTOS DE PROTECCION PERSONAL",{"$f":"+VLOOKUP(D525,[5]Catálogo!$A$2:$D$46,4,0)","v":"KIT DE JUEGO DE CAMA QUE INCLUYE SABANA, FORRO, SABANA DE MOVIMIENTO "},"Und","Und","Si","Atención emergencia COVID-19","FUNDACION TEJIDO SOCIAL ORG","AECovid19-533",8000,"COP",1,30000,{"$f":"Q525-SUMIFS(ResumenCotizacion!L:L,ResumenCotizacion!S:S,L525,ResumenCotizacion!C:C,D525)","v":30000},0]
["EPP-25FUNDACION TEJIDO SOCIAL ORG",null,null,"EPP-25",{"$f":"+VLOOKUP(D526,[5]Catálogo!$A$2:$C$46,3,0)","v":"EPP-25 - SABANA DESECHABLE "},"ELEMENTOS DE PROTECCION PERSONAL",{"$f":"+VLOOKUP(D526,[5]Catálogo!$A$2:$D$46,4,0)","v":"SÁBANA AJUSTABLE DESECHABLE, CONFECCIONADA CON TEJIDO NO TEJIDO DE POLIPROPILENO (PP). CON ELÁSTICOS EN LOS EXTREMOS PARA AJUSTAR A LAS CAMILLAS."},"Und","Und","Si","Atención emergencia COVID-19","FUNDACION TEJIDO SOCIAL ORG","AECovid19-533",2800,"COP",1,500,{"$f":"Q526-SUMIFS(ResumenCotizacion!L:L,ResumenCotizacion!S:S,L526,ResumenCotizacion!C:C,D526)","v":500},0]
["EPP-27FUNDACION TEJIDO SOCIAL ORG",null,null,"EPP-27",{"$f":"+VLOOKUP(D527,[5]Catálogo!$A$2:$C$46,3,0)","v":"EPP-27 - SABANAS "},"ELEMENTOS DE PROTECCION PERSONAL",{"$f":"+VLOOKUP(D527,[5]Catálogo!$A$2:$D$46,4,0)","v":"DESECHABLE, PLANA, 2,40X2,20 M, EN TELA SMS 35 GR, REPELENTE DE FLUIDOS, RESISTENTE, SIN ESTERILIZAR"},"Und","Und","Si","Atención emergencia COVID-19","FUNDACION TEJIDO SOCIAL ORG","AECovid19-533",7000,"COP",1,500,{"$f":"Q527-SUMIFS(ResumenCotizacion!L:L,ResumenCotizacion!S:S,L527,ResumenCotizacion!C:C,D527)","v":500},0]
["EPP-30FUNDACION TEJIDO SOCIAL ORG",null,null,"EPP-30",{"$f":"+VLOOKUP(D528,[5]Catálogo!$A$2:$C$46,3,0)","v":"EPP-30 - TAPABOCAS DESECHABLES "},"ELEMENTOS DE PROTECCION PERSONAL",{"$f":"+VLOOKUP(D528,[5]Catálogo!$A$2:$D$46,4,0)","v":"TAPABOCAS DESECHABLE, CON RESORTE A LA OREJA , DOBLE FILTRO, ADAPTADOR NASAL AJUSTABLE, TELA NO TEJIDA"},"Und","Und","Si","Atención emergencia COVID-19","FUNDACION TEJIDO SOCIAL ORG","AECovid19-533",9000,"COP",1,2000000,{"$f":"Q528-SUMIFS(ResumenCotizacion!L:L,ResumenCotizacion!S:S,L528,ResumenCotizacion!C:C,D528)","v":2000000},0]
["EPP-31FUNDACION TEJIDO SOCIAL ORG",null,null,"EPP-31",{"$f":"+VLOOKUP(D529,[5]Catálogo!$A$2:$C$46,3,0)","v":"EPP-31 - TAPABOCAS DOBLE TELA LAVABLE "},"ELEMENTOS DE PROTECCION PERSONAL",{"$f":"+VLOOKUP(D529,[5]Catálogo!$A$2:$D$46,4,0)","v":"DOBLE TELA. REUTILIZABLE. SOPORTE NASAL. AJUSTABLE. "},"Und","Und","Si","Atención emergencia COVID-19","FUNDACION TEJIDO SOCIAL ORG","AECovid19-533",58000,"COP",1,80000,{"$f":"Q529-SUMIFS(ResumenCotizacion!L:L,ResumenCotizacion!S:S,L529,ResumenCotizacion!C:C,D529)","v":80000},0]
["EPP-34FUNDACION TEJIDO SOCIAL ORG",null,null,"EPP-34",{"$f":"+VLOOKUP(D530,[5]Catálogo!$A$2:$C$46,3,0)","v":"EPP-34 - TRAJE DESECHABLE ANTIFLUIDO "},"ELEMENTOS DE PROTECCION PERSONAL",{"$f":"+VLOOKUP(D530,[5]Catálogo!$A$2:$D$46,4,0)","v":"TALLAS: S,M,L,XL\nCOSTURAS SERIADAS, CON CAPUCHA.\nCIERRE DE CREMALLERA FRONTAL\nMUÑECAS Y TOBILLOS ELASTICOS\nFABRICADO EN TELA ANTIFLUIDO"},"Und","Und","Si","Atención emergencia COVID-19","FUNDACION TEJIDO SOCIAL ORG","AECovid19-533",13500,"COP",1,150000,{"$f":"Q530-SUMIFS(ResumenCotizacion!L:L,ResumenCotizacion!S:S,L530,ResumenCotizacion!C:C,D530)","v":150000},0]
["EPP-9GLOBALK COLOMBIA SAS",null,null,"EPP-9",{"$f":"+VLOOKUP(D531,[5]Catálogo!$A$2:$C$46,3,0)","v":"EPP-9 - CARETAS VISORES (PROTECTOR FACIAL) "},"ELEMENTOS DE PROTECCION PERSONAL",{"$f":"+VLOOKUP(D531,[5]Catálogo!$A$2:$D$46,4,0)","v":"CARETA VISOR DE USO MEDICO EN PASTA CON SEGURO ELASTICO"},"Und","Und","Si","Atención emergencia COVID-19","GLOBALK COLOMBIA SAS","AECovid19-550",3790,"COP",1,1000000,{"$f":"Q531-SUMIFS(ResumenCotizacion!L:L,ResumenCotizacion!S:S,L531,ResumenCotizacion!C:C,D531)","v":1000000},0]
["EPP-10GLOBALK COLOMBIA SAS",null,null,"EPP-10",{"$f":"+VLOOKUP(D532,[5]Catálogo!$A$2:$C$46,3,0)","v":"EPP-10 - GAFAS PROTECTORAS "},"ELEMENTOS DE PROTECCION PERSONAL",{"$f":"+VLOOKUP(D532,[5]Catálogo!$A$2:$D$46,4,0)","v":"BUEN SELLO DE ADHERENCIA CON LA PIEL DE LA CARA, MARCO DE PVC FLEXIBLE PARA ADAPTARSE FÁCILMENTE A TODOS LOS CONTORNOS DE LA CARA CON PRESIÓN UNIFORME, ENCERRAR LOS OJOS Y LAS ÁREAS CIRCUNDANTES, USUARIOS DE ALOJAMIENTO CON GAFAS GRADUADAS, LENTE DE PLÁSTICO TRANSPARENTE CON TRATAMIENTOS RESISTENTES A LA NIEBLA Y A LOS ARAÑAZOS, sistema AJUSTABLE PARA ASEGURAR FIRMEMENTE PARA NO LIBERARSE DURANTE LA ACTIVIDAD CLÍNICA, VENTILACIÓN INDIRECTA PARA EVITAR LA NIEBLA, PUEDE SER REUTILIZABLE (SIEMPRE QUE SE DISPONGA DE LAS DISPOSICIONES ADECUADAS PARA LA DESCONTAMINACIÓN) O DESECHABLE."},"Und","Und","Si","Atención emergencia COVID-19","GLOBALK COLOMBIA SAS","AECovid19-550",25290,"COP",1,1000099,{"$f":"Q532-SUMIFS(ResumenCotizacion!L:L,ResumenCotizacion!S:S,L532,ResumenCotizacion!C:C,D532)","v":1000099},0]
["EPP-14GLOBALK COLOMBIA SAS",null,null,"EPP-14",{"$f":"+VLOOKUP(D533,[5]Catálogo!$A$2:$C$46,3,0)","v":"EPP-14 - GUANTES DE NITRILO "},"ELEMENTOS DE PROTECCION PERSONAL",{"$f":"+VLOOKUP(D533,[5]Catálogo!$A$2:$D$46,4,0)","v":"GUANTES DE NITRILO (CALIBRE DE 8 MILESIMAS MÍNIMO) TALLAS,M Y L DESECHABLES, HIPOALERGÉNICOS, NO ESTÉRILES, ALTA RESISTENCIA A LA ELONGACIÓN, CON ENTALCAMIENTO LEVE INTERNO, AMBIDIESTROS, PUÑO CON REBORDE."},"Und","Und","Si","Atención emergencia COVID-19","GLOBALK COLOMBIA SAS","AECovid19-550",52290,"COP",1,150000,{"$f":"Q533-SUMIFS(ResumenCotizacion!L:L,ResumenCotizacion!S:S,L533,ResumenCotizacion!C:C,D533)","v":150000},0]
["EPP-19GLOBALK COLOMBIA SAS",null,null,"EPP-19",{"$f":"+VLOOKUP(D534,[5]Catálogo!$A$2:$C$46,3,0)","v":"EPP-19 - MASCARILLA FACIAL N95 (TAPA BOCA)- RESORTADA "},"ELEMENTOS DE PROTECCION PERSONAL",{"$f":"+VLOOKUP(D534,[5]Catálogo!$A$2:$D$46,4,0)","v":"DESECHABLE, CON RESORTE A LA OREJA , DOBLE FILTRO, ADAPTADOR NASAL AJUSTABLE, EN ALGODÓN"},"Und","Und","Si","Atención emergencia COVID-19","GLOBALK COLOMBIA SAS","AECovid19-550",49900,"COP",1,1000000,{"$f":"Q534-SUMIFS(ResumenCotizacion!L:L,ResumenCotizacion!S:S,L534,ResumenCotizacion!C:C,D534)","v":1000000},0]
["EPP-30GLOBALK COLOMBIA SAS",null,null,"EPP-30",{"$f":"+VLOOKUP(D535,[5]Catálogo!$A$2:$C$46,3,0)","v":"EPP-30 - TAPABOCAS DESECHABLES "},"ELEMENTOS DE PROTECCION PERSONAL",{"$f":"+VLOOKUP(D535,[5]Catálogo!$A$2:$D$46,4,0)","v":"TAPABOCAS DESECHABLE, CON RESORTE A LA OREJA , DOBLE FILTRO, ADAPTADOR NASAL AJUSTABLE, TELA NO TEJIDA"},"Und","Und","Si","Atención emergencia COVID-19","GLOBALK COLOMBIA SAS","AECovid19-550",9990,"COP",1,1000000,{"$f":"Q535-SUMIFS(ResumenCotizacion!L:L,ResumenCotizacion!S:S,L535,ResumenCotizacion!C:C,D535)","v":1000000},0]
["EPP-44GLOBALK COLOMBIA SAS",null,null,"EPP-44",{"$f":"+VLOOKUP(D536,[5]Catálogo!$A$2:$C$46,3,0)","v":"EPP-44 - OVEROL MULTIPROPOSITO PROTECCION ANTIFLUIDO"},"ELEMENTOS DE PROTECCION PERSONAL",{"$f":"+VLOOKUP(D536,[5]Catálogo!$A$2:$D$46,4,0)","v":"OVEROL en tela antifluido lavable alta impermeabilidad, liviano, antialérgico evita el contacto con superficies y líquidos, cuello alto para brindar más protección al usuario, con capucha ajustable y resorte en mangas, cintura y tobillos, cremallera para cierre de prenda, incluido polainas con elástico para mayor protección.\n\nMateriales: Antifluido \nTallas: M, L, XL, XXL\nColor: De acuerdo con la necesidad de la entidad \nInspecciones Físicas: Doblado, costuras, cremallera y presencia de amarres.\nInspecciones Visuales: Libre de presencia de partículas removibles, coloraciones y partículas incrustadas.\nAtributos: Antiestático, Resistencia a las bacterias y Resistencia a los hongos.\nMétodo de Esterilización: No aplica producto no estéril.\nAtoxicidad: Atóxico.\nFecha de Vencimiento: ** Tres Años Después de la Fecha de Fabricación.\nEmpaque Primario: Bolsa de Polietileno de Alta Densidad.\nTela: Antifluido 100% poliéster\nCostura interna: filete y punta de seguridad \nPespuntes: refuerzo cremallera:1/8”, contorno de capota en escote y pegue elástico.\nCondiciones de Conservación: Humedad Relativa: Entre 40%RH y 70%RH Temperatura: Entre 4ºC y 32 ºc Área de almacenamiento fresca, seca y protegido de la luz y humedad. Área de almacenamiento que no entre en contacto con aceites, colorantes, detergentes, sustancias de olor fuerte y/o productos químicos que pueden alterar las condiciones del producto.\nAdvertencias y Precauciones: No utilizar si el empaque no está en perfecto estado. Evitar humedad, salpicaduras de agua y contacto con elementos cortopunzantes durante su almacenamiento.\nMétodo de Reutilización: Producto Reutilizable."},"Und","Und","Si","Atención emergencia COVID-19","GLOBALK COLOMBIA SAS","AECovid19-550",29900,"COP",1,1000000,{"$f":"Q536-SUMIFS(ResumenCotizacion!L:L,ResumenCotizacion!S:S,L536,ResumenCotizacion!C:C,D536)","v":1000000},0]
["EPP-1LIMINA SOLUCIONES INTEGRALES SAS",null,null,"EPP-1",{"$f":"+VLOOKUP(D537,[5]Catálogo!$A$2:$C$46,3,0)","v":"EPP-1 - BATA  DESECHABLE PARA PACIENTE ADULTO  - TALLA S, M , L, XL COMPUESTO POR BATA SIN MANGA CON AMARRADERA  POSTERIOR "},"ELEMENTOS DE PROTECCION PERSONAL",{"$f":"+VLOOKUP(D537,[5]Catálogo!$A$2:$D$46,4,0)","v":"COMPUESTO DE BATA PACIENTE MANGA CIZA, AMARRADERAS EN LA PARTE POSTERIOR 2 A NIVEL DE CUELLO Y 2 A NIVEL DE LA CINTURA EN TELA SMS 35 GRAMOS."},"Und","Und","Si","Atención emergencia COVID-19","LIMINA SOLUCIONES INTEGRALES SAS","AECovid19-622",1300,"COP",1,25000,{"$f":"Q537-SUMIFS(ResumenCotizacion!L:L,ResumenCotizacion!S:S,L537,ResumenCotizacion!C:C,D537)","v":25000},0]
["EPP-2LIMINA SOLUCIONES INTEGRALES SAS",null,null,"EPP-2",{"$f":"+VLOOKUP(D538,[5]Catálogo!$A$2:$C$46,3,0)","v":"EPP-2 - BATA AISLAMIENTO NO ESTERIL MANGA LARGA "},"ELEMENTOS DE PROTECCION PERSONAL",{"$f":"+VLOOKUP(D538,[5]Catálogo!$A$2:$D$46,4,0)","v":"Debe cumplir la siguiente reglamentación: NTC 5623 - Campos Quirurgicos, Batas y trajes para aire limpio de utilizacion quirurgica como Dispositivos Medicos para pacientes, personal clinico y equipo. Parte 1 Requisitos Generales para los fabricantes procesadores y productos. NTC 5624 - Campos Quirurgicos, Batas y trajes para aire limpio de utilizacion quirurgica como Dispositivos Medicos para pacientes, personal clinico y equipo. Parte 2 Metodos de Ensayo. NTC 5625 - Campos Quirurgicos, Batas y trajes para aire limpio de utilizacion quirurgica como Dispositivos Medicos para pacientes, personal clinico y equipo. Parte 3 Requisitos y niveles de funcionamiento."},"Und","Und","Si","Atención emergencia COVID-19","LIMINA SOLUCIONES INTEGRALES SAS","AECovid19-622",1750,"COP",1,25000,{"$f":"Q538-SUMIFS(ResumenCotizacion!L:L,ResumenCotizacion!S:S,L538,ResumenCotizacion!C:C,D538)","v":25000},0]
["EPP-3LIMINA SOLUCIONES INTEGRALES SAS",null,null,"EPP-3",{"$f":"+VLOOKUP(D539,[5]Catálogo!$A$2:$C$46,3,0)","v":"EPP-3 - BATA CIRUJANO DESECHABLE "},"ELEMENTOS DE PROTECCION PERSONAL",{"$f":"+VLOOKUP(D539,[5]Catálogo!$A$2:$D$46,4,0)","v":"BATA CIRUJANO DESECHABLE TALLA S, M, L, XL PRESENTACION ESTERIL"},"Und","Und","Si","Atención emergencia COVID-19","LIMINA SOLUCIONES INTEGRALES SAS","AECovid19-622",3500,"COP",1,25000,{"$f":"Q539-SUMIFS(ResumenCotizacion!L:L,ResumenCotizacion!S:S,L539,ResumenCotizacion!C:C,D539)","v":25000},0]
["EPP-4LIMINA SOLUCIONES INTEGRALES SAS",null,null,"EPP-4",{"$f":"+VLOOKUP(D540,[5]Catálogo!$A$2:$C$46,3,0)","v":"EPP-4 - BATA DESECHABLE CORTAS CON MANGA RESORTADA "},"ELEMENTOS DE PROTECCION PERSONAL",{"$f":"+VLOOKUP(D540,[5]Catálogo!$A$2:$D$46,4,0)","v":"BATA DESECHABLE CORTAS CON MANGA RESORTADA CON CIERRE FRONTAL DE CREMALLERA"},"Und","Und","Si","Atención emergencia COVID-19","LIMINA SOLUCIONES INTEGRALES SAS","AECovid19-622",2100,"COP",1,25000,{"$f":"Q540-SUMIFS(ResumenCotizacion!L:L,ResumenCotizacion!S:S,L540,ResumenCotizacion!C:C,D540)","v":25000},0]
["EPP-5LIMINA SOLUCIONES INTEGRALES SAS",null,null,"EPP-5",{"$f":"+VLOOKUP(D541,[5]Catálogo!$A$2:$C$46,3,0)","v":"EPP-5 - BATA DESECHABLE PARA PACIENTE PEDIATRICO - ROPA DESECHABLE  COMPUESTO POR BATA SIN MANGA CON AMARRADERA  POSTERIOR. "},"ELEMENTOS DE PROTECCION PERSONAL",{"$f":"+VLOOKUP(D541,[5]Catálogo!$A$2:$D$46,4,0)","v":"COMPUESTO DE BATA PACIENTE MANGA CIZA DE 80 CMS, AMARRADERAS EN LA PARTE POSTERIOR 2 A NIVEL DE CUELLO Y 2 A NIVEL DE LA CINTURA EN TELA SMS 35 GRAMOS."},"Und","Und","Si","Atención emergencia COVID-19","LIMINA SOLUCIONES INTEGRALES SAS","AECovid19-622",900,"COP",1,25000,{"$f":"Q541-SUMIFS(ResumenCotizacion!L:L,ResumenCotizacion!S:S,L541,ResumenCotizacion!C:C,D541)","v":25000},0]
["EPP-6LIMINA SOLUCIONES INTEGRALES SAS",null,null,"EPP-6",{"$f":"+VLOOKUP(D542,[5]Catálogo!$A$2:$C$46,3,0)","v":"EPP-6 - BATA PUÑO RIB "},"ELEMENTOS DE PROTECCION PERSONAL",{"$f":"+VLOOKUP(D542,[5]Catálogo!$A$2:$D$46,4,0)","v":"Tela no tejida\nDesechable\nAislante de liquidos\nAlta transpirabilidad\nManga Larga\nPuño en algodón con resorte\nCon tiras de amarre en la cintura y cuello"},"Und","Und","Si","Atención emergencia COVID-19","LIMINA SOLUCIONES INTEGRALES SAS","AECovid19-622",1890,"COP",1,25000,{"$f":"Q542-SUMIFS(ResumenCotizacion!L:L,ResumenCotizacion!S:S,L542,ResumenCotizacion!C:C,D542)","v":25000},0]
["EPP-7LIMINA SOLUCIONES INTEGRALES SAS",null,null,"EPP-7",{"$f":"+VLOOKUP(D543,[5]Catálogo!$A$2:$C$46,3,0)","v":"EPP-7 - BATA QUIRURGICA ASTOUND "},"ELEMENTOS DE PROTECCION PERSONAL",{"$f":"+VLOOKUP(D543,[5]Catálogo!$A$2:$D$46,4,0)","v":"ELABORADA EN SMS POLIPROPILENO DE ALTO RENDIMIENTO IMPERMEABLE LIBRE DE PELUSA, POLIREFORSADA EN ZONAS CRÍTICAS, PECHO Y ANTEBRAZO, RESISTENTE A PENETRACIÓN DE FLUIDOS PELIGROSOS, QUE CONSERVA SU INTEGRIDAD A LO LARGO DEL PROCEDIMIENTO QUIRÚRGICO, MANTIENE TEMPERATURA CORPORAL CONFORTABLE, INFLABILIDAD TESTIBLE CPSC 16."},"Und","Und","Si","Atención emergencia COVID-19","LIMINA SOLUCIONES INTEGRALES SAS","AECovid19-622",2940,"COP",1,25000,{"$f":"Q543-SUMIFS(ResumenCotizacion!L:L,ResumenCotizacion!S:S,L543,ResumenCotizacion!C:C,D543)","v":25000},0]
["EPP-11LIMINA SOLUCIONES INTEGRALES SAS",null,null,"EPP-11",{"$f":"+VLOOKUP(D544,[5]Catálogo!$A$2:$C$46,3,0)","v":"EPP-11 - GORRO DESECHABLE REDONDO ELÁSTICO AZUL "},"ELEMENTOS DE PROTECCION PERSONAL",{"$f":"+VLOOKUP(D544,[5]Catálogo!$A$2:$D$46,4,0)","v":"GORRO REDONDO DESECHABLE TIPO BAÑO BOLAN 15 A 20 GRAMOS TAMAÑO ESTÁNDAR, ENCAUCHADO PARA AJUSTE SUAVE Y FIRME"},"Und","Und","Si","Atención emergencia COVID-19","LIMINA SOLUCIONES INTEGRALES SAS","AECovid19-622",5800,"COP",1,25000,{"$f":"Q544-SUMIFS(ResumenCotizacion!L:L,ResumenCotizacion!S:S,L544,ResumenCotizacion!C:C,D544)","v":25000},0]
["EPP-12LIMINA SOLUCIONES INTEGRALES SAS",null,null,"EPP-12",{"$f":"+VLOOKUP(D545,[5]Catálogo!$A$2:$C$46,3,0)","v":"EPP-12 - GORRO QUIRURJICO "},"ELEMENTOS DE PROTECCION PERSONAL",{"$f":"+VLOOKUP(D545,[5]Catálogo!$A$2:$D$46,4,0)","v":"Gorro con elástico para adaptarse al entorno craneal que se coloca en la cabeza sin que cubra totalmente la frente, ni los ojos. En Tela polipropileno 100% en spundbounded y el Resorte en Nylon blanco. 15 a 20 gramos."},"Und","Und","Si","Atención emergencia COVID-19","LIMINA SOLUCIONES INTEGRALES SAS","AECovid19-622",5700,"COP",1,25000,{"$f":"Q545-SUMIFS(ResumenCotizacion!L:L,ResumenCotizacion!S:S,L545,ResumenCotizacion!C:C,D545)","v":25000},0]
["EPP-21LIMINA SOLUCIONES INTEGRALES SAS",null,null,"EPP-21",{"$f":"+VLOOKUP(D546,[5]Catálogo!$A$2:$C$46,3,0)","v":"EPP-21 - POLAINAS "},"ELEMENTOS DE PROTECCION PERSONAL",{"$f":"+VLOOKUP(D546,[5]Catálogo!$A$2:$D$46,4,0)","v":"Polaina antideslizante, no estéril, no tejida. Libre de hebras, ni partículas volátiles, lisa, sin deformaciones. Sellado con ultrasonido. Con recuento controlado microbiano.En Polipropileno (PP) con elástico de látex natural. Dimensión estándar. De un solo uso."},"Und","Und","Si","Atención emergencia COVID-19","LIMINA SOLUCIONES INTEGRALES SAS","AECovid19-622",9600,"COP",1,25000,{"$f":"Q546-SUMIFS(ResumenCotizacion!L:L,ResumenCotizacion!S:S,L546,ResumenCotizacion!C:C,D546)","v":25000},0]
["EPP-25LIMINA SOLUCIONES INTEGRALES SAS",null,null,"EPP-25",{"$f":"+VLOOKUP(D547,[5]Catálogo!$A$2:$C$46,3,0)","v":"EPP-25 - SABANA DESECHABLE "},"ELEMENTOS DE PROTECCION PERSONAL",{"$f":"+VLOOKUP(D547,[5]Catálogo!$A$2:$D$46,4,0)","v":"SÁBANA AJUSTABLE DESECHABLE, CONFECCIONADA CON TEJIDO NO TEJIDO DE POLIPROPILENO (PP). CON ELÁSTICOS EN LOS EXTREMOS PARA AJUSTAR A LAS CAMILLAS."},"Und","Und","Si","Atención emergencia COVID-19","LIMINA SOLUCIONES INTEGRALES SAS","AECovid19-622",1500,"COP",1,25000,{"$f":"Q547-SUMIFS(ResumenCotizacion!L:L,ResumenCotizacion!S:S,L547,ResumenCotizacion!C:C,D547)","v":25000},0]
["EPP-26LIMINA SOLUCIONES INTEGRALES SAS",null,null,"EPP-26",{"$f":"+VLOOKUP(D548,[5]Catálogo!$A$2:$C$46,3,0)","v":"EPP-26 - SABANA NO TEJIDO X100 "},"ELEMENTOS DE PROTECCION PERSONAL",{"$f":"+VLOOKUP(D548,[5]Catálogo!$A$2:$D$46,4,0)","v":"TELA NO TEJIDO\nDESECHABLE\nAISLANTE DE LIQUIDOS\nALTA TRANSPIRABILIDAD\nFABRICADA EN POLIESTER"},"Und","Und","Si","Atención emergencia COVID-19","LIMINA SOLUCIONES INTEGRALES SAS","AECovid19-622",3700,"COP",1,25000,{"$f":"Q548-SUMIFS(ResumenCotizacion!L:L,ResumenCotizacion!S:S,L548,ResumenCotizacion!C:C,D548)","v":25000},0]
["EPP-30LIMINA SOLUCIONES INTEGRALES SAS",null,null,"EPP-30",{"$f":"+VLOOKUP(D549,[5]Catálogo!$A$2:$C$46,3,0)","v":"EPP-30 - TAPABOCAS DESECHABLES "},"ELEMENTOS DE PROTECCION PERSONAL",{"$f":"+VLOOKUP(D549,[5]Catálogo!$A$2:$D$46,4,0)","v":"TAPABOCAS DESECHABLE, CON RESORTE A LA OREJA , DOBLE FILTRO, ADAPTADOR NASAL AJUSTABLE, TELA NO TEJIDA"},"Und","Und","Si","Atención emergencia COVID-19","LIMINA SOLUCIONES INTEGRALES SAS","AECovid19-622",13000,"COP",1,25000,{"$f":"Q549-SUMIFS(ResumenCotizacion!L:L,ResumenCotizacion!S:S,L549,ResumenCotizacion!C:C,D549)","v":25000},0]
["EPP-33LIMINA SOLUCIONES INTEGRALES SAS",null,null,"EPP-33",{"$f":"+VLOOKUP(D550,[5]Catálogo!$A$2:$C$46,3,0)","v":"EPP-33 - TRAJE BIOLÓGICO "},"ELEMENTOS DE PROTECCION PERSONAL",{"$f":"+VLOOKUP(D550,[5]Catálogo!$A$2:$D$46,4,0)","v":"TRAJE DE PROTECCCIÓN CONTRA AGENTES BIOLÓGICOS Y QUÍMICOS, TAMAÑO (S, M, L, XL, XXL, XXXL)\n· CAPUCHA, CINTURA Y TOBILLOS ELÁSTICOS, PARA UNA MAYOR SEGURIDAD Y LIBERTAD DE\nMOVIMIENTOS.\n· MATERIAL MICROPOROSO LAMINADO, LE BRINDA UNA GRAN RESISTENCIA Y DURACIÓN, LIBRE DE FIBRAS.\n· CIERRE CUBIERTO PARA MEJOR PROTECCIÓN."},"Und","Und","Si","Atención emergencia COVID-19","LIMINA SOLUCIONES INTEGRALES SAS","AECovid19-622",10600,"COP",1,25000,{"$f":"Q550-SUMIFS(ResumenCotizacion!L:L,ResumenCotizacion!S:S,L550,ResumenCotizacion!C:C,D550)","v":25000},0]
["EPP-36LIMINA SOLUCIONES INTEGRALES SAS",null,null,"EPP-36",{"$f":"+VLOOKUP(D551,[5]Catálogo!$A$2:$C$46,3,0)","v":"EPP-36 - TRAJES DE BIO PORTECCIÓN- BLUSA "},"ELEMENTOS DE PROTECCION PERSONAL",{"$f":"+VLOOKUP(D551,[5]Catálogo!$A$2:$D$46,4,0)","v":"BLUSA EN TELA ANTI-FLUIDO.\nREPELENTE A LIQUIDO Y ANTI-CLORO.\nTALLAS S,M,L,XL"},"Und","Und","Si","Atención emergencia COVID-19","LIMINA SOLUCIONES INTEGRALES SAS","AECovid19-622",3650,"COP",1,25000,{"$f":"Q551-SUMIFS(ResumenCotizacion!L:L,ResumenCotizacion!S:S,L551,ResumenCotizacion!C:C,D551)","v":25000},0]
["EPP-37LIMINA SOLUCIONES INTEGRALES SAS",null,null,"EPP-37",{"$f":"+VLOOKUP(D552,[5]Catálogo!$A$2:$C$46,3,0)","v":"EPP-37 - TRAJES DE BIO PORTECCIÓN- PANTALON "},"ELEMENTOS DE PROTECCION PERSONAL",{"$f":"+VLOOKUP(D552,[5]Catálogo!$A$2:$D$46,4,0)","v":"PANTALÓN/PANTALONES, TEJIDOS, EXFOLIANTES, REUTILIZABLES O DE UN SOLO USO, DE MANGA CORTA (TÚNICA/TOPS), USADOS DEBAJO DE LAS FUNDAS O BATAS."},"Und","Und","Si","Atención emergencia COVID-19","LIMINA SOLUCIONES INTEGRALES SAS","AECovid19-622",5700,"COP",1,25000,{"$f":"Q552-SUMIFS(ResumenCotizacion!L:L,ResumenCotizacion!S:S,L552,ResumenCotizacion!C:C,D552)","v":25000},0]
["EPP-39LIMINA SOLUCIONES INTEGRALES SAS",null,null,"EPP-39",{"$f":"+VLOOKUP(D553,[5]Catálogo!$A$2:$C$46,3,0)","v":"EPP-39 - MASCARA RESPIRADOR FULLFACE CON CARTUCHO"},"ELEMENTOS DE PROTECCION PERSONAL",{"$f":"+VLOOKUP(D553,[5]Catálogo!$A$2:$D$46,4,0)","v":"Pieza facial suave para la piel del usuario que reduzca la posibilidad de irritación en la piel para ajuste y sellamiento en la cara, con arnés minimo de cuatro (4) puntos de apoyo, se utilza en conjunto con los cartuchos para quimicos, con valvula frontal central de exhalación que ayude a una respiración más cómoda, fresca y seca. Debe estar disponible en tres tamaños: (i) pequeña (S), (ii) mediana (M), y (iii) grande (L). Debe tener acople rapido con los cartuchos y filtros, libre de piezas y partes metálicas, visor panoramico con amplio campo de visibilidad. \n\nPieza facial cara completa con visor, de doble cartucho, con la posibilidad de ser utilizada con filtros y cartuchos reemplazables para protección contra gases, vapores y material particulado como polvo, neblina y humos. La máscara respirador fullface debe tener los dos cartuchos iniciales.\n\nNOTA: si presenta este producto, debe ofrecer también los cartuchos en el siguiente item. "},"Und","Und","Si","Atención emergencia COVID-19","LIMINA SOLUCIONES INTEGRALES SAS","AECovid19-622",421000,"COP",1,25000,{"$f":"Q553-SUMIFS(ResumenCotizacion!L:L,ResumenCotizacion!S:S,L553,ResumenCotizacion!C:C,D553)","v":25000},0]
["EPP-40LIMINA SOLUCIONES INTEGRALES SAS",null,null,"EPP-40",{"$f":"+VLOOKUP(D554,[5]Catálogo!$A$2:$C$46,3,0)","v":"EPP-40 - CARTUCHO MULTIGAS"},"ELEMENTOS DE PROTECCION PERSONAL",{"$f":"+VLOOKUP(D554,[5]Catálogo!$A$2:$D$46,4,0)","v":"El proveedor que ofrezca la MACARA RESPIRADOR FULLFACE CON CARTUCHO debe ofrecer también de manera independiente los cartuchos para esta, dichos cartuchos deben brindar una efectiva protección respiratoria contra ciertos vapores orgánicos, cloro, cloruro de hidrógeno, dióxido de cloro, dióxido de azufre, sulfuro de hidrógeno (sólo para escapar), amoníaco/metilamina, formaldehído."},"Und","Und","Si","Atención emergencia COVID-19","LIMINA SOLUCIONES INTEGRALES SAS","AECovid19-622",69000,"COP",1,25000,{"$f":"Q554-SUMIFS(ResumenCotizacion!L:L,ResumenCotizacion!S:S,L554,ResumenCotizacion!C:C,D554)","v":25000},0]
["EPP-41LIMINA SOLUCIONES INTEGRALES SAS",null,null,"EPP-41",{"$f":"+VLOOKUP(D555,[5]Catálogo!$A$2:$C$46,3,0)","v":"EPP-41 - GUANTES DE NEOPRENO"},"ELEMENTOS DE PROTECCION PERSONAL",{"$f":"+VLOOKUP(D555,[5]Catálogo!$A$2:$D$46,4,0)","v":"Guantes de Neopreno liso (Guantes de neopreno con forrado interior, mínimo de 13 pulgadas (ácidos, alcoholes, disolventes, causticas, aceites) y gran resistencia a agresiones mecánicas. Permite la manipulación intermitente en líquidos a temperaturas muy bajas. \nUnidad de empaque: Caja x 100"},"Und","Und","Si","Atención emergencia COVID-19","LIMINA SOLUCIONES INTEGRALES SAS","AECovid19-622",99000,"COP",1,25000,{"$f":"Q555-SUMIFS(ResumenCotizacion!L:L,ResumenCotizacion!S:S,L555,ResumenCotizacion!C:C,D555)","v":25000},0]
["EPP-43LIMINA SOLUCIONES INTEGRALES SAS",null,null,"EPP-43",{"$f":"+VLOOKUP(D556,[5]Catálogo!$A$2:$C$46,3,0)","v":"EPP-43 - GORRO QUIRURGICO CON RECUENTO CONTROLADO MICROBIANO"},"ELEMENTOS DE PROTECCION PERSONAL",{"$f":"+VLOOKUP(D556,[5]Catálogo!$A$2:$D$46,4,0)","v":"Gorro con elástico para adaptarse al entorno craneal, que se coloca en la cabeza y cubre parcialmente la frente. \nDebe cumplir con la NTC 5623, NTC 5625, NORMA CFR Title 21 Subpart E of part 807\nDebe cumplir CON RECUENTO CONTROLADO MICROBIANO, en Tela polipropileno 100%"},"Und","Und","Si","Atención emergencia COVID-19","LIMINA SOLUCIONES INTEGRALES SAS","AECovid19-622",6380,"COP",1,25000,{"$f":"Q556-SUMIFS(ResumenCotizacion!L:L,ResumenCotizacion!S:S,L556,ResumenCotizacion!C:C,D556)","v":25000},0]
["EPP-3MEMCO SAS",null,null,"EPP-3",{"$f":"+VLOOKUP(D557,[5]Catálogo!$A$2:$C$46,3,0)","v":"EPP-3 - BATA CIRUJANO DESECHABLE "},"ELEMENTOS DE PROTECCION PERSONAL",{"$f":"+VLOOKUP(D557,[5]Catálogo!$A$2:$D$46,4,0)","v":"BATA CIRUJANO DESECHABLE TALLA S, M, L, XL PRESENTACION ESTERIL"},"Und","Und","Si","Atención emergencia COVID-19","MEMCO SAS","AECovid19-553",4500,"COP",1,5000000,{"$f":"Q557-SUMIFS(ResumenCotizacion!L:L,ResumenCotizacion!S:S,L557,ResumenCotizacion!C:C,D557)","v":5000000},0]
["EPP-19MEMCO SAS",null,null,"EPP-19",{"$f":"+VLOOKUP(D558,[5]Catálogo!$A$2:$C$46,3,0)","v":"EPP-19 - MASCARILLA FACIAL N95 (TAPA BOCA)- RESORTADA "},"ELEMENTOS DE PROTECCION PERSONAL",{"$f":"+VLOOKUP(D558,[5]Catálogo!$A$2:$D$46,4,0)","v":"DESECHABLE, CON RESORTE A LA OREJA , DOBLE FILTRO, ADAPTADOR NASAL AJUSTABLE, EN ALGODÓN"},"Und","Und","Si","Atención emergencia COVID-19","MEMCO SAS","AECovid19-553",27500,"COP",1,20000000,{"$f":"Q558-SUMIFS(ResumenCotizacion!L:L,ResumenCotizacion!S:S,L558,ResumenCotizacion!C:C,D558)","v":20000000},0]
["EPP-30MEMCO SAS",null,null,"EPP-30",{"$f":"+VLOOKUP(D559,[5]Catálogo!$A$2:$C$46,3,0)","v":"EPP-30 - TAPABOCAS DESECHABLES "},"ELEMENTOS DE PROTECCION PERSONAL",{"$f":"+VLOOKUP(D559,[5]Catálogo!$A$2:$D$46,4,0)","v":"TAPABOCAS DESECHABLE, CON RESORTE A LA OREJA , DOBLE FILTRO, ADAPTADOR NASAL AJUSTABLE, TELA NO TEJIDA"},"Und","Und","Si","Atención emergencia COVID-19","MEMCO SAS","AECovid19-553",10000,"COP",1,20000000,{"$f":"Q559-SUMIFS(ResumenCotizacion!L:L,ResumenCotizacion!S:S,L559,ResumenCotizacion!C:C,D559)","v":20000000},0]
["EPP-32MEMCO SAS",null,null,"EPP-32",{"$f":"+VLOOKUP(D560,[5]Catálogo!$A$2:$C$46,3,0)","v":"EPP-32 - TAPABOCAS QUIRUGICO N95"},"ELEMENTOS DE PROTECCION PERSONAL",{"$f":"+VLOOKUP(D560,[5]Catálogo!$A$2:$D$46,4,0)","v":"DEBE CUMPLIR LA SIGUIENTE REGLAMENTACIÓN: NTC 3851 Parte 1 Criterios para la selección y uso de los equipos de protecicion respiratoria. / NTC 3852 Parte 2 Equipos de proteccion respiratoria, proteccion contra particulas."},"Und","Und","Si","Atención emergencia COVID-19","MEMCO SAS","AECovid19-553",87000,"COP",1,20000000,{"$f":"Q560-SUMIFS(ResumenCotizacion!L:L,ResumenCotizacion!S:S,L560,ResumenCotizacion!C:C,D560)","v":20000000},0]
["EPP-1NACH SOLUCIONES AMBIENTALES E INDUSTRIALES SAS",null,null,"EPP-1",{"$f":"+VLOOKUP(D561,[5]Catálogo!$A$2:$C$46,3,0)","v":"EPP-1 - BATA  DESECHABLE PARA PACIENTE ADULTO  - TALLA S, M , L, XL COMPUESTO POR BATA SIN MANGA CON AMARRADERA  POSTERIOR "},"ELEMENTOS DE PROTECCION PERSONAL",{"$f":"+VLOOKUP(D561,[5]Catálogo!$A$2:$D$46,4,0)","v":"COMPUESTO DE BATA PACIENTE MANGA CIZA, AMARRADERAS EN LA PARTE POSTERIOR 2 A NIVEL DE CUELLO Y 2 A NIVEL DE LA CINTURA EN TELA SMS 35 GRAMOS."},"Und","Und","Si","Atención emergencia COVID-19","NACH SOLUCIONES AMBIENTALES E INDUSTRIALES SAS","AECovid19-656",5200,"COP",1,200,{"$f":"Q561-SUMIFS(ResumenCotizacion!L:L,ResumenCotizacion!S:S,L561,ResumenCotizacion!C:C,D561)","v":200},0]
["EPP-9NACH SOLUCIONES AMBIENTALES E INDUSTRIALES SAS",null,null,"EPP-9",{"$f":"+VLOOKUP(D562,[5]Catálogo!$A$2:$C$46,3,0)","v":"EPP-9 - CARETAS VISORES (PROTECTOR FACIAL) "},"ELEMENTOS DE PROTECCION PERSONAL",{"$f":"+VLOOKUP(D562,[5]Catálogo!$A$2:$D$46,4,0)","v":"CARETA VISOR DE USO MEDICO EN PASTA CON SEGURO ELASTICO"},"Und","Und","Si","Atención emergencia COVID-19","NACH SOLUCIONES AMBIENTALES E INDUSTRIALES SAS","AECovid19-656",9400,"COP",1,200,{"$f":"Q562-SUMIFS(ResumenCotizacion!L:L,ResumenCotizacion!S:S,L562,ResumenCotizacion!C:C,D562)","v":200},0]
["EPP-11NACH SOLUCIONES AMBIENTALES E INDUSTRIALES SAS",null,null,"EPP-11",{"$f":"+VLOOKUP(D563,[5]Catálogo!$A$2:$C$46,3,0)","v":"EPP-11 - GORRO DESECHABLE REDONDO ELÁSTICO AZUL "},"ELEMENTOS DE PROTECCION PERSONAL",{"$f":"+VLOOKUP(D563,[5]Catálogo!$A$2:$D$46,4,0)","v":"GORRO REDONDO DESECHABLE TIPO BAÑO BOLAN 15 A 20 GRAMOS TAMAÑO ESTÁNDAR, ENCAUCHADO PARA AJUSTE SUAVE Y FIRME"},"Und","Und","Si","Atención emergencia COVID-19","NACH SOLUCIONES AMBIENTALES E INDUSTRIALES SAS","AECovid19-656",13000,"COP",1,200,{"$f":"Q563-SUMIFS(ResumenCotizacion!L:L,ResumenCotizacion!S:S,L563,ResumenCotizacion!C:C,D563)","v":200},0]
["EPP-12NACH SOLUCIONES AMBIENTALES E INDUSTRIALES SAS",null,null,"EPP-12",{"$f":"+VLOOKUP(D564,[5]Catálogo!$A$2:$C$46,3,0)","v":"EPP-12 - GORRO QUIRURJICO "},"ELEMENTOS DE PROTECCION PERSONAL",{"$f":"+VLOOKUP(D564,[5]Catálogo!$A$2:$D$46,4,0)","v":"Gorro con elástico para adaptarse al entorno craneal que se coloca en la cabeza sin que cubra totalmente la frente, ni los ojos. En Tela polipropileno 100% en spundbounded y el Resorte en Nylon blanco. 15 a 20 gramos."},"Und","Und","Si","Atención emergencia COVID-19","NACH SOLUCIONES AMBIENTALES E INDUSTRIALES SAS","AECovid19-656",13000,"COP",1,200,{"$f":"Q564-SUMIFS(ResumenCotizacion!L:L,ResumenCotizacion!S:S,L564,ResumenCotizacion!C:C,D564)","v":200},0]
["EPP-13NACH SOLUCIONES AMBIENTALES E INDUSTRIALES SAS",null,null,"EPP-13",{"$f":"+VLOOKUP(D565,[5]Catálogo!$A$2:$C$46,3,0)","v":"EPP-13 - GUANTES DE LATEX  "},"ELEMENTOS DE PROTECCION PERSONAL",{"$f":"+VLOOKUP(D565,[5]Catálogo!$A$2:$D$46,4,0)","v":"GUANTES DE LÁTEX TALLA S,M, L  DESECHABLES, HIPOALERGÉNICOS, NO ESTÉRILES, ALTA RESISTENCIA A LA ELONGACIÓN, CON ENTALCAMIENTO LEVE INTERNO, AMBIDIESTROS, LÁTEX BLANCO, PUÑO CON REBORDE. "},"Und","Und","Si","Atención emergencia COVID-19","NACH SOLUCIONES AMBIENTALES E INDUSTRIALES SAS","AECovid19-656",49900,"COP",1,500,{"$f":"Q565-SUMIFS(ResumenCotizacion!L:L,ResumenCotizacion!S:S,L565,ResumenCotizacion!C:C,D565)","v":500},0]
["EPP-14NACH SOLUCIONES AMBIENTALES E INDUSTRIALES SAS",null,null,"EPP-14",{"$f":"+VLOOKUP(D566,[5]Catálogo!$A$2:$C$46,3,0)","v":"EPP-14 - GUANTES DE NITRILO "},"ELEMENTOS DE PROTECCION PERSONAL",{"$f":"+VLOOKUP(D566,[5]Catálogo!$A$2:$D$46,4,0)","v":"GUANTES DE NITRILO (CALIBRE DE 8 MILESIMAS MÍNIMO) TALLAS,M Y L DESECHABLES, HIPOALERGÉNICOS, NO ESTÉRILES, ALTA RESISTENCIA A LA ELONGACIÓN, CON ENTALCAMIENTO LEVE INTERNO, AMBIDIESTROS, PUÑO CON REBORDE."},"Und","Und","Si","Atención emergencia COVID-19","NACH SOLUCIONES AMBIENTALES E INDUSTRIALES SAS","AECovid19-656",63900,"COP",1,500,{"$f":"Q566-SUMIFS(ResumenCotizacion!L:L,ResumenCotizacion!S:S,L566,ResumenCotizacion!C:C,D566)","v":500},0]
["EPP-21NACH SOLUCIONES AMBIENTALES E INDUSTRIALES SAS",null,null,"EPP-21",{"$f":"+VLOOKUP(D567,[5]Catálogo!$A$2:$C$46,3,0)","v":"EPP-21 - POLAINAS "},"ELEMENTOS DE PROTECCION PERSONAL",{"$f":"+VLOOKUP(D567,[5]Catálogo!$A$2:$D$46,4,0)","v":"Polaina antideslizante, no estéril, no tejida. Libre de hebras, ni partículas volátiles, lisa, sin deformaciones. Sellado con ultrasonido. Con recuento controlado microbiano.En Polipropileno (PP) con elástico de látex natural. Dimensión estándar. De un solo uso."},"Und","Und","Si","Atención emergencia COVID-19","NACH SOLUCIONES AMBIENTALES E INDUSTRIALES SAS","AECovid19-656",26000,"COP",1,500,{"$f":"Q567-SUMIFS(ResumenCotizacion!L:L,ResumenCotizacion!S:S,L567,ResumenCotizacion!C:C,D567)","v":500},0]
["EPP-25NACH SOLUCIONES AMBIENTALES E INDUSTRIALES SAS",null,null,"EPP-25",{"$f":"+VLOOKUP(D568,[5]Catálogo!$A$2:$C$46,3,0)","v":"EPP-25 - SABANA DESECHABLE "},"ELEMENTOS DE PROTECCION PERSONAL",{"$f":"+VLOOKUP(D568,[5]Catálogo!$A$2:$D$46,4,0)","v":"SÁBANA AJUSTABLE DESECHABLE, CONFECCIONADA CON TEJIDO NO TEJIDO DE POLIPROPILENO (PP). CON ELÁSTICOS EN LOS EXTREMOS PARA AJUSTAR A LAS CAMILLAS."},"Und","Und","Si","Atención emergencia COVID-19","NACH SOLUCIONES AMBIENTALES E INDUSTRIALES SAS","AECovid19-656",4900,"COP",1,500,{"$f":"Q568-SUMIFS(ResumenCotizacion!L:L,ResumenCotizacion!S:S,L568,ResumenCotizacion!C:C,D568)","v":500},0]
["EPP-30NACH SOLUCIONES AMBIENTALES E INDUSTRIALES SAS",null,null,"EPP-30",{"$f":"+VLOOKUP(D569,[5]Catálogo!$A$2:$C$46,3,0)","v":"EPP-30 - TAPABOCAS DESECHABLES "},"ELEMENTOS DE PROTECCION PERSONAL",{"$f":"+VLOOKUP(D569,[5]Catálogo!$A$2:$D$46,4,0)","v":"TAPABOCAS DESECHABLE, CON RESORTE A LA OREJA , DOBLE FILTRO, ADAPTADOR NASAL AJUSTABLE, TELA NO TEJIDA"},"Und","Und","Si","Atención emergencia COVID-19","NACH SOLUCIONES AMBIENTALES E INDUSTRIALES SAS","AECovid19-656",12000,"COP",1,50000,{"$f":"Q569-SUMIFS(ResumenCotizacion!L:L,ResumenCotizacion!S:S,L569,ResumenCotizacion!C:C,D569)","v":50000},0]
["EPP-33NACH SOLUCIONES AMBIENTALES E INDUSTRIALES SAS",null,null,"EPP-33",{"$f":"+VLOOKUP(D570,[5]Catálogo!$A$2:$C$46,3,0)","v":"EPP-33 - TRAJE BIOLÓGICO "},"ELEMENTOS DE PROTECCION PERSONAL",{"$f":"+VLOOKUP(D570,[5]Catálogo!$A$2:$D$46,4,0)","v":"TRAJE DE PROTECCCIÓN CONTRA AGENTES BIOLÓGICOS Y QUÍMICOS, TAMAÑO (S, M, L, XL, XXL, XXXL)\n· CAPUCHA, CINTURA Y TOBILLOS ELÁSTICOS, PARA UNA MAYOR SEGURIDAD Y LIBERTAD DE\nMOVIMIENTOS.\n· MATERIAL MICROPOROSO LAMINADO, LE BRINDA UNA GRAN RESISTENCIA Y DURACIÓN, LIBRE DE FIBRAS.\n· CIERRE CUBIERTO PARA MEJOR PROTECCIÓN."},"Und","Und","Si","Atención emergencia COVID-19","NACH SOLUCIONES AMBIENTALES E INDUSTRIALES SAS","AECovid19-656",15000,"COP",1,200,{"$f":"Q570-SUMIFS(ResumenCotizacion!L:L,ResumenCotizacion!S:S,L570,ResumenCotizacion!C:C,D570)","v":200},0]
["EPP-34NACH SOLUCIONES AMBIENTALES E INDUSTRIALES SAS",null,null,"EPP-34",{"$f":"+VLOOKUP(D571,[5]Catálogo!$A$2:$C$46,3,0)","v":"EPP-34 - TRAJE DESECHABLE ANTIFLUIDO "},"ELEMENTOS DE PROTECCION PERSONAL",{"$f":"+VLOOKUP(D571,[5]Catálogo!$A$2:$D$46,4,0)","v":"TALLAS: S,M,L,XL\nCOSTURAS SERIADAS, CON CAPUCHA.\nCIERRE DE CREMALLERA FRONTAL\nMUÑECAS Y TOBILLOS ELASTICOS\nFABRICADO EN TELA ANTIFLUIDO"},"Und","Und","Si","Atención emergencia COVID-19","NACH SOLUCIONES AMBIENTALES E INDUSTRIALES SAS","AECovid19-656",30000,"COP",1,200,{"$f":"Q571-SUMIFS(ResumenCotizacion!L:L,ResumenCotizacion!S:S,L571,ResumenCotizacion!C:C,D571)","v":200},0]
["EPP-46NACH SOLUCIONES AMBIENTALES E INDUSTRIALES SAS",null,null,"EPP-46",{"$f":"+VLOOKUP(D572,[5]Catálogo!$A$2:$C$46,3,0)","v":"EPP-46 - TAPABOCAS DESECHABLES,  TRES CAPAS TERMOSELLADO"},"ELEMENTOS DE PROTECCION PERSONAL",{"$f":"+VLOOKUP(D572,[5]Catálogo!$A$2:$D$46,4,0)","v":"TAPABOCAS DESECHABLE, CON RESORTE A LA OREJA , TRES CAPAS, ADAPTADOR NASAL AJUSTABLE (ALAMBRE RECUBIERTO DE PLASTICO), TELA NO TEJIDA. EMPAQUE INDIVIDUAL"},"Und","Und","Si","Atención emergencia COVID-19","NACH SOLUCIONES AMBIENTALES E INDUSTRIALES SAS","AECovid19-656",9000,"COP",1,50000,{"$f":"Q572-SUMIFS(ResumenCotizacion!L:L,ResumenCotizacion!S:S,L572,ResumenCotizacion!C:C,D572)","v":50000},0]
["EPP-30PAPER BOX SP SAS",null,null,"EPP-30",{"$f":"+VLOOKUP(D573,[5]Catálogo!$A$2:$C$46,3,0)","v":"EPP-30 - TAPABOCAS DESECHABLES "},"ELEMENTOS DE PROTECCION PERSONAL",{"$f":"+VLOOKUP(D573,[5]Catálogo!$A$2:$D$46,4,0)","v":"TAPABOCAS DESECHABLE, CON RESORTE A LA OREJA , DOBLE FILTRO, ADAPTADOR NASAL AJUSTABLE, TELA NO TEJIDA"},"Und","Und","Si","Atención emergencia COVID-19","PAPER BOX SP SAS","AECovid19-500",39500,"COP",1,30000,{"$f":"Q573-SUMIFS(ResumenCotizacion!L:L,ResumenCotizacion!S:S,L573,ResumenCotizacion!C:C,D573)","v":30000},0]
["EPP-18PRIME PRODUCCIONES SA",null,null,"EPP-18",{"$f":"+VLOOKUP(D574,[5]Catálogo!$A$2:$C$46,3,0)","v":"EPP-18 - MASCARILLA FACIAL N95 (TAPA BOCA) "},"ELEMENTOS DE PROTECCION PERSONAL",{"$f":"+VLOOKUP(D574,[5]Catálogo!$A$2:$D$46,4,0)","v":"DESECHABLE, CON TIRAS PARA AMARRAR, DOBLE FILTRO, ADAPTADOR NASAL AJUSTABLE, EN ALGODÓN,"},"Und","Und","Si","Atención emergencia COVID-19","PRIME PRODUCCIONES SA","AECovid19-659",53200,"COP",1,12000,{"$f":"Q574-SUMIFS(ResumenCotizacion!L:L,ResumenCotizacion!S:S,L574,ResumenCotizacion!C:C,D574)","v":12000},0]
["EPP-32PRIME PRODUCCIONES SA",null,null,"EPP-32",{"$f":"+VLOOKUP(D575,[5]Catálogo!$A$2:$C$46,3,0)","v":"EPP-32 - TAPABOCAS QUIRUGICO N95"},"ELEMENTOS DE PROTECCION PERSONAL",{"$f":"+VLOOKUP(D575,[5]Catálogo!$A$2:$D$46,4,0)","v":"DEBE CUMPLIR LA SIGUIENTE REGLAMENTACIÓN: NTC 3851 Parte 1 Criterios para la selección y uso de los equipos de protecicion respiratoria. / NTC 3852 Parte 2 Equipos de proteccion respiratoria, proteccion contra particulas."},"Und","Und","Si","Atención emergencia COVID-19","PRIME PRODUCCIONES SA","AECovid19-659",100000,"COP",1,12000,{"$f":"Q575-SUMIFS(ResumenCotizacion!L:L,ResumenCotizacion!S:S,L575,ResumenCotizacion!C:C,D575)","v":12000},0]
["EPP-9PROCTECH TECNOLOGIA EN PROTECCION S.A.S.",null,null,"EPP-9",{"$f":"+VLOOKUP(D576,[5]Catálogo!$A$2:$C$46,3,0)","v":"EPP-9 - CARETAS VISORES (PROTECTOR FACIAL) "},"ELEMENTOS DE PROTECCION PERSONAL",{"$f":"+VLOOKUP(D576,[5]Catálogo!$A$2:$D$46,4,0)","v":"CARETA VISOR DE USO MEDICO EN PASTA CON SEGURO ELASTICO"},"Und","Und","Si","Atención emergencia COVID-19","PROCTECH TECNOLOGIA EN PROTECCION S.A.S.","AECovid19-549",2000,"COP",1,20000,{"$f":"Q576-SUMIFS(ResumenCotizacion!L:L,ResumenCotizacion!S:S,L576,ResumenCotizacion!C:C,D576)","v":20000},0]
["EPP-46PROCTECH TECNOLOGIA EN PROTECCION S.A.S.",null,null,"EPP-46",{"$f":"+VLOOKUP(D577,[5]Catálogo!$A$2:$C$46,3,0)","v":"EPP-46 - TAPABOCAS DESECHABLES,  TRES CAPAS TERMOSELLADO"},"ELEMENTOS DE PROTECCION PERSONAL",{"$f":"+VLOOKUP(D577,[5]Catálogo!$A$2:$D$46,4,0)","v":"TAPABOCAS DESECHABLE, CON RESORTE A LA OREJA , TRES CAPAS, ADAPTADOR NASAL AJUSTABLE (ALAMBRE RECUBIERTO DE PLASTICO), TELA NO TEJIDA. EMPAQUE INDIVIDUAL"},"Und","Und","Si","Atención emergencia COVID-19","PROCTECH TECNOLOGIA EN PROTECCION S.A.S.","AECovid19-549",15000,"COP",1,50000,{"$f":"Q577-SUMIFS(ResumenCotizacion!L:L,ResumenCotizacion!S:S,L577,ResumenCotizacion!C:C,D577)","v":50000},0]
["EPP-3SARAO EVENTOS SAS",null,null,"EPP-3",{"$f":"+VLOOKUP(D578,[5]Catálogo!$A$2:$C$46,3,0)","v":"EPP-3 - BATA CIRUJANO DESECHABLE "},"ELEMENTOS DE PROTECCION PERSONAL",{"$f":"+VLOOKUP(D578,[5]Catálogo!$A$2:$D$46,4,0)","v":"BATA CIRUJANO DESECHABLE TALLA S, M, L, XL PRESENTACION ESTERIL"},"Und","Und","Si","Atención emergencia COVID-19","SARAO EVENTOS SAS","AECovid19-657",6833,"COP",1,1000,{"$f":"Q578-SUMIFS(ResumenCotizacion!L:L,ResumenCotizacion!S:S,L578,ResumenCotizacion!C:C,D578)","v":1000},0]
["EPP-6SARAO EVENTOS SAS",null,null,"EPP-6",{"$f":"+VLOOKUP(D579,[5]Catálogo!$A$2:$C$46,3,0)","v":"EPP-6 - BATA PUÑO RIB "},"ELEMENTOS DE PROTECCION PERSONAL",{"$f":"+VLOOKUP(D579,[5]Catálogo!$A$2:$D$46,4,0)","v":"Tela no tejida\nDesechable\nAislante de liquidos\nAlta transpirabilidad\nManga Larga\nPuño en algodón con resorte\nCon tiras de amarre en la cintura y cuello"},"Und","Und","Si","Atención emergencia COVID-19","SARAO EVENTOS SAS","AECovid19-657",3800,"COP",1,1000,{"$f":"Q579-SUMIFS(ResumenCotizacion!L:L,ResumenCotizacion!S:S,L579,ResumenCotizacion!C:C,D579)","v":1000},0]
["EPP-14SARAO EVENTOS SAS",null,null,"EPP-14",{"$f":"+VLOOKUP(D580,[5]Catálogo!$A$2:$C$46,3,0)","v":"EPP-14 - GUANTES DE NITRILO "},"ELEMENTOS DE PROTECCION PERSONAL",{"$f":"+VLOOKUP(D580,[5]Catálogo!$A$2:$D$46,4,0)","v":"GUANTES DE NITRILO (CALIBRE DE 8 MILESIMAS MÍNIMO) TALLAS,M Y L DESECHABLES, HIPOALERGÉNICOS, NO ESTÉRILES, ALTA RESISTENCIA A LA ELONGACIÓN, CON ENTALCAMIENTO LEVE INTERNO, AMBIDIESTROS, PUÑO CON REBORDE."},"Und","Und","Si","Atención emergencia COVID-19","SARAO EVENTOS SAS","AECovid19-657",70000,"COP",1,1000,{"$f":"Q580-SUMIFS(ResumenCotizacion!L:L,ResumenCotizacion!S:S,L580,ResumenCotizacion!C:C,D580)","v":1000},0]
[{"$f":"D581&L581","v":"EPP-16SARAO EVENTOS SAS"},null,null,"EPP-16",{"$f":"+VLOOKUP(D581,[5]Catálogo!$A$2:$C$46,3,0)","v":"EPP-16 - KIT PREVENCION CONTAGIO (Q TAPABOCAS LAVABLE + 1 GAFAS PROTECTORAS + 1 FC ALCOHOL 55 ML, + 1 PQ TOALLITAS HUMEDAS "},"ELEMENTOS DE PROTECCION PERSONAL",{"$f":"+VLOOKUP(D581,[5]Catálogo!$A$2:$D$46,4,0)","v":"DEBE CONTENER TODOS LOS ELEMENTOS DESCRITOS, NO PUEDEN SER ENTREGAS PARCIALES"},"Und","Und","Si","Atención emergencia COVID-19","SARAO EVENTOS SAS","AECovid19-657",7933,"COP",1,55000,{"$f":"Q581-SUMIFS(ResumenCotizacion!L:L,ResumenCotizacion!S:S,L581,ResumenCotizacion!C:C,D581)","v":55000},0]
["EPP-18SARAO EVENTOS SAS",null,null,"EPP-18",{"$f":"+VLOOKUP(D582,[5]Catálogo!$A$2:$C$46,3,0)","v":"EPP-18 - MASCARILLA FACIAL N95 (TAPA BOCA) "},"ELEMENTOS DE PROTECCION PERSONAL",{"$f":"+VLOOKUP(D582,[5]Catálogo!$A$2:$D$46,4,0)","v":"DESECHABLE, CON TIRAS PARA AMARRAR, DOBLE FILTRO, ADAPTADOR NASAL AJUSTABLE, EN ALGODÓN,"},"Und","Und","Si","Atención emergencia COVID-19","SARAO EVENTOS SAS","AECovid19-657",70000,"COP",1,55000,{"$f":"Q582-SUMIFS(ResumenCotizacion!L:L,ResumenCotizacion!S:S,L582,ResumenCotizacion!C:C,D582)","v":55000},0]
["EPP-24SARAO EVENTOS SAS",null,null,"EPP-24",{"$f":"+VLOOKUP(D583,[5]Catálogo!$A$2:$C$46,3,0)","v":"EPP-24 - ROPA POR CAMA DESECHABLE "},"ELEMENTOS DE PROTECCION PERSONAL",{"$f":"+VLOOKUP(D583,[5]Catálogo!$A$2:$D$46,4,0)","v":"KIT DE JUEGO DE CAMA QUE INCLUYE SABANA, FORRO, SABANA DE MOVIMIENTO "},"Und","Und","Si","Atención emergencia COVID-19","SARAO EVENTOS SAS","AECovid19-657",9298,"COP",1,1000,{"$f":"Q583-SUMIFS(ResumenCotizacion!L:L,ResumenCotizacion!S:S,L583,ResumenCotizacion!C:C,D583)","v":1000},0]
["EPP-27SARAO EVENTOS SAS",null,null,"EPP-27",{"$f":"+VLOOKUP(D584,[5]Catálogo!$A$2:$C$46,3,0)","v":"EPP-27 - SABANAS "},"ELEMENTOS DE PROTECCION PERSONAL",{"$f":"+VLOOKUP(D584,[5]Catálogo!$A$2:$D$46,4,0)","v":"DESECHABLE, PLANA, 2,40X2,20 M, EN TELA SMS 35 GR, REPELENTE DE FLUIDOS, RESISTENTE, SIN ESTERILIZAR"},"Und","Und","Si","Atención emergencia COVID-19","SARAO EVENTOS SAS","AECovid19-657",4050,"COP",1,1000,{"$f":"Q584-SUMIFS(ResumenCotizacion!L:L,ResumenCotizacion!S:S,L584,ResumenCotizacion!C:C,D584)","v":1000},0]
["EPP-29SARAO EVENTOS SAS",null,null,"EPP-29",{"$f":"+VLOOKUP(D585,[5]Catálogo!$A$2:$C$46,3,0)","v":"EPP-29 - TAPABOCA TELA POLYESTER ANTI FLUIDO"},"ELEMENTOS DE PROTECCION PERSONAL",{"$f":"+VLOOKUP(D585,[5]Catálogo!$A$2:$D$46,4,0)","v":"TAPABOCA DE TELA Y POLYESTER FABRICANDO CON TELA ANTIFLUIDO, CON RESORTE A LA OREJA, AJUSTABLE."},"Und","Und","Si","Atención emergencia COVID-19","SARAO EVENTOS SAS","AECovid19-657",1930,"COP",1,5000,{"$f":"Q585-SUMIFS(ResumenCotizacion!L:L,ResumenCotizacion!S:S,L585,ResumenCotizacion!C:C,D585)","v":5000},0]
["EPP-30SARAO EVENTOS SAS",null,null,"EPP-30",{"$f":"+VLOOKUP(D586,[5]Catálogo!$A$2:$C$46,3,0)","v":"EPP-30 - TAPABOCAS DESECHABLES "},"ELEMENTOS DE PROTECCION PERSONAL",{"$f":"+VLOOKUP(D586,[5]Catálogo!$A$2:$D$46,4,0)","v":"TAPABOCAS DESECHABLE, CON RESORTE A LA OREJA , DOBLE FILTRO, ADAPTADOR NASAL AJUSTABLE, TELA NO TEJIDA"},"Und","Und","Si","Atención emergencia COVID-19","SARAO EVENTOS SAS","AECovid19-657",10999,"COP",1,55000,{"$f":"Q586-SUMIFS(ResumenCotizacion!L:L,ResumenCotizacion!S:S,L586,ResumenCotizacion!C:C,D586)","v":55000},0]
["EPP-45SARAO EVENTOS SAS",null,null,"EPP-45",{"$f":"+VLOOKUP(D587,[5]Catálogo!$A$2:$C$46,3,0)","v":"EPP-45 - TAPABOCAS DESECHABLES,  TRES CAPAS TERMOSELLADO PARA NIÑOS"},"ELEMENTOS DE PROTECCION PERSONAL",{"$f":"+VLOOKUP(D587,[5]Catálogo!$A$2:$D$46,4,0)","v":"TAPABOCAS DESECHABLE PARA NIÑOS, CON RESORTE A LA OREJA , TRES CAPAS, ADAPTADOR NASAL AJUSTABLE, TELA NO TEJIDA,TERMOSELLADOS"},"Und","Und","Si","Atención emergencia COVID-19","SARAO EVENTOS SAS","AECovid19-657",6899,"COP",1,500000000,{"$f":"Q587-SUMIFS(ResumenCotizacion!L:L,ResumenCotizacion!S:S,L587,ResumenCotizacion!C:C,D587)","v":500000000},0]
["EPP-46SARAO EVENTOS SAS",null,null,"EPP-46",{"$f":"+VLOOKUP(D588,[5]Catálogo!$A$2:$C$46,3,0)","v":"EPP-46 - TAPABOCAS DESECHABLES,  TRES CAPAS TERMOSELLADO"},"ELEMENTOS DE PROTECCION PERSONAL",{"$f":"+VLOOKUP(D588,[5]Catálogo!$A$2:$D$46,4,0)","v":"TAPABOCAS DESECHABLE, CON RESORTE A LA OREJA , TRES CAPAS, ADAPTADOR NASAL AJUSTABLE (ALAMBRE RECUBIERTO DE PLASTICO), TELA NO TEJIDA. EMPAQUE INDIVIDUAL"},"Und","Und","Si","Atención emergencia COVID-19","SARAO EVENTOS SAS","AECovid19-657",7500,"COP",1,500000000,{"$f":"Q588-SUMIFS(ResumenCotizacion!L:L,ResumenCotizacion!S:S,L588,ResumenCotizacion!C:C,D588)","v":500000000},0]
["EPP-18INVERSIONES LA VICTORIA INTERNATIONAL LTDA",null,null,"EPP-18",{"$f":"+VLOOKUP(D589,[5]Catálogo!$A$2:$C$46,3,0)","v":"EPP-18 - MASCARILLA FACIAL N95 (TAPA BOCA) "},"ELEMENTOS DE PROTECCION PERSONAL",{"$f":"+VLOOKUP(D589,[5]Catálogo!$A$2:$D$46,4,0)","v":"DESECHABLE, CON TIRAS PARA AMARRAR, DOBLE FILTRO, ADAPTADOR NASAL AJUSTABLE, EN ALGODÓN,"},"Und","Und","Si","Atención emergencia COVID-19","INVERSIONES LA VICTORIA INTERNATIONAL LTDA","AECovid19-662",69000,"COP",1,1000000,{"$f":"Q589-SUMIFS(ResumenCotizacion!L:L,ResumenCotizacion!S:S,L589,ResumenCotizacion!C:C,D589)","v":1000000},0]
["EPP-19INVERSIONES LA VICTORIA INTERNATIONAL LTDA",null,null,"EPP-19",{"$f":"+VLOOKUP(D590,[5]Catálogo!$A$2:$C$46,3,0)","v":"EPP-19 - MASCARILLA FACIAL N95 (TAPA BOCA)- RESORTADA "},"ELEMENTOS DE PROTECCION PERSONAL",{"$f":"+VLOOKUP(D590,[5]Catálogo!$A$2:$D$46,4,0)","v":"DESECHABLE, CON RESORTE A LA OREJA , DOBLE FILTRO, ADAPTADOR NASAL AJUSTABLE, EN ALGODÓN"},"Und","Und","Si","Atención emergencia COVID-19","INVERSIONES LA VICTORIA INTERNATIONAL LTDA","AECovid19-662",69000,"COP",1,1000000,{"$f":"Q590-SUMIFS(ResumenCotizacion!L:L,ResumenCotizacion!S:S,L590,ResumenCotizacion!C:C,D590)","v":1000000},0]
["EPP-30INVERSIONES LA VICTORIA INTERNATIONAL LTDA",null,null,"EPP-30",{"$f":"+VLOOKUP(D591,[5]Catálogo!$A$2:$C$46,3,0)","v":"EPP-30 - TAPABOCAS DESECHABLES "},"ELEMENTOS DE PROTECCION PERSONAL",{"$f":"+VLOOKUP(D591,[5]Catálogo!$A$2:$D$46,4,0)","v":"TAPABOCAS DESECHABLE, CON RESORTE A LA OREJA , DOBLE FILTRO, ADAPTADOR NASAL AJUSTABLE, TELA NO TEJIDA"},"Und","Und","Si","Atención emergencia COVID-19","INVERSIONES LA VICTORIA INTERNATIONAL LTDA","AECovid19-662",9500,"COP",1,1000000,{"$f":"Q591-SUMIFS(ResumenCotizacion!L:L,ResumenCotizacion!S:S,L591,ResumenCotizacion!C:C,D591)","v":1000000},0]
["EPP-32INVERSIONES LA VICTORIA INTERNATIONAL LTDA",null,null,"EPP-32",{"$f":"+VLOOKUP(D592,[5]Catálogo!$A$2:$C$46,3,0)","v":"EPP-32 - TAPABOCAS QUIRUGICO N95"},"ELEMENTOS DE PROTECCION PERSONAL",{"$f":"+VLOOKUP(D592,[5]Catálogo!$A$2:$D$46,4,0)","v":"DEBE CUMPLIR LA SIGUIENTE REGLAMENTACIÓN: NTC 3851 Parte 1 Criterios para la selección y uso de los equipos de protecicion respiratoria. / NTC 3852 Parte 2 Equipos de proteccion respiratoria, proteccion contra particulas."},"Und","Und","Si","Atención emergencia COVID-19","INVERSIONES LA VICTORIA INTERNATIONAL LTDA","AECovid19-662",82999,"COP",1,1000000,{"$f":"Q592-SUMIFS(ResumenCotizacion!L:L,ResumenCotizacion!S:S,L592,ResumenCotizacion!C:C,D592)","v":1000000},0]
["EPP-46INVERSIONES LA VICTORIA INTERNATIONAL LTDA",null,null,"EPP-46",{"$f":"+VLOOKUP(D593,[5]Catálogo!$A$2:$C$46,3,0)","v":"EPP-46 - TAPABOCAS DESECHABLES,  TRES CAPAS TERMOSELLADO"},"ELEMENTOS DE PROTECCION PERSONAL",{"$f":"+VLOOKUP(D593,[5]Catálogo!$A$2:$D$46,4,0)","v":"TAPABOCAS DESECHABLE, CON RESORTE A LA OREJA , TRES CAPAS, ADAPTADOR NASAL AJUSTABLE (ALAMBRE RECUBIERTO DE PLASTICO), TELA NO TEJIDA. EMPAQUE INDIVIDUAL"},"Und","Und","Si","Atención emergencia COVID-19","INVERSIONES LA VICTORIA INTERNATIONAL LTDA","AECovid19-662",6999,"COP",1,1000000,{"$f":"Q593-SUMIFS(ResumenCotizacion!L:L,ResumenCotizacion!S:S,L593,ResumenCotizacion!C:C,D593)","v":1000000},0]

{"sheet":"Hoja1","index":11,"n_rows":38,"n_cols":2,"rows_kept":38,"cut":false,"hidden":true,"merged":[]}
[]
[null,"PA-1"]
[null,"PA-2"]
[null,"PA-3"]
[null,"PA-4"]
[null,"PA-17"]
[null,"PA-24"]
[null,"PA-59"]
[null,"PA-60"]
[null,"PA-5"]
[null,"PA-14"]
[null,"PA-15"]
[null,"PA-16"]
[null,"PA-18"]
[null,"PA-30"]
[null,"PA-28"]
[null,"PA-32"]
[null,"PA-33"]
[null,"PA-36"]
[null,"PA-38"]
[null,"PA-52"]
[null,"PA-53"]
[null,"PA-19"]
[null,"PA-20"]
[null,"PA-21"]
[null,"PA-22"]
[null,"PA-23"]
[null,"PA-6"]
[null,"PA-13"]
[null,"PA-26"]
[null,"PA-31"]
[null,"PA-34"]
[null,"PA-45"]
[null,"PA-46"]
[null,"PA-47"]
[null,"PA-51"]
[null,"PA-54"]
[null,"PA-55"]

{"sheet":"tempListas","index":12,"n_rows":43,"n_cols":1,"rows_kept":43,"cut":false,"hidden":true,"merged":[]}
["codigo unico"]
["EPP-1"]
["EPP-3"]
["EPP-4"]
["EPP-5"]
["EPP-6"]
["EPP-24"]
["EPP-27"]
["EPP-11"]
["EPP-21"]
["EPP-30"]
["EPP-9"]
["EPP-29"]
["EPP-19"]
["EPP-31"]
["EPP-34"]
["EPP-17"]
["EPP-36"]
["EPP-37"]
["EPP-12"]
["EPP-10"]
["EPP-2"]
["EPP-33"]
["EPP-32"]
["EPP-25"]
["EPP-44"]
["EPP-18"]
["EPP-20"]
["EPP-14"]
["EPP-35"]
["EPP-7"]
["EPP-26"]
["EPP-43"]
["EPP-38"]
["EPP-13"]
["EPP-45"]
["EPP-42"]
["EPP-39"]
["EPP-40"]
["EPP-41"]
["EPP-46"]
["EPP-8"]
["EPP-16"]

{"sheet":"Listas","index":13,"n_rows":126,"n_cols":7,"rows_kept":126,"cut":false,"hidden":true,"merged":[]}
["GAlimentos","Proveedores","Departamentos","1Municipios","2Municipios","3Municipios","4Municipios"]
["EPP-1","proveedor16","AMAZONAS",null,null,null,"ABEJORRAL"]
["EPP-3","proveedor17","ANTIOQUIA",null,null,null,"ABRIAQUÍ"]
["EPP-4",null,"ARAUCA",null,null,null,"ALEJANDRÍA"]
["EPP-5",null,"ATLÁNTICO",null,null,null,"AMAGÁ"]
["EPP-6",null,"BOGOTÁ, D.C.",null,null,null,"AMALFI"]
["EPP-24",null,"BOLÍVAR",null,null,null,"ANDES"]
["EPP-27",null,"BOYACÁ",null,null,null,"ANGELÓPOLIS"]
["EPP-11",null,"CALDAS",null,null,null,"ANGOSTURA"]
["EPP-21",null,"CAQUETÁ",null,null,null,"ANORÍ"]
["EPP-30",null,"CASANARE",null,null,null,"ANZÁ"]
["EPP-9",null,"CAUCA",null,null,null,"APARTADÓ"]
["EPP-29",null,"CESAR",null,null,null,"ARBOLETES"]
["EPP-19",null,"CHOCÓ",null,null,null,"ARGELIA"]
["EPP-31",null,"CÓRDOBA",null,null,null,"ARMENIA"]
["EPP-34",null,"CUNDINAMARCA",null,null,null,"BARBOSA"]
["EPP-17",null,"GUAINIA",null,null,null,"BELLO"]
["EPP-36",null,"GUAVIARE",null,null,null,"BELMIRA"]
["EPP-37",null,"HUILA",null,null,null,"BETANIA"]
["EPP-12",null,"LA GUAJIRA",null,null,null,"BETULIA"]
["EPP-10",null,"MAGDALENA",null,null,null,"BRICEÑO"]
["EPP-2",null,"META",null,null,null,"BURITICÁ"]
["EPP-33",null,"NARIÑO",null,null,null,"CÁCERES"]
["EPP-32",null,"NORTE DE SANTANDER",null,null,null,"CAICEDO"]
["EPP-25",null,"PUTUMAYO",null,null,null,"CALDAS"]
["EPP-44",null,"QUINDIO",null,null,null,"CAMPAMENTO"]
["EPP-18",null,"RISARALDA",null,null,null,"CAÑASGORDAS"]
["EPP-20",null,"SAN ANDRES Y PROVIDENCIA",null,null,null,"CARACOLÍ"]
["EPP-14",null,"SANTANDER",null,null,null,"CARAMANTA"]
["EPP-35",null,"SUCRE",null,null,null,"CAREPA"]
["EPP-7",null,"TOLIMA",null,null,null,"CARMEN DE VIBORAL"]
["EPP-26",null,"VALLE DEL CAUCA",null,null,null,"CAROLINA"]
["EPP-43",null,"VAUPES",null,null,null,"CAUCASIA"]
["EPP-38",null,"VICHADA",null,null,null,"CHIGORODÓ"]
["EPP-13",null,null,null,null,null,"CISNEROS"]
["EPP-45",null,null,null,null,null,"CIUDAD BOLÍVAR"]
["EPP-42",null,null,null,null,null,"COCORNÁ"]
["EPP-39",null,null,null,null,null,"CONCEPCIÓN"]
["EPP-40",null,null,null,null,null,"CONCORDIA"]
["EPP-41",null,null,null,null,null,"COPACABANA"]
["EPP-46",null,null,null,null,null,"DABEIBA"]
["EPP-8",null,null,null,null,null,"DON MATÍAS"]
["EPP-16",null,null,null,null,null,"EBÉJICO"]
[null,null,null,null,null,null,"EL BAGRE"]
[null,null,null,null,null,null,"ENTRERRIOS"]
[null,null,null,null,null,null,"ENVIGADO"]
[null,null,null,null,null,null,"FREDONIA"]
[null,null,null,null,null,null,"FRONTINO"]
[null,null,null,null,null,null,"GIRALDO"]
[null,null,null,null,null,null,"GIRARDOTA"]
[null,null,null,null,null,null,"GÓMEZ PLATA"]
[null,null,null,null,null,null,"GRANADA"]
[null,null,null,null,null,null,"GUADALUPE"]
[null,null,null,null,null,null,"GUARNE"]
[null,null,null,null,null,null,"GUATAPÉ"]
[null,null,null,null,null,null,"HELICONIA"]
[null,null,null,null,null,null,"HISPANIA"]
[null,null,null,null,null,null,"ITAGÜÍ"]
[null,null,null,null,null,null,"ITUANGO"]
[null,null,null,null,null,null,"JARDÍN"]
[null,null,null,null,null,null,"JERICÓ"]
[null,null,null,null,null,null,"LA CEJA"]
[null,null,null,null,null,null,"LA ESTRELLA"]
[null,null,null,null,null,null,"LA PINTADA"]
[null,null,null,null,null,null,"LA UNIÓN"]
[null,null,null,null,null,null,"LIBORINA"]
[null,null,null,null,null,null,"MACEO"]
[null,null,null,null,null,null,"MARINILLA"]
[null,null,null,null,null,null,"MEDELLÍN"]
[null,null,null,null,null,null,"MONTEBELLO"]
[null,null,null,null,null,null,"MURINDÓ"]
[null,null,null,null,null,null,"MUTATÁ"]
[null,null,null,null,null,null,"NARIÑO"]
[null,null,null,null,null,null,"NECHÍ"]
[null,null,null,null,null,null,"NECOCLÍ"]
[null,null,null,null,null,null,"OLAYA"]
[null,null,null,null,null,null,"PEÑOL"]
[null,null,null,null,null,null,"PEQUE"]
[null,null,null,null,null,null,"PUEBLORRICO"]
[null,null,null,null,null,null,"PUERTO BERRÍO"]
[null,null,null,null,null,null,"PUERTO NARE"]
[null,null,null,null,null,null,"PUERTO TRIUNFO"]
[null,null,null,null,null,null,"REMEDIOS"]
[null,null,null,null,null,null,"RETIRO"]
[null,null,null,null,null,null,"RIONEGRO"]
[null,null,null,null,null,null,"SABANALARGA"]
[null,null,null,null,null,null,"SABANETA"]
[null,null,null,null,null,null,"SALGAR"]
[null,null,null,null,null,null,"SAN ANDRÉS"]
[null,null,null,null,null,null,"SAN CARLOS"]
[null,null,null,null,null,null,"SAN FRANCISCO"]
[null,null,null,null,null,null,"SAN JERÓNIMO"]
[null,null,null,null,null,null,"SAN JOSÉ DE LA MONTAÑA"]
[null,null,null,null,null,null,"SAN JUAN DE URABÁ"]
[null,null,null,null,null,null,"SAN LUIS"]
[null,null,null,null,null,null,"SAN PEDRO"]
[null,null,null,null,null,null,"SAN PEDRO DE URABÁ"]
[null,null,null,null,null,null,"SAN RAFAEL"]
[null,null,null,null,null,null,"SAN ROQUE"]
[null,null,null,null,null,null,"SAN VICENTE"]
[null,null,null,null,null,null,"SANTA BÁRBARA"]
[null,null,null,null,null,null,"SANTA FE DE ANTIOQUIA"]
[null,null,null,null,null,null,"SANTA ROSA DE OSOS"]
[null,null,null,null,null,null,"SANTO DOMINGO"]
[null,null,null,null,null,null,"SANTUARIO"]
[null,null,null,null,null,null,"SEGOVIA"]
[null,null,null,null,null,null,"SONSÓN"]
[null,null,null,null,null,null,"SOPETRÁN"]
[null,null,null,null,null,null,"TÁMESIS"]
[null,null,null,null,null,null,"TARAZÁ"]
[null,null,null,null,null,null,"TARSO"]
[null,null,null,null,null,null,"TITIRIBÍ"]
[null,null,null,null,null,null,"TOLEDO"]
[null,null,null,null,null,null,"TURBO"]
[null,null,null,null,null,null,"URAMITA"]
[null,null,null,null,null,null,"URRAO"]
[null,null,null,null,null,null,"VALDIVIA"]
[null,null,null,null,null,null,"VALPARAISO"]
[null,null,null,null,null,null,"VEGACHÍ"]
[null,null,null,null,null,null,"VENECIA"]
[null,null,null,null,null,null,"VIGIA DEL FUERTE"]
[null,null,null,null,null,null,"YALÍ"]
[null,null,null,null,null,null,"YARUMAL"]
[null,null,null,null,null,null,"YOLOMBÓ"]
[null,null,null,null,null,null,"YONDÓ (CASABE)"]
[null,null,null,null,null,null,"ZARAGOZA"]

{"sheet":"Cuadro Totales","index":14,"n_rows":17,"n_cols":14,"rows_kept":17,"cut":false,"hidden":true,"merged":[[6,0,6,13],[0,0,0,6],[12,0,12,1],[12,2,12,5]]}
["Valores",null,null,null,null,null,null,"Proveedor Ganador"]
["Cantidad Asumida","Valor","Valor Máximo Permitido","Subtotal","% IVA","Valor Iva","Precio Total","Proveedor"]
[]
[null,null,null,null,"Total",{"$f":"SUM(F$24:F$24)","v":0},{"$f":"SUM(G$24:G$24)","v":0}]
[]
[]
["Valores"]
["Precio Unitario GE A","Descuento adicional","Precio con Descuento","Precio Unitario GE B",null,"Descuento adicional","Precio con Descuento","Precio Unitario GE C","Descuento adicional","Precio con Descuento","Precio Unitario GE N","Descuento adicional","Precio con Descuento","Precio Total"]
[]
[null,null,null,null,null,null,null,null,null,null,null,null,"Valor Total",{"$f":"SUM(N9)","v":0}]
[]
[]
["Proveedor",null,null,null,null,null,{"$f":"G16","v":0}]
[]
["Item","Producto","Departamento","Municipio","Direccón de Entrega","Cantidad Asumida","Valor total de distribución"]
[]
["Cuadro valor de distribucion"]